Workbook

Sheet Sys (hidden)
A1: =PMBASIC+PMADVANCED+VMDEBUG -> 56
C3: Version Major: | D3: 2020 | E3: Minor: | F3: 229
C4: View Mode: | D4: 1
C5: Data Mode: | D5: FALSE
C6: Epoch Year: | D6: =1954 -> 1954
C7: Maximum Forecast Years: | D7: 80
C8: Maximum Extended Forecast Years: | D8: 100
H9: Shadow | I9: Default
C10: Parameter Mode: | H10: =IF(IF(COLUMN()=COLUMN(D10),TRUE,ISBLANK(D10)), I10, D10) -> Basic | I10: Basic
C11: Adjusted Date: | H11: =IF(IF(COLUMN()=COLUMN(D11),TRUE,ISBLANK(D11)), SP_CurrentDate, D11) -> 2020-03-01
C12: Adjust to system date: | H12: =IF(IF(COLUMN()=COLUMN(D12),TRUE,ISBLANK(D12)), I12, D12) -> TRUE | I12: TRUE
C13: Employer Income / Retirement Plans: | H13: FALSE | I13: FALSE
C14: Self-Employment Income / Retirement Plans: | H14: FALSE | I14: FALSE
C15: Passive Income / Individual Retirement Plans: | H15: FALSE | I15: FALSE
C16: Home / Mortgage: | H16: FALSE | I16: FALSE
C17: Social Security Retirement Insurance Benefits: | H17: FALSE | I17: FALSE
C19: Tax Index: | D19: =IF(NOT(INDEX(SC_ShowRetireatee,1)),0,1) -> 0 | E19: =IF(NOT(INDEX(SC_ShowRetireatee,2)),0,IF(SP_FilingStatus="Married Filing Jointly", 1, IF(SP_FilingStatus="Married Filing Separately",2,0))) -> 0
B21: Code | C21: Error Message
B22: 100
B23: 101 | C23: Date is in the past
B24: 102 | C24: Enter a valid date
B25: 103 | C25: Enter a valid number not equal to zero
B26: 104 | C26: Term needed (12 months or more)
B27: 105 | C27: Number outside of expected range
B28: 110 | C28: No filing age provided
B29: 111 | C29: No parameter provided
B30: 200 | C30: Enter a valid date
B31: 201 | C31: Enter a valid percentage
B32: 202 | C32: Enter a valid number
B33: 203 | C33: Error evaluating formula
B34: 204 | C34: Enter a valid percentage greater than zero
B35: 205 | C35: Enter a number greater than zero
B36: 206 | C36: Date is out of range
B37: 210 | C37: Invalid filing age
B38: 211 | C38: Only one auxiliary filing allowed
B39: 299 | C39: EOF

Sheet Main (hidden)
A1: =PMBASIC+PMADVANCED+VMONLINE+VMMACRO+VMDEBUG -> 62 | B1: =PMBASIC+PMADVANCED+VMONLINE+VMMACRO+VMDEBUG -> 62 | C1: =PMBASIC+PMADVANCED+VMONLINE+VMMACRO+VMDEBUG -> 62 | D1: =PMBASIC+PMADVANCED+IF(INDEX(SC_ShowRetireatee,2), VMONLINE+VMMACRO+VMDEBUG,VMDEBUG) -> 56 | E1: =PMBASIC+PMADVANCED+VMDEBUG -> 56 | F1: =PMBASIC+PMADVANCED+VMDEBUG -> 56 | G1: =PMBASIC+PMADVANCED+VMDEBUG -> 56 | H1: =PMBASIC+PMADVANCED+VMDEBUG -> 56 | I1: =PMBASIC+PMADVANCED+VMDEBUG -> 56 | J1: =PMBASIC+PMADVANCED+VMONLINE+VMMACRO+VMDEBUG -> 62 | K1: =PMBASIC+PMADVANCED+VMONLINE+VMMACRO+VMDEBUG -> 62 | L1: =PMBASIC+PMADVANCED+VMDEBUG -> 56 | M1: =PMBASIC+PMADVANCED+VMDEBUG -> 56 | N1: =PMBASIC+PMADVANCED+VMONLINE+VMMACRO+VMDEBUG -> 62 | O1: =PMBASIC+PMADVANCED+VMONLINE+VMMACRO+VMDEBUG -> 62
A2: =PMBASIC+PMADVANCED+VMONLINE+VMMACRO+VMDEBUG -> 62 | C2: Simulation Parameters | L2: Shadow | M2: Default
A3: =PMBASIC+PMADVANCED+VMONLINE+VMMACRO+VMDEBUG -> 62 | H3: FLTP | I3: FLTV | O3: =IFERROR(VLOOKUP(N3,IV_CodeTable,2,FALSE),"") -> 
A4: =PMBASIC+PMADVANCED+VMONLINE+VMDEBUG -> 58 | C4: Current Date: | H4: =IF(SC_ViewMode=VMWIPED,0,MOD(INT($A4/POWER(2,LOG(SC_ParameterMode,2))),2)) -> 0 | I4: =IF(SC_ViewMode=VMWIPED,0,MOD(INT($A4/POWER(2,LOG(SC_ViewMode,2))),2)) -> 0 | L4: =IF(IF(COLUMN()=COLUMN(J4),TRUE,ISBLANK(J4)), M4, J4) -> 2020-03-01 | M4: =MAX(MIN(TODAY(),DATE(SP_CurrentYear,12,31)),DATE(SP_CurrentYear,1,1)) -> 2020-03-01 | N4: =IF($I4, IF(ISERROR(DATEVALUE(TEXT(SP_CurrentDate,"mm/dd/yyyy"))),200,IF(SP_CurrentDate<DATE(YEAR(TODAY()),MONTH(TODAY()),1),101,0)),0) -> 0
A5: =PMBASIC+PMADVANCED+VMMACRO+VMDEBUG -> 60 | C5: Current Date: | H5: =IF(SC_ViewMode=VMWIPED,0,MOD(INT($A5/POWER(2,LOG(SC_ParameterMode,2))),2)) -> 0 | I5: =IF(SC_ViewMode=VMWIPED,0,MOD(INT($A5/POWER(2,LOG(SC_ViewMode,2))),2)) -> 0 | J5: =SP_CurrentDate -> 2020-03-01 | N5: =IF($I5, IF(ISERROR(DATEVALUE(TEXT(SP_CurrentDate,"mm/dd/yyyy"))),200,IF(SP_CurrentDate<DATE(YEAR(TODAY()),MONTH(TODAY()),1),101,0)),0) -> 0
A6: =PMBASIC+PMADVANCED+VMDEBUG -> 56 | C6: Current Date Prorate: | J6: =YEARFRAC(SP_CurrentDate, DATE(YEAR(SP_CurrentDate)+1,1,1)) -> 0.8333333333 | O6: =IFERROR(VLOOKUP(N6,IV_CodeTable,2,FALSE),"") -> 
A7: =PMBASIC+PMADVANCED+VMDEBUG -> 56 | C7: Current Year: | L7: =IF(IF(COLUMN()=COLUMN(J7),TRUE,ISBLANK(J7)), M7, J7) -> 2020 | M7: =YEAR(TODAY()) -> 2020
A8: =PMBASIC+PMADVANCED+VMDEBUG -> 56 | C8: Stop Year: | J8: =IFERROR(MAX(IF(INDEX(SC_ShowRetireatee,1),YEAR(INDEX(SP_BirthDate,1))+INDEX(SP_LifeExp,1)+1,SP_CurrentYear+1), IF(INDEX(SC_ShowRetireatee,2),YEAR(INDEX(SP_BirthDate,2))+INDEX(SP_LifeExp,2)+1),SP_CurrentYear+1),SP_CurrentYear+1) -> 2021
A9: =PMBASIC+PMADVANCED+VMONLINE+VMDEBUG -> 58 | C9: Retirement Date: | H9: =IF(SC_ViewMode=VMWIPED,0,MOD(INT($A9/POWER(2,LOG(SC_ParameterMode,2))),2)) -> 0 | I9: =IF(SC_ViewMode=VMWIPED,0,MOD(INT($A9/POWER(2,LOG(SC_ViewMode,2))),2)) -> 0 | L9: =IF(IF(COLUMN()=COLUMN(J9),TRUE,ISBLANK(J9)), M9, J9) -> 2021-01-01 | M9: =DATE(SC_YearStop,1,1) -> 2021-01-01 | N9: =IF($I9,IF(ISERROR(DATEVALUE(TEXT($L9,"mm/dd/yyyy"))),200,IF($L9>DATE(SC_YearStop,1,1),200,0)),0) -> 0
A10: =PMBASIC+PMADVANCED+VMMACRO+VMDEBUG -> 60 | C10: Retirement Date: | H10: =IF(SC_ViewMode=VMWIPED,0,MOD(INT($A10/POWER(2,LOG(SC_ParameterMode,2))),2)) -> 0 | I10: =IF(SC_ViewMode=VMWIPED,0,MOD(INT($A10/POWER(2,LOG(SC_ViewMode,2))),2)) -> 0 | J10: =SP_TargetRD -> 2021-01-01 | N10: =IF($I10,IF(ISERROR(DATEVALUE(TEXT(SP_TargetRD,"mm/dd/yyyy"))),200,IF(SP_TargetRD>DATE(SC_YearStop,1,1),200,0)),0) -> 0 | O10: =IFERROR(VLOOKUP(N10,IV_CodeTable,2,FALSE),"") -> 
A11: =PMBASIC+PMADVANCED+VMONLINE+VMMACRO+VMDEBUG -> 62 | C11: Default Wage Inflation: | L11: =IF(IF(COLUMN()=COLUMN(J11),TRUE,ISBLANK(J11)), M11, J11) -> 0.0375 | M11: 0.0375 | N11: =IFERROR(IF(OR(NOT(ISNUMBER($L11)),$L11<-1,$L11>1),201,0),203) -> 0
A12: 62 | C12: Default Consumer Price Inflation: | L12: =IF(IF(COLUMN()=COLUMN(J12),TRUE,ISBLANK(J12)), M12, J12) -> 0.0325 | M12: 0.0325 | N12: =IFERROR(IF(OR(NOT(ISNUMBER($L12)),$L12<-1,$L12>1),201,0),203) -> 0
A13: 62 | C13: Default Annual Return on Stocks: | L13: =IF(IF(COLUMN()=COLUMN(J13),TRUE,ISBLANK(J13)), M13, J13) -> 0.07 | M13: 0.07 | N13: =IFERROR(IF(OR(NOT(ISNUMBER($L13)),$L13<-1,$L13>1),201,0),203) -> 0 | O13: =IFERROR(VLOOKUP(N13,IV_CodeTable,2,FALSE),"") -> 
A14: 62 | C14: Default Bond Yield: | L14: =IF(IF(COLUMN()=COLUMN(J14),TRUE,ISBLANK(J14)), M14, J14) -> 0.05 | M14: 0.05 | N14: =IFERROR(IF(OR(NOT(ISNUMBER($L14)),$L14<0,$L14>1),201,0),203) -> 0 | O14: =IFERROR(VLOOKUP(N14,IV_CodeTable,2,FALSE),"") -> 
A15: 62 | C15: Investment Strategy: | L15: =IF(IF(COLUMN()=COLUMN(J15),TRUE,ISBLANK(J15)), M15, J15) -> Target Date Fund | M15: Target Date Fund
A16: =PMBASIC+PMADVANCED+VMONLINE+VMMACRO+VMDEBUG -> 62
A17: 62 | C17: Detailed Household Profile | L17: Shadow | M17: Default
A18: 62
A19: 62 | C19: Marital Status: | L19: =IF(IF(COLUMN()=COLUMN(J19),TRUE,ISBLANK(J19)), $M19, J19) -> Single | M19: Single
A20: 62 | C20: Filing Status: | L20: =IF(IF(COLUMN()=COLUMN(J20),TRUE,ISBLANK(J20)), $M20, J20) -> Single | M20: Single
A21: =PMBASIC+PMADVANCED+IF(INDEX(SC_ShowRetireatee,1), VMONLINE+VMMACRO+VMDEBUG,VMDEBUG) -> 56 | C21: Initials (Yourself): | L21: =IF(IF(COLUMN()=COLUMN(J21),TRUE,ISBLANK(J21)), "", J21) -> 
A22: =PMBASIC+PMADVANCED+IF(INDEX(SC_ShowRetireatee,2), VMONLINE+VMMACRO+VMDEBUG,VMDEBUG) -> 56 | C22: Initials (Spouse): | L22: =IF(IF(COLUMN()=COLUMN(J22),TRUE,ISBLANK(J22)), "", J22) -> 
A23: =PMBASIC+PMADVANCED+VMONLINE+VMMACRO+VMDEBUG -> 62 | C23: Core (Non-Retirement) Account Balance: | L23: =IF(IF(COLUMN()=COLUMN(J23),TRUE,ISBLANK(J23)),M23,J23) -> 0 | M23: 0 | N23: =IFERROR(IF(OR(NOT(ISNUMBER($L23)),$L23<0),202,0),203) -> 0
A24: =PMBASIC+PMADVANCED+VMONLINE+VMMACRO+VMDEBUG -> 62 | C24: Cost Basis: | L24: =IF(IF(COLUMN()=COLUMN(J24),TRUE,ISBLANK(J24)),M24,J24) -> 0 | M24: =IF(ISNUMBER(SP_CoreBalance),SP_CoreBalance,0) -> 0 | N24: =IFERROR(IF(OR(NOT(ISNUMBER($L24)),$L24<0),202,0),203) -> 0
A25: =PMADVANCED+VMONLINE+VMMACRO+VMDEBUG -> 46 | C25: Other Appreciating Assets: | L25: =IF(IF(COLUMN()=COLUMN(J25),TRUE,ISBLANK(J25)),M25,J25) -> 0 | M25: 0 | N25: =IFERROR(IF(OR(NOT(ISNUMBER($L25)),$L25<0),202,0),203) -> 0
A26: =PMBASIC+PMADVANCED+VMONLINE+VMMACRO+VMDEBUG -> 62 | C26: Additional Retirement Income: | K26: /year | L26: 0 | M26: 0 | N26: =IFERROR(IF(OR(NOT(ISNUMBER($L26)),$L26<0),202,0),203) -> 0
A27: 62 | C27: State, Local, and Foreign Income Taxes: | L27: None | M27: None | N27: =IF($L27="None",111,0) -> 111 | O27: No parameter provided
A28: =PMADVANCED+VMONLINE+VMMACRO+VMDEBUG -> 46 | B28: Annuity | C28: Payment Terms: | L28: =IF(IF(COLUMN()=COLUMN(J28),TRUE,ISBLANK(J28)), M28, J28) -> Life | M28: Life
A29: 46 | C29: Payment Rate: | L29: Fixed | M29: Fixed
A30: 46 | C30: Inflation Adjusted: | L30: FALSE | M30: FALSE
A31: 46 | C31: Participation Rate: | L31: =IF(IF(COLUMN()=COLUMN(J31),TRUE,ISBLANK(J31)), M31, J31) -> 1 | M31: =IF(SP_AnnyRate="Indexed",0.75,1) -> 1 | N31: =IFERROR(IF(OR(NOT(ISNUMBER($L31)),$L31<=0,$L31>1),201,0),203) -> 0 | O31: =IFERROR(VLOOKUP(N31,IV_CodeTable,2,FALSE),"") -> 
A32: 46 | C32: Rate Ceiling: | L32: =IF(IF(COLUMN()=COLUMN(J32),TRUE,ISBLANK(J32)), M32, J32) -> 1 | M32: =IF(SP_AnnyRate="Indexed",0.07,1) -> 1 | N32: =IFERROR(IF(OR(NOT(ISNUMBER($L32)),$L32<=0,$L32>1),201,0),203) -> 0 | O32: =IFERROR(VLOOKUP(N32,IV_CodeTable,2,FALSE),"") -> 
A33: 46 | C33: Rate Floor: | L33: =IF(IF(COLUMN()=COLUMN(J33),TRUE,ISBLANK(J33)), M33, J33) -> 0 | M33: 0 | N33: =IFERROR(IF(OR(NOT(ISNUMBER($L33)),$L33<=-1,$L33>1),201,0),203) -> 0 | O33: =IFERROR(VLOOKUP(N33,IV_CodeTable,2,FALSE),"") -> 
A34: 46 | C34: Spread Fee: | K34: /year | L34: =IF(IF(COLUMN()=COLUMN(J34),TRUE,ISBLANK(J34)), M34, J34) -> 0.015 | M34: =IF(SP_AnnyRate="Variable",0.02,0.015) -> 0.015 | N34: =IFERROR(IF(OR(NOT(ISNUMBER($L34)),$L34<0,$L34>1),201,0),203) -> 0 | O34: =IFERROR(VLOOKUP(N34,IV_CodeTable,2,FALSE),"") -> 
A35: =PMADVANCED+IF(INDEX(SC_ShowRetireatee,2),VMONLINE+VMMACRO+VMDEBUG,VMDEBUG) -> 40 | C35: Survivor Benefit: | L35: FALSE | M35: =AND(INDEX(SC_ShowRetireatee,1),INDEX(SC_ShowRetireatee,2)) -> FALSE
A36: 46 | C36: Guaranteed Term: | K36: years | L36: 10 | M36: =IF(SP_AnnyTerms="Life",10,20) -> 10 | N36: =IF(AND($L$28="Period Certain",$L36=0),205,0) -> 0
A37: 62 | C37: After-Tax Contribution: | K37: /year | L37: 0 | M37: 0 | N37: =IFERROR(IF(OR(NOT(ISNUMBER($L37)),$L37<0),202,0),203) -> 0 | O37: =IFERROR(VLOOKUP(N37,IV_CodeTable,2,FALSE),"") -> 
A38: 62 | C38: Balance: | L38: =IF(IF(COLUMN()=COLUMN(J38),TRUE,ISBLANK(J38)), M38, J38) -> 0 | M38: 0 | N38: =IFERROR(IF(OR(NOT(ISNUMBER($L38)),$L38<0),202,0),203) -> 0 | O38: =IFERROR(VLOOKUP(N38,IV_CodeTable,2,FALSE),"") -> 
A39: 62 | C39: Cost Basis: | L39: =IF(IF(COLUMN()=COLUMN(J39),TRUE,ISBLANK(J39)), M39, J39) -> 0 | M39: =$L$38 -> 0 | N39: =IFERROR(IF(OR(NOT(ISNUMBER($L39)),$L39<0),202,0),203) -> 0
A40: 62 | C40: Nominal Rate of Return: | J40: =IFERROR(SUM(SC_ZA_AnnyROR*SC_ZA_AnnyWeight)/SUM(SC_ZA_AnnyWeight),0) -> 0
A41: =PMBASIC+PMADVANCED+VMDEBUG -> 56 | C41: Payment Prorate: | J41: =YEARFRAC(DATE(YEAR(SP_TargetRD),MONTH(SP_TargetRD)+IF(DAY(SP_TargetRD)=1, 0, 1),1),DATE(YEAR(SP_TargetRD)+1,1,1)) -> 1
A42: 62 | C42: Debt Limit: | L42: 10000 | M42: 10000 | N42: =IFERROR(IF(OR(NOT(ISNUMBER($L42)),$L42<=0),202,0),203) -> 0
A43: 62 | C43: Current Debt: | L43: 0 | M43: 0 | N43: =IFERROR(IF(OR(NOT(ISNUMBER($L43)),$L43<0,$L43>$L42),202,0),203) -> 0
A44: 62 | C44: Interest Rate: | L44: 0 | M44: 0 | N44: =IFERROR(IF(OR(NOT(ISNUMBER($L44)),$L44<0,$L44>1),201,0),203) -> 0
A45: 62
A46: 62 | C46: Detailed Individual Profile(s) | L46: Shadow | M46: Default
A47: 62 | D47: RI | E47: RN | F47: TN | G47: RO | H47: FLTP | I47: FLTV
A48: =PMBASIC+PMADVANCED+VMDEBUG -> 56 | C48: Show: | D48: =INDEX(SP_Initials,E48) ->  | E48: =MOD(ROW()-ROW($E$48),2)+1 -> 1 | F48: =INDEX(SC_TaxIndex,$E48) -> 0 | G48: =MOD($E48,2)-($E48-1) -> 1 | H48: =IF(SC_ViewMode=VMWIPED,0,MOD(INT($A48/POWER(2,LOG(SC_ParameterMode,2))),2)) -> 0 | I48: =IF(SC_ViewMode=VMWIPED,0,MOD(INT($A48/POWER(2,LOG(SC_ViewMode,2))),2)) -> 0 | J48: =INDEX(SP_Initials,$E48)<>"" -> FALSE
A49: =PMBASIC+PMADVANCED+VMDEBUG -> 56 | D49: =INDEX(SP_Initials,E49) ->  | E49: =MOD(ROW()-ROW($E$48),2)+1 -> 2 | F49: 0 | G49: -1 | H49: =IF(SC_ViewMode=VMWIPED,0,MOD(INT($A49/POWER(2,LOG(SC_ParameterMode,2))),2)) -> 0 | I49: 0 | J49: =INDEX(SP_Initials,$E49)<>"" -> FALSE
A50: =PMBASIC+PMADVANCED+IF(INDEX(SC_ShowRetireatee,$E50), VMONLINE+VMMACRO+VMDEBUG,VMDEBUG) -> 56 | C50: Birth Date: | D50: =INDEX(SP_Initials,E50) ->  | E50: 1 | F50: 0 | G50: 1 | H50: =IF(SC_ViewMode=VMWIPED,0,MOD(INT($A50/POWER(2,LOG(SC_ParameterMode,2))),2)) -> 0 | I50: 0 | L50: =IF(IF(COLUMN()=COLUMN(J50),TRUE,ISBLANK(J50)), "", J50) -> 
A51: 56 | E51: 2 | F51: 0 | G51: -1 | H51: =IF(SC_ViewMode=VMWIPED,0,MOD(INT($A51/POWER(2,LOG(SC_ParameterMode,2))),2)) -> 0 | I51: 0 | L51: =IF(IF(COLUMN()=COLUMN(J51),TRUE,ISBLANK(J51)), "", J51) -> 
A52: 56 | C52: Start Work Age: | E52: 1 | F52: 0 | G52: 1 | H52: =IF(SC_ViewMode=VMWIPED,0,MOD(INT($A52/POWER(2,LOG(SC_ParameterMode,2))),2)) -> 0 | I52: 0 | L52: =IF(IF(COLUMN()=COLUMN(J52),TRUE,ISBLANK(J52)), M52, J52) -> 18 | M52: 18
A53: 56 | E53: 2 | F53: 0 | G53: -1 | H53: =IF(SC_ViewMode=VMWIPED,0,MOD(INT($A53/POWER(2,LOG(SC_ParameterMode,2))),2)) -> 0 | I53: 0 | L53: 18 | M53: 18
A54: 56 | C54: Life Expectancy: | E54: 1 | F54: 0 | G54: 1 | H54: =IF(SC_ViewMode=VMWIPED,0,MOD(INT($A54/POWER(2,LOG(SC_ParameterMode,2))),2)) -> 0 | I54: 0 | L54: 92 | M54: 92
A55: 56 | E55: 2 | F55: 0 | G55: -1 | H55: =IF(SC_ViewMode=VMWIPED,0,MOD(INT($A55/POWER(2,LOG(SC_ParameterMode,2))),2)) -> 0 | I55: 0 | L55: 92 | M55: 92
A56: 56 | C56: Dependents: | E56: 1 | F56: 0 | G56: 1 | H56: =IF(SC_ViewMode=VMWIPED,0,MOD(INT($A56/POWER(2,LOG(SC_ParameterMode,2))),2)) -> 0 | I56: 0 | L56: 0 | M56: 0 | N56: =IFERROR(IF($I56, IF(OR(NOT(ISNUMBER($L56)),$L56<0),202,0),0),203) -> 0
A57: 56 | E57: 2 | F57: 0 | G57: -1 | H57: =IF(SC_ViewMode=VMWIPED,0,MOD(INT($A57/POWER(2,LOG(SC_ParameterMode,2))),2)) -> 0 | I57: 0 | L57: 0 | M57: 0 | N57: =IFERROR(IF($I57, IF(OR(NOT(ISNUMBER($L57)),$L57<0),202,0),0),203) -> 0
A58: =PMBASIC+PMADVANCED+IF(AND(SP_EI,INDEX(SC_ShowRetireatee,$E58)), VMONLINE+VMMACRO+VMDEBUG, VMDEBUG) -> 56 | B58: Employer-Sponsored Retirement Plans | C58: Current Employer Income: | D58: =INDEX(SP_Initials,E58) ->  | E58: =MOD(ROW()-ROW($E$48),2)+1 -> 1 | F58: 0 | G58: 1 | H58: =IF(SC_ViewMode=VMWIPED,0,MOD(INT($A58/POWER(2,LOG(SC_ParameterMode,2))),2)) -> 0 | I58: 0 | J58: =IF(SC_ViewMode=VMONLINE, INDEX(IV_IncomeEmployer,$E58),HYPERLINK(IV_WBNAME&ADDRESS(ROW(INDEX(IV_IncomeEmployer,$E58)),COLUMN(INDEX(IV_IncomeEmployer,$E58)),,,"Income"),INDEX(IV_IncomeEmployer,$E58))) -> 0 | O58: =IFERROR(VLOOKUP(N58,IV_CodeTable,2,FALSE),"") -> 
A59: =PMBASIC+PMADVANCED+IF(AND(SP_EI,INDEX(SC_ShowRetireatee,$E59)), VMONLINE+VMMACRO+VMDEBUG, VMDEBUG) -> 56 | D59: =INDEX(SP_Initials,E59) ->  | E59: 2 | F59: 0 | G59: -1 | H59: =IF(SC_ViewMode=VMWIPED,0,MOD(INT($A59/POWER(2,LOG(SC_ParameterMode,2))),2)) -> 0 | I59: 0 | J59: =IF(SC_ViewMode=VMONLINE, INDEX(IV_IncomeEmployer,$E59),HYPERLINK(IV_WBNAME&ADDRESS(ROW(INDEX(IV_IncomeEmployer,$E59)),COLUMN(INDEX(IV_IncomeEmployer,$E59)),,,"Income"),INDEX(IV_IncomeEmployer,$E59))) -> 0
A60: =PMBASIC+PMADVANCED+IF(AND(SP_EI,INDEX(SC_ShowRetireatee,$E60)), VMONLINE+VMMACRO+VMDEBUG, VMDEBUG) -> 56 | C60: Default Annual Increase: | D60: =INDEX(SP_Initials,E60) ->  | E60: 1 | F60: =INDEX(SC_TaxIndex,$E60) -> 0 | G60: =MOD($E60,2)-($E60-1) -> 1 | H60: =IF(SC_ViewMode=VMWIPED,0,MOD(INT($A60/POWER(2,LOG(SC_ParameterMode,2))),2)) -> 0 | I60: 0 | K60: + Wage Inflation | L60: =IF(IF(COLUMN()=COLUMN(J60),TRUE,ISBLANK(J60)), M60, J60) -> 0 | M60: 0 | N60: =IFERROR(IF($I60, IF(OR(NOT(ISNUMBER($L60)),$L60<-1,$L60>1),201,0), 0),203) -> 0 | O60: =IFERROR(VLOOKUP(N60,IV_CodeTable,2,FALSE),"") -> 
A61: 56 | D61: =INDEX(SP_Initials,E61) ->  | E61: 2 | F61: =INDEX(SC_TaxIndex,$E61) -> 0 | G61: =MOD($E61,2)-($E61-1) -> -1 | H61: =IF(SC_ViewMode=VMWIPED,0,MOD(INT($A61/POWER(2,LOG(SC_ParameterMode,2))),2)) -> 0 | I61: 0 | L61: =IF(IF(COLUMN()=COLUMN(J61),TRUE,ISBLANK(J61)), M61, J61) -> 0 | M61: 0 | N61: =IFERROR(IF($I61, IF(OR(NOT(ISNUMBER($L61)),$L61<-1,$L61>1),201,0), 0),203) -> 0 | O61: =IFERROR(VLOOKUP(N61,IV_CodeTable,2,FALSE),"") -> 
A62: =PMADVANCED+IF(AND(SP_EI,INDEX(SC_ShowRetireatee,$E62)), VMONLINE+VMMACRO+VMDEBUG, VMDEBUG) -> 40 | C62: Defined Benefit (DB) Pension Start Work Date: | D62: =INDEX(SP_Initials,E62) ->  | E62: 1 | F62: 0 | G62: 1 | H62: =IF(SC_ViewMode=VMWIPED,0,MOD(INT($A62/POWER(2,LOG(SC_ParameterMode,2))),2)) -> 0 | I62: 0 | L62: =IF(IF(COLUMN()=COLUMN(J62),TRUE,ISBLANK(J62)), "", J62) ->  | N62: =IF($I62, IF($L62="",0,IF(ISERROR(DATEVALUE(TEXT($L62,"mm/dd/yyyy"))),200,0)), 0) -> 0
A63: 40 | E63: 2 | F63: 0 | G63: -1 | H63: =IF(SC_ViewMode=VMWIPED,0,MOD(INT($A63/POWER(2,LOG(SC_ParameterMode,2))),2)) -> 0 | I63: 0 | L63: =IF(IF(COLUMN()=COLUMN(J63),TRUE,ISBLANK(J63)), "", J63) ->  | N63: =IF($I63, IF($L63="",0,IF(ISERROR(DATEVALUE(TEXT($L63,"mm/dd/yyyy"))),200,0)), 0) -> 0
A64: 40 | C64: DB Pension Final Average Earnings (FAE) Years Used: | E64: 1 | F64: 0 | G64: 1 | H64: =IF(SC_ViewMode=VMWIPED,0,MOD(INT($A64/POWER(2,LOG(SC_ParameterMode,2))),2)) -> 0 | I64: 0 | K64: years | L64: =IF(IF(COLUMN()=COLUMN(J64),TRUE,ISBLANK(J64)), M64, J64) -> 0 | M64: 0 | N64: =IFERROR(IF($I64, IF(OR(NOT(ISNUMBER($L64)),$L64<0),202,0),0),203) -> 0
A65: 40 | E65: 2 | F65: 0 | G65: -1 | H65: =IF(SC_ViewMode=VMWIPED,0,MOD(INT($A65/POWER(2,LOG(SC_ParameterMode,2))),2)) -> 0 | I65: 0 | L65: 0 | M65: 0 | N65: =IFERROR(IF($I65, IF(OR(NOT(ISNUMBER($L65)),$L65<0),202,0),0),203) -> 0
A66: 40 | C66: DB Pension Benefit Percentage: | E66: 1 | F66: 0 | G66: 1 | H66: =IF(SC_ViewMode=VMWIPED,0,MOD(INT($A66/POWER(2,LOG(SC_ParameterMode,2))),2)) -> 0 | I66: 0 | K66: of FAE | L66: 0 | M66: 0 | N66: =IFERROR(IF($I66, IF(OR(NOT(ISNUMBER($L66)),$L66<0,$L66>1),201,0), 0),203) -> 0
A67: 40 | E67: 2 | F67: 0 | G67: -1 | H67: =IF(SC_ViewMode=VMWIPED,0,MOD(INT($A67/POWER(2,LOG(SC_ParameterMode,2))),2)) -> 0 | I67: 0 | L67: 0 | M67: 0 | N67: =IFERROR(IF($I67, IF(OR(NOT(ISNUMBER($L67)),$L67<0,$L67>1),201,0), 0),203) -> 0
A68: 40 | C68: DB Pension Payout Option: | D68: =INDEX(SP_Initials,E68) ->  | E68: 1 | F68: 0 | G68: 1 | H68: =IF(SC_ViewMode=VMWIPED,0,MOD(INT($A68/POWER(2,LOG(SC_ParameterMode,2))),2)) -> 0 | I68: 0 | L68: =IF(IF(COLUMN()=COLUMN(J68),TRUE,ISBLANK(J68)), M68, J68) -> Annuity | M68: Annuity
A69: 40 | E69: 2 | F69: 0 | G69: -1 | H69: =IF(SC_ViewMode=VMWIPED,0,MOD(INT($A69/POWER(2,LOG(SC_ParameterMode,2))),2)) -> 0 | I69: 0 | L69: Annuity | M69: Annuity
A70: 56 | C70: Before-Tax Contribution (401(k)/403(b)): | E70: 1 | F70: 0 | G70: 1 | H70: =IF(SC_ViewMode=VMWIPED,0,MOD(INT($A70/POWER(2,LOG(SC_ParameterMode,2))),2)) -> 0 | I70: 0 | K70: of Employer Income | L70: 0 | M70: 0 | N70: =IFERROR(IF($I70, IF(OR(NOT(ISNUMBER($L70)),$L70<0,$L70>1),201,0), 0),203) -> 0
A71: 56 | E71: 2 | F71: 0 | G71: -1 | H71: =IF(SC_ViewMode=VMWIPED,0,MOD(INT($A71/POWER(2,LOG(SC_ParameterMode,2))),2)) -> 0 | I71: 0 | L71: 0 | M71: 0 | N71: =IFERROR(IF($I71, IF(OR(NOT(ISNUMBER($L71)),$L71<0,$L71>1),201,0), 0),203) -> 0
A72: 56 | C72: Before-Tax Balance: | E72: 1 | F72: 0 | G72: 1 | H72: =IF(SC_ViewMode=VMWIPED,0,MOD(INT($A72/POWER(2,LOG(SC_ParameterMode,2))),2)) -> 0 | I72: 0 | L72: 0 | M72: 0 | N72: =IFERROR(IF($I72, IF(OR(NOT(ISNUMBER($L72)),$L72<0),202,0),0),203) -> 0
A73: 56 | E73: 2 | F73: 0 | G73: -1 | H73: =IF(SC_ViewMode=VMWIPED,0,MOD(INT($A73/POWER(2,LOG(SC_ParameterMode,2))),2)) -> 0 | I73: 0 | L73: 0 | M73: 0 | N73: =IFERROR(IF($I73, IF(OR(NOT(ISNUMBER($L73)),$L73<0),202,0),0),203) -> 0
A74: 56 | C74: Company Match: | E74: 1 | F74: 0 | G74: 1 | H74: =IF(SC_ViewMode=VMWIPED,0,MOD(INT($A74/POWER(2,LOG(SC_ParameterMode,2))),2)) -> 0 | I74: 0 | K74: of Employer Income | L74: 0 | M74: 0 | N74: =IFERROR(IF($I74, IF(OR(NOT(ISNUMBER($L74)),$L74<0,$L74>1),201,0), 0),203) -> 0
A75: 56 | E75: 2 | F75: 0 | G75: -1 | H75: =IF(SC_ViewMode=VMWIPED,0,MOD(INT($A75/POWER(2,LOG(SC_ParameterMode,2))),2)) -> 0 | I75: 0 | L75: 0 | M75: 0 | N75: =IFERROR(IF($I75, IF(OR(NOT(ISNUMBER($L75)),$L75<0,$L75>1),201,0), 0),203) -> 0
A76: 56 | C76: After-Tax Contribution (Roth 401(k)/403(b)): | E76: 1 | F76: 0 | G76: 1 | H76: =IF(SC_ViewMode=VMWIPED,0,MOD(INT($A76/POWER(2,LOG(SC_ParameterMode,2))),2)) -> 0 | I76: 0 | K76: of Employer Income | L76: 0 | M76: 0 | N76: =IFERROR(IF($I76, IF(OR(NOT(ISNUMBER($L76)),$L76<0,$L76>1),201,0), 0),203) -> 0
A77: 56 | E77: 2 | F77: 0 | G77: -1 | H77: =IF(SC_ViewMode=VMWIPED,0,MOD(INT($A77/POWER(2,LOG(SC_ParameterMode,2))),2)) -> 0 | I77: 0 | L77: 0 | M77: 0 | N77: =IFERROR(IF($I77, IF(OR(NOT(ISNUMBER($L77)),$L77<0,$L77>1),201,0), 0),203) -> 0
A78: 56 | C78: After-Tax Balance: | E78: 1 | F78: 0 | G78: 1 | H78: =IF(SC_ViewMode=VMWIPED,0,MOD(INT($A78/POWER(2,LOG(SC_ParameterMode,2))),2)) -> 0 | I78: 0 | L78: 0 | M78: 0 | N78: =IFERROR(IF($I78, IF(OR(NOT(ISNUMBER($L78)),$L78<0),202,0),0),203) -> 0
A79: 56 | E79: 2 | F79: 0 | G79: -1 | H79: =IF(SC_ViewMode=VMWIPED,0,MOD(INT($A79/POWER(2,LOG(SC_ParameterMode,2))),2)) -> 0 | I79: 0 | L79: 0 | M79: 0 | N79: 0
A80: =PMBASIC+PMADVANCED+IF(AND(SP_EI,INDEX(SC_ShowRetireatee,$E80)), VMONLINE+VMMACRO+VMDEBUG, VMDEBUG) -> 56 | C80: After-Tax Cost Basis: | E80: 1 | F80: 0 | G80: 1 | H80: =IF(SC_ViewMode=VMWIPED,0,MOD(INT($A80/POWER(2,LOG(SC_ParameterMode,2))),2)) -> 0 | I80: 0 | L80: 0 | M80: =IF($N78=0,$J78,0) -> 0 | N80: 0
A81: =PMBASIC+PMADVANCED+IF(AND(SP_EI,INDEX(SC_ShowRetireatee,$E81)), VMONLINE+VMMACRO+VMDEBUG, VMDEBUG) -> 56 | E81: 2 | F81: 0 | G81: -1 | H81: =IF(SC_ViewMode=VMWIPED,0,MOD(INT($A81/POWER(2,LOG(SC_ParameterMode,2))),2)) -> 0 | I81: 0 | L81: 0 | M81: =IF($N79=0,$J79,0) -> 0 | N81: 0
A82: =PMADVANCED+IF(AND(SP_EI,INDEX(SC_ShowRetireatee,$E82)), VMONLINE+VMMACRO+VMDEBUG, VMDEBUG) -> 40 | C82: Qualified Distribution Age: | E82: 1 | F82: =INDEX(SC_TaxIndex,$E82) -> 0 | G82: =MOD($E82,2)-($E82-1) -> 1 | H82: =IF(SC_ViewMode=VMWIPED,0,MOD(INT($A82/POWER(2,LOG(SC_ParameterMode,2))),2)) -> 0 | I82: =IF(SC_ViewMode=VMWIPED,0,MOD(INT($A82/POWER(2,LOG(SC_ViewMode,2))),2)) -> 0 | L82: 0 | M82: =IF($L50="",0,IF(SP_TargetRD < DATE(YEAR($L50)+55,MONTH($L50),DAY($L50)), 59.5, 55)) -> 0 | N82: 0
A83: =PMADVANCED+IF(AND(SP_EI,INDEX(SC_ShowRetireatee,$E83)), VMONLINE+VMMACRO+VMDEBUG, VMDEBUG) -> 40 | E83: 2 | F83: 0 | G83: -1 | H83: =IF(SC_ViewMode=VMWIPED,0,MOD(INT($A83/POWER(2,LOG(SC_ParameterMode,2))),2)) -> 0 | I83: 0 | L83: 0 | M83: =IF($L51="",0,IF(SP_TargetRD < DATE(YEAR($L51)+55,MONTH($L51),DAY($L51)), 59.5, 55)) -> 0 | N83: 0
A84: =PMBASIC+PMADVANCED+IF(AND(SP_SEI,INDEX(SC_ShowRetireatee,$E84)), VMONLINE+VMMACRO+VMDEBUG, VMDEBUG) -> 56 | B84: Self-Employment Retirement Plans | C84: Current Self-Employment Income: | D84: =INDEX(SP_Initials,E84) ->  | E84: =MOD(ROW()-ROW($E$48),2)+1 -> 1 | F84: 0 | G84: 1 | H84: =IF(SC_ViewMode=VMWIPED,0,MOD(INT($A84/POWER(2,LOG(SC_ParameterMode,2))),2)) -> 0 | I84: 0 | J84: =IF(SC_ViewMode=VMONLINE, INDEX(IV_IncomeSE,$E84), HYPERLINK(IV_WBNAME&ADDRESS(ROW(INDEX(IV_IncomeSE,$E84)),COLUMN(INDEX(IV_IncomeSE,$E84)),,,"Income"),INDEX(IV_IncomeSE,$E84))) -> 0 | O84: =IFERROR(VLOOKUP(N84,IV_CodeTable,2,FALSE),"") -> 
A85: =PMBASIC+PMADVANCED+IF(AND(SP_SEI,INDEX(SC_ShowRetireatee,$E85)), VMONLINE+VMMACRO+VMDEBUG, VMDEBUG) -> 56 | D85: =INDEX(SP_Initials,E85) ->  | E85: 2 | F85: 0 | G85: -1 | H85: =IF(SC_ViewMode=VMWIPED,0,MOD(INT($A85/POWER(2,LOG(SC_ParameterMode,2))),2)) -> 0 | I85: 0 | J85: =IF(SC_ViewMode=VMONLINE, INDEX(IV_IncomeSE,$E85), HYPERLINK(IV_WBNAME&ADDRESS(ROW(INDEX(IV_IncomeSE,$E85)),COLUMN(INDEX(IV_IncomeSE,$E85)),,,"Income"),INDEX(IV_IncomeSE,$E85))) -> 0
A86: =PMBASIC+PMADVANCED+IF(AND(SP_SEI,INDEX(SC_ShowRetireatee,$E86)), VMONLINE+VMMACRO+VMDEBUG, VMDEBUG) -> 56 | C86: Default Annual Increase: | D86: =INDEX(SP_Initials,E86) ->  | E86: 1 | F86: =INDEX(SC_TaxIndex,$E86) -> 0 | G86: =MOD($E86,2)-($E86-1) -> 1 | H86: =IF(SC_ViewMode=VMWIPED,0,MOD(INT($A86/POWER(2,LOG(SC_ParameterMode,2))),2)) -> 0 | I86: 0 | K86: + Wage Inflation | L86: =IF(IF(COLUMN()=COLUMN(J86),TRUE,ISBLANK(J86)), M86, J86) -> 0 | M86: 0 | N86: =IFERROR(IF($I86, IF(OR(NOT(ISNUMBER($L86)),$L86<-1,$L86>1),201,0), 0),203) -> 0 | O86: =IFERROR(VLOOKUP(N86,IV_CodeTable,2,FALSE),"") -> 
A87: 56 | D87: =INDEX(SP_Initials,E87) ->  | E87: 2 | F87: =INDEX(SC_TaxIndex,$E87) -> 0 | G87: =MOD($E87,2)-($E87-1) -> -1 | H87: =IF(SC_ViewMode=VMWIPED,0,MOD(INT($A87/POWER(2,LOG(SC_ParameterMode,2))),2)) -> 0 | I87: 0 | L87: 0 | M87: 0 | N87: =IFERROR(IF($I87, IF(OR(NOT(ISNUMBER($L87)),$L87<-1,$L87>1),201,0), 0),203) -> 0 | O87: =IFERROR(VLOOKUP(N87,IV_CodeTable,2,FALSE),"") -> 
A88: 56 | C88: Before-Tax Contribution (SEP/SIMPLE/Solo 401(k)): | D88: =INDEX(SP_Initials,E88) ->  | E88: 1 | F88: 0 | G88: 1 | H88: =IF(SC_ViewMode=VMWIPED,0,MOD(INT($A88/POWER(2,LOG(SC_ParameterMode,2))),2)) -> 0 | I88: 0 | K88: of Self-Employment Income | L88: 0 | M88: 0 | N88: =IFERROR(IF($I88, IF(OR(NOT(ISNUMBER($L88)),$L88<0,$L88>1),201,0), 0),203) -> 0 | O88: =IFERROR(VLOOKUP(N88,IV_CodeTable,2,FALSE),"") -> 
A89: 56 | E89: 2 | F89: 0 | G89: -1 | H89: =IF(SC_ViewMode=VMWIPED,0,MOD(INT($A89/POWER(2,LOG(SC_ParameterMode,2))),2)) -> 0 | I89: 0 | L89: 0 | M89: 0 | N89: =IFERROR(IF($I89, IF(OR(NOT(ISNUMBER($L89)),$L89<0,$L89>1),201,0), 0),203) -> 0
A90: 56 | C90: Before-Tax Balance: | E90: 1 | F90: 0 | G90: 1 | H90: =IF(SC_ViewMode=VMWIPED,0,MOD(INT($A90/POWER(2,LOG(SC_ParameterMode,2))),2)) -> 0 | I90: 0 | L90: 0 | M90: 0 | N90: =IFERROR(IF($I90, IF(OR(NOT(ISNUMBER($L90)),$L90<0),202,0),0),203) -> 0
A91: 56 | E91: 2 | F91: 0 | G91: -1 | H91: =IF(SC_ViewMode=VMWIPED,0,MOD(INT($A91/POWER(2,LOG(SC_ParameterMode,2))),2)) -> 0 | I91: 0 | L91: 0 | M91: 0 | N91: =IFERROR(IF($I91, IF(OR(NOT(ISNUMBER($L91)),$L91<0),202,0),0),203) -> 0
A92: 56 | C92: Company Match: | E92: 1 | F92: 0 | G92: 1 | H92: =IF(SC_ViewMode=VMWIPED,0,MOD(INT($A92/POWER(2,LOG(SC_ParameterMode,2))),2)) -> 0 | I92: 0 | K92: of Self-Employment Income | L92: 0 | M92: 0 | N92: =IFERROR(IF($I92, IF(OR(NOT(ISNUMBER($L92)),$L92<0,$L92>1),201,0), 0),203) -> 0
A93: 56 | E93: 2 | F93: 0 | G93: -1 | H93: =IF(SC_ViewMode=VMWIPED,0,MOD(INT($A93/POWER(2,LOG(SC_ParameterMode,2))),2)) -> 0 | I93: 0 | L93: 0 | M93: 0 | N93: =IFERROR(IF($I93, IF(OR(NOT(ISNUMBER($L93)),$L93<0,$L93>1),201,0), 0),203) -> 0
A94: 56 | C94: After-Tax Contribution (Roth Solo 401(k)): | E94: 1 | F94: 0 | G94: 1 | H94: =IF(SC_ViewMode=VMWIPED,0,MOD(INT($A94/POWER(2,LOG(SC_ParameterMode,2))),2)) -> 0 | I94: 0 | K94: of Self-Employment Income | L94: 0 | M94: 0 | N94: =IFERROR(IF($I94, IF(OR(NOT(ISNUMBER($L94)),$L94<0,$L94>1),201,0), 0),203) -> 0
A95: 56 | E95: 2 | F95: 0 | G95: -1 | H95: =IF(SC_ViewMode=VMWIPED,0,MOD(INT($A95/POWER(2,LOG(SC_ParameterMode,2))),2)) -> 0 | I95: 0 | L95: 0 | M95: 0 | N95: =IFERROR(IF($I95, IF(OR(NOT(ISNUMBER($L95)),$L95<0,$L95>1),201,0), 0),203) -> 0
A96: 56 | C96: After-Tax Balance: | E96: 1 | F96: 0 | G96: 1 | H96: =IF(SC_ViewMode=VMWIPED,0,MOD(INT($A96/POWER(2,LOG(SC_ParameterMode,2))),2)) -> 0 | I96: 0 | L96: 0 | M96: 0 | N96: =IFERROR(IF($I96, IF(OR(NOT(ISNUMBER($L96)),$L96<0),202,0),0),203) -> 0
A97: 56 | E97: 2 | F97: 0 | G97: -1 | H97: =IF(SC_ViewMode=VMWIPED,0,MOD(INT($A97/POWER(2,LOG(SC_ParameterMode,2))),2)) -> 0 | I97: 0 | L97: 0 | M97: 0 | N97: 0
A98: =PMBASIC+PMADVANCED+IF(AND(SP_SEI,INDEX(SC_ShowRetireatee,$E98)), VMONLINE+VMMACRO+VMDEBUG, VMDEBUG) -> 56 | C98: After-Tax Cost Basis: | E98: 1 | F98: 0 | G98: 1 | H98: =IF(SC_ViewMode=VMWIPED,0,MOD(INT($A98/POWER(2,LOG(SC_ParameterMode,2))),2)) -> 0 | I98: 0 | L98: 0 | M98: =IF($N96=0,$J96,0) -> 0 | N98: 0
A99: =PMBASIC+PMADVANCED+IF(AND(SP_SEI,INDEX(SC_ShowRetireatee,$E99)), VMONLINE+VMMACRO+VMDEBUG, VMDEBUG) -> 56 | E99: 2 | F99: 0 | G99: -1 | H99: =IF(SC_ViewMode=VMWIPED,0,MOD(INT($A99/POWER(2,LOG(SC_ParameterMode,2))),2)) -> 0 | I99: 0 | L99: 0 | M99: =IF($N97=0,$J97,0) -> 0 | N99: 0
A100: =PMADVANCED+IF(AND(SP_SEI,INDEX(SC_ShowRetireatee,$E100)), VMONLINE+VMMACRO+VMDEBUG, VMDEBUG) -> 40 | C100: Qualified Distribution Age: | E100: 1 | F100: 0 | G100: 1 | H100: =IF(SC_ViewMode=VMWIPED,0,MOD(INT($A100/POWER(2,LOG(SC_ParameterMode,2))),2)) -> 0 | I100: 0 | L100: 0 | M100: =IF($L50="",0,IF(SP_TargetRD < DATE(YEAR($L50)+55,MONTH($L50),DAY($L50)), 59.5, 55)) -> 0 | N100: 0
A101: =PMADVANCED+IF(AND(SP_SEI,INDEX(SC_ShowRetireatee,$E101)), VMONLINE+VMMACRO+VMDEBUG, VMDEBUG) -> 40 | E101: 2 | F101: 0 | G101: -1 | H101: =IF(SC_ViewMode=VMWIPED,0,MOD(INT($A101/POWER(2,LOG(SC_ParameterMode,2))),2)) -> 0 | I101: 0 | L101: 0 | M101: =IF($L51="",0,IF(SP_TargetRD < DATE(YEAR($L51)+55,MONTH($L51),DAY($L51)), 59.5, 55)) -> 0 | N101: 0
A102: =PMBASIC+PMADVANCED+IF(AND(SP_PIIRP,INDEX(SC_ShowRetireatee,$E102)), VMONLINE+VMMACRO+VMDEBUG, VMDEBUG) -> 56 | B102: Individual Retirement Plans | C102: Current Passive Income: | D102: =INDEX(SP_Initials,E102) ->  | E102: =MOD(ROW()-ROW($E$48),2)+1 -> 1 | F102: 0 | G102: 1 | H102: =IF(SC_ViewMode=VMWIPED,0,MOD(INT($A102/POWER(2,LOG(SC_ParameterMode,2))),2)) -> 0 | I102: 0 | J102: =IF(SC_ViewMode=VMONLINE, INDEX(IV_IncomePassive,$E102), HYPERLINK(IV_WBNAME&ADDRESS(ROW(INDEX(IV_IncomePassive,$E102)),COLUMN(INDEX(IV_IncomePassive,$E102)),,,"Income"),INDEX(IV_IncomePassive,$E102))) -> 0
A103: 56 | D103: =INDEX(SP_Initials,E103) ->  | E103: 2 | F103: 0 | G103: -1 | H103: =IF(SC_ViewMode=VMWIPED,0,MOD(INT($A103/POWER(2,LOG(SC_ParameterMode,2))),2)) -> 0 | I103: 0 | J103: =IF(SC_ViewMode=VMONLINE, INDEX(IV_IncomePassive,$E103), HYPERLINK(IV_WBNAME&ADDRESS(ROW(INDEX(IV_IncomePassive,$E103)),COLUMN(INDEX(IV_IncomePassive,$E103)),,,"Income"),INDEX(IV_IncomePassive,$E103))) -> 0
A104: 56 | C104: Default Annual Increase: | D104: =INDEX(SP_Initials,E104) ->  | E104: 1 | F104: =INDEX(SC_TaxIndex,$E104) -> 0 | G104: =MOD($E104,2)-($E104-1) -> 1 | H104: =IF(SC_ViewMode=VMWIPED,0,MOD(INT($A104/POWER(2,LOG(SC_ParameterMode,2))),2)) -> 0 | I104: 0 | K104: + Price Inflation | L104: =IF(IF(COLUMN()=COLUMN(J104),TRUE,ISBLANK(J104)), M104, J104) -> 0 | M104: 0 | N104: =IFERROR(IF($I104, IF(OR(NOT(ISNUMBER($L104)),$L104<0,$L104>1),201,0), 0),203) -> 0 | O104: =IFERROR(VLOOKUP(N104,IV_CodeTable,2,FALSE),"") -> 
A105: 56 | E105: 2 | F105: =INDEX(SC_TaxIndex,$E105) -> 0 | G105: =MOD($E105,2)-($E105-1) -> -1 | H105: =IF(SC_ViewMode=VMWIPED,0,MOD(INT($A105/POWER(2,LOG(SC_ParameterMode,2))),2)) -> 0 | I105: 0 | L105: 0 | M105: 0 | N105: =IFERROR(IF($I105, IF(OR(NOT(ISNUMBER($L105)),$L105<0,$L105>1),201,0), 0),203) -> 0 | O105: =IFERROR(VLOOKUP(N105,IV_CodeTable,2,FALSE),"") -> 
A106: 56 | C106: Before-Tax Contribution (Traditional IRA): | E106: 1 | F106: 0 | G106: 1 | H106: =IF(SC_ViewMode=VMWIPED,0,MOD(INT($A106/POWER(2,LOG(SC_ParameterMode,2))),2)) -> 0 | I106: 0 | K106: /year | L106: 0 | M106: 0 | N106: =IFERROR(IF($I106, IF(OR(NOT(ISNUMBER($L106)),$L106<0),202,0),0),203) -> 0
A107: 56 | E107: 2 | F107: 0 | G107: -1 | H107: =IF(SC_ViewMode=VMWIPED,0,MOD(INT($A107/POWER(2,LOG(SC_ParameterMode,2))),2)) -> 0 | I107: 0 | L107: 0 | M107: 0 | N107: 0
A108: =PMADVANCED+IF(AND(SP_PIIRP,INDEX(SC_ShowRetireatee,1),INDEX(SC_ShowRetireatee,2)), VMONLINE+VMMACRO+VMDEBUG, VMDEBUG) -> 40 | C108: Before-Tax Contribution (Spousal IRA): | E108: 1 | F108: 0 | G108: 1 | H108: =IF(SC_ViewMode=VMWIPED,0,MOD(INT($A108/POWER(2,LOG(SC_ParameterMode,2))),2)) -> 0 | I108: 0 | K108: /year | L108: 0 | M108: 0 | N108: 0
A109: =PMADVANCED+IF(AND(SP_PIIRP,INDEX(SC_ShowRetireatee,1),INDEX(SC_ShowRetireatee,2)), VMONLINE+VMMACRO+VMDEBUG, VMDEBUG) -> 40 | E109: 2 | F109: 0 | G109: -1 | H109: =IF(SC_ViewMode=VMWIPED,0,MOD(INT($A109/POWER(2,LOG(SC_ParameterMode,2))),2)) -> 0 | I109: 0 | L109: 0 | M109: 0 | N109: 0
A110: =PMBASIC+PMADVANCED+IF(AND(SP_PIIRP,INDEX(SC_ShowRetireatee,$E110)), VMONLINE+VMMACRO+VMDEBUG, VMDEBUG) -> 56 | C110: Before-Tax Balance: | E110: 1 | F110: 0 | G110: 1 | H110: =IF(SC_ViewMode=VMWIPED,0,MOD(INT($A110/POWER(2,LOG(SC_ParameterMode,2))),2)) -> 0 | I110: 0 | L110: 0 | M110: 0 | N110: 0
A111: 56 | E111: 2 | F111: 0 | G111: -1 | H111: =IF(SC_ViewMode=VMWIPED,0,MOD(INT($A111/POWER(2,LOG(SC_ParameterMode,2))),2)) -> 0 | I111: 0 | L111: 0 | M111: 0 | N111: 0
A112: 56 | C112: After-Tax Contribution (Roth IRA): | E112: 1 | F112: =INDEX(SC_TaxIndex,$E112) -> 0 | G112: =MOD($E112,2)-($E112-1) -> 1 | H112: =IF(SC_ViewMode=VMWIPED,0,MOD(INT($A112/POWER(2,LOG(SC_ParameterMode,2))),2)) -> 0 | I112: 0 | K112: /year | L112: 0 | M112: 0 | N112: 0
A113: 56 | E113: 2 | F113: 0 | G113: -1 | H113: =IF(SC_ViewMode=VMWIPED,0,MOD(INT($A113/POWER(2,LOG(SC_ParameterMode,2))),2)) -> 0 | I113: 0 | L113: 0 | M113: 0 | N113: 0
A114: 56 | C114: After-Tax Balance: | E114: 1 | F114: 0 | G114: 1 | H114: =IF(SC_ViewMode=VMWIPED,0,MOD(INT($A114/POWER(2,LOG(SC_ParameterMode,2))),2)) -> 0 | I114: =IF(SC_ViewMode=VMWIPED,0,MOD(INT($A114/POWER(2,LOG(SC_ViewMode,2))),2)) -> 0 | L114: 0 | M114: 0 | N114: 0
A115: 56 | E115: 2 | F115: 0 | G115: -1 | H115: =IF(SC_ViewMode=VMWIPED,0,MOD(INT($A115/POWER(2,LOG(SC_ParameterMode,2))),2)) -> 0 | I115: 0 | L115: 0 | M115: 0 | N115: 0
A116: =PMBASIC+PMADVANCED+IF(AND(SP_PIIRP,INDEX(SC_ShowRetireatee,$E116)), VMONLINE+VMMACRO+VMDEBUG, VMDEBUG) -> 56 | C116: After-Tax Cost Basis: | E116: 1 | F116: 0 | G116: 1 | H116: =IF(SC_ViewMode=VMWIPED,0,MOD(INT($A116/POWER(2,LOG(SC_ParameterMode,2))),2)) -> 0 | I116: 0 | L116: 0 | M116: =IF($N114=0,$J114,0) -> 0 | N116: =IFERROR(IF($I116, IF(OR(NOT(ISNUMBER($L116)),$L116<0),202,0),0),203) -> 0
A117: =PMBASIC+PMADVANCED+IF(AND(SP_PIIRP,INDEX(SC_ShowRetireatee,$E117)), VMONLINE+VMMACRO+VMDEBUG, VMDEBUG) -> 56 | E117: 2 | F117: 0 | G117: -1 | H117: =IF(SC_ViewMode=VMWIPED,0,MOD(INT($A117/POWER(2,LOG(SC_ParameterMode,2))),2)) -> 0 | I117: 0 | L117: 0 | M117: =IF($N115=0,$J115,0) -> 0 | N117: =IFERROR(IF($I117, IF(OR(NOT(ISNUMBER($L117)),$L117<0),202,0),0),203) -> 0
A118: =PMADVANCED+IF(AND(SP_PIIRP,INDEX(SC_ShowRetireatee,$E118)), VMONLINE+VMMACRO+VMDEBUG, VMDEBUG) -> 40 | C118: Qualified Distribution Age: | E118: 1 | F118: 0 | G118: 1 | H118: =IF(SC_ViewMode=VMWIPED,0,MOD(INT($A118/POWER(2,LOG(SC_ParameterMode,2))),2)) -> 0 | I118: 0 | L118: 59.5 | M118: 59.5 | N118: =IFERROR(IF($I118, IF(OR(NOT(ISNUMBER($L118)),$L118<0),202,0),0),203) -> 0
A119: =PMADVANCED+IF(AND(SP_PIIRP,INDEX(SC_ShowRetireatee,$E119)), VMONLINE+VMMACRO+VMDEBUG, VMDEBUG) -> 40 | E119: 2 | F119: 0 | G119: -1 | H119: =IF(SC_ViewMode=VMWIPED,0,MOD(INT($A119/POWER(2,LOG(SC_ParameterMode,2))),2)) -> 0 | I119: 0 | L119: 59.5 | M119: 59.5 | N119: =IFERROR(IF($I119, IF(OR(NOT(ISNUMBER($L119)),$L119<0),202,0),0),203) -> 0
A120: =PMBASIC+PMADVANCED+IF(AND(SP_SSRIB,INDEX(SC_ShowRetireatee,$E120)), VMONLINE+VMMACRO+VMDEBUG, VMDEBUG) -> 56 | B120: Social Security Retirement Insurance Benefits (RIB) | C120: Primary Benefits Filing Age: | E120: 1 | F120: 0 | G120: 1 | H120: =IF(SC_ViewMode=VMWIPED,0,MOD(INT($A120/POWER(2,LOG(SC_ParameterMode,2))),2)) -> 0 | I120: 0 | L120: =IF(IF(COLUMN()=COLUMN(J120),TRUE,ISBLANK(J120)), "", J120) ->  | N120: =IFERROR(IF($I120, IF($L120="",110,IF(OR(ISERROR(DATEVALUE(TEXT($J120,"mm/dd/yyyy"))),$J120<62,$J120>INDEX(SP_LifeExp,$E120)),210,0)), 0),203) -> 0
A121: =PMBASIC+PMADVANCED+IF(AND(SP_SSRIB,INDEX(SC_ShowRetireatee,$E121)), VMONLINE+VMMACRO+VMDEBUG, VMDEBUG) -> 56 | E121: 2 | F121: 0 | G121: -1 | H121: =IF(SC_ViewMode=VMWIPED,0,MOD(INT($A121/POWER(2,LOG(SC_ParameterMode,2))),2)) -> 0 | I121: 0 | N121: =IFERROR(IF($I121, IF($L121="",110,IF(OR(ISERROR(DATEVALUE(TEXT($J121,"mm/dd/yyyy"))),$J121<62,$J121>INDEX(SP_LifeExp,$E121)),210,0)), 0),203) -> 0
A122: =PMADVANCED+IF(AND(SP_SSRIB,INDEX(SC_ShowRetireatee,$E122),INDEX(SC_ShowRetireatee,$E122+$G122)), VMONLINE+VMMACRO+VMDEBUG, VMDEBUG) -> 40 | C122: Auxiliary Benefits Filing Age: | E122: 1 | F122: 0 | G122: 1 | H122: =IF(SC_ViewMode=VMWIPED,0,MOD(INT($A122/POWER(2,LOG(SC_ParameterMode,2))),2)) -> 0 | I122: 0 | N122: =IFERROR(IF($I122, IF($L122="",0,IF(OR(ISERROR(DATEVALUE(TEXT($J122,"mm/dd/yyyy"))),$L122<62,$L122>INDEX(SP_LifeExp,$E122)),210,IF(INDEX(SP_SSABFA,$E122+$G122)="",0,211))), 0),203) -> 0
A123: =PMADVANCED+IF(AND(SP_SSRIB,INDEX(SC_ShowRetireatee,$E123),INDEX(SC_ShowRetireatee,$E123+$G123)), VMONLINE+VMMACRO+VMDEBUG, VMDEBUG) -> 40 | E123: =MOD(ROW()-ROW($E$48),2)+1 -> 2 | F123: 0 | G123: -1 | H123: =IF(SC_ViewMode=VMWIPED,0,MOD(INT($A123/POWER(2,LOG(SC_ParameterMode,2))),2)) -> 0 | I123: 0 | N123: =IFERROR(IF($I123, IF($L123="",0,IF(OR(ISERROR(DATEVALUE(TEXT($J123,"mm/dd/yyyy"))),$L123<62,$L123>INDEX(SP_LifeExp,$E123)),210,IF(INDEX(SP_SSABFA,$E123+$G123)="",0,211))), 0),203) -> 0
A124: =PMBASIC+PMADVANCED+VMDEBUG -> 56 | C124: Base Year: | E124: 1 | F124: 0 | G124: 1 | H124: =IF(SC_ViewMode=VMWIPED,0,MOD(INT($A124/POWER(2,LOG(SC_ParameterMode,2))),2)) -> 0 | I124: 0 | J124: =IF(INDEX(SC_ShowRetireatee,$E124),YEAR($L50-1)+60,0) -> 0
A125: =PMBASIC+PMADVANCED+VMDEBUG -> 56 | E125: 2 | F125: 0 | G125: -1 | H125: =IF(SC_ViewMode=VMWIPED,0,MOD(INT($A125/POWER(2,LOG(SC_ParameterMode,2))),2)) -> 0 | I125: 0 | J125: =IF(INDEX(SC_ShowRetireatee,$E125),YEAR($L51-1)+60,0) -> 0
A126: =PMBASIC+PMADVANCED+VMDEBUG -> 56 | C126: Filing Date Prorate: | E126: 1 | F126: 0 | G126: 1 | H126: =IF(SC_ViewMode=VMWIPED,0,MOD(INT($A126/POWER(2,LOG(SC_ParameterMode,2))),2)) -> 0 | I126: 0 | J126: =IF(INDEX(SC_ShowRetireatee,$E126),(13-(MONTH($L50)+IF(DAY($L50)=1, 0, 1)))/12,0) -> 0
A127: =PMBASIC+PMADVANCED+VMDEBUG -> 56 | E127: 2 | F127: 0 | G127: -1 | H127: =IF(SC_ViewMode=VMWIPED,0,MOD(INT($A127/POWER(2,LOG(SC_ParameterMode,2))),2)) -> 0 | I127: 0 | J127: =IF(INDEX(SC_ShowRetireatee,$E127),(13-(MONTH($L51)+IF(DAY($L51)=1, 0, 1)))/12,0) -> 0
A128: =PMBASIC+PMADVANCED+IF(AND(SP_SSRIB,INDEX(SC_ShowRetireatee,$E128)), VMONLINE+VMMACRO+VMDEBUG, VMDEBUG) -> 56 | C128: Full Retirement Age: | E128: 1 | F128: 0 | G128: 1 | H128: =IF(SC_ViewMode=VMWIPED,0,MOD(INT($A128/POWER(2,LOG(SC_ParameterMode,2))),2)) -> 0 | I128: 0 | J128: =IF(INDEX(SC_ShowRetireatee,$E128),IF(YEAR($L50-1)<1937,65,IF(YEAR($L50-1)<1943,65+(YEAR($L50-1)-1937)/6,IF(YEAR($L50-1)<1954, 66, IF(YEAR($L50-1)<1960,66+(YEAR($L50-1)-1954)/6, 67)))),0) -> 0
A129: 56 | E129: 2 | F129: 0 | G129: -1 | H129: =IF(SC_ViewMode=VMWIPED,0,MOD(INT($A129/POWER(2,LOG(SC_ParameterMode,2))),2)) -> 0 | I129: 0 | J129: =IF(INDEX(SC_ShowRetireatee,$E129),IF(YEAR($L51-1)<1937,65,IF(YEAR($L51-1)<1943,65+(YEAR($L51-1)-1937)/6,IF(YEAR($L51-1)<1954, 66, IF(YEAR($L51-1)<1960,66+(YEAR($L51-1)-1954)/6, 67)))),0) -> 0
A130: 56 | C130: Deemed Filing Age: | E130: 1 | F130: 0 | G130: 1 | H130: =IF(SC_ViewMode=VMWIPED,0,MOD(INT($A130/POWER(2,LOG(SC_ParameterMode,2))),2)) -> 0 | I130: 0 | J130: =IF($L120="",IF($L122="",0,IF($L122<$J128,$L122,0)),IF(ISBLANK($L122),$L120,IF($L122<$J128,MIN($L120,$L122),$L120))) -> 0
A131: 56 | E131: 2 | F131: 0 | G131: -1 | H131: =IF(SC_ViewMode=VMWIPED,0,MOD(INT($A131/POWER(2,LOG(SC_ParameterMode,2))),2)) -> 0 | I131: 0 | J131: =IF($L121="",IF($L123="",0,IF($L123<$J129,$L123,0)),IF(ISBLANK($L123),$L121,IF($L123<$J129,MIN($L121,$L123),$L121))) -> 0
A132: 56 | C132: Credits Needed | E132: 1 | F132: 0 | G132: 1 | H132: =IF(SC_ViewMode=VMWIPED,0,MOD(INT($A132/POWER(2,LOG(SC_ParameterMode,2))),2)) -> 0 | I132: 0 | J132: =IF($J130=0,0,40-MAX(1929-YEAR($L50),0)) -> 0
A133: 56 | E133: 2 | F133: 0 | G133: -1 | H133: =IF(SC_ViewMode=VMWIPED,0,MOD(INT($A133/POWER(2,LOG(SC_ParameterMode,2))),2)) -> 0 | I133: 0 | J133: =IF($J131=0,0,40-MAX(1929-YEAR($L51),0)) -> 0
A134: 56 | C134: Delayed Credit Per Year: | E134: 1 | F134: 0 | G134: 1 | H134: =IF(SC_ViewMode=VMWIPED,0,MOD(INT($A134/POWER(2,LOG(SC_ParameterMode,2))),2)) -> 0 | I134: 0 | J134: =IF(INDEX(SC_ShowRetireatee,$E134),IF(YEAR($L50)<=1924, 0.03, 0.03+ MIN(ROUNDUP((YEAR($L50)-1924)/2,0),10)*0.005),0) -> 0
A135: 56 | E135: 2 | F135: 0 | G135: -1 | H135: =IF(SC_ViewMode=VMWIPED,0,MOD(INT($A135/POWER(2,LOG(SC_ParameterMode,2))),2)) -> 0 | I135: 0 | J135: =IF(INDEX(SC_ShowRetireatee,$E135),IF(YEAR($L51)<=1924, 0.03, 0.03+ MIN(ROUNDUP((YEAR($L51)-1924)/2,0),10)*0.005),0) -> 0
A136: 56 | C136: Primary Benefit: | E136: 1 | F136: 0 | G136: 1 | H136: =IF(SC_ViewMode=VMWIPED,0,MOD(INT($A136/POWER(2,LOG(SC_ParameterMode,2))),2)) -> 0 | I136: 0 | J136: =IF($J130<62,0,1-(MAX(MIN(36,($J128-$J130)*12),0)*5/900)-(MAX(($J128-$J130)*12-36,0)*5/1200)+(MAX(MIN($J130,70)-$J128,0)*$J134)) -> 0
A137: 56 | E137: 2 | F137: 0 | G137: -1 | H137: =IF(SC_ViewMode=VMWIPED,0,MOD(INT($A137/POWER(2,LOG(SC_ParameterMode,2))),2)) -> 0 | I137: 0 | J137: =IF($J131<62,0,1-(MAX(MIN(36,($J129-$J131)*12),0)*5/900)-(MAX(($J129-$J131)*12-36,0)*5/1200)+(MAX(MIN($J131,70)-$J129,0)*$J135)) -> 0
A138: 56 | C138: Primary Benefit Months Withheld: | E138: 1 | F138: 0 | G138: 1 | H138: =IF(SC_ViewMode=VMWIPED,0,MOD(INT($A138/POWER(2,LOG(SC_ParameterMode,2))),2)) -> 0 | I138: 0 | J138: =IFERROR(ROUND(SUMPRODUCT(SC_ZX_RET_PB_RCM,--(SC_ZX_RN=$E138)),0),0) -> 0
A139: 56 | E139: 2 | F139: 0 | G139: -1 | H139: =IF(SC_ViewMode=VMWIPED,0,MOD(INT($A139/POWER(2,LOG(SC_ParameterMode,2))),2)) -> 0 | I139: 0 | J139: =IFERROR(ROUND(SUMPRODUCT(SC_ZX_RET_PB_RCM,--(SC_ZX_RN=$E139)),0),0) -> 0
A140: 56 | C140: Recalculated Primary Benefit: | E140: 1 | F140: 0 | G140: 1 | H140: =IF(SC_ViewMode=VMWIPED,0,MOD(INT($A140/POWER(2,LOG(SC_ParameterMode,2))),2)) -> 0 | I140: 0 | J140: =IF($J130<62,0,1-(MAX(MIN(36, ($J128-$J130)*12-$J138),0)*5/900)-(MAX(($J128-$J130)*12-$J138-36,0)*5/1200)+(MAX(MIN($J130,70)-$J128,0)*$J134)) -> 0
A141: 56 | E141: 2 | F141: 0 | G141: -1 | H141: =IF(SC_ViewMode=VMWIPED,0,MOD(INT($A141/POWER(2,LOG(SC_ParameterMode,2))),2)) -> 0 | I141: 0 | J141: =IF($J131<62,0,1-(MAX(MIN(36, ($J129-$J131)*12-$J139),0)*5/900)-(MAX(($J129-$J131)*12-$J139-36,0)*5/1200)+(MAX(MIN($J131,70)-$J129,0)*$J135)) -> 0
A142: =PMADVANCED+IF(AND(SP_SSRIB,INDEX(SC_ShowRetireatee,1),INDEX(SC_ShowRetireatee,2)), VMONLINE+VMMACRO+VMDEBUG, VMDEBUG) -> 40 | C142: Auxiliary Benefit: | E142: 1 | F142: 0 | G142: 1 | H142: =IF(SC_ViewMode=VMWIPED,0,MOD(INT($A142/POWER(2,LOG(SC_ParameterMode,2))),2)) -> 0 | I142: 0 | J142: =IF($L122="",0,1-(MAX(MIN(36, ($J128-$L122)*12),0)*25/3600)-(MAX(($J128-$L122)*12-36,0)*5/1200)) -> 0
A143: 40 | E143: 2 | F143: 0 | G143: -1 | H143: =IF(SC_ViewMode=VMWIPED,0,MOD(INT($A143/POWER(2,LOG(SC_ParameterMode,2))),2)) -> 0 | I143: 0 | J143: =IF($L123="",0,1-(MAX(MIN(36, ($J129-$L123)*12),0)*25/3600)-(MAX(($J129-$L123)*12-36,0)*5/1200)) -> 0
A144: 40 | C144: Auxiliary Benefit Months Withheld: | E144: 1 | F144: 0 | G144: 1 | H144: =IF(SC_ViewMode=VMWIPED,0,MOD(INT($A144/POWER(2,LOG(SC_ParameterMode,2))),2)) -> 0 | I144: 0 | J144: =IFERROR(ROUND(SUMPRODUCT(SC_ZX_RET_AB_RCM,--(SC_ZX_RN=$E144)),0),0) -> 0
A145: 40 | E145: 2 | F145: 0 | G145: -1 | H145: =IF(SC_ViewMode=VMWIPED,0,MOD(INT($A145/POWER(2,LOG(SC_ParameterMode,2))),2)) -> 0 | I145: 0 | J145: =IFERROR(ROUND(SUMPRODUCT(SC_ZX_RET_AB_RCM,--(SC_ZX_RN=$E145)),0),0) -> 0
A146: 40 | C146: Recalculated Auxiliary Benefit: | E146: 1 | F146: 0 | G146: 1 | H146: =IF(SC_ViewMode=VMWIPED,0,MOD(INT($A146/POWER(2,LOG(SC_ParameterMode,2))),2)) -> 0 | I146: 0 | J146: =IF($L122="",0,1-(MAX(MIN(36, ($J128-$L122)*12-J144),0)*25/3600)-(MAX(($J128-$L122)*12-J144-36,0)*5/1200)) -> 0
A147: 40 | E147: 2 | F147: 0 | G147: -1 | H147: =IF(SC_ViewMode=VMWIPED,0,MOD(INT($A147/POWER(2,LOG(SC_ParameterMode,2))),2)) -> 0 | I147: 0 | J147: =IF($L123="",0,1-(MAX(MIN(36, ($J129-$L123)*12-J145),0)*25/3600)-(MAX(($J129-$L123)*12-J145-36,0)*5/1200)) -> 0

Sheet Economy (hidden)
A1: =PMADVANCED+VMONLINE+VMMACRO+VMDEBUG -> 46 | B1: =PMBASIC+PMADVANCED+VMONLINE+VMMACRO+VMDEBUG -> 62 | C1: =PMADVANCED+VMONLINE+VMMACRO+VMDEBUG -> 46 | D1: =PMADVANCED+VMONLINE+VMMACRO+VMDEBUG -> 46 | E1: =PMADVANCED+VMONLINE+VMMACRO+VMDEBUG -> 46 | F1: =PMADVANCED+VMONLINE+VMMACRO+VMDEBUG -> 46 | G1: =PMADVANCED+VMDEBUG -> 40 | H1: 40 | I1: 40 | J1: 40 | K1: 40 | L1: 40 | M1: 40 | N1: 40 | O1: =PMADVANCED+VMONLINE+VMMACRO+VMDEBUG -> 46 | P1: 40 | Q1: 40 | R1: =PMBASIC+PMADVANCED+VMONLINE+VMMACRO+VMDEBUG -> 62 | S1: 62 | T1: 62 | U1: 62 | V1: 62 | W1: 62 | X1: 62 | Y1: 62
A2: =PMBASIC+PMADVANCED+VMONLINE+VMMACRO+VMDEBUG -> 62 | C2: Time Table | R2: Social Security Indexing
A3: =PMBASIC+PMADVANCED+VMONLINE+VMMACRO+VMDEBUG -> 62 | B3: Year | C3: Wage Inflation (AWI) | D3: CP Inflation (CPI-W) | E3: Annual Return Stocks | F3: Bond Yield | G3: Shadow | H3: Shadow | I3: Shadow | J3: Shadow | K3: Default | L3: Default | M3: Default | N3: Default | O3: Annual Return Bonds | P3: Wage IDX | Q3: CP IDX | R3: Social Security Wage Base | S3: Bend Point 1 | T3: Bend Point 2 | U3: AET Lower | V3: AET Upper | W3: COLA
B4: =SC_YearEpoch-1 -> 1953
B5: =B4+1 -> 1954 | G5: =IF(IF(COLUMN()=COLUMN(C5),TRUE,ISBLANK(C5)),K5,C5) -> 0.0052 | I5: =IF(IF(COLUMN()=COLUMN(E5),TRUE,ISBLANK(E5)),M5,E5) -> 0.5256 | J5: =IF(IF(COLUMN()=COLUMN(F5),TRUE,ISBLANK(F5)),N5,F5) -> 0.0248 | K5: 0.0052 | M5: 0.5256 | N5: 0.0248 | O5: =IF(ROW()<ROW(B5),-(1+PV($J6,10,$J5,1))+$J5,$J5) -> 0.0248 | P5: =IF($B5=SC_VersionMaj,1,IF($B5<SC_VersionMaj,P6*($G5+1),1/(1/P3*($G3+1)))) -> 17.23043174 | Q5: =IF($B5=SC_VersionMaj,1,IF($B5<SC_VersionMaj,Q6*($H5+1),1/(1/Q3*($H3+1)))) -> 6.867800195 | R5: 3600
B6: 1955 | G6: 0.0462 | I6: 0.326 | J6: 0.0261 | K6: 0.0462 | M6: 0.326 | N6: 0.0261 | O6: 0.0261 | P6: =IF($B6=SC_VersionMaj,1,IF($B6<SC_VersionMaj,P7*($G6+1),1/(1/P5*($G5+1)))) -> 17.14129699 | Q6: =IF($B6=SC_VersionMaj,1,IF($B6<SC_VersionMaj,Q7*($H6+1),1/(1/Q5*($H5+1)))) -> 6.867800195 | R6: 4200 | Y6: =IFERROR(VLOOKUP(X6,IV_CodeTable,2,FALSE),"") -> 
B7: 1956 | G7: 0.0699 | I7: 0.0744 | J7: 0.029 | K7: 0.0699 | M7: 0.0744 | N7: 0.029 | O7: 0.029 | P7: 16.38434046 | Q7: 6.867800195 | R7: 4200
B8: 1957 | G8: 0.031 | I8: -0.1046 | J8: 0.0346 | K8: 0.031 | M8: -0.1046 | N8: 0.0346 | O8: 0.0346 | P8: 15.31389893 | Q8: 6.867800195 | R8: 4200
B9: 1958 | G9: 0.0088 | I9: 0.4372 | J9: 0.0309 | K9: 0.0088 | M9: 0.4372 | N9: 0.0309 | O9: 0.0309 | P9: 14.85344222 | Q9: 6.867800195 | R9: 4200
B10: 1959 | G10: 0.0495 | I10: 0.1206 | J10: 0.0402 | K10: 0.0495 | M10: 0.1206 | N10: 0.0402 | O10: 0.0402 | P10: 14.72387215 | Q10: 6.867800195 | R10: 4800
B11: 1960 | G11: 0.0392 | I11: 0.0034 | J11: 0.0472 | K11: 0.0392 | M11: 0.0034 | N11: 0.0472 | O11: 0.0472 | P11: 14.02941605 | Q11: 6.867800195 | R11: 4800
B12: 1961 | G12: 0.0199 | I12: 0.2664 | J12: 0.0384 | K12: 0.0199 | M12: 0.2664 | N12: 0.0384 | O12: 0.0384 | P12: 13.5002079 | Q12: 6.867800195 | R12: 4800
B13: 1962 | G13: 0.0501 | I13: -0.0881 | J13: 0.0408 | K13: 0.0501 | M13: -0.0881 | N13: 0.0408 | O13: 0.0408 | P13: 13.23679567 | Q13: 6.867800195 | R13: 4800
B14: 1963 | G14: 0.0245 | I14: 0.2261 | J14: 0.0383 | K14: 0.0245 | M14: 0.2261 | N14: 0.0383 | O14: 0.0383 | P14: 12.60527156 | Q14: 6.867800195 | R14: 4800
B15: 1964 | G15: 0.0409 | I15: 0.1642 | J15: 0.0417 | K15: 0.0409 | M15: 0.1642 | N15: 0.0417 | O15: 0.0417 | P15: 12.30382778 | Q15: 6.867800195 | R15: 4800
B16: 1965 | G16: 0.018 | I16: 0.124 | J16: 0.0419 | K16: 0.018 | M16: 0.124 | N16: 0.0419 | O16: 0.0419 | P16: 11.82037447 | Q16: 6.867800195 | R16: 4800
B17: 1966 | G17: 0.06 | I17: -0.0997 | J17: 0.0461 | K17: 0.06 | M17: -0.0997 | N17: 0.0461 | O17: 0.0461 | P17: 11.61136981 | Q17: 6.867800195 | R17: 6600
B18: 1967 | G18: 0.0557 | I18: 0.238 | J18: 0.0458 | K18: 0.0557 | M18: 0.238 | N18: 0.0458 | O18: 0.0458 | P18: 10.95412246 | Q18: 6.867800195 | R18: 6600
B19: 1968 | G19: 0.0687 | I19: 0.1081 | J19: 0.0553 | K19: 0.0687 | M19: 0.1081 | N19: 0.0553 | O19: 0.0553 | P19: 10.3761698 | Q19: 6.867800195 | R19: 7800
B20: 1969 | G20: 0.0578 | I20: -0.0824 | J20: 0.0604 | K20: 0.0578 | M20: -0.0824 | N20: 0.0604 | O20: 0.0604 | P20: 9.709151122 | Q20: 6.867800195 | R20: 7800
B21: 1970 | G21: 0.0496 | H21: =IF(IF(COLUMN()=COLUMN(D21),TRUE,ISBLANK(D21)),L21,D21) -> 0.057 | I21: 0.0356 | J21: 0.0779 | K21: 0.0496 | L21: 0.057 | M21: 0.0356 | N21: 0.0779 | O21: 0.0779 | P21: 9.17862651 | Q21: 6.867800195 | R21: 7800
B22: 1971 | G22: 0.0502 | H22: 0.044 | I22: 0.1422 | J22: 0.0624 | K22: 0.0502 | L22: 0.044 | M22: 0.1422 | N22: 0.0624 | O22: 0.0624 | P22: 8.74488044 | Q22: 6.497445785 | R22: 7800
B23: 1972 | G23: 0.098 | H23: 0.034 | I23: 0.1876 | J23: 0.0595 | K23: 0.098 | L23: 0.034 | M23: 0.1876 | N23: 0.0595 | O23: 0.0595 | P23: 8.326871491 | Q23: 6.223607074 | R23: 9000
B24: 1973 | G24: 0.0626 | H24: 0.062 | I24: -0.1431 | J24: 0.0646 | K24: 0.0626 | L24: 0.062 | M24: -0.1431 | N24: 0.0646 | O24: 0.0646 | P24: 7.583671667 | Q24: 6.018962354 | R24: 10800
B25: 1974 | G25: 0.0594 | H25: 0.11 | I25: -0.259 | J25: 0.0699 | K25: 0.0594 | L25: 0.11 | M25: -0.259 | N25: 0.0699 | O25: 0.0699 | P25: 7.136901626 | Q25: 5.667572838 | R25: 13200
B26: 1975 | G26: 0.0747 | H26: 0.0916 | I26: 0.37 | J26: 0.075 | K26: 0.0747 | L26: 0.0916 | M26: 0.37 | N26: 0.075 | O26: 0.075 | P26: 6.736739311 | Q26: 5.105921476 | R26: 14100 | U26: 2520 | W26: 0.08
B27: 1976 | G27: 0.069 | H27: 0.0571 | I27: 0.2383 | J27: 0.0774 | K27: 0.069 | L27: 0.0571 | M27: 0.2383 | N27: 0.0774 | O27: 0.0774 | P27: 6.268483587 | Q27: 4.677465624 | R27: 15300 | U27: 2760 | W27: 0.064
B28: 1977 | G28: 0.0599 | H28: 0.065 | I28: -0.0698 | J28: 0.0721 | K28: 0.0599 | L28: 0.065 | M28: -0.0698 | N28: 0.0721 | O28: 0.0721 | P28: 5.863876134 | Q28: 4.424809029 | R28: 16500 | U28: 3000 | W28: 0.059
B29: 1978 | G29: 0.0794 | H29: 0.076 | I29: 0.0651 | J29: 0.0796 | K29: 0.0794 | L29: 0.076 | M29: 0.0651 | N29: 0.0796 | O29: 0.0796 | P29: 5.532480549 | Q29: 4.154750262 | R29: 17700 | U29: 3240 | W29: 0.065
B30: 1979 | G30: 0.0875 | H30: 0.1143 | I30: 0.1852 | J30: 0.091 | K30: 0.0875 | L30: 0.1143 | M30: 0.1852 | N30: 0.091 | O30: 0.091 | P30: 5.125514683 | Q30: 3.861292065 | R30: 22900 | S30: 180 | T30: 1085 | U30: 3480 | W30: 0.099
B31: 1980 | G31: 0.0901 | H31: 0.1349 | I31: 0.3174 | J31: 0.108 | K31: 0.0901 | L31: 0.1349 | M31: 0.3174 | N31: 0.108 | O31: 0.108 | P31: 4.71311695 | Q31: 3.465217684 | R31: 25900 | S31: 194 | T31: 1171 | U31: 3720 | W31: 0.143
B32: 1981 | G32: 0.1007 | H32: 0.1025 | I32: -0.047 | J32: 0.1257 | K32: 0.1007 | L32: 0.1025 | M32: -0.047 | N32: 0.1257 | O32: 0.1257 | P32: 4.323563847 | Q32: 3.053324243 | R32: 29700 | S32: 211 | T32: 1274 | U32: 4080 | W32: 0.112
B33: 1982 | G33: 0.0551 | H33: 0.0599 | I33: 0.2042 | J33: 0.1459 | K33: 0.0551 | L33: 0.0599 | M33: 0.2042 | N33: 0.1459 | O33: 0.1459 | P33: 3.928012944 | Q33: 2.769455096 | R33: 32400 | S33: 230 | T33: 1388 | U33: 4440 | W33: 0.074
B34: 1983 | G34: 0.0487 | H34: 0.0304 | I34: 0.2234 | J34: 0.1046 | K34: 0.0487 | L34: 0.0304 | M34: 0.2234 | N34: 0.1046 | O34: 0.1046 | P34: 3.722882138 | Q34: 2.612939991 | R34: 35700 | S34: 254 | T34: 1528 | U34: 4920 | W34: 0.035
B35: 1984 | G35: 0.0588 | H35: 0.0342 | I35: 0.0615 | J35: 0.1167 | K35: 0.0588 | L35: 0.0342 | M35: 0.0615 | N35: 0.1167 | O35: 0.1167 | P35: 3.549997271 | Q35: 2.535850146 | R35: 37800 | S35: 267 | T35: 1612 | U35: 5160 | W35: 0.035
B36: 1985 | G36: 0.0426 | H36: 0.0354 | I36: 0.3124 | J36: 0.1138 | K36: 0.0426 | L36: 0.0354 | M36: 0.3124 | N36: 0.1138 | O36: 0.1138 | P36: 3.352849708 | Q36: 2.451992019 | R36: 39600 | S36: 280 | T36: 1691 | U36: 5400 | W36: 0.031
B37: 1986 | G37: =IF(IF(COLUMN()=COLUMN(C37),TRUE,ISBLANK(C37)),K37,C37) -> 0.0297 | H37: 0.0155 | I37: =IF(IF(COLUMN()=COLUMN(E37),TRUE,ISBLANK(E37)),M37,E37) -> 0.1849 | J37: =IF(IF(COLUMN()=COLUMN(F37),TRUE,ISBLANK(F37)),N37,F37) -> 0.0919 | K37: 0.0297 | L37: 0.0155 | M37: 0.1849 | N37: 0.0919 | O37: 0.0919 | P37: 3.215854314 | Q37: 2.368159184 | R37: 42000 | S37: 297 | T37: 1790 | U37: 5760 | W37: 0.013
B38: =B37+1 -> 1987 | G38: 0.0638 | H38: 0.036 | I38: 0.0581 | J38: 0.0708 | K38: 0.0638 | L38: 0.036 | M38: 0.0581 | N38: 0.0708 | O38: 0.0708 | P38: =IF($B38=SC_VersionMaj,1,IF($B38<SC_VersionMaj,P39*($G38+1),1/(1/P37*($G37+1)))) -> 3.123098295 | Q38: =IF($B38=SC_VersionMaj,1,IF($B38<SC_VersionMaj,Q39*($H38+1),1/(1/Q37*($H37+1)))) -> 2.332012983 | R38: 43800 | S38: 310 | T38: 1866 | U38: 6000 | W38: 0.042
B39: 1988 | G39: 0.0493 | H39: 0.0397 | I39: 0.1654 | J39: 0.0867 | K39: 0.0493 | L39: 0.0397 | M39: 0.1654 | N39: 0.0867 | O39: 0.0867 | P39: 2.935794599 | Q39: 2.250977783 | R39: 45000 | S39: 319 | T39: 1922 | U39: 6120 | W39: 0.04
B40: 1989 | G40: 0.0396 | H40: 0.0482 | I40: 0.3148 | J40: 0.0909 | K40: 0.0396 | L40: 0.0482 | M40: 0.3148 | N40: 0.0909 | O40: 0.0909 | P40: 2.797860097 | Q40: 2.165026241 | R40: 48000 | S40: 339 | T40: 2044 | U40: 6480 | W40: 0.047
B41: 1990 | G41: 0.0462 | H41: 0.0526 | I41: -0.0306 | J41: 0.0821 | K41: 0.0462 | L41: 0.0526 | M41: -0.0306 | N41: 0.0821 | O41: 0.0821 | P41: 2.691285203 | Q41: 2.06547056 | R41: 51300 | S41: 356 | T41: 2145 | U41: 6840 | W41: 0.054
B42: 1991 | G42: 0.0373 | H42: 0.0405 | I42: 0.3023 | J42: 0.0809 | K42: 0.0373 | L42: 0.0405 | M42: 0.3023 | N42: 0.0809 | O42: 0.0809 | P42: 2.572438542 | Q42: 1.962255899 | R42: 53400 | S42: 370 | T42: 2230 | U42: 7080 | W42: 0.037
B43: 1992 | G43: 0.0515 | H43: 0.0291 | I43: 0.0749 | J43: 0.0703 | K43: 0.0515 | L43: 0.0291 | M43: 0.0749 | N43: 0.0703 | O43: 0.0703 | P43: 2.479936896 | Q43: 1.885877847 | R43: 55500 | S43: 387 | T43: 2333 | U43: 7440 | W43: 0.03
B44: 1993 | G44: 0.0086 | H44: 0.0282 | I44: 0.0997 | J44: 0.066 | K44: 0.0086 | L44: 0.0282 | M44: 0.0997 | N44: 0.066 | O44: 0.066 | P44: 2.358475412 | Q44: 1.832550624 | R44: 57600 | S44: 401 | T44: 2420 | U44: 7680 | W44: 0.026
B45: 1994 | G45: 0.0268 | H45: 0.0252 | I45: 0.0133 | J45: 0.0575 | K45: 0.0268 | L45: 0.0252 | M45: 0.0133 | N45: 0.0575 | O45: 0.0575 | P45: 2.338365469 | Q45: 1.782290044 | R45: 60600 | S45: 422 | T45: 2545 | U45: 8040 | W45: 0.028
B46: 1995 | G46: 0.0401 | H46: 0.0283 | I46: 0.372 | J46: 0.0778 | K46: 0.0401 | L46: 0.0283 | M46: 0.372 | N46: 0.0778 | O46: 0.0778 | P46: 2.277332946 | Q46: 1.73848034 | R46: 61200 | S46: 426 | T46: 2567 | U46: 8160 | W46: 0.026
B47: 1996 | G47: 0.0489 | H47: 0.0293 | I47: 0.2268 | J47: 0.0565 | K47: 0.0489 | L47: 0.0293 | M47: 0.2268 | N47: 0.0565 | O47: 0.0565 | P47: 2.189532685 | Q47: 1.690635359 | R47: 62700 | S47: 437 | T47: 2635 | U47: 8280 | W47: 0.029
B48: 1997 | G48: 0.0584 | H48: 0.0222 | I48: 0.331 | J48: 0.0658 | K48: 0.0584 | L48: 0.0222 | M48: 0.331 | N48: 0.0658 | O48: 0.0658 | P48: 2.087456083 | Q48: 1.642509821 | R48: 65400 | S48: 455 | T48: 2741 | U48: 8640 | W48: 0.021
B49: 1998 | G49: 0.0523 | H49: 0.0133 | I49: 0.2834 | J49: 0.0554 | K49: 0.0523 | L49: 0.0133 | M49: 0.2834 | N49: 0.0554 | O49: 0.0554 | P49: 1.972275211 | Q49: 1.606838017 | R49: 68400 | S49: 477 | T49: 2875 | U49: 9120 | W49: 0.013
B50: 1999 | G50: 0.0557 | H50: 0.0224 | I50: 0.2089 | J50: 0.0472 | K50: 0.0557 | L50: 0.0224 | M50: 0.2089 | N50: 0.0472 | O50: 0.0472 | P50: 1.874251839 | Q50: 1.585747575 | R50: 72600 | S50: 505 | T50: 3043 | U50: 9600 | W50: 0.025
B51: 2000 | G51: 0.0553 | H51: 0.0347 | I51: -0.0903 | J51: 0.0666 | K51: 0.0553 | L51: 0.0347 | M51: -0.0903 | N51: 0.0666 | O51: 0.0666 | P51: 1.775364061 | Q51: 1.551005061 | R51: 76200 | S51: 531 | T51: 3202 | U51: 10080 | V51: 17000 | W51: 0.035
B52: 2001 | G52: 0.0239 | H52: 0.0274 | I52: -0.1185 | J52: 0.0516 | K52: 0.0239 | L52: 0.0274 | M52: -0.1185 | N52: 0.0516 | O52: 0.0516 | P52: 1.682331149 | Q52: 1.498990105 | R52: 80400 | S52: 561 | T52: 3381 | U52: 10680 | V52: 25000 | W52: 0.026
B53: 2002 | G53: 0.01 | H53: =IF(IF(COLUMN()=COLUMN(D53),TRUE,ISBLANK(D53)),L53,D53) -> 0.0136 | I53: -0.2197 | J53: 0.0504 | K53: 0.01 | L53: 0.0136 | M53: -0.2197 | N53: 0.0504 | O53: 0.0504 | P53: 1.643061968 | Q53: 1.459013144 | R53: 84900 | S53: 592 | T53: 3567 | U53: 11280 | V53: 30000 | W53: 0.014
B54: 2003 | G54: 0.0244 | H54: 0.0224 | I54: 0.2836 | J54: 0.0405 | K54: 0.0244 | L54: 0.0224 | M54: 0.2836 | N54: 0.0405 | O54: 0.0405 | P54: 1.626794027 | Q54: 1.439436804 | R54: 87000 | S54: 606 | T54: 3653 | U54: 11520 | V54: 30720 | W54: 0.021
B55: 2004 | G55: 0.0465 | H55: 0.026 | I55: 0.1074 | J55: 0.0415 | K55: 0.0465 | L55: 0.026 | M55: 0.1074 | N55: 0.0415 | O55: 0.0415 | P55: 1.588045712 | Q55: 1.407899847 | R55: 87900 | S55: 612 | T55: 3689 | U55: 11640 | V55: 31080 | W55: 0.027
B56: 2005 | G56: 0.0366 | H56: 0.0352 | I56: 0.0483 | J56: 0.0422 | K56: 0.0366 | L56: 0.0352 | M56: 0.0483 | N56: 0.0422 | O56: 0.0422 | P56: 1.517482764 | Q56: 1.372222073 | R56: 90000 | S56: 627 | T56: 3779 | U56: 12000 | V56: 31800 | W56: 0.041
B57: 2006 | G57: 0.046 | H57: 0.0323 | I57: 0.1561 | J57: 0.0442 | K57: 0.046 | L57: 0.0323 | M57: 0.1561 | N57: 0.0442 | O57: 0.0442 | P57: 1.463903881 | Q57: 1.325562281 | R57: 94200 | S57: 656 | T57: 3955 | U57: 12480 | V57: 33240 | W57: 0.033
B58: 2007 | G58: 0.0454 | H58: 0.0285 | I58: 0.0548 | J58: 0.0476 | K58: 0.0454 | L58: 0.0285 | M58: 0.0548 | N58: 0.0476 | O58: 0.0476 | P58: 1.399525699 | Q58: 1.284086294 | R58: 97500 | S58: 680 | T58: 4100 | U58: 12960 | V58: 34440 | W58: 0.023
B59: 2008 | G59: 0.023 | H59: 0.0409 | I59: -0.3655 | J59: 0.0374 | K59: 0.023 | L59: 0.0409 | M59: -0.3655 | N59: 0.0374 | O59: 0.0374 | P59: 1.338746603 | Q59: 1.248503932 | R59: 102000 | S59: 711 | T59: 4288 | U59: 13560 | V59: 36120 | W59: 0.058
B60: 2009 | G60: -0.0151 | H60: -0.0067 | I60: 0.2594 | J60: 0.0252 | K60: -0.0151 | L60: -0.0067 | M60: 0.2594 | N60: 0.0252 | O60: 0.0252 | P60: 1.308647706 | Q60: 1.199446567 | R60: 106800 | S60: 744 | T60: 4483 | U60: 14160 | V60: 37680 | W60: 0
B61: 2010 | G61: 0.0236 | H61: 0.0207 | I61: 0.1482 | J61: 0.0373 | K61: 0.0236 | L61: 0.0207 | M61: 0.1482 | N61: 0.0373 | O61: 0.0373 | P61: 1.328711246 | Q61: 1.207537065 | R61: 106800 | S61: 761 | T61: 4586 | U61: 14160 | V61: 37680 | W61: 0
B62: 2011 | G62: 0.0313 | H62: 0.0356 | I62: 0.021 | J62: 0.0339 | K62: 0.0313 | L62: 0.0356 | M62: 0.021 | N62: 0.0339 | O62: 0.0339 | P62: 1.298076637 | Q62: 1.183047972 | R62: 106800 | S62: 749 | T62: 4517 | U62: 14160 | V62: 37680 | W62: 0.036
B63: 2012 | G63: 0.0312 | H63: 0.021 | I63: 0.1589 | J63: 0.0197 | K63: 0.0312 | L63: 0.021 | M63: 0.1589 | N63: 0.0197 | O63: 0.0197 | P63: 1.258679955 | Q63: 1.14237927 | R63: 110100 | S63: 767 | T63: 4624 | U63: 14640 | V63: 38880 | W63: 0.017
B64: 2013 | G64: 0.0128 | H64: 0.0137 | I64: 0.3215 | J64: 0.0191 | K64: 0.0128 | L64: 0.0137 | M64: 0.3215 | N64: 0.0191 | O64: 0.0191 | P64: 1.220597318 | Q64: 1.118882733 | R64: 113700 | S64: 791 | T64: 4768 | U64: 15120 | V64: 40080 | W64: 0.015
B65: 2014 | G65: 0.0355 | H65: 0.015 | I65: 0.1352 | J65: 0.0286 | K65: 0.0355 | L65: 0.015 | M65: 0.1352 | N65: 0.0286 | O65: 0.0286 | P65: 1.205171128 | Q65: 1.103761205 | R65: 117000 | S65: 816 | T65: 4917 | U65: 15480 | V65: 41400 | W65: 0.017
B66: 2015 | G66: 0.0348 | H66: -0.0041 | I66: 0.0138 | J66: 0.0188 | K66: 0.0348 | L66: -0.0041 | M66: 0.0138 | N66: 0.0188 | O66: 0.0188 | P66: 1.1638543 | Q66: 1.087449463 | R66: 118500 | S66: 826 | T66: 4980 | U66: 15720 | V66: 41880 | W66: 0 | X66: =IF(OR(NOT(ISNUMBER($G66)),$G66<-1,$G66>1,NOT(ISNUMBER($H66)),$H66<-1,$H66>1,NOT(ISNUMBER($I66)),$I66<-1,$I66>1),201,IF(OR(NOT(ISNUMBER($J66)),$J66<0,$J66>1),201,0)) -> 0
B67: 2016 | G67: 0.0113 | H67: 0.0098 | I67: 0.1177 | J67: 0.0209 | K67: 0.0113 | L67: 0.0098 | M67: 0.1177 | N67: 0.0209 | O67: 0.0209 | P67: 1.124714245 | Q67: 1.091926361 | R67: 118500 | S67: 856 | T67: 5157 | U67: 15720 | V67: 41880 | W67: 0.003 | X67: 0
B68: 2017 | G68: 0.0345 | H68: 0.02125378082 | I68: 0.2161 | J68: 0.0243 | K68: 0.0345 | L68: 0.02125378082 | M68: 0.2161 | N68: 0.0243 | O68: 0.0243 | P68: 1.112146984 | Q68: 1.081329333 | R68: 127200 | S68: 885 | T68: 5336 | U68: 16920 | V68: 44880 | W68: 0.02 | X68: 0
B69: 2018 | G69: =IF(IF(COLUMN()=COLUMN(C69),TRUE,ISBLANK(C69)),K69,C69) -> 0.0362 | H69: 0.02549665134 | I69: =IF(IF(COLUMN()=COLUMN(E69),TRUE,ISBLANK(E69)),M69,E69) -> -0.0423 | J69: =IF(IF(COLUMN()=COLUMN(F69),TRUE,ISBLANK(F69)),N69,F69) -> 0.0258 | K69: 0.0362 | L69: 0.02549665134 | M69: -0.0423 | N69: 0.0258 | O69: =IF(ROW()<ROW(B69),-(1+PV($J70,10,$J69,1))+$J69,$J69) -> 0.0258 | P69: 1.0750575 | Q69: 1.058825293 | R69: 127200 | S69: 895 | T69: 5397 | U69: 17040 | V69: 45360 | W69: 0.028 | X69: 0 | Y69: =IFERROR(VLOOKUP(X69,IV_CodeTable,2,FALSE),"") -> 
B70: =B69+1 -> 2019 | G70: 0.0375 | H70: 0.0325 | I70: 0.3122 | J70: 0.0271 | K70: =SP_AWI -> 0.0375 | L70: =SP_CPI -> 0.0325 | M70: 0.3122 | N70: 0.0271 | O70: 0.0271 | P70: =IF($B70=SC_VersionMaj,1,IF($B70<SC_VersionMaj,P71*($G70+1),1/(1/P69*($G69+1)))) -> 1.0375 | Q70: =IF($B70=SC_VersionMaj,1,IF($B70<SC_VersionMaj,Q71*($H70+1),1/(1/Q69*($H69+1)))) -> 1.0325 | R70: 132900 | S70: 926 | T70: 5583 | U70: 17640 | V70: 46920 | W70: 0.016 | X70: 0
B71: 2020 | G71: 0.0375 | H71: 0.0325 | I71: 0.07 | J71: 0.018 | K71: 0.0375 | L71: 0.0325 | M71: =SP_ARStocksDef -> 0.07 | N71: 0.018 | O71: 0.018 | P71: 1 | Q71: 1 | R71: 137700 | S71: 960 | T71: 5785 | U71: 18240 | V71: 48600 | W71: =MAX(H71,0) -> 0.0325 | X71: 0
B72: 2021 | G72: 0.0375 | H72: 0.0325 | I72: 0.07 | J72: 0.05 | K72: 0.0375 | L72: 0.0325 | M72: 0.07 | N72: =SP_BondYieldDef -> 0.05 | O72: 0.05 | P72: 0.9638554217 | Q72: 0.9685230024 | R72: =CEILING($R$45*$P$43/P70, 300) -> 144900 | S72: =CEILING($S$45*$P$43/P70,1) -> 1009 | T72: =CEILING(T$45*$P$43/$P70,1) -> 6084 | U72: =CEILING(U$45*$P$43/$P70, 120) -> 19320 | V72: =CEILING(V$53*$P$51/$P70, 120) -> 51360 | W72: 0.0325 | X72: 0
B73: 2022 | G73: 0.0375 | H73: 0.0325 | I73: 0.07 | J73: 0.05 | K73: 0.0375 | L73: 0.0325 | M73: 0.07 | N73: 0.05 | O73: 0.05 | P73: 0.9290172739 | Q73: 0.9380368062 | R73: 150300 | S73: 1047 | T73: 6312 | U73: 20040 | V73: 53280 | W73: 0.0325 | X73: 0
B74: 2023 | G74: 0.0375 | H74: 0.0325 | I74: 0.07 | J74: 0.05 | K74: 0.0375 | L74: 0.0325 | M74: 0.07 | N74: 0.05 | O74: 0.05 | P74: 0.8954383363 | Q74: 0.9085102239 | R74: 156000 | S74: 1086 | T74: 6549 | U74: 20760 | V74: 55320 | W74: 0.0325 | X74: 0
B75: 2024 | G75: 0.0375 | H75: 0.0325 | I75: 0.07 | J75: 0.05 | K75: 0.0375 | L75: 0.0325 | M75: 0.07 | N75: 0.05 | O75: 0.05 | P75: 0.8630730952 | Q75: 0.8799130498 | R75: 162000 | S75: 1127 | T75: 6794 | U75: 21480 | V75: 57360 | W75: 0.0325 | X75: 0
B76: 2025 | G76: 0.0375 | H76: 0.0325 | I76: 0.07 | J76: 0.05 | K76: 0.0375 | L76: 0.0325 | M76: 0.07 | N76: 0.05 | O76: 0.05 | P76: 0.8318776822 | Q76: 0.8522160289 | R76: 168000 | S76: 1169 | T76: 7049 | U76: 22320 | V76: 59520 | W76: 0.0325 | X76: 0
B77: 2026 | G77: 0.0375 | H77: 0.0325 | I77: 0.07 | J77: 0.05 | K77: 0.0375 | L77: 0.0325 | M77: 0.07 | N77: 0.05 | O77: 0.05 | P77: 0.8018098141 | Q77: 0.825390827 | R77: 174300 | S77: 1213 | T77: 7313 | U77: 23160 | V77: 61800 | W77: 0.0325 | X77: 0
B78: 2027 | G78: 0.0375 | H78: 0.0325 | I78: 0.07 | J78: 0.05 | K78: 0.0375 | L78: 0.0325 | M78: 0.07 | N78: 0.05 | O78: 0.05 | P78: 0.7728287365 | Q78: 0.7994100019 | R78: 180900 | S78: 1259 | T78: 7587 | U78: 24000 | V78: 64080 | W78: 0.0325 | X78: 0
B79: 2028 | G79: 0.0375 | H79: 0.0325 | I79: 0.07 | J79: 0.05 | K79: 0.0375 | L79: 0.0325 | M79: 0.07 | N79: 0.05 | O79: 0.05 | P79: 0.7448951677 | Q79: 0.7742469752 | R79: 187500 | S79: 1306 | T79: 7872 | U79: 24960 | V79: 66480 | W79: 0.0325 | X79: 0
B80: 2029 | G80: 0.0375 | H80: 0.0325 | I80: 0.07 | J80: 0.05 | K80: 0.0375 | L80: 0.0325 | M80: 0.07 | N80: 0.05 | O80: 0.05 | P80: 0.717971246 | Q80: 0.7498760051 | R80: 194700 | S80: 1355 | T80: 8167 | U80: 25800 | V80: 69000 | W80: 0.0325 | X80: 0
B81: 2030 | G81: 0.0375 | H81: 0.0325 | I81: 0.07 | J81: 0.05 | K81: 0.0375 | L81: 0.0325 | M81: 0.07 | N81: 0.05 | O81: 0.05 | P81: 0.6920204781 | Q81: 0.7262721599 | R81: 201900 | S81: 1405 | T81: 8473 | U81: 26880 | V81: 71520 | W81: 0.0325 | X81: 0
B82: 2031 | G82: 0.0375 | H82: 0.0325 | I82: 0.07 | J82: 0.05 | K82: 0.0375 | L82: 0.0325 | M82: 0.07 | N82: 0.05 | O82: 0.05 | P82: 0.6670076897 | Q82: 0.7034112929 | R82: 209400 | S82: 1458 | T82: 8791 | U82: 27840 | V82: 74280 | W82: 0.0325 | X82: =IF(OR(NOT(ISNUMBER($G82)),$G82<-1,$G82>1,NOT(ISNUMBER($H82)),$H82<-1,$H82>1,NOT(ISNUMBER($I82)),$I82<-1,$I82>1),201,IF(OR(NOT(ISNUMBER($J82)),$J82<0,$J82>1),201,0)) -> 0
B83: 2032 | G83: 0.0375 | H83: 0.0325 | I83: 0.07 | J83: 0.05 | K83: 0.0375 | L83: 0.0325 | M83: 0.07 | N83: 0.05 | O83: 0.05 | P83: 0.642898978 | Q83: 0.6812700173 | R83: 217200 | S83: 1513 | T83: 9121 | U83: 28920 | V83: 77040 | W83: 0.0325 | X83: =IF(OR(NOT(ISNUMBER($G83)),$G83<-1,$G83>1,NOT(ISNUMBER($H83)),$H83<-1,$H83>1,NOT(ISNUMBER($I83)),$I83<-1,$I83>1),201,IF(OR(NOT(ISNUMBER($J83)),$J83<0,$J83>1),201,0)) -> 0
B84: 2033 | G84: 0.0375 | H84: 0.0325 | I84: 0.07 | J84: 0.05 | K84: 0.0375 | L84: 0.0325 | M84: 0.07 | N84: 0.05 | O84: 0.05 | P84: 0.6196616656 | Q84: 0.6598256826 | R84: 225600 | S84: 1569 | T84: 9463 | U84: 30000 | V84: 79920 | W84: 0.0325 | X84: 0
B85: 2034 | G85: 0.0375 | H85: =IF(IF(COLUMN()=COLUMN(D85),TRUE,ISBLANK(D85)),L85,D85) -> 0.0325 | I85: 0.07 | J85: 0.05 | K85: 0.0375 | L85: 0.0325 | M85: 0.07 | N85: 0.05 | O85: 0.05 | P85: 0.597264256 | Q85: 0.6390563512 | R85: 234000 | S85: 1628 | T85: 9818 | U85: 31080 | V85: 82920 | W85: 0.0325 | X85: 0
B86: 2035 | G86: 0.0375 | H86: 0.0325 | I86: 0.07 | J86: 0.05 | K86: 0.0375 | L86: 0.0325 | M86: 0.07 | N86: 0.05 | O86: 0.05 | P86: 0.5756763913 | Q86: 0.618940776 | R86: 242700 | S86: 1689 | T86: 10186 | U86: 32280 | V86: 86040 | W86: 0.0325 | X86: 0
B87: 2036 | G87: 0.0375 | H87: 0.0325 | I87: 0.07 | J87: 0.05 | K87: 0.0375 | L87: 0.0325 | M87: 0.07 | N87: 0.05 | O87: 0.05 | P87: 0.5548688109 | Q87: 0.5994583787 | R87: 251700 | S87: 1753 | T87: 10568 | U87: 33480 | V87: 89280 | W87: 0.0325 | X87: 0
B88: 2037 | G88: 0.0375 | H88: 0.0325 | I88: 0.07 | J88: 0.05 | K88: 0.0375 | L88: 0.0325 | M88: 0.07 | N88: 0.05 | O88: 0.05 | P88: 0.5348133117 | Q88: 0.5805892287 | R88: 261300 | S88: 1818 | T88: 10964 | U88: 34680 | V88: 92520 | W88: 0.0325 | X88: 0
B89: 2038 | G89: 0.0375 | H89: 0.0325 | I89: 0.07 | J89: 0.05 | K89: 0.0375 | L89: 0.0325 | M89: 0.07 | N89: 0.05 | O89: 0.05 | P89: 0.5154827101 | Q89: 0.562314023 | R89: 270900 | S89: 1887 | T89: 11375 | U89: 36000 | V89: 96000 | W89: 0.0325 | X89: 0
B90: 2039 | G90: 0.0375 | H90: 0.0325 | I90: 0.07 | J90: 0.05 | K90: 0.0375 | L90: 0.0325 | M90: 0.07 | N90: 0.05 | O90: 0.05 | P90: 0.4968508049 | Q90: 0.5446140659 | R90: 281100 | S90: 1957 | T90: 11802 | U90: 37320 | V90: 99600 | W90: 0.0325 | X90: 0
B91: 2040 | G91: 0.0375 | H91: 0.0325 | I91: 0.07 | J91: 0.05 | K91: 0.0375 | L91: 0.0325 | M91: 0.07 | N91: 0.05 | O91: 0.05 | P91: 0.4788923421 | Q91: 0.5274712502 | R91: 291600 | S91: 2031 | T91: 12244 | U91: 38760 | V91: 103440 | W91: 0.0325 | X91: 0
B92: 2041 | G92: 0.0375 | H92: 0.0325 | I92: 0.07 | J92: 0.05 | K92: 0.0375 | L92: 0.0325 | M92: 0.07 | N92: 0.05 | O92: 0.05 | P92: 0.4615829803 | Q92: 0.510868039 | R92: 302700 | S92: 2107 | T92: 12703 | U92: 40200 | V92: 107280 | W92: 0.0325 | X92: 0
B93: 2042 | G93: 0.0375 | H93: 0.0325 | I93: 0.07 | J93: 0.05 | K93: 0.0375 | L93: 0.0325 | M93: 0.07 | N93: 0.05 | O93: 0.05 | P93: 0.4448992581 | Q93: 0.4947874469 | R93: 314100 | S93: 2186 | T93: 13180 | U93: 41640 | V93: 111240 | W93: 0.0325 | X93: 0
B94: 2043 | G94: 0.0375 | H94: 0.0325 | I94: 0.07 | J94: 0.05 | K94: 0.0375 | L94: 0.0325 | M94: 0.07 | N94: 0.05 | O94: 0.05 | P94: 0.428818562 | Q94: 0.4792130237 | R94: 325800 | S94: 2268 | T94: 13674 | U94: 43200 | V94: 115440 | W94: 0.0325 | X94: 0
B95: 2044 | G95: 0.0375 | H95: 0.0325 | I95: 0.07 | J95: 0.05 | K95: 0.0375 | L95: 0.0325 | M95: 0.07 | N95: 0.05 | O95: 0.05 | P95: 0.4133190959 | Q95: 0.4641288365 | R95: 337800 | S95: 2353 | T95: 14187 | U95: 44880 | V95: 119760 | W95: 0.0325 | X95: 0
B96: 2045 | G96: 0.0375 | H96: 0.0325 | I96: 0.07 | J96: 0.05 | K96: =SP_AWI -> 0.0375 | L96: 0.0325 | M96: 0.07 | N96: 0.05 | O96: 0.05 | P96: 0.3983798515 | Q96: 0.4495194542 | R96: 350700 | S96: 2441 | T96: 14719 | U96: 46560 | V96: 124320 | W96: 0.0325 | X96: 0
B97: 2046 | G97: 0.0375 | H97: 0.0325 | I97: 0.07 | J97: 0.05 | K97: 0.0375 | L97: 0.0325 | M97: 0.07 | N97: 0.05 | O97: 0.05 | P97: 0.3839805798 | Q97: 0.4353699314 | R97: 363900 | S97: 2533 | T97: 15271 | U97: 48360 | V97: 128880 | W97: 0.0325 | X97: 0
B98: 2047 | G98: 0.0375 | H98: 0.0325 | I98: 0.07 | J98: 0.05 | K98: 0.0375 | L98: =SP_CPI -> 0.0325 | M98: 0.07 | N98: 0.05 | O98: 0.05 | P98: 0.3701017636 | Q98: 0.4216657932 | R98: 377400 | S98: 2627 | T98: 15843 | U98: 50160 | V98: 133800 | W98: 0.0325 | X98: 0
B99: 2048 | G99: 0.0375 | H99: 0.0325 | I99: 0.07 | J99: 0.05 | K99: 0.0375 | L99: 0.0325 | M99: =SP_ARStocksDef -> 0.07 | N99: =SP_BondYieldDef -> 0.05 | O99: 0.05 | P99: 0.3567245915 | Q99: 0.40839302 | R99: 391500 | S99: 2726 | T99: 16437 | U99: 51960 | V99: 138720 | W99: =MAX(H99,0) -> 0.0325 | X99: 0
B100: 2049 | G100: 0.0375 | H100: 0.0325 | I100: 0.07 | J100: 0.05 | K100: 0.0375 | L100: 0.0325 | M100: 0.07 | N100: 0.05 | O100: 0.05 | P100: 0.3438309315 | Q100: 0.3955380339 | R100: =CEILING($R$45*$P$43/P98, 300) -> 406200 | S100: =CEILING($S$45*$P$43/P98,1) -> 2828 | T100: =CEILING(T$45*$P$43/$P98,1) -> 17054 | U100: =CEILING(U$45*$P$43/$P98, 120) -> 53880 | V100: =CEILING(V$53*$P$51/$P98, 120) -> 144000 | W100: 0.0325 | X100: 0
B101: 2050 | G101: =IF(IF(COLUMN()=COLUMN(C101),TRUE,ISBLANK(C101)),K101,C101) -> 0.0375 | H101: 0.0325 | I101: =IF(IF(COLUMN()=COLUMN(E101),TRUE,ISBLANK(E101)),M101,E101) -> 0.07 | J101: =IF(IF(COLUMN()=COLUMN(F101),TRUE,ISBLANK(F101)),N101,F101) -> 0.05 | K101: 0.0375 | L101: 0.0325 | M101: 0.07 | N101: 0.05 | O101: 0.05 | P101: 0.3314033075 | Q101: 0.3830876842 | R101: 421500 | S101: 2934 | T101: 17693 | U101: 55920 | V101: 149400 | W101: 0.0325 | X101: 0
B102: =B101+1 -> 2051 | G102: 0.0375 | H102: 0.0325 | I102: 0.07 | J102: 0.05 | K102: 0.0375 | L102: 0.0325 | M102: 0.07 | N102: 0.05 | O102: 0.05 | P102: =IF($B102=SC_VersionMaj,1,IF($B102<SC_VersionMaj,P103*($G102+1),1/(1/P101*($G101+1)))) -> 0.3194248747 | Q102: =IF($B102=SC_VersionMaj,1,IF($B102<SC_VersionMaj,Q103*($H102+1),1/(1/Q101*($H101+1)))) -> 0.3710292341 | R102: 437100 | S102: 3044 | T102: 18357 | U102: 58080 | V102: 154920 | W102: 0.0325 | X102: 0
B103: 2052 | G103: 0.0375 | H103: 0.0325 | I103: 0.07 | J103: 0.05 | K103: 0.0375 | L103: 0.0325 | M103: 0.07 | N103: 0.05 | O103: 0.05 | P103: 0.3078793973 | Q103: 0.3593503478 | R103: 453600 | S103: 3158 | T103: 19045 | U103: 60240 | V103: 160800 | W103: 0.0325 | X103: 0
B104: 2053 | G104: 0.0375 | H104: 0.0325 | I104: 0.07 | J104: 0.05 | K104: 0.0375 | L104: 0.0325 | M104: 0.07 | N104: 0.05 | O104: 0.05 | P104: 0.2967512263 | Q104: 0.3480390777 | R104: 470700 | S104: 3277 | T104: 19759 | U104: 62520 | V104: 166800 | W104: 0.0325 | X104: 0
B105: 2054 | G105: 0.0375 | H105: 0.0325 | I105: 0.07 | J105: 0.05 | K105: 0.0375 | L105: 0.0325 | M105: 0.07 | N105: 0.05 | O105: 0.05 | P105: 0.2860252784 | Q105: 0.3370838525 | R105: 488400 | S105: 3400 | T105: 20500 | U105: 64800 | V105: 173040 | W105: 0.0325 | X105: 0
B106: 2055 | G106: 0.0375 | H106: 0.0325 | I106: 0.07 | J106: 0.05 | K106: 0.0375 | L106: 0.0325 | M106: 0.07 | N106: 0.05 | O106: 0.05 | P106: 0.2756870153 | Q106: 0.3264734649 | R106: 506700 | S106: 3527 | T106: 21269 | U106: 67200 | V106: 179520 | W106: 0.0325 | X106: 0
B107: 2056 | G107: 0.0375 | H107: 0.0325 | I107: 0.07 | J107: 0.05 | K107: 0.0375 | L107: 0.0325 | M107: 0.07 | N107: 0.05 | O107: 0.05 | P107: 0.2657224244 | Q107: 0.3161970605 | R107: 525600 | S107: 3659 | T107: 22067 | U107: 69720 | V107: 186240 | W107: 0.0325 | X107: 0
B108: 2057 | G108: 0.0375 | H108: 0.0325 | I108: 0.07 | J108: 0.05 | K108: 0.0375 | L108: 0.0325 | M108: 0.07 | N108: 0.05 | O108: 0.05 | P108: 0.2561179994 | Q108: 0.3062441264 | R108: 545400 | S108: 3797 | T108: 22894 | U108: 72360 | V108: 193200 | W108: 0.0325 | X108: 0
B109: 2058 | G109: 0.0375 | H109: 0.0325 | I109: 0.07 | J109: 0.05 | K109: 0.0375 | L109: 0.0325 | M109: 0.07 | N109: 0.05 | O109: 0.05 | P109: 0.2468607223 | Q109: 0.2966044807 | R109: 565800 | S109: 3939 | T109: 23753 | U109: 75120 | V109: 200520 | W109: 0.0325 | X109: 0
B110: 2059 | G110: 0.0375 | H110: 0.0325 | I110: 0.07 | J110: 0.05 | K110: 0.0375 | L110: 0.0325 | M110: 0.07 | N110: 0.05 | O110: 0.05 | P110: 0.2379380456 | Q110: 0.2872682622 | R110: 586800 | S110: 4087 | T110: 24643 | U110: 77880 | V110: 207960 | W110: 0.0325 | X110: 0
B111: 2060 | G111: 0.0375 | H111: 0.0325 | I111: 0.07 | J111: 0.05 | K111: 0.0375 | L111: 0.0325 | M111: 0.07 | N111: 0.05 | O111: 0.05 | P111: 0.2293378753 | Q111: 0.2782259198 | R111: 609000 | S111: 4240 | T111: 25567 | U111: 80880 | V111: 215760 | W111: 0.0325 | X111: 0
B112: 2061 | G112: 0.0375 | H112: 0.0325 | I112: 0.07 | J112: 0.05 | K112: 0.0375 | L112: 0.0325 | M112: 0.07 | N112: 0.05 | O112: 0.05 | P112: 0.2210485545 | Q112: 0.2694682032 | R112: 631800 | S112: 4399 | T112: 26526 | U112: 83880 | V112: 223920 | W112: 0.0325 | X112: 0
B113: 2062 | G113: 0.0375 | H113: 0.0325 | I113: 0.07 | J113: 0.05 | K113: 0.0375 | L113: 0.0325 | M113: 0.07 | N113: 0.05 | O113: 0.05 | P113: 0.2130588477 | Q113: 0.2609861532 | R113: 655500 | S113: 4564 | T113: 27521 | U113: 87000 | V113: 232320 | W113: 0.0325 | X113: 0
B114: 2063 | G114: 0.0375 | H114: 0.0325 | I114: 0.07 | J114: 0.05 | K114: 0.0375 | L114: 0.0325 | M114: 0.07 | N114: 0.05 | O114: 0.05 | P114: 0.2053579255 | Q114: 0.2527710927 | R114: 680100 | S114: 4735 | T114: 28553 | U114: 90240 | V114: 240960 | W114: 0.0325 | X114: 0
B115: 2064 | G115: 0.0375 | H115: 0.0325 | I115: 0.07 | J115: 0.05 | K115: 0.0375 | L115: 0.0325 | M115: 0.07 | N115: 0.05 | O115: 0.05 | P115: 0.1979353499 | Q115: 0.2448146176 | R115: 705600 | S115: 4912 | T115: 29623 | U115: 93600 | V115: 250080 | W115: 0.0325 | X115: 0
B116: 2065 | G116: 0.0375 | H116: 0.0325 | I116: 0.07 | J116: 0.05 | K116: 0.0375 | L116: 0.0325 | M116: 0.07 | N116: 0.05 | O116: 0.05 | P116: 0.1907810601 | Q116: 0.2371085885 | R116: 732000 | S116: 5097 | T116: 30734 | U116: 97200 | V116: 259440 | W116: 0.0325 | X116: 0
B117: 2066 | G117: 0.0375 | H117: =IF(IF(COLUMN()=COLUMN(D117),TRUE,ISBLANK(D117)),L117,D117) -> 0.0325 | I117: 0.07 | J117: 0.05 | K117: 0.0375 | L117: 0.0325 | M117: 0.07 | N117: 0.05 | O117: 0.05 | P117: 0.1838853592 | Q117: 0.229645122 | R117: 759300 | S117: 5288 | T117: 31887 | U117: 100800 | V117: 269160 | W117: 0.0325 | X117: 0
B118: 2067 | G118: 0.0375 | H118: 0.0325 | I118: 0.07 | J118: 0.05 | K118: 0.0375 | L118: 0.0325 | M118: 0.07 | N118: 0.05 | O118: 0.05 | P118: 0.1772389004 | Q118: 0.2224165831 | R118: 787800 | S118: 5486 | T118: 33083 | U118: 104520 | V118: 279240 | W118: 0.0325 | X118: 0
B119: 2068 | G119: 0.0375 | H119: 0.0325 | I119: 0.07 | J119: 0.05 | K119: 0.0375 | L119: 0.0325 | M119: 0.07 | N119: 0.05 | O119: 0.05 | P119: 0.1708326751 | Q119: 0.2154155769 | R119: 817500 | S119: 5692 | T119: 34323 | U119: 108480 | V119: 289680 | W119: 0.0325 | X119: 0
B120: 2069 | G120: 0.0375 | H120: 0.0325 | I120: 0.07 | J120: 0.05 | K120: 0.0375 | L120: 0.0325 | M120: 0.07 | N120: 0.05 | O120: 0.05 | P120: 0.1646580001 | Q120: 0.2086349413 | R120: 848100 | S120: 5905 | T120: 35610 | U120: 112560 | V120: 300600 | W120: 0.0325 | X120: 0
B121: 2070 | G121: 0.0375 | H121: 0.0325 | I121: 0.07 | J121: 0.05 | K121: 0.0375 | L121: 0.0325 | M121: 0.07 | N121: 0.05 | O121: 0.05 | P121: 0.1587065061 | Q121: 0.2020677397 | R121: 879900 | S121: 6127 | T121: 36946 | U121: 116760 | V121: 311880 | W121: 0.0325 | X121: 0
B122: 2071 | G122: 0.0375 | H122: 0.0325 | I122: 0.07 | J122: 0.05 | K122: 0.0375 | L122: 0.0325 | M122: 0.07 | N122: 0.05 | O122: 0.05 | P122: 0.1529701264 | Q122: 0.195707254 | R122: 912900 | S122: 6356 | T122: 38331 | U122: 121200 | V122: 323520 | W122: 0.0325 | X122: 0
B123: 2072 | G123: 0.0375 | H123: 0.0325 | I123: 0.07 | J123: 0.05 | K123: 0.0375 | L123: 0.0325 | M123: 0.07 | N123: 0.05 | O123: 0.05 | P123: 0.1474410856 | Q123: 0.1895469772 | R123: 947100 | S123: 6595 | T123: 39768 | U123: 125640 | V123: 335640 | W123: 0.0325 | X123: 0
B124: 2073 | G124: 0.0375 | H124: 0.0325 | I124: 0.07 | J124: 0.05 | K124: 0.0375 | L124: 0.0325 | M124: 0.07 | N124: 0.05 | O124: 0.05 | P124: 0.1421118898 | Q124: 0.1835806075 | R124: 982500 | S124: 6842 | T124: 41260 | U124: 130440 | V124: 348240 | W124: 0.0325 | X124: 0
B125: 2074 | G125: 0.0375 | H125: 0.0325 | I125: 0.07 | J125: 0.05 | K125: 0.0375 | L125: 0.0325 | M125: 0.07 | N125: 0.05 | O125: 0.05 | P125: 0.1369753154 | Q125: 0.1778020411 | R125: 1019400 | S125: 7098 | T125: 42807 | U125: 135240 | V125: 361320 | W125: 0.0325 | X125: 0
B126: 2075 | G126: 0.0375 | H126: 0.0325 | I126: 0.07 | J126: 0.05 | K126: 0.0375 | L126: 0.0325 | M126: 0.07 | N126: 0.05 | O126: 0.05 | P126: 0.1320244004 | Q126: 0.1722053667 | R126: 1057800 | S126: 7365 | T126: 44412 | U126: 140400 | V126: 374880 | W126: 0.0325 | X126: 0
B127: 2076 | G127: 0.0375 | H127: 0.0325 | I127: 0.07 | J127: 0.05 | K127: 0.0375 | L127: 0.0325 | M127: 0.07 | N127: 0.05 | O127: 0.05 | P127: 0.1272524341 | Q127: 0.1667848588 | R127: 1097400 | S127: 7641 | T127: 46078 | U127: 145680 | V127: 388920 | W127: 0.0325 | X127: 0
B128: 2077 | G128: 0.0375 | H128: 0.0325 | I128: 0.07 | J128: 0.05 | K128: =SP_AWI -> 0.0375 | L128: 0.0325 | M128: 0.07 | N128: 0.05 | O128: 0.05 | P128: 0.1226529486 | Q128: 0.1615349722 | R128: 1138500 | S128: 7927 | T128: 47806 | U128: 151080 | V128: 403440 | W128: 0.0325 | X128: 0
B129: 2078 | G129: 0.0375 | H129: 0.0325 | I129: 0.07 | J129: 0.05 | K129: 0.0375 | L129: 0.0325 | M129: 0.07 | N129: 0.05 | O129: 0.05 | P129: 0.1182197095 | Q129: 0.1564503363 | R129: 1181100 | S129: 8225 | T129: 49598 | U129: 156720 | V129: 418560 | W129: 0.0325 | X129: 0
B130: 2079 | G130: 0.0375 | H130: 0.0325 | I130: 0.07 | J130: 0.05 | K130: 0.0375 | L130: =SP_CPI -> 0.0325 | M130: 0.07 | N130: 0.05 | O130: 0.05 | P130: 0.1139467079 | Q130: 0.1515257494 | R130: 1225500 | S130: 8533 | T130: 51458 | U130: 162600 | V130: 434280 | W130: 0.0325 | X130: 0
B131: 2080 | G131: 0.0375 | H131: 0.0325 | I131: 0.07 | J131: 0.05 | K131: 0.0375 | L131: 0.0325 | M131: =SP_ARStocksDef -> 0.07 | N131: =SP_BondYieldDef -> 0.05 | O131: 0.05 | P131: 0.1098281522 | Q131: 0.1467561738 | R131: 1271400 | S131: 8853 | T131: 53388 | U131: 168720 | V131: 450600 | W131: =MAX(H131,0) -> 0.0325 | X131: 0
B132: 2081 | G132: 0.0375 | H132: 0.0325 | I132: 0.07 | J132: 0.05 | K132: 0.0375 | L132: 0.0325 | M132: 0.07 | N132: 0.05 | O132: 0.05 | P132: 0.10585846 | Q132: 0.14213673 | R132: =CEILING($R$45*$P$43/P130, 300) -> 1319100 | S132: =CEILING($S$45*$P$43/P130,1) -> 9185 | T132: =CEILING(T$45*$P$43/$P130,1) -> 55390 | U132: =CEILING(U$45*$P$43/$P130, 120) -> 175080 | V132: =CEILING(V$53*$P$51/$P130, 120) -> 467520 | W132: 0.0325 | X132: 0
B133: 2082 | G133: =IF(IF(COLUMN()=COLUMN(C133),TRUE,ISBLANK(C133)),K133,C133) -> 0.0375 | H133: 0.0325 | I133: =IF(IF(COLUMN()=COLUMN(E133),TRUE,ISBLANK(E133)),M133,E133) -> 0.07 | J133: =IF(IF(COLUMN()=COLUMN(F133),TRUE,ISBLANK(F133)),N133,F133) -> 0.05 | K133: 0.0375 | L133: 0.0325 | M133: 0.07 | N133: 0.05 | O133: =IF(ROW()<ROW(B133),-(1+PV($J134,10,$J133,1))+$J133,$J133) -> 0.05 | P133: 0.1020322506 | Q133: 0.1376626925 | R133: 1368600 | S133: 9529 | T133: 57467 | U133: 181560 | V133: 485040 | W133: 0.0325 | X133: 0 | Y133: =IFERROR(VLOOKUP(X133,IV_CodeTable,2,FALSE),"") -> 
B134: =B133+1 -> 2083 | G134: 0.0375 | H134: 0.0325 | I134: 0.07 | J134: 0.05 | K134: 0.0375 | L134: 0.0325 | M134: 0.07 | N134: 0.05 | O134: 0.05 | P134: =IF($B134=SC_VersionMaj,1,IF($B134<SC_VersionMaj,P135*($G134+1),1/(1/P133*($G133+1)))) -> 0.0983443379 | Q134: =IF($B134=SC_VersionMaj,1,IF($B134<SC_VersionMaj,Q135*($H134+1),1/(1/Q133*($H133+1)))) -> 0.1333294843 | R134: 1419900 | S134: 9887 | T134: 59622 | U134: 188400 | V134: 503160 | W134: 0.0325 | X134: 0
B135: 2084 | G135: 0.0375 | H135: 0.0325 | I135: 0.07 | J135: 0.05 | K135: 0.0375 | L135: 0.0325 | M135: 0.07 | N135: 0.05 | O135: 0.05 | P135: 0.09478972328 | Q135: 0.1291326724 | R135: 1473000 | S135: 10257 | T135: 61858 | U135: 195480 | V135: 522120 | W135: 0.0325 | X135: 0
B136: 2085 | G136: 0.0375 | H136: 0.0325 | I136: 0.07 | J136: 0.05 | K136: 0.0375 | L136: 0.0325 | M136: 0.07 | N136: 0.05 | O136: 0.05 | P136: 0.0913635887 | Q136: 0.1250679636 | R136: 1528200 | S136: 10642 | T136: 64177 | U136: 202800 | V136: 541680 | W136: 0.0325 | X136: 0
B137: 2086 | G137: 0.0375 | H137: 0.0325 | I137: 0.07 | J137: 0.05 | K137: 0.0375 | L137: 0.0325 | M137: 0.07 | N137: 0.05 | O137: 0.05 | P137: 0.08806129031 | Q137: 0.1211311996 | R137: 1585500 | S137: 11041 | T137: 66584 | U137: 210360 | V137: 561960 | W137: 0.0325 | X137: 0
B138: 2087 | G138: 0.0375 | H138: 0.0325 | I138: 0.07 | J138: 0.05 | K138: 0.0375 | L138: 0.0325 | M138: 0.07 | N138: 0.05 | O138: 0.05 | P138: 0.08487835211 | Q138: 0.1173183532 | R138: 1645200 | S138: 11455 | T138: 69081 | U138: 218280 | V138: 582960 | W138: 0.0325 | X138: 0
B139: 2088 | G139: 0.0375 | H139: 0.0325 | I139: 0.07 | J139: 0.05 | K139: 0.0375 | L139: 0.0325 | M139: 0.07 | N139: 0.05 | O139: 0.05 | P139: 0.08181045986 | Q139: 0.1136255236 | R139: 1706700 | S139: 11885 | T139: 71671 | U139: 226440 | V139: 604920 | W139: 0.0325 | X139: 0
B140: 2089 | G140: 0.0375 | H140: 0.0325 | I140: 0.07 | J140: 0.05 | K140: 0.0375 | L140: 0.0325 | M140: 0.07 | N140: 0.05 | O140: 0.05 | P140: 0.07885345529 | Q140: 0.1100489333 | R140: 1770600 | S140: 12330 | T140: 74359 | U140: 234960 | V140: 627600 | W140: 0.0325 | X140: 0
B141: 2090 | G141: 0.0375 | H141: 0.0325 | I141: 0.07 | J141: 0.05 | K141: 0.0375 | L141: 0.0325 | M141: 0.07 | N141: 0.05 | O141: 0.05 | P141: 0.0760033304 | Q141: 0.1065849233 | R141: 1837200 | S141: 12793 | T141: 77148 | U141: 243720 | V141: 651120 | W141: 0.0325 | X141: 0
B142: 2091 | G142: 0.0375 | H142: 0.0325 | I142: 0.07 | J142: 0.05 | K142: 0.0375 | L142: 0.0325 | M142: 0.07 | N142: 0.05 | O142: 0.05 | P142: 0.07325622207 | Q142: 0.1032299499 | R142: 1905900 | S142: 13272 | T142: 80041 | U142: 252960 | V142: 675480 | W142: 0.0325 | X142: 0
B143: 2092 | G143: 0.0375 | H143: 0.0325 | I143: 0.07 | J143: 0.05 | K143: 0.0375 | L143: 0.0325 | M143: 0.07 | N143: 0.05 | O143: 0.05 | P143: 0.07060840682 | Q143: 0.09998058104 | R143: 1977600 | S143: 13770 | T143: 83042 | U143: 262440 | V143: 700800 | W143: 0.0325 | X143: 0
B144: 2093 | G144: 0.0375 | H144: 0.0325 | I144: 0.07 | J144: 0.05 | K144: 0.0375 | L144: 0.0325 | M144: 0.07 | N144: 0.05 | O144: 0.05 | P144: 0.06805629573 | Q144: 0.09683349254 | R144: 2051700 | S144: 14286 | T144: 86156 | U144: 272280 | V144: 727080 | W144: 0.0325 | X144: 0
B145: 2094 | G145: 0.0375 | H145: 0.0325 | I145: 0.07 | J145: 0.05 | K145: 0.0375 | L145: 0.0325 | M145: 0.07 | N145: 0.05 | O145: 0.05 | P145: 0.06559642962 | Q145: 0.09378546493 | R145: =CEILING($R$45*$P$43/P142, 300) -> 2051700 | S145: =CEILING($S$45*$P$43/P142,1) -> 14286 | T145: =CEILING(T$45*$P$43/$P142,1) -> 86156 | U145: =CEILING(U$45*$P$43/$P142, 120) -> 272280 | V145: =CEILING(V$53*$P$51/$P142, 120) -> 727080 | W145: 0.0325 | X145: 0 | Y145: =IFERROR(VLOOKUP(X145,IV_CodeTable,2,FALSE),"") -> 
B146: 2095 | G146: 0.0375 | H146: 0.0325 | I146: 0.07 | J146: 0.05 | K146: 0.0375 | L146: 0.0325 | M146: 0.07 | N146: 0.05 | O146: =IF(ROW()<ROW(B146),-(1+PV($J147,10,$J146,1))+$J146,$J146) -> 0.05 | P146: 0.06322547433 | Q146: 0.09083338007 | R146: =CEILING($R$45*$P$43/P143, 300) -> 2128500 | S146: =CEILING($S$45*$P$43/P143,1) -> 14822 | T146: =CEILING(T$45*$P$43/$P143,1) -> 89387 | U146: =CEILING(U$45*$P$43/$P143, 120) -> 282480 | V146: =CEILING(V$53*$P$51/$P143, 120) -> 754320 | W146: 0.0325 | X146: 0
B147: 2096 | G147: =IF(IF(COLUMN()=COLUMN(C147),TRUE,ISBLANK(C147)),K147,C147) -> 0.0375 | H147: =IF(IF(COLUMN()=COLUMN(D147),TRUE,ISBLANK(D147)),L147,D147) -> 0.0325 | I147: =IF(IF(COLUMN()=COLUMN(E147),TRUE,ISBLANK(E147)),M147,E147) -> 0.07 | J147: =IF(IF(COLUMN()=COLUMN(F147),TRUE,ISBLANK(F147)),N147,F147) -> 0.05 | K147: 0.0375 | L147: 0.0325 | M147: 0.07 | N147: 0.05 | O147: =IF(ROW()<ROW(B147),-(1+PV($J148,10,$J147,1))+$J147,$J147) -> 0.05 | P147: 0.06094021622 | Q147: 0.08797421799 | R147: =CEILING($R$45*$P$43/P144, 300) -> 2208300 | S147: =CEILING($S$45*$P$43/P144,1) -> 15378 | T147: =CEILING(T$45*$P$43/$P144,1) -> 92739 | U147: =CEILING(U$45*$P$43/$P144, 120) -> 293040 | V147: =CEILING(V$53*$P$51/$P144, 120) -> 782640 | W147: =MAX(H147,0) -> 0.0325 | X147: 0 | Y147: =IFERROR(VLOOKUP(X147,IV_CodeTable,2,FALSE),"") -> 

Sheet Income (hidden)
A1: =PMBASIC+PMADVANCED+VMONLINE+VMMACRO+VMDEBUG -> 62 | B1: =PMBASIC+PMADVANCED+VMONLINE+VMMACRO+VMDEBUG -> 62 | C1: =PMBASIC+PMADVANCED+VMONLINE+VMMACRO+VMDEBUG -> 62 | D1: =PMBASIC+PMADVANCED+IF(INDEX(SC_ShowRetireatee,2), VMONLINE+VMMACRO+VMDEBUG, VMDEBUG) -> 56 | E1: =PMBASIC+PMADVANCED+VMDEBUG -> 56 | F1: =PMBASIC+PMADVANCED+VMDEBUG -> 56 | G1: =PMBASIC+PMADVANCED+VMDEBUG -> 56 | H1: =PMBASIC+PMADVANCED+VMONLINE+VMMACRO+VMDEBUG -> 62 | I1: =PMBASIC+PMADVANCED+VMDEBUG -> 56 | J1: =PMBASIC+PMADVANCED+VMDEBUG -> 56 | K1: =PMBASIC+PMADVANCED+IF(SP_EI, VMONLINE+VMMACRO+VMDEBUG, VMDEBUG) -> 56 | L1: =PMBASIC+PMADVANCED+IF(SP_SEI, VMONLINE+VMMACRO+VMDEBUG, VMDEBUG) -> 56 | M1: =PMBASIC+PMADVANCED+IF(SP_PIIRP, VMONLINE+VMMACRO+VMDEBUG, VMDEBUG) -> 56 | N1: =PMADVANCED+IF(OR(SP_EI,SP_SEI), VMONLINE+VMMACRO+VMDEBUG, VMDEBUG) -> 40 | O1: =PMBASIC+PMADVANCED+VMDEBUG -> 56 | P1: =PMBASIC+PMADVANCED+VMDEBUG -> 56 | Q1: =PMBASIC+PMADVANCED+VMDEBUG -> 56 | R1: =PMADVANCED+VMDEBUG -> 40 | S1: =PMBASIC+PMADVANCED+VMDEBUG -> 56 | T1: =PMBASIC+PMADVANCED+VMDEBUG -> 56 | U1: =PMBASIC+PMADVANCED+VMONLINE+VMMACRO+VMDEBUG -> 62 | V1: =PMBASIC+PMADVANCED+IF(SP_SEI, VMONLINE+VMMACRO+VMDEBUG, VMDEBUG) -> 56 | W1: =PMBASIC+PMADVANCED+VMONLINE+VMMACRO+VMDEBUG -> 62 | X1: =PMBASIC+PMADVANCED+IF(SP_SEI, VMONLINE+VMMACRO+VMDEBUG, VMDEBUG) -> 56 | Y1: =PMBASIC+PMADVANCED+VMDEBUG -> 56 | Z1: =PMBASIC+PMADVANCED+VMONLINE+VMMACRO+VMDEBUG -> 62 | AA1: =PMBASIC+PMADVANCED+VMONLINE+VMMACRO+VMDEBUG -> 62 | AB1: =PMBASIC+PMADVANCED+VMDEBUG -> 56 | AC1: =PMADVANCED+IF(SP_EI, VMONLINE+VMMACRO+VMDEBUG, VMDEBUG) -> 40 | AD1: =PMADVANCED+IF(SP_EI, VMONLINE+VMMACRO+VMDEBUG, VMDEBUG) -> 40 | AE1: =PMBASIC+PMADVANCED+VMONLINE+VMMACRO+VMDEBUG -> 62 | AF1: 62 | AG1: 62 | AH1: 62 | AI1: 62 | AJ1: 62 | AK1: 62
A2: =PMBASIC+PMADVANCED+VMONLINE+VMMACRO+VMDEBUG -> 62 | K2: Ordinary Income Table | AC2: DB Pension | AE2: Individual | AG2: Household
A3: =PMBASIC+PMADVANCED+VMONLINE+VMMACRO+VMDEBUG -> 62 | B3: Year | C3: $ | D3: RI | E3: RN | F3: TN | G3: RO | H3: Age | I3: YIW | J3: APW | K3: Employer Income | L3: Self-Employment Income | M3: Passive Income | N3: Pre-FICA Deductions | O3: Shadow | P3: Shadow | Q3: Shadow | R3: Shadow | S3: Prorated | T3: Prorated | U3: Medicare Wages | V3: Medicare Wages SE | W3: Social Security Wages | X3: Social Security Wages SE | Y3: Base Year IDX | Z3: Work Credits | AA3: AIME | AB3: COLA IDX | AC3: Years of Service | AD3: Payout | AE3: Taxable Active Income | AF3: Taxable Passive Income | AG3: Core Account Rollover | AH3: Annuity Rollover | AI3: Additional Retirement Income | AJ3: Active Income | AK3: Passive Income
B4: =SC_YearEpoch-1 -> 1953 | C4: N | D4: =INDEX(SP_Initials,E4) ->  | E4: =MOD(ROW(),2)+1 -> 1 | F4: =INDEX(SC_TaxIndex,$E4) -> 0 | G4: =MOD($E4,2)-($E4-1) -> 1 | H4: =IF(INDEX(SC_ShowRetireatee,$E4),IF($B4<YEAR(INDEX(SP_BirthDate,$E4)),0,IF($B4>(YEAR(INDEX(SP_BirthDate,$E4))+INDEX(SP_LifeExp,$E4)),0,$B4-YEAR(INDEX(SP_BirthDate,$E4)))),0) -> 0 | I4: =MAX($H4+1-INDEX(SP_StartWorkAge,$E4),0) -> 0 | J4: =IF($B4<SC_TargetRY,1,IF($B4=SC_TargetRY,-(1-YEARFRAC(SP_TargetRD,DATE($B4+1,1,1))),0)) -> 1 | AI4: 0
B5: =SC_YearEpoch-1 -> 1953 | C5: N | E5: =MOD(ROW(),2)+1 -> 2 | F5: 0 | G5: -1 | H5: 0 | I5: 0 | J5: 1
B6: =B4+1 -> 1954 | C6: N | E6: 1 | F6: 0 | G6: 1 | H6: 0 | I6: 0 | J6: 1 | O6: =IF(IF(COLUMN()=COLUMN(K6),TRUE,ISBLANK(K6)), IF(OR($I6=0,$J6=0),0,IF($B6=SP_CurrentYear, 0, IF($B6>SP_CurrentYear, $O4*(1+INDEX(SP_EA_InflationWageRate, EAIDX-1)+INDEX(SP_IncomeEmployerAdj, $E6)), $O8/(1+INDEX(SP_EA_InflationWageRate, EAIDX)+INDEX(SP_IncomeEmployerAdj, $E6))))), K6) -> 0 | P6: =IF(IF(COLUMN()=COLUMN(L6),TRUE,ISBLANK(L6)), IF(OR($I6=0,$J6=0),0,IF($B6=SP_CurrentYear, 0, IF($B6>SP_CurrentYear, $P4*(1+INDEX(SP_EA_InflationWageRate, EAIDX-1)+INDEX(SP_IncomeSEAdj, $E6)), 0))), L6) -> 0 | Q6: =IF(IF(COLUMN()=COLUMN(M6),TRUE,ISBLANK(M6)), IF($B6=SP_CurrentYear, 0, IF($B6>SP_CurrentYear, $Q4*(1+INDEX(SP_EA_InflationWageRate, EAIDX-1)+INDEX(SP_IncomePassiveAdj, $E6)), 0)), M6) -> 0 | R6: =IF(IF(COLUMN()=COLUMN(N6),TRUE,ISBLANK(N6)), IF($B6=SP_CurrentYear,(-INDEX(SC_ExpensesLivingPF,$E6,1)*ABS($J6)-INDEX(SC_ExpensesLivingPF,$E6,2)*(1-ABS($J6)))/INDEX(SC_EA_InflationCPIdx, EAIDX)*12, IF($B6>SP_CurrentYear, $R4*(1+INDEX(SP_EA_InflationCPRate, EAIDX-1)), IF($O6=0, 0,$R8/(1+INDEX(SP_EA_InflationCPRate, EAIDX)))))*ABS($J6), N6) -> 0 | S6: =O6*ABS($J6) -> 0 | T6: =P6*ABS($J6) -> 0 | U6: =MAX(S6-ABS($R6)*ABS($J6), 0) -> 0 | V6: =MAX(T6-MAX(ABS($R6)*ABS($J6)-O6, 0),0) -> 0 | W6: =IF($H6=0, 0, MAX(MIN(S6-ABS($R6)*ABS($J6), INDEX(SC_EA_SSWageBase, EAIDX)), 0)) -> 0 | X6: =IF($H6=0, 0, MIN(MAX(T6-MAX(ABS($R6)*ABS($J6)-O6, 0),0), INDEX(SC_EA_SSWageBase, EAIDX)-W6)) -> 0 | Y6: =IF($H6=0,1,IF($B6>=INDEX(SC_SSBaseYear,$E6),1,Y8*(INDEX(SP_EA_InflationWageRate, EAIDX+1)+1))) -> 1 | Z6: =IF($H6=0, 0, ROUNDDOWN(MIN((W6+X6)*Y6,LT_SSMaxCredit*Y6)/(LT_SSOneCredit*Y6), 0)) -> 0 | AB6: =IF($H6>0, IF($B6<=INDEX(SC_SSBaseYear,$E6)+2,Y6,1/(1/AB4*(INDEX(SC_EA_SSCOLA, EAIDX-1)+1))), 1) -> 1 | AC6: =IF(INDEX(SP_PensionSWD,$E6)="",0,IF(YEAR(INDEX(SP_PensionSWD,$E6))>$B6,0,YEARFRAC(INDEX(SP_PensionSWD,$E6), MIN(DATE($B6+1,1,1),SP_TargetRD)))) -> 0 | AD6: =IF(AND(AC6>0, $B6=SC_TargetRY, INDEX(SP_PensionFAE,$E6)>0),SUMIF(OFFSET(E6,-MIN(INDEX(SP_PensionFAE,$E6),AC6)*2,0,MIN(INDEX(SP_PensionFAE,$E6),AC6)*2),$E6,OFFSET(O6,-MIN(INDEX(SP_PensionFAE,$E6),AC6)*2,0,MIN(INDEX(SP_PensionFAE,$E6),AC6)*2))/MIN(INDEX(SP_PensionFAE,$E6),AC6)*INDEX(SP_PensionPCT,$E6)*AC6,0) -> 0 | AE6: =$S6+$T6 -> 0 | AF6: =$Q6 -> 0 | AG6: =SUMIFS($AD6:$AD7,SP_PensionPayout,"Lump sum",$F6:$F7,"<>0") -> 0 | AH6: =SUMIFS($AD6:$AD7,SP_PensionPayout,"Annuity",$F6:$F7,"<>0") -> 0 | AI6: =IF(ISBLANK(INDEX(SP_SSPBFA,1)),0,IF($H6<>INDEX(SP_SSPBFA,1),AI4,SP_AdditionalRI/INDEX(SC_EA_InflationWageIdx,EAIDX))) -> 0 | AJ6: =SUMPRODUCT(AE6:AE7, --($F6:$F7<>0)) -> 0 | AK6: =SUMPRODUCT(AF6:AF7, --($F6:$F7<>0))+AI6 -> 0 | AL6: =IFERROR(IF(OR(NOT(ISNUMBER($O6)),$O6<0,NOT(ISNUMBER($P6)),$P6<0,NOT(ISNUMBER($Q6)),$Q6<0,NOT(ISNUMBER($R6)),$R6<0),202,0),203) -> 0 | AM6: =IFERROR(VLOOKUP(AL6,IV_CodeTable,2,FALSE),"") -> 
B7: =B5+1 -> 1954 | C7: N | E7: 2 | F7: 0 | G7: -1 | H7: 0 | I7: 0 | J7: 1 | O7: 0 | P7: 0 | Q7: 0 | R7: 0 | S7: 0 | T7: 0 | U7: 0 | V7: 0 | W7: 0 | X7: 0 | Y7: 1 | Z7: 0 | AB7: 1 | AC7: 0 | AD7: 0 | AE7: 0 | AF7: 0 | AL7: 0
B8: 1955 | C8: N | E8: 1 | F8: 0 | G8: 1 | H8: 0 | I8: 0 | J8: 1 | O8: 0 | P8: 0 | Q8: 0 | R8: 0 | S8: 0 | T8: 0 | U8: 0 | V8: 0 | W8: 0 | X8: 0 | Y8: 1 | Z8: 0 | AB8: 1 | AC8: 0 | AD8: 0 | AE8: 0 | AF8: 0 | AG8: =SUMIFS($AD8:$AD9,SP_PensionPayout,"Lump sum",$F8:$F9,"<>0") -> 0 | AH8: =SUMIFS($AD8:$AD9,SP_PensionPayout,"Annuity",$F8:$F9,"<>0") -> 0 | AI8: =IF(ISBLANK(INDEX(SP_SSPBFA,1)),0,IF($H8<>INDEX(SP_SSPBFA,1),AI6,SP_AdditionalRI/INDEX(SC_EA_InflationWageIdx,EAIDX))) -> 0 | AJ8: =SUMPRODUCT(AE8:AE9, --(E8:E9<>0)) -> 0 | AK8: =SUMPRODUCT(AF8:AF9, --(F8:F9<>0))+AI8 -> 0 | AL8: 0
B9: 1955 | C9: N | E9: 2 | F9: 0 | G9: -1 | H9: 0 | I9: 0 | J9: 1 | O9: 0 | P9: 0 | Q9: 0 | R9: 0 | S9: 0 | T9: 0 | U9: 0 | V9: 0 | W9: 0 | X9: 0 | Y9: 1 | Z9: 0 | AB9: 1 | AC9: 0 | AD9: 0 | AE9: 0 | AF9: 0 | AL9: 0
B10: 1956 | C10: N | E10: 1 | F10: 0 | G10: 1 | H10: 0 | I10: 0 | J10: 1 | O10: 0 | P10: 0 | Q10: 0 | R10: 0 | S10: 0 | T10: 0 | U10: 0 | V10: 0 | W10: 0 | X10: 0 | Y10: 1 | Z10: 0 | AB10: 1 | AC10: 0 | AD10: 0 | AE10: 0 | AF10: 0 | AG10: =SUMIFS($AD10:$AD11,SP_PensionPayout,"Lump sum",$F10:$F11,"<>0") -> 0 | AH10: =SUMIFS($AD10:$AD11,SP_PensionPayout,"Annuity",$F10:$F11,"<>0") -> 0 | AI10: =IF(ISBLANK(INDEX(SP_SSPBFA,1)),0,IF($H10<>INDEX(SP_SSPBFA,1),AI8,SP_AdditionalRI/INDEX(SC_EA_InflationWageIdx,EAIDX))) -> 0 | AJ10: =SUMPRODUCT(AE10:AE11, --(E10:E11<>0)) -> 0 | AK10: =SUMPRODUCT(AF10:AF11, --(F10:F11<>0))+AI10 -> 0 | AL10: 0
B11: 1956 | C11: N | E11: 2 | F11: 0 | G11: -1 | H11: 0 | I11: 0 | J11: 1 | O11: 0 | P11: 0 | Q11: 0 | R11: 0 | S11: 0 | T11: 0 | U11: 0 | V11: 0 | W11: 0 | X11: 0 | Y11: 1 | Z11: 0 | AB11: 1 | AC11: 0 | AD11: 0 | AE11: 0 | AF11: 0 | AL11: 0
B12: 1957 | C12: N | E12: 1 | F12: 0 | G12: 1 | H12: 0 | I12: 0 | J12: 1 | O12: 0 | P12: 0 | Q12: 0 | R12: 0 | S12: 0 | T12: 0 | U12: 0 | V12: 0 | W12: 0 | X12: 0 | Y12: 1 | Z12: 0 | AB12: 1 | AC12: 0 | AD12: 0 | AE12: 0 | AF12: 0 | AG12: =SUMIFS($AD12:$AD13,SP_PensionPayout,"Lump sum",$F12:$F13,"<>0") -> 0 | AH12: =SUMIFS($AD12:$AD13,SP_PensionPayout,"Annuity",$F12:$F13,"<>0") -> 0 | AI12: =IF(ISBLANK(INDEX(SP_SSPBFA,1)),0,IF($H12<>INDEX(SP_SSPBFA,1),AI10,SP_AdditionalRI/INDEX(SC_EA_InflationWageIdx,EAIDX))) -> 0 | AJ12: =SUMPRODUCT(AE12:AE13, --(E12:E13<>0)) -> 0 | AK12: =SUMPRODUCT(AF12:AF13, --(F12:F13<>0))+AI12 -> 0 | AL12: 0
B13: 1957 | C13: N | E13: 2 | F13: 0 | G13: -1 | H13: 0 | I13: 0 | J13: 1 | O13: 0 | P13: 0 | Q13: 0 | R13: 0 | S13: 0 | T13: 0 | U13: 0 | V13: 0 | W13: 0 | X13: 0 | Y13: 1 | Z13: 0 | AB13: 1 | AC13: 0 | AD13: 0 | AE13: 0 | AF13: 0 | AL13: 0
B14: 1958 | C14: N | E14: 1 | F14: 0 | G14: 1 | H14: 0 | I14: 0 | J14: 1 | O14: 0 | P14: 0 | Q14: 0 | R14: 0 | S14: 0 | T14: 0 | U14: 0 | V14: 0 | W14: 0 | X14: 0 | Y14: 1 | Z14: 0 | AB14: 1 | AC14: 0 | AD14: 0 | AE14: 0 | AF14: 0 | AG14: =SUMIFS($AD14:$AD15,SP_PensionPayout,"Lump sum",$F14:$F15,"<>0") -> 0 | AH14: =SUMIFS($AD14:$AD15,SP_PensionPayout,"Annuity",$F14:$F15,"<>0") -> 0 | AI14: =IF(ISBLANK(INDEX(SP_SSPBFA,1)),0,IF($H14<>INDEX(SP_SSPBFA,1),AI12,SP_AdditionalRI/INDEX(SC_EA_InflationWageIdx,EAIDX))) -> 0 | AJ14: =SUMPRODUCT(AE14:AE15, --(E14:E15<>0)) -> 0 | AK14: =SUMPRODUCT(AF14:AF15, --(F14:F15<>0))+AI14 -> 0 | AL14: 0
B15: 1958 | C15: N | E15: 2 | F15: 0 | G15: -1 | H15: 0 | I15: 0 | J15: 1 | O15: 0 | P15: 0 | Q15: 0 | R15: 0 | S15: 0 | T15: 0 | U15: 0 | V15: 0 | W15: 0 | X15: 0 | Y15: 1 | Z15: 0 | AB15: 1 | AC15: 0 | AD15: 0 | AE15: 0 | AF15: 0 | AL15: 0
B16: 1959 | C16: N | E16: 1 | F16: 0 | G16: 1 | H16: 0 | I16: 0 | J16: 1 | O16: 0 | P16: 0 | Q16: 0 | R16: 0 | S16: 0 | T16: 0 | U16: 0 | V16: 0 | W16: 0 | X16: 0 | Y16: 1 | Z16: 0 | AB16: 1 | AC16: 0 | AD16: 0 | AE16: 0 | AF16: 0 | AG16: =SUMIFS($AD16:$AD17,SP_PensionPayout,"Lump sum",$F16:$F17,"<>0") -> 0 | AH16: =SUMIFS($AD16:$AD17,SP_PensionPayout,"Annuity",$F16:$F17,"<>0") -> 0 | AI16: =IF(ISBLANK(INDEX(SP_SSPBFA,1)),0,IF($H16<>INDEX(SP_SSPBFA,1),AI14,SP_AdditionalRI/INDEX(SC_EA_InflationWageIdx,EAIDX))) -> 0 | AJ16: =SUMPRODUCT(AE16:AE17, --(E16:E17<>0)) -> 0 | AK16: =SUMPRODUCT(AF16:AF17, --(F16:F17<>0))+AI16 -> 0 | AL16: 0
B17: 1959 | C17: N | E17: 2 | F17: 0 | G17: -1 | H17: 0 | I17: 0 | J17: 1 | O17: 0 | P17: 0 | Q17: 0 | R17: 0 | S17: 0 | T17: 0 | U17: 0 | V17: 0 | W17: 0 | X17: 0 | Y17: 1 | Z17: 0 | AB17: 1 | AC17: 0 | AD17: 0 | AE17: 0 | AF17: 0 | AL17: 0
B18: 1960 | C18: N | E18: 1 | F18: 0 | G18: 1 | H18: 0 | I18: 0 | J18: 1 | O18: 0 | P18: 0 | Q18: 0 | R18: 0 | S18: 0 | T18: 0 | U18: 0 | V18: 0 | W18: 0 | X18: 0 | Y18: 1 | Z18: 0 | AB18: 1 | AC18: 0 | AD18: 0 | AE18: 0 | AF18: 0 | AG18: =SUMIFS($AD18:$AD19,SP_PensionPayout,"Lump sum",$F18:$F19,"<>0") -> 0 | AH18: =SUMIFS($AD18:$AD19,SP_PensionPayout,"Annuity",$F18:$F19,"<>0") -> 0 | AI18: =IF(ISBLANK(INDEX(SP_SSPBFA,1)),0,IF($H18<>INDEX(SP_SSPBFA,1),AI16,SP_AdditionalRI/INDEX(SC_EA_InflationWageIdx,EAIDX))) -> 0 | AJ18: =SUMPRODUCT(AE18:AE19, --(E18:E19<>0)) -> 0 | AK18: =SUMPRODUCT(AF18:AF19, --(F18:F19<>0))+AI18 -> 0 | AL18: 0
B19: 1960 | C19: N | E19: 2 | F19: 0 | G19: -1 | H19: 0 | I19: 0 | J19: 1 | O19: 0 | P19: 0 | Q19: 0 | R19: 0 | S19: 0 | T19: 0 | U19: 0 | V19: 0 | W19: 0 | X19: 0 | Y19: 1 | Z19: 0 | AB19: 1 | AC19: 0 | AD19: 0 | AE19: 0 | AF19: 0 | AL19: 0
B20: 1961 | C20: N | E20: 1 | F20: 0 | G20: 1 | H20: 0 | I20: 0 | J20: 1 | O20: 0 | P20: 0 | Q20: 0 | R20: 0 | S20: 0 | T20: 0 | U20: 0 | V20: 0 | W20: 0 | X20: 0 | Y20: 1 | Z20: 0 | AB20: 1 | AC20: 0 | AD20: 0 | AE20: 0 | AF20: 0 | AG20: =SUMIFS($AD20:$AD21,SP_PensionPayout,"Lump sum",$F20:$F21,"<>0") -> 0 | AH20: =SUMIFS($AD20:$AD21,SP_PensionPayout,"Annuity",$F20:$F21,"<>0") -> 0 | AI20: =IF(ISBLANK(INDEX(SP_SSPBFA,1)),0,IF($H20<>INDEX(SP_SSPBFA,1),AI18,SP_AdditionalRI/INDEX(SC_EA_InflationWageIdx,EAIDX))) -> 0 | AJ20: =SUMPRODUCT(AE20:AE21, --(E20:E21<>0)) -> 0 | AK20: =SUMPRODUCT(AF20:AF21, --(F20:F21<>0))+AI20 -> 0 | AL20: 0
B21: 1961 | C21: N | E21: 2 | F21: 0 | G21: -1 | H21: 0 | I21: 0 | J21: 1 | O21: 0 | P21: 0 | Q21: 0 | R21: 0 | S21: 0 | T21: 0 | U21: 0 | V21: 0 | W21: 0 | X21: 0 | Y21: 1 | Z21: 0 | AB21: 1 | AC21: 0 | AD21: 0 | AE21: 0 | AF21: 0 | AL21: 0
B22: 1962 | C22: N | E22: 1 | F22: 0 | G22: 1 | H22: 0 | I22: 0 | J22: 1 | O22: 0 | P22: 0 | Q22: 0 | R22: 0 | S22: 0 | T22: 0 | U22: 0 | V22: 0 | W22: 0 | X22: 0 | Y22: 1 | Z22: 0 | AB22: 1 | AC22: 0 | AD22: 0 | AE22: 0 | AF22: 0 | AG22: =SUMIFS($AD22:$AD23,SP_PensionPayout,"Lump sum",$F22:$F23,"<>0") -> 0 | AH22: =SUMIFS($AD22:$AD23,SP_PensionPayout,"Annuity",$F22:$F23,"<>0") -> 0 | AI22: =IF(ISBLANK(INDEX(SP_SSPBFA,1)),0,IF($H22<>INDEX(SP_SSPBFA,1),AI20,SP_AdditionalRI/INDEX(SC_EA_InflationWageIdx,EAIDX))) -> 0 | AJ22: =SUMPRODUCT(AE22:AE23, --(E22:E23<>0)) -> 0 | AK22: =SUMPRODUCT(AF22:AF23, --(F22:F23<>0))+AI22 -> 0 | AL22: 0
B23: 1962 | C23: N | E23: 2 | F23: 0 | G23: -1 | H23: 0 | I23: 0 | J23: 1 | O23: 0 | P23: 0 | Q23: 0 | R23: 0 | S23: 0 | T23: 0 | U23: 0 | V23: 0 | W23: 0 | X23: 0 | Y23: 1 | Z23: 0 | AB23: 1 | AC23: 0 | AD23: 0 | AE23: 0 | AF23: 0 | AL23: 0
B24: 1963 | C24: N | E24: 1 | F24: 0 | G24: 1 | H24: 0 | I24: 0 | J24: 1 | O24: 0 | P24: 0 | Q24: 0 | R24: 0 | S24: 0 | T24: 0 | U24: 0 | V24: 0 | W24: 0 | X24: 0 | Y24: 1 | Z24: 0 | AB24: 1 | AC24: 0 | AD24: 0 | AE24: 0 | AF24: 0 | AG24: =SUMIFS($AD24:$AD25,SP_PensionPayout,"Lump sum",$F24:$F25,"<>0") -> 0 | AH24: =SUMIFS($AD24:$AD25,SP_PensionPayout,"Annuity",$F24:$F25,"<>0") -> 0 | AI24: =IF(ISBLANK(INDEX(SP_SSPBFA,1)),0,IF($H24<>INDEX(SP_SSPBFA,1),AI22,SP_AdditionalRI/INDEX(SC_EA_InflationWageIdx,EAIDX))) -> 0 | AJ24: =SUMPRODUCT(AE24:AE25, --(E24:E25<>0)) -> 0 | AK24: =SUMPRODUCT(AF24:AF25, --(F24:F25<>0))+AI24 -> 0 | AL24: 0
B25: 1963 | C25: N | E25: 2 | F25: 0 | G25: -1 | H25: 0 | I25: 0 | J25: 1 | O25: 0 | P25: 0 | Q25: 0 | R25: 0 | S25: 0 | T25: 0 | U25: 0 | V25: 0 | W25: 0 | X25: 0 | Y25: 1 | Z25: 0 | AB25: 1 | AC25: 0 | AD25: 0 | AE25: 0 | AF25: 0 | AL25: 0
B26: 1964 | C26: N | E26: 1 | F26: 0 | G26: 1 | H26: 0 | I26: 0 | J26: 1 | O26: 0 | P26: 0 | Q26: 0 | R26: 0 | S26: 0 | T26: 0 | U26: 0 | V26: 0 | W26: 0 | X26: 0 | Y26: 1 | Z26: 0 | AB26: 1 | AC26: 0 | AD26: 0 | AE26: 0 | AF26: 0 | AG26: =SUMIFS($AD26:$AD27,SP_PensionPayout,"Lump sum",$F26:$F27,"<>0") -> 0 | AH26: =SUMIFS($AD26:$AD27,SP_PensionPayout,"Annuity",$F26:$F27,"<>0") -> 0 | AI26: =IF(ISBLANK(INDEX(SP_SSPBFA,1)),0,IF($H26<>INDEX(SP_SSPBFA,1),AI24,SP_AdditionalRI/INDEX(SC_EA_InflationWageIdx,EAIDX))) -> 0 | AJ26: =SUMPRODUCT(AE26:AE27, --(E26:E27<>0)) -> 0 | AK26: =SUMPRODUCT(AF26:AF27, --(F26:F27<>0))+AI26 -> 0 | AL26: 0
B27: 1964 | C27: N | E27: 2 | F27: 0 | G27: -1 | H27: 0 | I27: 0 | J27: 1 | O27: 0 | P27: 0 | Q27: 0 | R27: 0 | S27: 0 | T27: 0 | U27: 0 | V27: 0 | W27: 0 | X27: 0 | Y27: 1 | Z27: 0 | AB27: 1 | AC27: 0 | AD27: 0 | AE27: 0 | AF27: 0 | AL27: 0
B28: 1965 | C28: N | E28: 1 | F28: 0 | G28: 1 | H28: 0 | I28: 0 | J28: 1 | O28: 0 | P28: 0 | Q28: 0 | R28: 0 | S28: 0 | T28: 0 | U28: 0 | V28: 0 | W28: 0 | X28: 0 | Y28: 1 | Z28: 0 | AB28: 1 | AC28: 0 | AD28: 0 | AE28: 0 | AF28: 0 | AG28: =SUMIFS($AD28:$AD29,SP_PensionPayout,"Lump sum",$F28:$F29,"<>0") -> 0 | AH28: =SUMIFS($AD28:$AD29,SP_PensionPayout,"Annuity",$F28:$F29,"<>0") -> 0 | AI28: =IF(ISBLANK(INDEX(SP_SSPBFA,1)),0,IF($H28<>INDEX(SP_SSPBFA,1),AI26,SP_AdditionalRI/INDEX(SC_EA_InflationWageIdx,EAIDX))) -> 0 | AJ28: =SUMPRODUCT(AE28:AE29, --(E28:E29<>0)) -> 0 | AK28: =SUMPRODUCT(AF28:AF29, --(F28:F29<>0))+AI28 -> 0 | AL28: 0
B29: 1965 | C29: N | E29: 2 | F29: 0 | G29: -1 | H29: 0 | I29: 0 | J29: 1 | O29: 0 | P29: 0 | Q29: 0 | R29: 0 | S29: 0 | T29: 0 | U29: 0 | V29: 0 | W29: 0 | X29: 0 | Y29: 1 | Z29: 0 | AB29: 1 | AC29: 0 | AD29: 0 | AE29: 0 | AF29: 0 | AL29: 0
B30: 1966 | C30: N | E30: 1 | F30: 0 | G30: 1 | H30: 0 | I30: 0 | J30: 1 | O30: 0 | P30: 0 | Q30: 0 | R30: 0 | S30: 0 | T30: 0 | U30: 0 | V30: 0 | W30: 0 | X30: 0 | Y30: 1 | Z30: 0 | AB30: 1 | AC30: 0 | AD30: 0 | AE30: 0 | AF30: 0 | AG30: =SUMIFS($AD30:$AD31,SP_PensionPayout,"Lump sum",$F30:$F31,"<>0") -> 0 | AH30: =SUMIFS($AD30:$AD31,SP_PensionPayout,"Annuity",$F30:$F31,"<>0") -> 0 | AI30: =IF(ISBLANK(INDEX(SP_SSPBFA,1)),0,IF($H30<>INDEX(SP_SSPBFA,1),AI28,SP_AdditionalRI/INDEX(SC_EA_InflationWageIdx,EAIDX))) -> 0 | AJ30: =SUMPRODUCT(AE30:AE31, --(E30:E31<>0)) -> 0 | AK30: =SUMPRODUCT(AF30:AF31, --(F30:F31<>0))+AI30 -> 0 | AL30: 0
B31: 1966 | C31: N | E31: 2 | F31: 0 | G31: -1 | H31: 0 | I31: 0 | J31: 1 | O31: 0 | P31: 0 | Q31: 0 | R31: 0 | S31: 0 | T31: 0 | U31: 0 | V31: 0 | W31: 0 | X31: 0 | Y31: 1 | Z31: 0 | AB31: 1 | AC31: 0 | AD31: 0 | AE31: 0 | AF31: 0 | AL31: 0
B32: 1967 | C32: N | E32: 1 | F32: 0 | G32: 1 | H32: 0 | I32: 0 | J32: 1 | O32: 0 | P32: 0 | Q32: 0 | R32: 0 | S32: 0 | T32: 0 | U32: 0 | V32: 0 | W32: 0 | X32: 0 | Y32: 1 | Z32: 0 | AB32: 1 | AC32: 0 | AD32: 0 | AE32: 0 | AF32: 0 | AG32: =SUMIFS($AD32:$AD33,SP_PensionPayout,"Lump sum",$F32:$F33,"<>0") -> 0 | AH32: =SUMIFS($AD32:$AD33,SP_PensionPayout,"Annuity",$F32:$F33,"<>0") -> 0 | AI32: =IF(ISBLANK(INDEX(SP_SSPBFA,1)),0,IF($H32<>INDEX(SP_SSPBFA,1),AI30,SP_AdditionalRI/INDEX(SC_EA_InflationWageIdx,EAIDX))) -> 0 | AJ32: =SUMPRODUCT(AE32:AE33, --(E32:E33<>0)) -> 0 | AK32: =SUMPRODUCT(AF32:AF33, --(F32:F33<>0))+AI32 -> 0 | AL32: 0
B33: 1967 | C33: N | E33: 2 | F33: 0 | G33: -1 | H33: 0 | I33: 0 | J33: 1 | O33: 0 | P33: 0 | Q33: 0 | R33: 0 | S33: 0 | T33: 0 | U33: 0 | V33: 0 | W33: 0 | X33: 0 | Y33: 1 | Z33: 0 | AB33: 1 | AC33: 0 | AD33: 0 | AE33: 0 | AF33: 0 | AL33: 0
B34: 1968 | C34: N | E34: 1 | F34: 0 | G34: 1 | H34: 0 | I34: 0 | J34: 1 | O34: 0 | P34: 0 | Q34: 0 | R34: 0 | S34: 0 | T34: 0 | U34: 0 | V34: 0 | W34: 0 | X34: 0 | Y34: 1 | Z34: 0 | AB34: 1 | AC34: 0 | AD34: 0 | AE34: 0 | AF34: 0 | AG34: =SUMIFS($AD34:$AD35,SP_PensionPayout,"Lump sum",$F34:$F35,"<>0") -> 0 | AH34: =SUMIFS($AD34:$AD35,SP_PensionPayout,"Annuity",$F34:$F35,"<>0") -> 0 | AI34: =IF(ISBLANK(INDEX(SP_SSPBFA,1)),0,IF($H34<>INDEX(SP_SSPBFA,1),AI32,SP_AdditionalRI/INDEX(SC_EA_InflationWageIdx,EAIDX))) -> 0 | AJ34: =SUMPRODUCT(AE34:AE35, --(E34:E35<>0)) -> 0 | AK34: =SUMPRODUCT(AF34:AF35, --(F34:F35<>0))+AI34 -> 0 | AL34: 0
B35: 1968 | C35: N | E35: 2 | F35: 0 | G35: -1 | H35: 0 | I35: 0 | J35: 1 | O35: 0 | P35: 0 | Q35: 0 | R35: 0 | S35: 0 | T35: 0 | U35: 0 | V35: 0 | W35: 0 | X35: 0 | Y35: 1 | Z35: 0 | AB35: 1 | AC35: 0 | AD35: 0 | AE35: 0 | AF35: 0 | AL35: 0
B36: 1969 | C36: N | E36: 1 | F36: 0 | G36: 1 | H36: 0 | I36: 0 | J36: 1 | O36: 0 | P36: 0 | Q36: 0 | R36: 0 | S36: 0 | T36: 0 | U36: 0 | V36: 0 | W36: 0 | X36: 0 | Y36: 1 | Z36: 0 | AB36: 1 | AC36: 0 | AD36: 0 | AE36: 0 | AF36: 0 | AG36: =SUMIFS($AD36:$AD37,SP_PensionPayout,"Lump sum",$F36:$F37,"<>0") -> 0 | AH36: =SUMIFS($AD36:$AD37,SP_PensionPayout,"Annuity",$F36:$F37,"<>0") -> 0 | AI36: =IF(ISBLANK(INDEX(SP_SSPBFA,1)),0,IF($H36<>INDEX(SP_SSPBFA,1),AI34,SP_AdditionalRI/INDEX(SC_EA_InflationWageIdx,EAIDX))) -> 0 | AJ36: =SUMPRODUCT(AE36:AE37, --(E36:E37<>0)) -> 0 | AK36: =SUMPRODUCT(AF36:AF37, --(F36:F37<>0))+AI36 -> 0 | AL36: 0
B37: 1969 | C37: N | E37: 2 | F37: 0 | G37: -1 | H37: 0 | I37: 0 | J37: 1 | O37: 0 | P37: 0 | Q37: 0 | R37: 0 | S37: 0 | T37: 0 | U37: 0 | V37: 0 | W37: 0 | X37: 0 | Y37: 1 | Z37: 0 | AB37: 1 | AC37: 0 | AD37: 0 | AE37: 0 | AF37: 0 | AL37: 0
B38: 1970 | C38: N | E38: 1 | F38: 0 | G38: 1 | H38: 0 | I38: 0 | J38: 1 | O38: 0 | P38: 0 | Q38: 0 | R38: 0 | S38: 0 | T38: 0 | U38: 0 | V38: 0 | W38: 0 | X38: 0 | Y38: 1 | Z38: 0 | AB38: 1 | AC38: 0 | AD38: 0 | AE38: 0 | AF38: 0 | AG38: =SUMIFS($AD38:$AD39,SP_PensionPayout,"Lump sum",$F38:$F39,"<>0") -> 0 | AH38: =SUMIFS($AD38:$AD39,SP_PensionPayout,"Annuity",$F38:$F39,"<>0") -> 0 | AI38: =IF(ISBLANK(INDEX(SP_SSPBFA,1)),0,IF($H38<>INDEX(SP_SSPBFA,1),AI36,SP_AdditionalRI/INDEX(SC_EA_InflationWageIdx,EAIDX))) -> 0 | AJ38: =SUMPRODUCT(AE38:AE39, --(E38:E39<>0)) -> 0 | AK38: =SUMPRODUCT(AF38:AF39, --(F38:F39<>0))+AI38 -> 0 | AL38: 0
B39: 1970 | C39: N | E39: 2 | F39: 0 | G39: -1 | H39: 0 | I39: 0 | J39: 1 | O39: 0 | P39: 0 | Q39: 0 | R39: 0 | S39: 0 | T39: 0 | U39: 0 | V39: 0 | W39: 0 | X39: 0 | Y39: 1 | Z39: 0 | AB39: 1 | AC39: 0 | AD39: 0 | AE39: 0 | AF39: 0 | AL39: 0
B40: 1971 | C40: N | E40: 1 | F40: 0 | G40: 1 | H40: 0 | I40: 0 | J40: 1 | O40: 0 | P40: 0 | Q40: 0 | R40: 0 | S40: 0 | T40: 0 | U40: 0 | V40: 0 | W40: 0 | X40: 0 | Y40: 1 | Z40: 0 | AB40: 1 | AC40: 0 | AD40: 0 | AE40: 0 | AF40: 0 | AG40: =SUMIFS($AD40:$AD41,SP_PensionPayout,"Lump sum",$F40:$F41,"<>0") -> 0 | AH40: =SUMIFS($AD40:$AD41,SP_PensionPayout,"Annuity",$F40:$F41,"<>0") -> 0 | AI40: =IF(ISBLANK(INDEX(SP_SSPBFA,1)),0,IF($H40<>INDEX(SP_SSPBFA,1),AI38,SP_AdditionalRI/INDEX(SC_EA_InflationWageIdx,EAIDX))) -> 0 | AJ40: =SUMPRODUCT(AE40:AE41, --(E40:E41<>0)) -> 0 | AK40: =SUMPRODUCT(AF40:AF41, --(F40:F41<>0))+AI40 -> 0 | AL40: 0
B41: 1971 | C41: N | E41: 2 | F41: 0 | G41: -1 | H41: 0 | I41: 0 | J41: 1 | O41: 0 | P41: 0 | Q41: 0 | R41: 0 | S41: 0 | T41: 0 | U41: 0 | V41: 0 | W41: 0 | X41: 0 | Y41: 1 | Z41: 0 | AA41: =AVERAGE(LARGE((W$6:W40+X$6:X40)*Y$6:Y40*(E$6:E40=E41), ROW(INDIRECT("A1:A35"))))/(12*Y41) -> 0 | AB41: 1 | AC41: 0 | AD41: 0 | AE41: 0 | AF41: 0 | AL41: 0
B42: 1972 | C42: N | E42: 1 | F42: 0 | G42: 1 | H42: 0 | I42: 0 | J42: 1 | O42: 0 | P42: 0 | Q42: 0 | R42: 0 | S42: 0 | T42: 0 | U42: 0 | V42: 0 | W42: 0 | X42: 0 | Y42: 1 | Z42: 0 | AA42: =AVERAGE(LARGE((W$6:W41+X$6:X41)*Y$6:Y41*(E$6:E41=E42), ROW(INDIRECT("A1:A35"))))/(12*Y42) -> 0 | AB42: 1 | AC42: 0 | AD42: 0 | AE42: 0 | AF42: 0 | AG42: =SUMIFS($AD42:$AD43,SP_PensionPayout,"Lump sum",$F42:$F43,"<>0") -> 0 | AH42: =SUMIFS($AD42:$AD43,SP_PensionPayout,"Annuity",$F42:$F43,"<>0") -> 0 | AI42: =IF(ISBLANK(INDEX(SP_SSPBFA,1)),0,IF($H42<>INDEX(SP_SSPBFA,1),AI40,SP_AdditionalRI/INDEX(SC_EA_InflationWageIdx,EAIDX))) -> 0 | AJ42: =SUMPRODUCT(AE42:AE43, --(E42:E43<>0)) -> 0 | AK42: =SUMPRODUCT(AF42:AF43, --(F42:F43<>0))+AI42 -> 0 | AL42: 0
B43: 1972 | C43: N | E43: 2 | F43: 0 | G43: -1 | H43: 0 | I43: 0 | J43: 1 | O43: 0 | P43: 0 | Q43: 0 | R43: 0 | S43: 0 | T43: 0 | U43: 0 | V43: 0 | W43: 0 | X43: 0 | Y43: 1 | Z43: 0 | AA43: =AVERAGE(LARGE((W$6:W42+X$6:X42)*Y$6:Y42*(E$6:E42=E43), ROW(INDIRECT("A1:A35"))))/(12*Y43) -> 0 | AB43: 1 | AC43: 0 | AD43: 0 | AE43: 0 | AF43: 0 | AL43: 0
B44: 1973 | C44: N | E44: 1 | F44: 0 | G44: 1 | H44: 0 | I44: 0 | J44: 1 | O44: 0 | P44: 0 | Q44: 0 | R44: 0 | S44: 0 | T44: 0 | U44: 0 | V44: 0 | W44: 0 | X44: 0 | Y44: 1 | Z44: 0 | AA44: =AVERAGE(LARGE((W$6:W43+X$6:X43)*Y$6:Y43*(E$6:E43=E44), ROW(INDIRECT("A1:A35"))))/(12*Y44) -> 0 | AB44: 1 | AC44: 0 | AD44: 0 | AE44: 0 | AF44: 0 | AG44: =SUMIFS($AD44:$AD45,SP_PensionPayout,"Lump sum",$F44:$F45,"<>0") -> 0 | AH44: =SUMIFS($AD44:$AD45,SP_PensionPayout,"Annuity",$F44:$F45,"<>0") -> 0 | AI44: =IF(ISBLANK(INDEX(SP_SSPBFA,1)),0,IF($H44<>INDEX(SP_SSPBFA,1),AI42,SP_AdditionalRI/INDEX(SC_EA_InflationWageIdx,EAIDX))) -> 0 | AJ44: =SUMPRODUCT(AE44:AE45, --(E44:E45<>0)) -> 0 | AK44: =SUMPRODUCT(AF44:AF45, --(F44:F45<>0))+AI44 -> 0 | AL44: 0
B45: 1973 | C45: N | E45: 2 | F45: 0 | G45: -1 | H45: 0 | I45: 0 | J45: 1 | O45: 0 | P45: 0 | Q45: 0 | R45: 0 | S45: 0 | T45: 0 | U45: 0 | V45: 0 | W45: 0 | X45: 0 | Y45: 1 | Z45: 0 | AA45: =AVERAGE(LARGE((W$6:W44+X$6:X44)*Y$6:Y44*(E$6:E44=E45), ROW(INDIRECT("A1:A35"))))/(12*Y45) -> 0 | AB45: 1 | AC45: 0 | AD45: 0 | AE45: 0 | AF45: 0 | AL45: 0
B46: 1974 | C46: N | E46: 1 | F46: 0 | G46: 1 | H46: 0 | I46: 0 | J46: 1 | O46: 0 | P46: 0 | Q46: 0 | R46: 0 | S46: 0 | T46: 0 | U46: 0 | V46: 0 | W46: 0 | X46: 0 | Y46: 1 | Z46: 0 | AA46: =AVERAGE(LARGE((W$6:W45+X$6:X45)*Y$6:Y45*(E$6:E45=E46), ROW(INDIRECT("A1:A35"))))/(12*Y46) -> 0 | AB46: 1 | AC46: 0 | AD46: 0 | AE46: 0 | AF46: 0 | AG46: =SUMIFS($AD46:$AD47,SP_PensionPayout,"Lump sum",$F46:$F47,"<>0") -> 0 | AH46: =SUMIFS($AD46:$AD47,SP_PensionPayout,"Annuity",$F46:$F47,"<>0") -> 0 | AI46: =IF(ISBLANK(INDEX(SP_SSPBFA,1)),0,IF($H46<>INDEX(SP_SSPBFA,1),AI44,SP_AdditionalRI/INDEX(SC_EA_InflationWageIdx,EAIDX))) -> 0 | AJ46: =SUMPRODUCT(AE46:AE47, --(E46:E47<>0)) -> 0 | AK46: =SUMPRODUCT(AF46:AF47, --(F46:F47<>0))+AI46 -> 0 | AL46: 0
B47: 1974 | C47: N | E47: 2 | F47: 0 | G47: -1 | H47: 0 | I47: 0 | J47: 1 | O47: 0 | P47: 0 | Q47: 0 | R47: 0 | S47: 0 | T47: 0 | U47: 0 | V47: 0 | W47: 0 | X47: 0 | Y47: 1 | Z47: 0 | AA47: =AVERAGE(LARGE((W$6:W46+X$6:X46)*Y$6:Y46*(E$6:E46=E47), ROW(INDIRECT("A1:A35"))))/(12*Y47) -> 0 | AB47: 1 | AC47: 0 | AD47: 0 | AE47: 0 | AF47: 0 | AL47: 0
B48: 1975 | C48: N | E48: 1 | F48: 0 | G48: 1 | H48: 0 | I48: 0 | J48: 1 | O48: 0 | P48: 0 | Q48: 0 | R48: 0 | S48: 0 | T48: 0 | U48: 0 | V48: 0 | W48: 0 | X48: 0 | Y48: 1 | Z48: 0 | AA48: =AVERAGE(LARGE((W$6:W47+X$6:X47)*Y$6:Y47*(E$6:E47=E48), ROW(INDIRECT("A1:A35"))))/(12*Y48) -> 0 | AB48: 1 | AC48: 0 | AD48: 0 | AE48: 0 | AF48: 0 | AG48: =SUMIFS($AD48:$AD49,SP_PensionPayout,"Lump sum",$F48:$F49,"<>0") -> 0 | AH48: =SUMIFS($AD48:$AD49,SP_PensionPayout,"Annuity",$F48:$F49,"<>0") -> 0 | AI48: =IF(ISBLANK(INDEX(SP_SSPBFA,1)),0,IF($H48<>INDEX(SP_SSPBFA,1),AI46,SP_AdditionalRI/INDEX(SC_EA_InflationWageIdx,EAIDX))) -> 0 | AJ48: =SUMPRODUCT(AE48:AE49, --(E48:E49<>0)) -> 0 | AK48: =SUMPRODUCT(AF48:AF49, --(F48:F49<>0))+AI48 -> 0 | AL48: 0
B49: 1975 | C49: N | E49: 2 | F49: 0 | G49: -1 | H49: 0 | I49: 0 | J49: 1 | O49: 0 | P49: 0 | Q49: 0 | R49: 0 | S49: 0 | T49: 0 | U49: 0 | V49: 0 | W49: 0 | X49: 0 | Y49: 1 | Z49: 0 | AA49: =AVERAGE(LARGE((W$6:W48+X$6:X48)*Y$6:Y48*(E$6:E48=E49), ROW(INDIRECT("A1:A35"))))/(12*Y49) -> 0 | AB49: 1 | AC49: 0 | AD49: 0 | AE49: 0 | AF49: 0 | AL49: 0
B50: 1976 | C50: N | E50: 1 | F50: 0 | G50: 1 | H50: 0 | I50: 0 | J50: 1 | O50: 0 | P50: 0 | Q50: 0 | R50: 0 | S50: 0 | T50: 0 | U50: 0 | V50: 0 | W50: 0 | X50: 0 | Y50: 1 | Z50: 0 | AA50: =AVERAGE(LARGE((W$6:W49+X$6:X49)*Y$6:Y49*(E$6:E49=E50), ROW(INDIRECT("A1:A35"))))/(12*Y50) -> 0 | AB50: 1 | AC50: 0 | AD50: 0 | AE50: 0 | AF50: 0 | AG50: =SUMIFS($AD50:$AD51,SP_PensionPayout,"Lump sum",$F50:$F51,"<>0") -> 0 | AH50: =SUMIFS($AD50:$AD51,SP_PensionPayout,"Annuity",$F50:$F51,"<>0") -> 0 | AI50: =IF(ISBLANK(INDEX(SP_SSPBFA,1)),0,IF($H50<>INDEX(SP_SSPBFA,1),AI48,SP_AdditionalRI/INDEX(SC_EA_InflationWageIdx,EAIDX))) -> 0 | AJ50: =SUMPRODUCT(AE50:AE51, --(E50:E51<>0)) -> 0 | AK50: =SUMPRODUCT(AF50:AF51, --(F50:F51<>0))+AI50 -> 0 | AL50: 0
B51: 1976 | C51: N | E51: 2 | F51: 0 | G51: -1 | H51: 0 | I51: 0 | J51: 1 | O51: 0 | P51: 0 | Q51: 0 | R51: 0 | S51: 0 | T51: 0 | U51: 0 | V51: 0 | W51: 0 | X51: 0 | Y51: 1 | Z51: 0 | AA51: =AVERAGE(LARGE((W$6:W50+X$6:X50)*Y$6:Y50*(E$6:E50=E51), ROW(INDIRECT("A1:A35"))))/(12*Y51) -> 0 | AB51: 1 | AC51: 0 | AD51: 0 | AE51: 0 | AF51: 0 | AL51: 0
B52: 1977 | C52: N | E52: 1 | F52: 0 | G52: 1 | H52: 0 | I52: 0 | J52: 1 | O52: 0 | P52: 0 | Q52: 0 | R52: 0 | S52: 0 | T52: 0 | U52: 0 | V52: 0 | W52: 0 | X52: 0 | Y52: 1 | Z52: 0 | AA52: =AVERAGE(LARGE((W$6:W51+X$6:X51)*Y$6:Y51*(E$6:E51=E52), ROW(INDIRECT("A1:A35"))))/(12*Y52) -> 0 | AB52: 1 | AC52: 0 | AD52: 0 | AE52: 0 | AF52: 0 | AG52: =SUMIFS($AD52:$AD53,SP_PensionPayout,"Lump sum",$F52:$F53,"<>0") -> 0 | AH52: =SUMIFS($AD52:$AD53,SP_PensionPayout,"Annuity",$F52:$F53,"<>0") -> 0 | AI52: =IF(ISBLANK(INDEX(SP_SSPBFA,1)),0,IF($H52<>INDEX(SP_SSPBFA,1),AI50,SP_AdditionalRI/INDEX(SC_EA_InflationWageIdx,EAIDX))) -> 0 | AJ52: =SUMPRODUCT(AE52:AE53, --(E52:E53<>0)) -> 0 | AK52: =SUMPRODUCT(AF52:AF53, --(F52:F53<>0))+AI52 -> 0 | AL52: 0
B53: 1977 | C53: N | E53: 2 | F53: 0 | G53: -1 | H53: 0 | I53: 0 | J53: 1 | O53: 0 | P53: 0 | Q53: 0 | R53: 0 | S53: 0 | T53: 0 | U53: 0 | V53: 0 | W53: 0 | X53: 0 | Y53: 1 | Z53: 0 | AA53: =AVERAGE(LARGE((W$6:W52+X$6:X52)*Y$6:Y52*(E$6:E52=E53), ROW(INDIRECT("A1:A35"))))/(12*Y53) -> 0 | AB53: 1 | AC53: 0 | AD53: 0 | AE53: 0 | AF53: 0 | AL53: 0
B54: 1978 | C54: N | E54: 1 | F54: 0 | G54: 1 | H54: 0 | I54: 0 | J54: 1 | O54: 0 | P54: 0 | Q54: 0 | R54: 0 | S54: 0 | T54: 0 | U54: 0 | V54: 0 | W54: 0 | X54: 0 | Y54: 1 | Z54: 0 | AA54: =AVERAGE(LARGE((W$6:W53+X$6:X53)*Y$6:Y53*(E$6:E53=E54), ROW(INDIRECT("A1:A35"))))/(12*Y54) -> 0 | AB54: 1 | AC54: 0 | AD54: 0 | AE54: 0 | AF54: 0 | AG54: =SUMIFS($AD54:$AD55,SP_PensionPayout,"Lump sum",$F54:$F55,"<>0") -> 0 | AH54: =SUMIFS($AD54:$AD55,SP_PensionPayout,"Annuity",$F54:$F55,"<>0") -> 0 | AI54: =IF(ISBLANK(INDEX(SP_SSPBFA,1)),0,IF($H54<>INDEX(SP_SSPBFA,1),AI52,SP_AdditionalRI/INDEX(SC_EA_InflationWageIdx,EAIDX))) -> 0 | AJ54: =SUMPRODUCT(AE54:AE55, --(E54:E55<>0)) -> 0 | AK54: =SUMPRODUCT(AF54:AF55, --(F54:F55<>0))+AI54 -> 0 | AL54: 0
B55: 1978 | C55: N | E55: 2 | F55: 0 | G55: -1 | H55: 0 | I55: 0 | J55: 1 | O55: 0 | P55: 0 | Q55: 0 | R55: 0 | S55: 0 | T55: 0 | U55: 0 | V55: 0 | W55: 0 | X55: 0 | Y55: 1 | Z55: 0 | AA55: =AVERAGE(LARGE((W$6:W54+X$6:X54)*Y$6:Y54*(E$6:E54=E55), ROW(INDIRECT("A1:A35"))))/(12*Y55) -> 0 | AB55: 1 | AC55: 0 | AD55: 0 | AE55: 0 | AF55: 0 | AL55: 0
B56: 1979 | C56: N | E56: 1 | F56: 0 | G56: 1 | H56: 0 | I56: 0 | J56: 1 | O56: 0 | P56: 0 | Q56: 0 | R56: 0 | S56: 0 | T56: 0 | U56: 0 | V56: 0 | W56: 0 | X56: 0 | Y56: 1 | Z56: 0 | AA56: =AVERAGE(LARGE((W$6:W55+X$6:X55)*Y$6:Y55*(E$6:E55=E56), ROW(INDIRECT("A1:A35"))))/(12*Y56) -> 0 | AB56: 1 | AC56: 0 | AD56: 0 | AE56: 0 | AF56: 0 | AG56: =SUMIFS($AD56:$AD57,SP_PensionPayout,"Lump sum",$F56:$F57,"<>0") -> 0 | AH56: =SUMIFS($AD56:$AD57,SP_PensionPayout,"Annuity",$F56:$F57,"<>0") -> 0 | AI56: =IF(ISBLANK(INDEX(SP_SSPBFA,1)),0,IF($H56<>INDEX(SP_SSPBFA,1),AI54,SP_AdditionalRI/INDEX(SC_EA_InflationWageIdx,EAIDX))) -> 0 | AJ56: =SUMPRODUCT(AE56:AE57, --(E56:E57<>0)) -> 0 | AK56: =SUMPRODUCT(AF56:AF57, --(F56:F57<>0))+AI56 -> 0 | AL56: 0
B57: 1979 | C57: N | E57: 2 | F57: 0 | G57: -1 | H57: 0 | I57: 0 | J57: 1 | O57: 0 | P57: 0 | Q57: 0 | R57: 0 | S57: 0 | T57: 0 | U57: 0 | V57: 0 | W57: 0 | X57: 0 | Y57: 1 | Z57: 0 | AA57: =AVERAGE(LARGE((W$6:W56+X$6:X56)*Y$6:Y56*(E$6:E56=E57), ROW(INDIRECT("A1:A35"))))/(12*Y57) -> 0 | AB57: 1 | AC57: 0 | AD57: 0 | AE57: 0 | AF57: 0 | AL57: 0
B58: 1980 | C58: N | E58: 1 | F58: 0 | G58: 1 | H58: 0 | I58: 0 | J58: 1 | O58: 0 | P58: 0 | Q58: 0 | R58: 0 | S58: 0 | T58: 0 | U58: 0 | V58: 0 | W58: 0 | X58: 0 | Y58: 1 | Z58: 0 | AA58: =AVERAGE(LARGE((W$6:W57+X$6:X57)*Y$6:Y57*(E$6:E57=E58), ROW(INDIRECT("A1:A35"))))/(12*Y58) -> 0 | AB58: 1 | AC58: 0 | AD58: 0 | AE58: 0 | AF58: 0 | AG58: =SUMIFS($AD58:$AD59,SP_PensionPayout,"Lump sum",$F58:$F59,"<>0") -> 0 | AH58: =SUMIFS($AD58:$AD59,SP_PensionPayout,"Annuity",$F58:$F59,"<>0") -> 0 | AI58: =IF(ISBLANK(INDEX(SP_SSPBFA,1)),0,IF($H58<>INDEX(SP_SSPBFA,1),AI56,SP_AdditionalRI/INDEX(SC_EA_InflationWageIdx,EAIDX))) -> 0 | AJ58: =SUMPRODUCT(AE58:AE59, --(E58:E59<>0)) -> 0 | AK58: =SUMPRODUCT(AF58:AF59, --(F58:F59<>0))+AI58 -> 0 | AL58: 0
B59: 1980 | C59: N | E59: 2 | F59: 0 | G59: -1 | H59: 0 | I59: 0 | J59: 1 | O59: 0 | P59: 0 | Q59: 0 | R59: 0 | S59: 0 | T59: 0 | U59: 0 | V59: 0 | W59: 0 | X59: 0 | Y59: 1 | Z59: 0 | AA59: =AVERAGE(LARGE((W$6:W58+X$6:X58)*Y$6:Y58*(E$6:E58=E59), ROW(INDIRECT("A1:A35"))))/(12*Y59) -> 0 | AB59: 1 | AC59: 0 | AD59: 0 | AE59: 0 | AF59: 0 | AL59: 0
B60: 1981 | C60: N | E60: 1 | F60: 0 | G60: 1 | H60: 0 | I60: 0 | J60: 1 | O60: 0 | P60: 0 | Q60: 0 | R60: 0 | S60: 0 | T60: 0 | U60: 0 | V60: 0 | W60: 0 | X60: 0 | Y60: 1 | Z60: 0 | AA60: =AVERAGE(LARGE((W$6:W59+X$6:X59)*Y$6:Y59*(E$6:E59=E60), ROW(INDIRECT("A1:A35"))))/(12*Y60) -> 0 | AB60: 1 | AC60: 0 | AD60: 0 | AE60: 0 | AF60: 0 | AG60: =SUMIFS($AD60:$AD61,SP_PensionPayout,"Lump sum",$F60:$F61,"<>0") -> 0 | AH60: =SUMIFS($AD60:$AD61,SP_PensionPayout,"Annuity",$F60:$F61,"<>0") -> 0 | AI60: =IF(ISBLANK(INDEX(SP_SSPBFA,1)),0,IF($H60<>INDEX(SP_SSPBFA,1),AI58,SP_AdditionalRI/INDEX(SC_EA_InflationWageIdx,EAIDX))) -> 0 | AJ60: =SUMPRODUCT(AE60:AE61, --(E60:E61<>0)) -> 0 | AK60: =SUMPRODUCT(AF60:AF61, --(F60:F61<>0))+AI60 -> 0 | AL60: 0
B61: 1981 | C61: N | E61: 2 | F61: 0 | G61: -1 | H61: 0 | I61: 0 | J61: 1 | O61: 0 | P61: 0 | Q61: 0 | R61: 0 | S61: 0 | T61: 0 | U61: 0 | V61: 0 | W61: 0 | X61: 0 | Y61: 1 | Z61: 0 | AA61: =AVERAGE(LARGE((W$6:W60+X$6:X60)*Y$6:Y60*(E$6:E60=E61), ROW(INDIRECT("A1:A35"))))/(12*Y61) -> 0 | AB61: 1 | AC61: 0 | AD61: 0 | AE61: 0 | AF61: 0 | AL61: 0
B62: 1982 | C62: N | E62: 1 | F62: 0 | G62: 1 | H62: 0 | I62: 0 | J62: 1 | O62: 0 | P62: 0 | Q62: 0 | R62: 0 | S62: 0 | T62: 0 | U62: 0 | V62: 0 | W62: 0 | X62: 0 | Y62: 1 | Z62: 0 | AA62: =AVERAGE(LARGE((W$6:W61+X$6:X61)*Y$6:Y61*(E$6:E61=E62), ROW(INDIRECT("A1:A35"))))/(12*Y62) -> 0 | AB62: 1 | AC62: 0 | AD62: 0 | AE62: 0 | AF62: 0 | AG62: =SUMIFS($AD62:$AD63,SP_PensionPayout,"Lump sum",$F62:$F63,"<>0") -> 0 | AH62: =SUMIFS($AD62:$AD63,SP_PensionPayout,"Annuity",$F62:$F63,"<>0") -> 0 | AI62: =IF(ISBLANK(INDEX(SP_SSPBFA,1)),0,IF($H62<>INDEX(SP_SSPBFA,1),AI60,SP_AdditionalRI/INDEX(SC_EA_InflationWageIdx,EAIDX))) -> 0 | AJ62: =SUMPRODUCT(AE62:AE63, --(E62:E63<>0)) -> 0 | AK62: =SUMPRODUCT(AF62:AF63, --(F62:F63<>0))+AI62 -> 0 | AL62: 0
B63: 1982 | C63: N | E63: 2 | F63: 0 | G63: -1 | H63: 0 | I63: 0 | J63: 1 | O63: 0 | P63: 0 | Q63: 0 | R63: 0 | S63: 0 | T63: 0 | U63: 0 | V63: 0 | W63: 0 | X63: 0 | Y63: 1 | Z63: 0 | AA63: =AVERAGE(LARGE((W$6:W62+X$6:X62)*Y$6:Y62*(E$6:E62=E63), ROW(INDIRECT("A1:A35"))))/(12*Y63) -> 0 | AB63: 1 | AC63: 0 | AD63: 0 | AE63: 0 | AF63: 0 | AL63: 0
B64: 1983 | C64: N | E64: 1 | F64: 0 | G64: 1 | H64: 0 | I64: 0 | J64: 1 | O64: 0 | P64: 0 | Q64: 0 | R64: 0 | S64: 0 | T64: 0 | U64: 0 | V64: 0 | W64: 0 | X64: 0 | Y64: 1 | Z64: 0 | AA64: =AVERAGE(LARGE((W$6:W63+X$6:X63)*Y$6:Y63*(E$6:E63=E64), ROW(INDIRECT("A1:A35"))))/(12*Y64) -> 0 | AB64: 1 | AC64: 0 | AD64: 0 | AE64: 0 | AF64: 0 | AG64: =SUMIFS($AD64:$AD65,SP_PensionPayout,"Lump sum",$F64:$F65,"<>0") -> 0 | AH64: =SUMIFS($AD64:$AD65,SP_PensionPayout,"Annuity",$F64:$F65,"<>0") -> 0 | AI64: =IF(ISBLANK(INDEX(SP_SSPBFA,1)),0,IF($H64<>INDEX(SP_SSPBFA,1),AI62,SP_AdditionalRI/INDEX(SC_EA_InflationWageIdx,EAIDX))) -> 0 | AJ64: =SUMPRODUCT(AE64:AE65, --(E64:E65<>0)) -> 0 | AK64: =SUMPRODUCT(AF64:AF65, --(F64:F65<>0))+AI64 -> 0 | AL64: 0
B65: 1983 | C65: N | E65: 2 | F65: 0 | G65: -1 | H65: 0 | I65: 0 | J65: 1 | O65: 0 | P65: 0 | Q65: 0 | R65: 0 | S65: 0 | T65: 0 | U65: 0 | V65: 0 | W65: 0 | X65: 0 | Y65: 1 | Z65: 0 | AA65: =AVERAGE(LARGE((W$6:W64+X$6:X64)*Y$6:Y64*(E$6:E64=E65), ROW(INDIRECT("A1:A35"))))/(12*Y65) -> 0 | AB65: 1 | AC65: 0 | AD65: 0 | AE65: 0 | AF65: 0 | AL65: 0
B66: 1984 | C66: N | E66: 1 | F66: 0 | G66: 1 | H66: 0 | I66: 0 | J66: 1 | O66: 0 | P66: 0 | Q66: 0 | R66: 0 | S66: 0 | T66: 0 | U66: 0 | V66: 0 | W66: 0 | X66: 0 | Y66: 1 | Z66: 0 | AA66: =AVERAGE(LARGE((W$6:W65+X$6:X65)*Y$6:Y65*(E$6:E65=E66), ROW(INDIRECT("A1:A35"))))/(12*Y66) -> 0 | AB66: 1 | AC66: 0 | AD66: 0 | AE66: 0 | AF66: 0 | AG66: =SUMIFS($AD66:$AD67,SP_PensionPayout,"Lump sum",$F66:$F67,"<>0") -> 0 | AH66: =SUMIFS($AD66:$AD67,SP_PensionPayout,"Annuity",$F66:$F67,"<>0") -> 0 | AI66: =IF(ISBLANK(INDEX(SP_SSPBFA,1)),0,IF($H66<>INDEX(SP_SSPBFA,1),AI64,SP_AdditionalRI/INDEX(SC_EA_InflationWageIdx,EAIDX))) -> 0 | AJ66: =SUMPRODUCT(AE66:AE67, --(E66:E67<>0)) -> 0 | AK66: =SUMPRODUCT(AF66:AF67, --(F66:F67<>0))+AI66 -> 0 | AL66: 0
B67: 1984 | C67: N | E67: 2 | F67: 0 | G67: -1 | H67: 0 | I67: 0 | J67: 1 | O67: 0 | P67: 0 | Q67: 0 | R67: 0 | S67: 0 | T67: 0 | U67: 0 | V67: 0 | W67: 0 | X67: 0 | Y67: 1 | Z67: 0 | AA67: =AVERAGE(LARGE((W$6:W66+X$6:X66)*Y$6:Y66*(E$6:E66=E67), ROW(INDIRECT("A1:A35"))))/(12*Y67) -> 0 | AB67: 1 | AC67: 0 | AD67: 0 | AE67: 0 | AF67: 0 | AL67: 0
B68: 1985 | C68: N | D68: =INDEX(SP_Initials,E68) ->  | E68: 1 | F68: =INDEX(SC_TaxIndex,$E68) -> 0 | G68: 1 | H68: =IF(INDEX(SC_ShowRetireatee,$E68),IF($B68<YEAR(INDEX(SP_BirthDate,$E68)),0,IF($B68>(YEAR(INDEX(SP_BirthDate,$E68))+INDEX(SP_LifeExp,$E68)),0,$B68-YEAR(INDEX(SP_BirthDate,$E68)))),0) -> 0 | I68: =MAX($H68+1-INDEX(SP_StartWorkAge,$E68),0) -> 0 | J68: =IF($B68<SC_TargetRY,1,IF($B68=SC_TargetRY,-(1-YEARFRAC(SP_TargetRD,DATE($B68+1,1,1))),0)) -> 1 | O68: 0 | P68: 0 | Q68: 0 | R68: 0 | S68: 0 | T68: 0 | U68: 0 | V68: 0 | W68: 0 | X68: 0 | Y68: 1 | Z68: 0 | AA68: =AVERAGE(LARGE((W$6:W67+X$6:X67)*Y$6:Y67*(E$6:E67=E68), ROW(INDIRECT("A1:A35"))))/(12*Y68) -> 0 | AB68: 1 | AC68: 0 | AD68: 0 | AE68: 0 | AF68: 0 | AG68: =SUMIFS($AD68:$AD69,SP_PensionPayout,"Lump sum",$F68:$F69,"<>0") -> 0 | AH68: =SUMIFS($AD68:$AD69,SP_PensionPayout,"Annuity",$F68:$F69,"<>0") -> 0 | AI68: =IF(ISBLANK(INDEX(SP_SSPBFA,1)),0,IF($H68<>INDEX(SP_SSPBFA,1),AI66,SP_AdditionalRI/INDEX(SC_EA_InflationWageIdx,EAIDX))) -> 0 | AJ68: =SUMPRODUCT(AE68:AE69, --(E68:E69<>0)) -> 0 | AK68: =SUMPRODUCT(AF68:AF69, --(F68:F69<>0))+AI68 -> 0 | AL68: 0
B69: 1985 | C69: N | E69: =MOD(ROW(),2)+1 -> 2 | F69: 0 | G69: -1 | H69: 0 | I69: 0 | J69: 1 | O69: 0 | P69: 0 | Q69: 0 | R69: 0 | S69: 0 | T69: 0 | U69: 0 | V69: 0 | W69: 0 | X69: 0 | Y69: 1 | Z69: 0 | AA69: =AVERAGE(LARGE((W$6:W68+X$6:X68)*Y$6:Y68*(E$6:E68=E69), ROW(INDIRECT("A1:A35"))))/(12*Y69) -> 0 | AB69: 1 | AC69: 0 | AD69: 0 | AE69: 0 | AF69: 0 | AL69: 0
B70: 1986 | C70: N | E70: 1 | F70: 0 | G70: =MOD($E70,2)-($E70-1) -> 1 | H70: 0 | I70: 0 | J70: 1 | O70: =IF(IF(COLUMN()=COLUMN(K70),TRUE,ISBLANK(K70)), IF(OR($I70=0,$J70=0),0,IF($B70=SP_CurrentYear, 0, IF($B70>SP_CurrentYear, $O68*(1+INDEX(SP_EA_InflationWageRate, EAIDX-1)+INDEX(SP_IncomeEmployerAdj, $E70)), $O72/(1+INDEX(SP_EA_InflationWageRate, EAIDX)+INDEX(SP_IncomeEmployerAdj, $E70))))), K70) -> 0 | P70: =IF(IF(COLUMN()=COLUMN(L70),TRUE,ISBLANK(L70)), IF(OR($I70=0,$J70=0),0,IF($B70=SP_CurrentYear, 0, IF($B70>SP_CurrentYear, $P68*(1+INDEX(SP_EA_InflationWageRate, EAIDX-1)+INDEX(SP_IncomeSEAdj, $E70)), 0))), L70) -> 0 | Q70: =IF(IF(COLUMN()=COLUMN(M70),TRUE,ISBLANK(M70)), IF($B70=SP_CurrentYear, 0, IF($B70>SP_CurrentYear, $Q68*(1+INDEX(SP_EA_InflationWageRate, EAIDX-1)+INDEX(SP_IncomePassiveAdj, $E70)), 0)), M70) -> 0 | R70: =IF(IF(COLUMN()=COLUMN(N70),TRUE,ISBLANK(N70)), IF($B70=SP_CurrentYear,(-INDEX(SC_ExpensesLivingPF,$E70,1)*ABS($J70)-INDEX(SC_ExpensesLivingPF,$E70,2)*(1-ABS($J70)))/INDEX(SC_EA_InflationCPIdx, EAIDX)*12, IF($B70>SP_CurrentYear, $R68*(1+INDEX(SP_EA_InflationCPRate, EAIDX-1)), IF($O70=0, 0,$R72/(1+INDEX(SP_EA_InflationCPRate, EAIDX)))))*ABS($J70), N70) -> 0 | S70: =O70*ABS($J70) -> 0 | T70: =P70*ABS($J70) -> 0 | U70: =MAX(S70-ABS($R70)*ABS($J70), 0) -> 0 | V70: =MAX(T70-MAX(ABS($R70)*ABS($J70)-O70, 0),0) -> 0 | W70: =IF($H70=0, 0, MAX(MIN(S70-ABS($R70)*ABS($J70), INDEX(SC_EA_SSWageBase, EAIDX)), 0)) -> 0 | X70: =IF($H70=0, 0, MIN(MAX(T70-MAX(ABS($R70)*ABS($J70)-O70, 0),0), INDEX(SC_EA_SSWageBase, EAIDX)-W70)) -> 0 | Y70: =IF($H70=0,1,IF($B70>=INDEX(SC_SSBaseYear,$E70),1,Y72*(INDEX(SP_EA_InflationWageRate, EAIDX+1)+1))) -> 1 | Z70: =IF($H70=0, 0, ROUNDDOWN(MIN((W70+X70)*Y70,LT_SSMaxCredit*Y70)/(LT_SSOneCredit*Y70), 0)) -> 0 | AA70: =AVERAGE(LARGE((W$6:W69+X$6:X69)*Y$6:Y69*(E$6:E69=E70), ROW(INDIRECT("A1:A35"))))/(12*Y70) -> 0 | AB70: =IF($H70>0, IF($B70<=INDEX(SC_SSBaseYear,$E70)+2,Y70,1/(1/AB68*(INDEX(SC_EA_SSCOLA, EAIDX-1)+1))), 1) -> 1 | AC70: =IF(INDEX(SP_PensionSWD,$E70)="",0,IF(YEAR(INDEX(SP_PensionSWD,$E70))>$B70,0,YEARFRAC(INDEX(SP_PensionSWD,$E70), MIN(DATE($B70+1,1,1),SP_TargetRD)))) -> 0 | AD70: =IF(AND(AC70>0, $B70=SC_TargetRY, INDEX(SP_PensionFAE,$E70)>0),SUMIF(OFFSET(E70,-MIN(INDEX(SP_PensionFAE,$E70),AC70)*2,0,MIN(INDEX(SP_PensionFAE,$E70),AC70)*2),$E70,OFFSET(O70,-MIN(INDEX(SP_PensionFAE,$E70),AC70)*2,0,MIN(INDEX(SP_PensionFAE,$E70),AC70)*2))/MIN(INDEX(SP_PensionFAE,$E70),AC70)*INDEX(SP_PensionPCT,$E70)*AC70,0) -> 0 | AE70: =$S70+$T70 -> 0 | AF70: =$Q70 -> 0 | AG70: =SUMIFS($AD70:$AD71,SP_PensionPayout,"Lump sum",$F70:$F71,"<>0") -> 0 | AH70: =SUMIFS($AD70:$AD71,SP_PensionPayout,"Annuity",$F70:$F71,"<>0") -> 0 | AI70: =IF(ISBLANK(INDEX(SP_SSPBFA,1)),0,IF($H70<>INDEX(SP_SSPBFA,1),AI68,SP_AdditionalRI/INDEX(SC_EA_InflationWageIdx,EAIDX))) -> 0 | AJ70: =SUMPRODUCT(AE70:AE71, --(E70:E71<>0)) -> 0 | AK70: =SUMPRODUCT(AF70:AF71, --(F70:F71<>0))+AI70 -> 0 | AL70: =IFERROR(IF(OR(NOT(ISNUMBER($O70)),$O70<0,NOT(ISNUMBER($P70)),$P70<0,NOT(ISNUMBER($Q70)),$Q70<0,NOT(ISNUMBER($R70)),$R70<0),202,0),203) -> 0 | AM70: =IFERROR(VLOOKUP(AL70,IV_CodeTable,2,FALSE),"") -> 
B71: =B69+1 -> 1986 | C71: N | E71: 2 | F71: 0 | G71: -1 | H71: 0 | I71: 0 | J71: 1 | O71: 0 | P71: 0 | Q71: 0 | R71: 0 | S71: 0 | T71: 0 | U71: 0 | V71: 0 | W71: 0 | X71: 0 | Y71: 1 | Z71: 0 | AA71: =AVERAGE(LARGE((W$6:W70+X$6:X70)*Y$6:Y70*(E$6:E70=E71), ROW(INDIRECT("A1:A35"))))/(12*Y71) -> 0 | AB71: 1 | AC71: 0 | AD71: 0 | AE71: 0 | AF71: 0 | AL71: 0
B72: 1987 | C72: N | E72: 1 | F72: 0 | G72: 1 | H72: 0 | I72: 0 | J72: 1 | O72: 0 | P72: 0 | Q72: 0 | R72: 0 | S72: 0 | T72: 0 | U72: 0 | V72: 0 | W72: 0 | X72: 0 | Y72: 1 | Z72: 0 | AA72: =AVERAGE(LARGE((W$6:W71+X$6:X71)*Y$6:Y71*(E$6:E71=E72), ROW(INDIRECT("A1:A35"))))/(12*Y72) -> 0 | AB72: 1 | AC72: 0 | AD72: 0 | AE72: 0 | AF72: 0 | AG72: =SUMIFS($AD72:$AD73,SP_PensionPayout,"Lump sum",$F72:$F73,"<>0") -> 0 | AH72: =SUMIFS($AD72:$AD73,SP_PensionPayout,"Annuity",$F72:$F73,"<>0") -> 0 | AI72: =IF(ISBLANK(INDEX(SP_SSPBFA,1)),0,IF($H72<>INDEX(SP_SSPBFA,1),AI70,SP_AdditionalRI/INDEX(SC_EA_InflationWageIdx,EAIDX))) -> 0 | AJ72: =SUMPRODUCT(AE72:AE73, --(E72:E73<>0)) -> 0 | AK72: =SUMPRODUCT(AF72:AF73, --(F72:F73<>0))+AI72 -> 0 | AL72: 0
B73: 1987 | C73: N | E73: 2 | F73: 0 | G73: -1 | H73: 0 | I73: 0 | J73: 1 | O73: 0 | P73: 0 | Q73: 0 | R73: 0 | S73: 0 | T73: 0 | U73: 0 | V73: 0 | W73: 0 | X73: 0 | Y73: 1 | Z73: 0 | AA73: =AVERAGE(LARGE((W$6:W72+X$6:X72)*Y$6:Y72*(E$6:E72=E73), ROW(INDIRECT("A1:A35"))))/(12*Y73) -> 0 | AB73: 1 | AC73: 0 | AD73: 0 | AE73: 0 | AF73: 0 | AL73: 0
B74: 1988 | C74: N | E74: 1 | F74: 0 | G74: 1 | H74: 0 | I74: 0 | J74: 1 | O74: 0 | P74: 0 | Q74: 0 | R74: 0 | S74: 0 | T74: 0 | U74: 0 | V74: 0 | W74: 0 | X74: 0 | Y74: 1 | Z74: 0 | AA74: =AVERAGE(LARGE((W$6:W73+X$6:X73)*Y$6:Y73*(E$6:E73=E74), ROW(INDIRECT("A1:A35"))))/(12*Y74) -> 0 | AB74: 1 | AC74: 0 | AD74: 0 | AE74: 0 | AF74: 0 | AG74: =SUMIFS($AD74:$AD75,SP_PensionPayout,"Lump sum",$F74:$F75,"<>0") -> 0 | AH74: =SUMIFS($AD74:$AD75,SP_PensionPayout,"Annuity",$F74:$F75,"<>0") -> 0 | AI74: =IF(ISBLANK(INDEX(SP_SSPBFA,1)),0,IF($H74<>INDEX(SP_SSPBFA,1),AI72,SP_AdditionalRI/INDEX(SC_EA_InflationWageIdx,EAIDX))) -> 0 | AJ74: =SUMPRODUCT(AE74:AE75, --(E74:E75<>0)) -> 0 | AK74: =SUMPRODUCT(AF74:AF75, --(F74:F75<>0))+AI74 -> 0 | AL74: 0
B75: 1988 | C75: N | E75: 2 | F75: 0 | G75: -1 | H75: 0 | I75: 0 | J75: 1 | O75: 0 | P75: 0 | Q75: 0 | R75: 0 | S75: 0 | T75: 0 | U75: 0 | V75: 0 | W75: 0 | X75: 0 | Y75: 1 | Z75: 0 | AA75: =AVERAGE(LARGE((W$6:W74+X$6:X74)*Y$6:Y74*(E$6:E74=E75), ROW(INDIRECT("A1:A35"))))/(12*Y75) -> 0 | AB75: 1 | AC75: 0 | AD75: 0 | AE75: 0 | AF75: 0 | AL75: 0
B76: 1989 | C76: N | E76: 1 | F76: 0 | G76: 1 | H76: 0 | I76: 0 | J76: 1 | O76: 0 | P76: 0 | Q76: 0 | R76: 0 | S76: 0 | T76: 0 | U76: 0 | V76: 0 | W76: 0 | X76: 0 | Y76: 1 | Z76: 0 | AA76: =AVERAGE(LARGE((W$6:W75+X$6:X75)*Y$6:Y75*(E$6:E75=E76), ROW(INDIRECT("A1:A35"))))/(12*Y76) -> 0 | AB76: 1 | AC76: 0 | AD76: 0 | AE76: 0 | AF76: 0 | AG76: =SUMIFS($AD76:$AD77,SP_PensionPayout,"Lump sum",$F76:$F77,"<>0") -> 0 | AH76: =SUMIFS($AD76:$AD77,SP_PensionPayout,"Annuity",$F76:$F77,"<>0") -> 0 | AI76: =IF(ISBLANK(INDEX(SP_SSPBFA,1)),0,IF($H76<>INDEX(SP_SSPBFA,1),AI74,SP_AdditionalRI/INDEX(SC_EA_InflationWageIdx,EAIDX))) -> 0 | AJ76: =SUMPRODUCT(AE76:AE77, --(E76:E77<>0)) -> 0 | AK76: =SUMPRODUCT(AF76:AF77, --(F76:F77<>0))+AI76 -> 0 | AL76: 0
B77: 1989 | C77: N | E77: 2 | F77: 0 | G77: -1 | H77: 0 | I77: 0 | J77: 1 | O77: 0 | P77: 0 | Q77: 0 | R77: 0 | S77: 0 | T77: 0 | U77: 0 | V77: 0 | W77: 0 | X77: 0 | Y77: 1 | Z77: 0 | AA77: =AVERAGE(LARGE((W$6:W76+X$6:X76)*Y$6:Y76*(E$6:E76=E77), ROW(INDIRECT("A1:A35"))))/(12*Y77) -> 0 | AB77: 1 | AC77: 0 | AD77: 0 | AE77: 0 | AF77: 0 | AL77: 0
B78: 1990 | C78: N | E78: 1 | F78: 0 | G78: 1 | H78: 0 | I78: 0 | J78: 1 | O78: 0 | P78: 0 | Q78: 0 | R78: 0 | S78: 0 | T78: 0 | U78: 0 | V78: 0 | W78: 0 | X78: 0 | Y78: 1 | Z78: 0 | AA78: =AVERAGE(LARGE((W$6:W77+X$6:X77)*Y$6:Y77*(E$6:E77=E78), ROW(INDIRECT("A1:A35"))))/(12*Y78) -> 0 | AB78: 1 | AC78: 0 | AD78: 0 | AE78: 0 | AF78: 0 | AG78: =SUMIFS($AD78:$AD79,SP_PensionPayout,"Lump sum",$F78:$F79,"<>0") -> 0 | AH78: =SUMIFS($AD78:$AD79,SP_PensionPayout,"Annuity",$F78:$F79,"<>0") -> 0 | AI78: =IF(ISBLANK(INDEX(SP_SSPBFA,1)),0,IF($H78<>INDEX(SP_SSPBFA,1),AI76,SP_AdditionalRI/INDEX(SC_EA_InflationWageIdx,EAIDX))) -> 0 | AJ78: =SUMPRODUCT(AE78:AE79, --(E78:E79<>0)) -> 0 | AK78: =SUMPRODUCT(AF78:AF79, --(F78:F79<>0))+AI78 -> 0 | AL78: 0
B79: 1990 | C79: N | E79: 2 | F79: 0 | G79: -1 | H79: 0 | I79: 0 | J79: 1 | O79: 0 | P79: 0 | Q79: 0 | R79: 0 | S79: 0 | T79: 0 | U79: 0 | V79: 0 | W79: 0 | X79: 0 | Y79: 1 | Z79: 0 | AA79: =AVERAGE(LARGE((W$6:W78+X$6:X78)*Y$6:Y78*(E$6:E78=E79), ROW(INDIRECT("A1:A35"))))/(12*Y79) -> 0 | AB79: 1 | AC79: 0 | AD79: 0 | AE79: 0 | AF79: 0 | AL79: 0
B80: 1991 | C80: N | E80: 1 | F80: 0 | G80: 1 | H80: 0 | I80: 0 | J80: 1 | O80: 0 | P80: 0 | Q80: 0 | R80: 0 | S80: 0 | T80: 0 | U80: 0 | V80: 0 | W80: 0 | X80: 0 | Y80: 1 | Z80: 0 | AA80: =AVERAGE(LARGE((W$6:W79+X$6:X79)*Y$6:Y79*(E$6:E79=E80), ROW(INDIRECT("A1:A35"))))/(12*Y80) -> 0 | AB80: 1 | AC80: 0 | AD80: 0 | AE80: 0 | AF80: 0 | AG80: =SUMIFS($AD80:$AD81,SP_PensionPayout,"Lump sum",$F80:$F81,"<>0") -> 0 | AH80: =SUMIFS($AD80:$AD81,SP_PensionPayout,"Annuity",$F80:$F81,"<>0") -> 0 | AI80: =IF(ISBLANK(INDEX(SP_SSPBFA,1)),0,IF($H80<>INDEX(SP_SSPBFA,1),AI78,SP_AdditionalRI/INDEX(SC_EA_InflationWageIdx,EAIDX))) -> 0 | AJ80: =SUMPRODUCT(AE80:AE81, --(E80:E81<>0)) -> 0 | AK80: =SUMPRODUCT(AF80:AF81, --(F80:F81<>0))+AI80 -> 0 | AL80: 0
B81: 1991 | C81: N | E81: 2 | F81: 0 | G81: -1 | H81: 0 | I81: 0 | J81: 1 | O81: 0 | P81: 0 | Q81: 0 | R81: 0 | S81: 0 | T81: 0 | U81: 0 | V81: 0 | W81: 0 | X81: 0 | Y81: 1 | Z81: 0 | AA81: =AVERAGE(LARGE((W$6:W80+X$6:X80)*Y$6:Y80*(E$6:E80=E81), ROW(INDIRECT("A1:A35"))))/(12*Y81) -> 0 | AB81: 1 | AC81: 0 | AD81: 0 | AE81: 0 | AF81: 0 | AL81: 0
B82: 1992 | C82: N | E82: 1 | F82: 0 | G82: 1 | H82: 0 | I82: 0 | J82: 1 | O82: 0 | P82: 0 | Q82: 0 | R82: 0 | S82: 0 | T82: 0 | U82: 0 | V82: 0 | W82: 0 | X82: 0 | Y82: 1 | Z82: 0 | AA82: =AVERAGE(LARGE((W$6:W81+X$6:X81)*Y$6:Y81*(E$6:E81=E82), ROW(INDIRECT("A1:A35"))))/(12*Y82) -> 0 | AB82: 1 | AC82: 0 | AD82: 0 | AE82: 0 | AF82: 0 | AG82: =SUMIFS($AD82:$AD83,SP_PensionPayout,"Lump sum",$F82:$F83,"<>0") -> 0 | AH82: =SUMIFS($AD82:$AD83,SP_PensionPayout,"Annuity",$F82:$F83,"<>0") -> 0 | AI82: =IF(ISBLANK(INDEX(SP_SSPBFA,1)),0,IF($H82<>INDEX(SP_SSPBFA,1),AI80,SP_AdditionalRI/INDEX(SC_EA_InflationWageIdx,EAIDX))) -> 0 | AJ82: =SUMPRODUCT(AE82:AE83, --(E82:E83<>0)) -> 0 | AK82: =SUMPRODUCT(AF82:AF83, --(F82:F83<>0))+AI82 -> 0 | AL82: 0
B83: 1992 | C83: N | E83: 2 | F83: 0 | G83: -1 | H83: 0 | I83: 0 | J83: 1 | O83: 0 | P83: 0 | Q83: 0 | R83: 0 | S83: 0 | T83: 0 | U83: 0 | V83: 0 | W83: 0 | X83: 0 | Y83: 1 | Z83: 0 | AA83: =AVERAGE(LARGE((W$6:W82+X$6:X82)*Y$6:Y82*(E$6:E82=E83), ROW(INDIRECT("A1:A35"))))/(12*Y83) -> 0 | AB83: 1 | AC83: 0 | AD83: 0 | AE83: 0 | AF83: 0 | AL83: 0
B84: 1993 | C84: N | E84: 1 | F84: 0 | G84: 1 | H84: 0 | I84: 0 | J84: 1 | O84: 0 | P84: 0 | Q84: 0 | R84: 0 | S84: 0 | T84: 0 | U84: 0 | V84: 0 | W84: 0 | X84: 0 | Y84: 1 | Z84: 0 | AA84: =AVERAGE(LARGE((W$6:W83+X$6:X83)*Y$6:Y83*(E$6:E83=E84), ROW(INDIRECT("A1:A35"))))/(12*Y84) -> 0 | AB84: 1 | AC84: 0 | AD84: 0 | AE84: 0 | AF84: 0 | AG84: =SUMIFS($AD84:$AD85,SP_PensionPayout,"Lump sum",$F84:$F85,"<>0") -> 0 | AH84: =SUMIFS($AD84:$AD85,SP_PensionPayout,"Annuity",$F84:$F85,"<>0") -> 0 | AI84: =IF(ISBLANK(INDEX(SP_SSPBFA,1)),0,IF($H84<>INDEX(SP_SSPBFA,1),AI82,SP_AdditionalRI/INDEX(SC_EA_InflationWageIdx,EAIDX))) -> 0 | AJ84: =SUMPRODUCT(AE84:AE85, --(E84:E85<>0)) -> 0 | AK84: =SUMPRODUCT(AF84:AF85, --(F84:F85<>0))+AI84 -> 0 | AL84: 0
B85: 1993 | C85: N | E85: 2 | F85: 0 | G85: -1 | H85: 0 | I85: 0 | J85: 1 | O85: 0 | P85: 0 | Q85: 0 | R85: 0 | S85: 0 | T85: 0 | U85: 0 | V85: 0 | W85: 0 | X85: 0 | Y85: 1 | Z85: 0 | AA85: =AVERAGE(LARGE((W$6:W84+X$6:X84)*Y$6:Y84*(E$6:E84=E85), ROW(INDIRECT("A1:A35"))))/(12*Y85) -> 0 | AB85: 1 | AC85: 0 | AD85: 0 | AE85: 0 | AF85: 0 | AL85: 0
B86: 1994 | C86: N | E86: 1 | F86: 0 | G86: 1 | H86: 0 | I86: 0 | J86: 1 | O86: 0 | P86: 0 | Q86: 0 | R86: 0 | S86: 0 | T86: 0 | U86: 0 | V86: 0 | W86: 0 | X86: 0 | Y86: 1 | Z86: 0 | AA86: =AVERAGE(LARGE((W$6:W85+X$6:X85)*Y$6:Y85*(E$6:E85=E86), ROW(INDIRECT("A1:A35"))))/(12*Y86) -> 0 | AB86: 1 | AC86: 0 | AD86: 0 | AE86: 0 | AF86: 0 | AG86: =SUMIFS($AD86:$AD87,SP_PensionPayout,"Lump sum",$F86:$F87,"<>0") -> 0 | AH86: =SUMIFS($AD86:$AD87,SP_PensionPayout,"Annuity",$F86:$F87,"<>0") -> 0 | AI86: =IF(ISBLANK(INDEX(SP_SSPBFA,1)),0,IF($H86<>INDEX(SP_SSPBFA,1),AI84,SP_AdditionalRI/INDEX(SC_EA_InflationWageIdx,EAIDX))) -> 0 | AJ86: =SUMPRODUCT(AE86:AE87, --(E86:E87<>0)) -> 0 | AK86: =SUMPRODUCT(AF86:AF87, --(F86:F87<>0))+AI86 -> 0 | AL86: 0
B87: 1994 | C87: N | E87: 2 | F87: 0 | G87: -1 | H87: 0 | I87: 0 | J87: 1 | O87: 0 | P87: 0 | Q87: 0 | R87: 0 | S87: 0 | T87: 0 | U87: 0 | V87: 0 | W87: 0 | X87: 0 | Y87: 1 | Z87: 0 | AA87: =AVERAGE(LARGE((W$6:W86+X$6:X86)*Y$6:Y86*(E$6:E86=E87), ROW(INDIRECT("A1:A35"))))/(12*Y87) -> 0 | AB87: 1 | AC87: 0 | AD87: 0 | AE87: 0 | AF87: 0 | AL87: 0
B88: 1995 | C88: N | E88: 1 | F88: 0 | G88: 1 | H88: 0 | I88: 0 | J88: 1 | O88: 0 | P88: 0 | Q88: 0 | R88: 0 | S88: 0 | T88: 0 | U88: 0 | V88: 0 | W88: 0 | X88: 0 | Y88: 1 | Z88: 0 | AA88: =AVERAGE(LARGE((W$6:W87+X$6:X87)*Y$6:Y87*(E$6:E87=E88), ROW(INDIRECT("A1:A35"))))/(12*Y88) -> 0 | AB88: 1 | AC88: 0 | AD88: 0 | AE88: 0 | AF88: 0 | AG88: =SUMIFS($AD88:$AD89,SP_PensionPayout,"Lump sum",$F88:$F89,"<>0") -> 0 | AH88: =SUMIFS($AD88:$AD89,SP_PensionPayout,"Annuity",$F88:$F89,"<>0") -> 0 | AI88: =IF(ISBLANK(INDEX(SP_SSPBFA,1)),0,IF($H88<>INDEX(SP_SSPBFA,1),AI86,SP_AdditionalRI/INDEX(SC_EA_InflationWageIdx,EAIDX))) -> 0 | AJ88: =SUMPRODUCT(AE88:AE89, --(E88:E89<>0)) -> 0 | AK88: =SUMPRODUCT(AF88:AF89, --(F88:F89<>0))+AI88 -> 0 | AL88: 0
B89: 1995 | C89: N | E89: 2 | F89: 0 | G89: -1 | H89: 0 | I89: 0 | J89: 1 | O89: 0 | P89: 0 | Q89: 0 | R89: 0 | S89: 0 | T89: 0 | U89: 0 | V89: 0 | W89: 0 | X89: 0 | Y89: 1 | Z89: 0 | AA89: =AVERAGE(LARGE((W$6:W88+X$6:X88)*Y$6:Y88*(E$6:E88=E89), ROW(INDIRECT("A1:A35"))))/(12*Y89) -> 0 | AB89: 1 | AC89: 0 | AD89: 0 | AE89: 0 | AF89: 0 | AL89: 0
B90: 1996 | C90: N | E90: 1 | F90: 0 | G90: 1 | H90: 0 | I90: 0 | J90: 1 | O90: 0 | P90: 0 | Q90: 0 | R90: 0 | S90: 0 | T90: 0 | U90: 0 | V90: 0 | W90: 0 | X90: 0 | Y90: 1 | Z90: 0 | AA90: =AVERAGE(LARGE((W$6:W89+X$6:X89)*Y$6:Y89*(E$6:E89=E90), ROW(INDIRECT("A1:A35"))))/(12*Y90) -> 0 | AB90: 1 | AC90: 0 | AD90: 0 | AE90: 0 | AF90: 0 | AG90: =SUMIFS($AD90:$AD91,SP_PensionPayout,"Lump sum",$F90:$F91,"<>0") -> 0 | AH90: =SUMIFS($AD90:$AD91,SP_PensionPayout,"Annuity",$F90:$F91,"<>0") -> 0 | AI90: =IF(ISBLANK(INDEX(SP_SSPBFA,1)),0,IF($H90<>INDEX(SP_SSPBFA,1),AI88,SP_AdditionalRI/INDEX(SC_EA_InflationWageIdx,EAIDX))) -> 0 | AJ90: =SUMPRODUCT(AE90:AE91, --(E90:E91<>0)) -> 0 | AK90: =SUMPRODUCT(AF90:AF91, --(F90:F91<>0))+AI90 -> 0 | AL90: 0
B91: 1996 | C91: N | E91: 2 | F91: 0 | G91: -1 | H91: 0 | I91: 0 | J91: 1 | O91: 0 | P91: 0 | Q91: 0 | R91: 0 | S91: 0 | T91: 0 | U91: 0 | V91: 0 | W91: 0 | X91: 0 | Y91: 1 | Z91: 0 | AA91: =AVERAGE(LARGE((W$6:W90+X$6:X90)*Y$6:Y90*(E$6:E90=E91), ROW(INDIRECT("A1:A35"))))/(12*Y91) -> 0 | AB91: 1 | AC91: 0 | AD91: 0 | AE91: 0 | AF91: 0 | AL91: 0
B92: 1997 | C92: N | E92: 1 | F92: 0 | G92: 1 | H92: 0 | I92: 0 | J92: 1 | O92: 0 | P92: 0 | Q92: 0 | R92: 0 | S92: 0 | T92: 0 | U92: 0 | V92: 0 | W92: 0 | X92: 0 | Y92: 1 | Z92: 0 | AA92: =AVERAGE(LARGE((W$6:W91+X$6:X91)*Y$6:Y91*(E$6:E91=E92), ROW(INDIRECT("A1:A35"))))/(12*Y92) -> 0 | AB92: 1 | AC92: 0 | AD92: 0 | AE92: 0 | AF92: 0 | AG92: =SUMIFS($AD92:$AD93,SP_PensionPayout,"Lump sum",$F92:$F93,"<>0") -> 0 | AH92: =SUMIFS($AD92:$AD93,SP_PensionPayout,"Annuity",$F92:$F93,"<>0") -> 0 | AI92: =IF(ISBLANK(INDEX(SP_SSPBFA,1)),0,IF($H92<>INDEX(SP_SSPBFA,1),AI90,SP_AdditionalRI/INDEX(SC_EA_InflationWageIdx,EAIDX))) -> 0 | AJ92: =SUMPRODUCT(AE92:AE93, --(E92:E93<>0)) -> 0 | AK92: =SUMPRODUCT(AF92:AF93, --(F92:F93<>0))+AI92 -> 0 | AL92: 0
B93: 1997 | C93: N | E93: 2 | F93: 0 | G93: -1 | H93: 0 | I93: 0 | J93: 1 | O93: 0 | P93: 0 | Q93: 0 | R93: 0 | S93: 0 | T93: 0 | U93: 0 | V93: 0 | W93: 0 | X93: 0 | Y93: 1 | Z93: 0 | AA93: =AVERAGE(LARGE((W$6:W92+X$6:X92)*Y$6:Y92*(E$6:E92=E93), ROW(INDIRECT("A1:A35"))))/(12*Y93) -> 0 | AB93: 1 | AC93: 0 | AD93: 0 | AE93: 0 | AF93: 0 | AL93: 0
B94: 1998 | C94: N | E94: 1 | F94: 0 | G94: 1 | H94: 0 | I94: 0 | J94: 1 | O94: 0 | P94: 0 | Q94: 0 | R94: 0 | S94: 0 | T94: 0 | U94: 0 | V94: 0 | W94: 0 | X94: 0 | Y94: 1 | Z94: 0 | AA94: =AVERAGE(LARGE((W$6:W93+X$6:X93)*Y$6:Y93*(E$6:E93=E94), ROW(INDIRECT("A1:A35"))))/(12*Y94) -> 0 | AB94: 1 | AC94: 0 | AD94: 0 | AE94: 0 | AF94: 0 | AG94: =SUMIFS($AD94:$AD95,SP_PensionPayout,"Lump sum",$F94:$F95,"<>0") -> 0 | AH94: =SUMIFS($AD94:$AD95,SP_PensionPayout,"Annuity",$F94:$F95,"<>0") -> 0 | AI94: =IF(ISBLANK(INDEX(SP_SSPBFA,1)),0,IF($H94<>INDEX(SP_SSPBFA,1),AI92,SP_AdditionalRI/INDEX(SC_EA_InflationWageIdx,EAIDX))) -> 0 | AJ94: =SUMPRODUCT(AE94:AE95, --(E94:E95<>0)) -> 0 | AK94: =SUMPRODUCT(AF94:AF95, --(F94:F95<>0))+AI94 -> 0 | AL94: 0
B95: 1998 | C95: N | E95: 2 | F95: 0 | G95: -1 | H95: 0 | I95: 0 | J95: 1 | O95: 0 | P95: 0 | Q95: 0 | R95: 0 | S95: 0 | T95: 0 | U95: 0 | V95: 0 | W95: 0 | X95: 0 | Y95: 1 | Z95: 0 | AA95: =AVERAGE(LARGE((W$6:W94+X$6:X94)*Y$6:Y94*(E$6:E94=E95), ROW(INDIRECT("A1:A35"))))/(12*Y95) -> 0 | AB95: 1 | AC95: 0 | AD95: 0 | AE95: 0 | AF95: 0 | AL95: 0
B96: 1999 | C96: N | E96: 1 | F96: 0 | G96: 1 | H96: 0 | I96: 0 | J96: 1 | O96: 0 | P96: 0 | Q96: 0 | R96: 0 | S96: 0 | T96: 0 | U96: 0 | V96: 0 | W96: 0 | X96: 0 | Y96: 1 | Z96: 0 | AA96: =AVERAGE(LARGE((W$6:W95+X$6:X95)*Y$6:Y95*(E$6:E95=E96), ROW(INDIRECT("A1:A35"))))/(12*Y96) -> 0 | AB96: 1 | AC96: 0 | AD96: 0 | AE96: 0 | AF96: 0 | AG96: =SUMIFS($AD96:$AD97,SP_PensionPayout,"Lump sum",$F96:$F97,"<>0") -> 0 | AH96: =SUMIFS($AD96:$AD97,SP_PensionPayout,"Annuity",$F96:$F97,"<>0") -> 0 | AI96: =IF(ISBLANK(INDEX(SP_SSPBFA,1)),0,IF($H96<>INDEX(SP_SSPBFA,1),AI94,SP_AdditionalRI/INDEX(SC_EA_InflationWageIdx,EAIDX))) -> 0 | AJ96: =SUMPRODUCT(AE96:AE97, --(E96:E97<>0)) -> 0 | AK96: =SUMPRODUCT(AF96:AF97, --(F96:F97<>0))+AI96 -> 0 | AL96: 0
B97: 1999 | C97: N | E97: 2 | F97: 0 | G97: -1 | H97: 0 | I97: 0 | J97: 1 | O97: 0 | P97: 0 | Q97: 0 | R97: 0 | S97: 0 | T97: 0 | U97: 0 | V97: 0 | W97: 0 | X97: 0 | Y97: 1 | Z97: 0 | AA97: =AVERAGE(LARGE((W$6:W96+X$6:X96)*Y$6:Y96*(E$6:E96=E97), ROW(INDIRECT("A1:A35"))))/(12*Y97) -> 0 | AB97: 1 | AC97: 0 | AD97: 0 | AE97: 0 | AF97: 0 | AL97: 0
B98: 2000 | C98: N | E98: 1 | F98: 0 | G98: 1 | H98: 0 | I98: 0 | J98: 1 | O98: 0 | P98: 0 | Q98: 0 | R98: 0 | S98: 0 | T98: 0 | U98: 0 | V98: 0 | W98: 0 | X98: 0 | Y98: 1 | Z98: 0 | AA98: =AVERAGE(LARGE((W$6:W97+X$6:X97)*Y$6:Y97*(E$6:E97=E98), ROW(INDIRECT("A1:A35"))))/(12*Y98) -> 0 | AB98: 1 | AC98: 0 | AD98: 0 | AE98: 0 | AF98: 0 | AG98: =SUMIFS($AD98:$AD99,SP_PensionPayout,"Lump sum",$F98:$F99,"<>0") -> 0 | AH98: =SUMIFS($AD98:$AD99,SP_PensionPayout,"Annuity",$F98:$F99,"<>0") -> 0 | AI98: =IF(ISBLANK(INDEX(SP_SSPBFA,1)),0,IF($H98<>INDEX(SP_SSPBFA,1),AI96,SP_AdditionalRI/INDEX(SC_EA_InflationWageIdx,EAIDX))) -> 0 | AJ98: =SUMPRODUCT(AE98:AE99, --(E98:E99<>0)) -> 0 | AK98: =SUMPRODUCT(AF98:AF99, --(F98:F99<>0))+AI98 -> 0 | AL98: 0
B99: 2000 | C99: N | E99: 2 | F99: 0 | G99: -1 | H99: 0 | I99: 0 | J99: 1 | O99: 0 | P99: 0 | Q99: 0 | R99: 0 | S99: 0 | T99: 0 | U99: 0 | V99: 0 | W99: 0 | X99: 0 | Y99: 1 | Z99: 0 | AA99: =AVERAGE(LARGE((W$6:W98+X$6:X98)*Y$6:Y98*(E$6:E98=E99), ROW(INDIRECT("A1:A35"))))/(12*Y99) -> 0 | AB99: 1 | AC99: 0 | AD99: 0 | AE99: 0 | AF99: 0 | AL99: 0
B100: 2001 | C100: N | E100: 1 | F100: 0 | G100: 1 | H100: 0 | I100: 0 | J100: 1 | O100: 0 | P100: 0 | Q100: 0 | R100: 0 | S100: 0 | T100: 0 | U100: 0 | V100: 0 | W100: 0 | X100: 0 | Y100: 1 | Z100: 0 | AA100: =AVERAGE(LARGE((W$6:W99+X$6:X99)*Y$6:Y99*(E$6:E99=E100), ROW(INDIRECT("A1:A35"))))/(12*Y100) -> 0 | AB100: 1 | AC100: 0 | AD100: 0 | AE100: 0 | AF100: 0 | AG100: =SUMIFS($AD100:$AD101,SP_PensionPayout,"Lump sum",$F100:$F101,"<>0") -> 0 | AH100: =SUMIFS($AD100:$AD101,SP_PensionPayout,"Annuity",$F100:$F101,"<>0") -> 0 | AI100: =IF(ISBLANK(INDEX(SP_SSPBFA,1)),0,IF($H100<>INDEX(SP_SSPBFA,1),AI98,SP_AdditionalRI/INDEX(SC_EA_InflationWageIdx,EAIDX))) -> 0 | AJ100: =SUMPRODUCT(AE100:AE101, --(E100:E101<>0)) -> 0 | AK100: =SUMPRODUCT(AF100:AF101, --(F100:F101<>0))+AI100 -> 0 | AL100: 0
B101: 2001 | C101: N | E101: 2 | F101: 0 | G101: -1 | H101: 0 | I101: 0 | J101: 1 | O101: 0 | P101: 0 | Q101: 0 | R101: 0 | S101: 0 | T101: 0 | U101: 0 | V101: 0 | W101: 0 | X101: 0 | Y101: 1 | Z101: 0 | AA101: =AVERAGE(LARGE((W$6:W100+X$6:X100)*Y$6:Y100*(E$6:E100=E101), ROW(INDIRECT("A1:A35"))))/(12*Y101) -> 0 | AB101: 1 | AC101: 0 | AD101: 0 | AE101: 0 | AF101: 0 | AL101: 0
B102: 2002 | C102: N | E102: 1 | F102: 0 | G102: 1 | H102: 0 | I102: 0 | J102: 1 | O102: 0 | P102: 0 | Q102: 0 | R102: 0 | S102: 0 | T102: 0 | U102: 0 | V102: 0 | W102: 0 | X102: 0 | Y102: 1 | Z102: 0 | AA102: =AVERAGE(LARGE((W$6:W101+X$6:X101)*Y$6:Y101*(E$6:E101=E102), ROW(INDIRECT("A1:A35"))))/(12*Y102) -> 0 | AB102: 1 | AC102: 0 | AD102: 0 | AE102: 0 | AF102: 0 | AG102: =SUMIFS($AD102:$AD103,SP_PensionPayout,"Lump sum",$F102:$F103,"<>0") -> 0 | AH102: =SUMIFS($AD102:$AD103,SP_PensionPayout,"Annuity",$F102:$F103,"<>0") -> 0 | AI102: =IF(ISBLANK(INDEX(SP_SSPBFA,1)),0,IF($H102<>INDEX(SP_SSPBFA,1),AI100,SP_AdditionalRI/INDEX(SC_EA_InflationWageIdx,EAIDX))) -> 0 | AJ102: =SUMPRODUCT(AE102:AE103, --(E102:E103<>0)) -> 0 | AK102: =SUMPRODUCT(AF102:AF103, --(F102:F103<>0))+AI102 -> 0 | AL102: 0
B103: 2002 | C103: N | E103: 2 | F103: 0 | G103: -1 | H103: 0 | I103: 0 | J103: 1 | O103: 0 | P103: 0 | Q103: 0 | R103: 0 | S103: 0 | T103: 0 | U103: 0 | V103: 0 | W103: 0 | X103: 0 | Y103: 1 | Z103: 0 | AA103: =AVERAGE(LARGE((W$6:W102+X$6:X102)*Y$6:Y102*(E$6:E102=E103), ROW(INDIRECT("A1:A35"))))/(12*Y103) -> 0 | AB103: 1 | AC103: 0 | AD103: 0 | AE103: 0 | AF103: 0 | AL103: 0
B104: 2003 | C104: N | E104: 1 | F104: 0 | G104: 1 | H104: 0 | I104: 0 | J104: 1 | O104: 0 | P104: 0 | Q104: 0 | R104: 0 | S104: 0 | T104: 0 | U104: 0 | V104: 0 | W104: 0 | X104: 0 | Y104: 1 | Z104: 0 | AA104: =AVERAGE(LARGE((W$6:W103+X$6:X103)*Y$6:Y103*(E$6:E103=E104), ROW(INDIRECT("A1:A35"))))/(12*Y104) -> 0 | AB104: 1 | AC104: 0 | AD104: 0 | AE104: 0 | AF104: 0 | AG104: =SUMIFS($AD104:$AD105,SP_PensionPayout,"Lump sum",$F104:$F105,"<>0") -> 0 | AH104: =SUMIFS($AD104:$AD105,SP_PensionPayout,"Annuity",$F104:$F105,"<>0") -> 0 | AI104: =IF(ISBLANK(INDEX(SP_SSPBFA,1)),0,IF($H104<>INDEX(SP_SSPBFA,1),AI102,SP_AdditionalRI/INDEX(SC_EA_InflationWageIdx,EAIDX))) -> 0 | AJ104: =SUMPRODUCT(AE104:AE105, --(E104:E105<>0)) -> 0 | AK104: =SUMPRODUCT(AF104:AF105, --(F104:F105<>0))+AI104 -> 0 | AL104: 0
B105: 2003 | C105: N | E105: 2 | F105: 0 | G105: -1 | H105: 0 | I105: 0 | J105: 1 | O105: 0 | P105: 0 | Q105: 0 | R105: 0 | S105: 0 | T105: 0 | U105: 0 | V105: 0 | W105: 0 | X105: 0 | Y105: 1 | Z105: 0 | AA105: =AVERAGE(LARGE((W$6:W104+X$6:X104)*Y$6:Y104*(E$6:E104=E105), ROW(INDIRECT("A1:A35"))))/(12*Y105) -> 0 | AB105: 1 | AC105: 0 | AD105: 0 | AE105: 0 | AF105: 0 | AL105: 0
B106: 2004 | C106: N | E106: 1 | F106: 0 | G106: 1 | H106: 0 | I106: 0 | J106: 1 | O106: 0 | P106: 0 | Q106: 0 | R106: 0 | S106: 0 | T106: 0 | U106: 0 | V106: 0 | W106: 0 | X106: 0 | Y106: 1 | Z106: 0 | AA106: =AVERAGE(LARGE((W$6:W105+X$6:X105)*Y$6:Y105*(E$6:E105=E106), ROW(INDIRECT("A1:A35"))))/(12*Y106) -> 0 | AB106: 1 | AC106: 0 | AD106: 0 | AE106: 0 | AF106: 0 | AG106: =SUMIFS($AD106:$AD107,SP_PensionPayout,"Lump sum",$F106:$F107,"<>0") -> 0 | AH106: =SUMIFS($AD106:$AD107,SP_PensionPayout,"Annuity",$F106:$F107,"<>0") -> 0 | AI106: =IF(ISBLANK(INDEX(SP_SSPBFA,1)),0,IF($H106<>INDEX(SP_SSPBFA,1),AI104,SP_AdditionalRI/INDEX(SC_EA_InflationWageIdx,EAIDX))) -> 0 | AJ106: =SUMPRODUCT(AE106:AE107, --(E106:E107<>0)) -> 0 | AK106: =SUMPRODUCT(AF106:AF107, --(F106:F107<>0))+AI106 -> 0 | AL106: 0
B107: 2004 | C107: N | E107: 2 | F107: 0 | G107: -1 | H107: 0 | I107: 0 | J107: 1 | O107: 0 | P107: 0 | Q107: 0 | R107: 0 | S107: 0 | T107: 0 | U107: 0 | V107: 0 | W107: 0 | X107: 0 | Y107: 1 | Z107: 0 | AA107: =AVERAGE(LARGE((W$6:W106+X$6:X106)*Y$6:Y106*(E$6:E106=E107), ROW(INDIRECT("A1:A35"))))/(12*Y107) -> 0 | AB107: 1 | AC107: 0 | AD107: 0 | AE107: 0 | AF107: 0 | AL107: 0
B108: 2005 | C108: N | E108: 1 | F108: 0 | G108: 1 | H108: 0 | I108: 0 | J108: 1 | O108: 0 | P108: 0 | Q108: 0 | R108: 0 | S108: 0 | T108: 0 | U108: 0 | V108: 0 | W108: 0 | X108: 0 | Y108: 1 | Z108: 0 | AA108: =AVERAGE(LARGE((W$6:W107+X$6:X107)*Y$6:Y107*(E$6:E107=E108), ROW(INDIRECT("A1:A35"))))/(12*Y108) -> 0 | AB108: 1 | AC108: 0 | AD108: 0 | AE108: 0 | AF108: 0 | AG108: =SUMIFS($AD108:$AD109,SP_PensionPayout,"Lump sum",$F108:$F109,"<>0") -> 0 | AH108: =SUMIFS($AD108:$AD109,SP_PensionPayout,"Annuity",$F108:$F109,"<>0") -> 0 | AI108: =IF(ISBLANK(INDEX(SP_SSPBFA,1)),0,IF($H108<>INDEX(SP_SSPBFA,1),AI106,SP_AdditionalRI/INDEX(SC_EA_InflationWageIdx,EAIDX))) -> 0 | AJ108: =SUMPRODUCT(AE108:AE109, --(E108:E109<>0)) -> 0 | AK108: =SUMPRODUCT(AF108:AF109, --(F108:F109<>0))+AI108 -> 0 | AL108: 0
B109: 2005 | C109: N | E109: 2 | F109: 0 | G109: -1 | H109: 0 | I109: 0 | J109: 1 | O109: 0 | P109: 0 | Q109: 0 | R109: 0 | S109: 0 | T109: 0 | U109: 0 | V109: 0 | W109: 0 | X109: 0 | Y109: 1 | Z109: 0 | AA109: =AVERAGE(LARGE((W$6:W108+X$6:X108)*Y$6:Y108*(E$6:E108=E109), ROW(INDIRECT("A1:A35"))))/(12*Y109) -> 0 | AB109: 1 | AC109: 0 | AD109: 0 | AE109: 0 | AF109: 0 | AL109: 0
B110: 2006 | C110: N | E110: 1 | F110: 0 | G110: 1 | H110: 0 | I110: 0 | J110: 1 | O110: 0 | P110: 0 | Q110: 0 | R110: 0 | S110: 0 | T110: 0 | U110: 0 | V110: 0 | W110: 0 | X110: 0 | Y110: 1 | Z110: 0 | AA110: =AVERAGE(LARGE((W$6:W109+X$6:X109)*Y$6:Y109*(E$6:E109=E110), ROW(INDIRECT("A1:A35"))))/(12*Y110) -> 0 | AB110: 1 | AC110: 0 | AD110: 0 | AE110: 0 | AF110: 0 | AG110: =SUMIFS($AD110:$AD111,SP_PensionPayout,"Lump sum",$F110:$F111,"<>0") -> 0 | AH110: =SUMIFS($AD110:$AD111,SP_PensionPayout,"Annuity",$F110:$F111,"<>0") -> 0 | AI110: =IF(ISBLANK(INDEX(SP_SSPBFA,1)),0,IF($H110<>INDEX(SP_SSPBFA,1),AI108,SP_AdditionalRI/INDEX(SC_EA_InflationWageIdx,EAIDX))) -> 0 | AJ110: =SUMPRODUCT(AE110:AE111, --(E110:E111<>0)) -> 0 | AK110: =SUMPRODUCT(AF110:AF111, --(F110:F111<>0))+AI110 -> 0 | AL110: 0
B111: 2006 | C111: N | E111: 2 | F111: 0 | G111: -1 | H111: 0 | I111: 0 | J111: 1 | O111: 0 | P111: 0 | Q111: 0 | R111: 0 | S111: 0 | T111: 0 | U111: 0 | V111: 0 | W111: 0 | X111: 0 | Y111: 1 | Z111: 0 | AA111: =AVERAGE(LARGE((W$6:W110+X$6:X110)*Y$6:Y110*(E$6:E110=E111), ROW(INDIRECT("A1:A35"))))/(12*Y111) -> 0 | AB111: 1 | AC111: 0 | AD111: 0 | AE111: 0 | AF111: 0 | AL111: 0
B112: 2007 | C112: N | E112: 1 | F112: 0 | G112: 1 | H112: 0 | I112: 0 | J112: 1 | O112: 0 | P112: 0 | Q112: 0 | R112: 0 | S112: 0 | T112: 0 | U112: 0 | V112: 0 | W112: 0 | X112: 0 | Y112: 1 | Z112: 0 | AA112: =AVERAGE(LARGE((W$6:W111+X$6:X111)*Y$6:Y111*(E$6:E111=E112), ROW(INDIRECT("A1:A35"))))/(12*Y112) -> 0 | AB112: 1 | AC112: 0 | AD112: 0 | AE112: 0 | AF112: 0 | AG112: =SUMIFS($AD112:$AD113,SP_PensionPayout,"Lump sum",$F112:$F113,"<>0") -> 0 | AH112: =SUMIFS($AD112:$AD113,SP_PensionPayout,"Annuity",$F112:$F113,"<>0") -> 0 | AI112: =IF(ISBLANK(INDEX(SP_SSPBFA,1)),0,IF($H112<>INDEX(SP_SSPBFA,1),AI110,SP_AdditionalRI/INDEX(SC_EA_InflationWageIdx,EAIDX))) -> 0 | AJ112: =SUMPRODUCT(AE112:AE113, --(E112:E113<>0)) -> 0 | AK112: =SUMPRODUCT(AF112:AF113, --(F112:F113<>0))+AI112 -> 0 | AL112: 0
B113: 2007 | C113: N | E113: 2 | F113: 0 | G113: -1 | H113: 0 | I113: 0 | J113: 1 | O113: 0 | P113: 0 | Q113: 0 | R113: 0 | S113: 0 | T113: 0 | U113: 0 | V113: 0 | W113: 0 | X113: 0 | Y113: 1 | Z113: 0 | AA113: =AVERAGE(LARGE((W$6:W112+X$6:X112)*Y$6:Y112*(E$6:E112=E113), ROW(INDIRECT("A1:A35"))))/(12*Y113) -> 0 | AB113: 1 | AC113: 0 | AD113: 0 | AE113: 0 | AF113: 0 | AL113: 0
B114: 2008 | C114: N | E114: 1 | F114: 0 | G114: 1 | H114: 0 | I114: 0 | J114: 1 | O114: 0 | P114: 0 | Q114: 0 | R114: 0 | S114: 0 | T114: 0 | U114: 0 | V114: 0 | W114: 0 | X114: 0 | Y114: 1 | Z114: 0 | AA114: =AVERAGE(LARGE((W$6:W113+X$6:X113)*Y$6:Y113*(E$6:E113=E114), ROW(INDIRECT("A1:A35"))))/(12*Y114) -> 0 | AB114: 1 | AC114: 0 | AD114: 0 | AE114: 0 | AF114: 0 | AG114: =SUMIFS($AD114:$AD115,SP_PensionPayout,"Lump sum",$F114:$F115,"<>0") -> 0 | AH114: =SUMIFS($AD114:$AD115,SP_PensionPayout,"Annuity",$F114:$F115,"<>0") -> 0 | AI114: =IF(ISBLANK(INDEX(SP_SSPBFA,1)),0,IF($H114<>INDEX(SP_SSPBFA,1),AI112,SP_AdditionalRI/INDEX(SC_EA_InflationWageIdx,EAIDX))) -> 0 | AJ114: =SUMPRODUCT(AE114:AE115, --(E114:E115<>0)) -> 0 | AK114: =SUMPRODUCT(AF114:AF115, --(F114:F115<>0))+AI114 -> 0 | AL114: 0
B115: 2008 | C115: N | E115: 2 | F115: 0 | G115: -1 | H115: 0 | I115: 0 | J115: 1 | O115: 0 | P115: 0 | Q115: 0 | R115: 0 | S115: 0 | T115: 0 | U115: 0 | V115: 0 | W115: 0 | X115: 0 | Y115: 1 | Z115: 0 | AA115: =AVERAGE(LARGE((W$6:W114+X$6:X114)*Y$6:Y114*(E$6:E114=E115), ROW(INDIRECT("A1:A35"))))/(12*Y115) -> 0 | AB115: 1 | AC115: 0 | AD115: 0 | AE115: 0 | AF115: 0 | AL115: 0
B116: 2009 | C116: N | E116: 1 | F116: 0 | G116: 1 | H116: 0 | I116: 0 | J116: 1 | O116: 0 | P116: 0 | Q116: 0 | R116: 0 | S116: 0 | T116: 0 | U116: 0 | V116: 0 | W116: 0 | X116: 0 | Y116: 1 | Z116: 0 | AA116: =AVERAGE(LARGE((W$6:W115+X$6:X115)*Y$6:Y115*(E$6:E115=E116), ROW(INDIRECT("A1:A35"))))/(12*Y116) -> 0 | AB116: 1 | AC116: 0 | AD116: 0 | AE116: 0 | AF116: 0 | AG116: =SUMIFS($AD116:$AD117,SP_PensionPayout,"Lump sum",$F116:$F117,"<>0") -> 0 | AH116: =SUMIFS($AD116:$AD117,SP_PensionPayout,"Annuity",$F116:$F117,"<>0") -> 0 | AI116: =IF(ISBLANK(INDEX(SP_SSPBFA,1)),0,IF($H116<>INDEX(SP_SSPBFA,1),AI114,SP_AdditionalRI/INDEX(SC_EA_InflationWageIdx,EAIDX))) -> 0 | AJ116: =SUMPRODUCT(AE116:AE117, --(E116:E117<>0)) -> 0 | AK116: =SUMPRODUCT(AF116:AF117, --(F116:F117<>0))+AI116 -> 0 | AL116: 0
B117: 2009 | C117: N | E117: 2 | F117: 0 | G117: -1 | H117: 0 | I117: 0 | J117: 1 | O117: 0 | P117: 0 | Q117: 0 | R117: 0 | S117: 0 | T117: 0 | U117: 0 | V117: 0 | W117: 0 | X117: 0 | Y117: 1 | Z117: 0 | AA117: =AVERAGE(LARGE((W$6:W116+X$6:X116)*Y$6:Y116*(E$6:E116=E117), ROW(INDIRECT("A1:A35"))))/(12*Y117) -> 0 | AB117: 1 | AC117: 0 | AD117: 0 | AE117: 0 | AF117: 0 | AL117: 0
B118: 2010 | C118: N | E118: 1 | F118: 0 | G118: 1 | H118: 0 | I118: 0 | J118: 1 | O118: 0 | P118: 0 | Q118: 0 | R118: 0 | S118: 0 | T118: 0 | U118: 0 | V118: 0 | W118: 0 | X118: 0 | Y118: 1 | Z118: 0 | AA118: =AVERAGE(LARGE((W$6:W117+X$6:X117)*Y$6:Y117*(E$6:E117=E118), ROW(INDIRECT("A1:A35"))))/(12*Y118) -> 0 | AB118: 1 | AC118: 0 | AD118: 0 | AE118: 0 | AF118: 0 | AG118: =SUMIFS($AD118:$AD119,SP_PensionPayout,"Lump sum",$F118:$F119,"<>0") -> 0 | AH118: =SUMIFS($AD118:$AD119,SP_PensionPayout,"Annuity",$F118:$F119,"<>0") -> 0 | AI118: =IF(ISBLANK(INDEX(SP_SSPBFA,1)),0,IF($H118<>INDEX(SP_SSPBFA,1),AI116,SP_AdditionalRI/INDEX(SC_EA_InflationWageIdx,EAIDX))) -> 0 | AJ118: =SUMPRODUCT(AE118:AE119, --(E118:E119<>0)) -> 0 | AK118: =SUMPRODUCT(AF118:AF119, --(F118:F119<>0))+AI118 -> 0 | AL118: 0
B119: 2010 | C119: N | E119: 2 | F119: 0 | G119: -1 | H119: 0 | I119: 0 | J119: 1 | O119: 0 | P119: 0 | Q119: 0 | R119: 0 | S119: 0 | T119: 0 | U119: 0 | V119: 0 | W119: 0 | X119: 0 | Y119: 1 | Z119: 0 | AA119: =AVERAGE(LARGE((W$6:W118+X$6:X118)*Y$6:Y118*(E$6:E118=E119), ROW(INDIRECT("A1:A35"))))/(12*Y119) -> 0 | AB119: 1 | AC119: 0 | AD119: 0 | AE119: 0 | AF119: 0 | AL119: 0
B120: 2011 | C120: N | E120: 1 | F120: 0 | G120: 1 | H120: 0 | I120: 0 | J120: 1 | O120: 0 | P120: 0 | Q120: 0 | R120: 0 | S120: 0 | T120: 0 | U120: 0 | V120: 0 | W120: 0 | X120: 0 | Y120: 1 | Z120: 0 | AA120: =AVERAGE(LARGE((W$6:W119+X$6:X119)*Y$6:Y119*(E$6:E119=E120), ROW(INDIRECT("A1:A35"))))/(12*Y120) -> 0 | AB120: 1 | AC120: 0 | AD120: 0 | AE120: 0 | AF120: 0 | AG120: =SUMIFS($AD120:$AD121,SP_PensionPayout,"Lump sum",$F120:$F121,"<>0") -> 0 | AH120: =SUMIFS($AD120:$AD121,SP_PensionPayout,"Annuity",$F120:$F121,"<>0") -> 0 | AI120: =IF(ISBLANK(INDEX(SP_SSPBFA,1)),0,IF($H120<>INDEX(SP_SSPBFA,1),AI118,SP_AdditionalRI/INDEX(SC_EA_InflationWageIdx,EAIDX))) -> 0 | AJ120: =SUMPRODUCT(AE120:AE121, --(E120:E121<>0)) -> 0 | AK120: =SUMPRODUCT(AF120:AF121, --(F120:F121<>0))+AI120 -> 0 | AL120: 0
B121: 2011 | C121: N | E121: 2 | F121: 0 | G121: -1 | H121: 0 | I121: 0 | J121: 1 | O121: 0 | P121: 0 | Q121: 0 | R121: 0 | S121: 0 | T121: 0 | U121: 0 | V121: 0 | W121: 0 | X121: 0 | Y121: 1 | Z121: 0 | AA121: =AVERAGE(LARGE((W$6:W120+X$6:X120)*Y$6:Y120*(E$6:E120=E121), ROW(INDIRECT("A1:A35"))))/(12*Y121) -> 0 | AB121: 1 | AC121: 0 | AD121: 0 | AE121: 0 | AF121: 0 | AL121: 0
B122: 2012 | C122: N | E122: 1 | F122: 0 | G122: 1 | H122: 0 | I122: 0 | J122: 1 | O122: 0 | P122: 0 | Q122: 0 | R122: 0 | S122: 0 | T122: 0 | U122: 0 | V122: 0 | W122: 0 | X122: 0 | Y122: 1 | Z122: 0 | AA122: =AVERAGE(LARGE((W$6:W121+X$6:X121)*Y$6:Y121*(E$6:E121=E122), ROW(INDIRECT("A1:A35"))))/(12*Y122) -> 0 | AB122: 1 | AC122: 0 | AD122: 0 | AE122: 0 | AF122: 0 | AG122: =SUMIFS($AD122:$AD123,SP_PensionPayout,"Lump sum",$F122:$F123,"<>0") -> 0 | AH122: =SUMIFS($AD122:$AD123,SP_PensionPayout,"Annuity",$F122:$F123,"<>0") -> 0 | AI122: =IF(ISBLANK(INDEX(SP_SSPBFA,1)),0,IF($H122<>INDEX(SP_SSPBFA,1),AI120,SP_AdditionalRI/INDEX(SC_EA_InflationWageIdx,EAIDX))) -> 0 | AJ122: =SUMPRODUCT(AE122:AE123, --(E122:E123<>0)) -> 0 | AK122: =SUMPRODUCT(AF122:AF123, --(F122:F123<>0))+AI122 -> 0 | AL122: 0
B123: 2012 | C123: N | E123: 2 | F123: 0 | G123: -1 | H123: 0 | I123: 0 | J123: 1 | O123: 0 | P123: 0 | Q123: 0 | R123: 0 | S123: 0 | T123: 0 | U123: 0 | V123: 0 | W123: 0 | X123: 0 | Y123: 1 | Z123: 0 | AA123: =AVERAGE(LARGE((W$6:W122+X$6:X122)*Y$6:Y122*(E$6:E122=E123), ROW(INDIRECT("A1:A35"))))/(12*Y123) -> 0 | AB123: 1 | AC123: 0 | AD123: 0 | AE123: 0 | AF123: 0 | AL123: 0
B124: 2013 | C124: N | E124: 1 | F124: 0 | G124: 1 | H124: 0 | I124: 0 | J124: 1 | O124: 0 | P124: 0 | Q124: 0 | R124: 0 | S124: 0 | T124: 0 | U124: 0 | V124: 0 | W124: 0 | X124: 0 | Y124: 1 | Z124: 0 | AA124: =AVERAGE(LARGE((W$6:W123+X$6:X123)*Y$6:Y123*(E$6:E123=E124), ROW(INDIRECT("A1:A35"))))/(12*Y124) -> 0 | AB124: 1 | AC124: 0 | AD124: 0 | AE124: 0 | AF124: 0 | AG124: =SUMIFS($AD124:$AD125,SP_PensionPayout,"Lump sum",$F124:$F125,"<>0") -> 0 | AH124: =SUMIFS($AD124:$AD125,SP_PensionPayout,"Annuity",$F124:$F125,"<>0") -> 0 | AI124: =IF(ISBLANK(INDEX(SP_SSPBFA,1)),0,IF($H124<>INDEX(SP_SSPBFA,1),AI122,SP_AdditionalRI/INDEX(SC_EA_InflationWageIdx,EAIDX))) -> 0 | AJ124: =SUMPRODUCT(AE124:AE125, --(E124:E125<>0)) -> 0 | AK124: =SUMPRODUCT(AF124:AF125, --(F124:F125<>0))+AI124 -> 0 | AL124: 0
B125: 2013 | C125: N | E125: 2 | F125: 0 | G125: -1 | H125: 0 | I125: 0 | J125: 1 | O125: 0 | P125: 0 | Q125: 0 | R125: 0 | S125: 0 | T125: 0 | U125: 0 | V125: 0 | W125: 0 | X125: 0 | Y125: 1 | Z125: 0 | AA125: =AVERAGE(LARGE((W$6:W124+X$6:X124)*Y$6:Y124*(E$6:E124=E125), ROW(INDIRECT("A1:A35"))))/(12*Y125) -> 0 | AB125: 1 | AC125: 0 | AD125: 0 | AE125: 0 | AF125: 0 | AL125: 0
B126: 2014 | C126: N | E126: 1 | F126: 0 | G126: 1 | H126: 0 | I126: 0 | J126: 1 | O126: 0 | P126: 0 | Q126: 0 | R126: 0 | S126: 0 | T126: 0 | U126: 0 | V126: 0 | W126: 0 | X126: 0 | Y126: 1 | Z126: 0 | AA126: =AVERAGE(LARGE((W$6:W125+X$6:X125)*Y$6:Y125*(E$6:E125=E126), ROW(INDIRECT("A1:A35"))))/(12*Y126) -> 0 | AB126: 1 | AC126: 0 | AD126: 0 | AE126: 0 | AF126: 0 | AG126: =SUMIFS($AD126:$AD127,SP_PensionPayout,"Lump sum",$F126:$F127,"<>0") -> 0 | AH126: =SUMIFS($AD126:$AD127,SP_PensionPayout,"Annuity",$F126:$F127,"<>0") -> 0 | AI126: =IF(ISBLANK(INDEX(SP_SSPBFA,1)),0,IF($H126<>INDEX(SP_SSPBFA,1),AI124,SP_AdditionalRI/INDEX(SC_EA_InflationWageIdx,EAIDX))) -> 0 | AJ126: =SUMPRODUCT(AE126:AE127, --(E126:E127<>0)) -> 0 | AK126: =SUMPRODUCT(AF126:AF127, --(F126:F127<>0))+AI126 -> 0 | AL126: 0
B127: 2014 | C127: N | E127: 2 | F127: 0 | G127: -1 | H127: 0 | I127: 0 | J127: 1 | O127: 0 | P127: 0 | Q127: 0 | R127: 0 | S127: 0 | T127: 0 | U127: 0 | V127: 0 | W127: 0 | X127: 0 | Y127: 1 | Z127: 0 | AA127: =AVERAGE(LARGE((W$6:W126+X$6:X126)*Y$6:Y126*(E$6:E126=E127), ROW(INDIRECT("A1:A35"))))/(12*Y127) -> 0 | AB127: 1 | AC127: 0 | AD127: 0 | AE127: 0 | AF127: 0 | AL127: 0
B128: 2015 | C128: N | E128: 1 | F128: 0 | G128: 1 | H128: 0 | I128: 0 | J128: 1 | O128: 0 | P128: 0 | Q128: 0 | R128: 0 | S128: 0 | T128: 0 | U128: 0 | V128: 0 | W128: 0 | X128: 0 | Y128: 1 | Z128: 0 | AA128: =AVERAGE(LARGE((W$6:W127+X$6:X127)*Y$6:Y127*(E$6:E127=E128), ROW(INDIRECT("A1:A35"))))/(12*Y128) -> 0 | AB128: 1 | AC128: 0 | AD128: 0 | AE128: 0 | AF128: 0 | AG128: =SUMIFS($AD128:$AD129,SP_PensionPayout,"Lump sum",$F128:$F129,"<>0") -> 0 | AH128: =SUMIFS($AD128:$AD129,SP_PensionPayout,"Annuity",$F128:$F129,"<>0") -> 0 | AI128: =IF(ISBLANK(INDEX(SP_SSPBFA,1)),0,IF($H128<>INDEX(SP_SSPBFA,1),AI126,SP_AdditionalRI/INDEX(SC_EA_InflationWageIdx,EAIDX))) -> 0 | AJ128: =SUMPRODUCT(AE128:AE129, --(E128:E129<>0)) -> 0 | AK128: =SUMPRODUCT(AF128:AF129, --(F128:F129<>0))+AI128 -> 0 | AL128: 0
B129: 2015 | C129: N | E129: 2 | F129: 0 | G129: -1 | H129: 0 | I129: 0 | J129: 1 | O129: 0 | P129: 0 | Q129: 0 | R129: 0 | S129: 0 | T129: 0 | U129: 0 | V129: 0 | W129: 0 | X129: 0 | Y129: 1 | Z129: 0 | AA129: =AVERAGE(LARGE((W$6:W128+X$6:X128)*Y$6:Y128*(E$6:E128=E129), ROW(INDIRECT("A1:A35"))))/(12*Y129) -> 0 | AB129: 1 | AC129: 0 | AD129: 0 | AE129: 0 | AF129: 0 | AL129: 0
B130: 2016 | C130: N | E130: 1 | F130: 0 | G130: 1 | H130: 0 | I130: 0 | J130: 1 | O130: 0 | P130: 0 | Q130: 0 | R130: 0 | S130: 0 | T130: 0 | U130: 0 | V130: 0 | W130: 0 | X130: 0 | Y130: 1 | Z130: 0 | AA130: =AVERAGE(LARGE((W$6:W129+X$6:X129)*Y$6:Y129*(E$6:E129=E130), ROW(INDIRECT("A1:A35"))))/(12*Y130) -> 0 | AB130: 1 | AC130: 0 | AD130: 0 | AE130: 0 | AF130: 0 | AG130: =SUMIFS($AD130:$AD131,SP_PensionPayout,"Lump sum",$F130:$F131,"<>0") -> 0 | AH130: =SUMIFS($AD130:$AD131,SP_PensionPayout,"Annuity",$F130:$F131,"<>0") -> 0 | AI130: =IF(ISBLANK(INDEX(SP_SSPBFA,1)),0,IF($H130<>INDEX(SP_SSPBFA,1),AI128,SP_AdditionalRI/INDEX(SC_EA_InflationWageIdx,EAIDX))) -> 0 | AJ130: =SUMPRODUCT(AE130:AE131, --(E130:E131<>0)) -> 0 | AK130: =SUMPRODUCT(AF130:AF131, --(F130:F131<>0))+AI130 -> 0 | AL130: 0
B131: 2016 | C131: N | E131: 2 | F131: 0 | G131: -1 | H131: 0 | I131: 0 | J131: 1 | O131: 0 | P131: 0 | Q131: 0 | R131: 0 | S131: 0 | T131: 0 | U131: 0 | V131: 0 | W131: 0 | X131: 0 | Y131: 1 | Z131: 0 | AA131: =AVERAGE(LARGE((W$6:W130+X$6:X130)*Y$6:Y130*(E$6:E130=E131), ROW(INDIRECT("A1:A35"))))/(12*Y131) -> 0 | AB131: 1 | AC131: 0 | AD131: 0 | AE131: 0 | AF131: 0 | AL131: 0
B132: 2017 | C132: N | D132: =INDEX(SP_Initials,E132) ->  | E132: 1 | F132: =INDEX(SC_TaxIndex,$E132) -> 0 | G132: 1 | H132: =IF(INDEX(SC_ShowRetireatee,$E132),IF($B132<YEAR(INDEX(SP_BirthDate,$E132)),0,IF($B132>(YEAR(INDEX(SP_BirthDate,$E132))+INDEX(SP_LifeExp,$E132)),0,$B132-YEAR(INDEX(SP_BirthDate,$E132)))),0) -> 0 | I132: =MAX($H132+1-INDEX(SP_StartWorkAge,$E132),0) -> 0 | J132: =IF($B132<SC_TargetRY,1,IF($B132=SC_TargetRY,-(1-YEARFRAC(SP_TargetRD,DATE($B132+1,1,1))),0)) -> 1 | O132: 0 | P132: 0 | Q132: 0 | R132: 0 | S132: 0 | T132: 0 | U132: 0 | V132: 0 | W132: 0 | X132: 0 | Y132: 1 | Z132: 0 | AA132: =AVERAGE(LARGE((W$6:W131+X$6:X131)*Y$6:Y131*(E$6:E131=E132), ROW(INDIRECT("A1:A35"))))/(12*Y132) -> 0 | AB132: 1 | AC132: 0 | AD132: 0 | AE132: 0 | AF132: 0 | AG132: =SUMIFS($AD132:$AD133,SP_PensionPayout,"Lump sum",$F132:$F133,"<>0") -> 0 | AH132: =SUMIFS($AD132:$AD133,SP_PensionPayout,"Annuity",$F132:$F133,"<>0") -> 0 | AI132: =IF(ISBLANK(INDEX(SP_SSPBFA,1)),0,IF($H132<>INDEX(SP_SSPBFA,1),AI130,SP_AdditionalRI/INDEX(SC_EA_InflationWageIdx,EAIDX))) -> 0 | AJ132: =SUMPRODUCT(AE132:AE133, --(E132:E133<>0)) -> 0 | AK132: =SUMPRODUCT(AF132:AF133, --(F132:F133<>0))+AI132 -> 0 | AL132: 0
B133: 2017 | C133: N | E133: =MOD(ROW(),2)+1 -> 2 | F133: 0 | G133: -1 | H133: 0 | I133: 0 | J133: 1 | O133: 0 | P133: 0 | Q133: 0 | R133: 0 | S133: 0 | T133: 0 | U133: 0 | V133: 0 | W133: 0 | X133: 0 | Y133: 1 | Z133: 0 | AA133: =AVERAGE(LARGE((W$6:W132+X$6:X132)*Y$6:Y132*(E$6:E132=E133), ROW(INDIRECT("A1:A35"))))/(12*Y133) -> 0 | AB133: 1 | AC133: 0 | AD133: 0 | AE133: 0 | AF133: 0 | AL133: 0
B134: 2018 | C134: N | E134: 1 | F134: 0 | G134: =MOD($E134,2)-($E134-1) -> 1 | H134: 0 | I134: 0 | J134: 1 | O134: =IF(IF(COLUMN()=COLUMN(K134),TRUE,ISBLANK(K134)), IF(OR($I134=0,$J134=0),0,IF($B134=SP_CurrentYear, 0, IF($B134>SP_CurrentYear, $O132*(1+INDEX(SP_EA_InflationWageRate, EAIDX-1)+INDEX(SP_IncomeEmployerAdj, $E134)), $O136/(1+INDEX(SP_EA_InflationWageRate, EAIDX)+INDEX(SP_IncomeEmployerAdj, $E134))))), K134) -> 0 | P134: =IF(IF(COLUMN()=COLUMN(L134),TRUE,ISBLANK(L134)), IF(OR($I134=0,$J134=0),0,IF($B134=SP_CurrentYear, 0, IF($B134>SP_CurrentYear, $P132*(1+INDEX(SP_EA_InflationWageRate, EAIDX-1)+INDEX(SP_IncomeSEAdj, $E134)), 0))), L134) -> 0 | Q134: =IF(IF(COLUMN()=COLUMN(M134),TRUE,ISBLANK(M134)), IF($B134=SP_CurrentYear, 0, IF($B134>SP_CurrentYear, $Q132*(1+INDEX(SP_EA_InflationWageRate, EAIDX-1)+INDEX(SP_IncomePassiveAdj, $E134)), 0)), M134) -> 0 | R134: =IF(IF(COLUMN()=COLUMN(N134),TRUE,ISBLANK(N134)), IF($B134=SP_CurrentYear,(-INDEX(SC_ExpensesLivingPF,$E134,1)*ABS($J134)-INDEX(SC_ExpensesLivingPF,$E134,2)*(1-ABS($J134)))/INDEX(SC_EA_InflationCPIdx, EAIDX)*12, IF($B134>SP_CurrentYear, $R132*(1+INDEX(SP_EA_InflationCPRate, EAIDX-1)), IF($O134=0, 0,$R136/(1+INDEX(SP_EA_InflationCPRate, EAIDX)))))*ABS($J134), N134) -> 0 | S134: =O134*ABS($J134) -> 0 | T134: =P134*ABS($J134) -> 0 | U134: =MAX(S134-ABS($R134)*ABS($J134), 0) -> 0 | V134: =MAX(T134-MAX(ABS($R134)*ABS($J134)-O134, 0),0) -> 0 | W134: =IF($H134=0, 0, MAX(MIN(S134-ABS($R134)*ABS($J134), INDEX(SC_EA_SSWageBase, EAIDX)), 0)) -> 0 | X134: =IF($H134=0, 0, MIN(MAX(T134-MAX(ABS($R134)*ABS($J134)-O134, 0),0), INDEX(SC_EA_SSWageBase, EAIDX)-W134)) -> 0 | Y134: =IF($H134=0,1,IF($B134>=INDEX(SC_SSBaseYear,$E134),1,Y136*(INDEX(SP_EA_InflationWageRate, EAIDX+1)+1))) -> 1 | Z134: =IF($H134=0, 0, ROUNDDOWN(MIN((W134+X134)*Y134,LT_SSMaxCredit*Y134)/(LT_SSOneCredit*Y134), 0)) -> 0 | AA134: =AVERAGE(LARGE((W$6:W133+X$6:X133)*Y$6:Y133*(E$6:E133=E134), ROW(INDIRECT("A1:A35"))))/(12*Y134) -> 0 | AB134: =IF($H134>0, IF($B134<=INDEX(SC_SSBaseYear,$E134)+2,Y134,1/(1/AB132*(INDEX(SC_EA_SSCOLA, EAIDX-1)+1))), 1) -> 1 | AC134: =IF(INDEX(SP_PensionSWD,$E134)="",0,IF(YEAR(INDEX(SP_PensionSWD,$E134))>$B134,0,YEARFRAC(INDEX(SP_PensionSWD,$E134), MIN(DATE($B134+1,1,1),SP_TargetRD)))) -> 0 | AD134: =IF(AND(AC134>0, $B134=SC_TargetRY, INDEX(SP_PensionFAE,$E134)>0),SUMIF(OFFSET(E134,-MIN(INDEX(SP_PensionFAE,$E134),AC134)*2,0,MIN(INDEX(SP_PensionFAE,$E134),AC134)*2),$E134,OFFSET(O134,-MIN(INDEX(SP_PensionFAE,$E134),AC134)*2,0,MIN(INDEX(SP_PensionFAE,$E134),AC134)*2))/MIN(INDEX(SP_PensionFAE,$E134),AC134)*INDEX(SP_PensionPCT,$E134)*AC134,0) -> 0 | AE134: =$S134+$T134 -> 0 | AF134: =$Q134 -> 0 | AG134: =SUMIFS($AD134:$AD135,SP_PensionPayout,"Lump sum",$F134:$F135,"<>0") -> 0 | AH134: =SUMIFS($AD134:$AD135,SP_PensionPayout,"Annuity",$F134:$F135,"<>0") -> 0 | AI134: =IF(ISBLANK(INDEX(SP_SSPBFA,1)),0,IF($H134<>INDEX(SP_SSPBFA,1),AI132,SP_AdditionalRI/INDEX(SC_EA_InflationWageIdx,EAIDX))) -> 0 | AJ134: =SUMPRODUCT(AE134:AE135, --(E134:E135<>0)) -> 0 | AK134: =SUMPRODUCT(AF134:AF135, --(F134:F135<>0))+AI134 -> 0 | AL134: =IFERROR(IF(OR(NOT(ISNUMBER($O134)),$O134<0,NOT(ISNUMBER($P134)),$P134<0,NOT(ISNUMBER($Q134)),$Q134<0,NOT(ISNUMBER($R134)),$R134<0),202,0),203) -> 0 | AM134: =IFERROR(VLOOKUP(AL134,IV_CodeTable,2,FALSE),"") -> 
B135: =B133+1 -> 2018 | C135: N | E135: 2 | F135: 0 | G135: -1 | H135: 0 | I135: 0 | J135: 1 | O135: 0 | P135: 0 | Q135: 0 | R135: 0 | S135: 0 | T135: 0 | U135: 0 | V135: 0 | W135: 0 | X135: 0 | Y135: 1 | Z135: 0 | AA135: =AVERAGE(LARGE((W$6:W134+X$6:X134)*Y$6:Y134*(E$6:E134=E135), ROW(INDIRECT("A1:A35"))))/(12*Y135) -> 0 | AB135: 1 | AC135: 0 | AD135: 0 | AE135: 0 | AF135: 0 | AL135: 0
B136: 2019 | C136: N | E136: 1 | F136: 0 | G136: 1 | H136: 0 | I136: 0 | J136: 1 | O136: 0 | P136: 0 | Q136: 0 | R136: 0 | S136: 0 | T136: 0 | U136: 0 | V136: 0 | W136: 0 | X136: 0 | Y136: 1 | Z136: 0 | AA136: =AVERAGE(LARGE((W$6:W135+X$6:X135)*Y$6:Y135*(E$6:E135=E136), ROW(INDIRECT("A1:A35"))))/(12*Y136) -> 0 | AB136: 1 | AC136: 0 | AD136: 0 | AE136: 0 | AF136: 0 | AG136: =SUMIFS($AD136:$AD137,SP_PensionPayout,"Lump sum",$F136:$F137,"<>0") -> 0 | AH136: =SUMIFS($AD136:$AD137,SP_PensionPayout,"Annuity",$F136:$F137,"<>0") -> 0 | AI136: =IF(ISBLANK(INDEX(SP_SSPBFA,1)),0,IF($H136<>INDEX(SP_SSPBFA,1),AI134,SP_AdditionalRI/INDEX(SC_EA_InflationWageIdx,EAIDX))) -> 0 | AJ136: =SUMPRODUCT(AE136:AE137, --(E136:E137<>0)) -> 0 | AK136: =SUMPRODUCT(AF136:AF137, --(F136:F137<>0))+AI136 -> 0 | AL136: 0
B137: 2019 | C137: N | E137: 2 | F137: 0 | G137: -1 | H137: 0 | I137: 0 | J137: 1 | O137: 0 | P137: 0 | Q137: 0 | R137: 0 | S137: 0 | T137: 0 | U137: 0 | V137: 0 | W137: 0 | X137: 0 | Y137: 1 | Z137: 0 | AA137: =AVERAGE(LARGE((W$6:W136+X$6:X136)*Y$6:Y136*(E$6:E136=E137), ROW(INDIRECT("A1:A35"))))/(12*Y137) -> 0 | AB137: 1 | AC137: 0 | AD137: 0 | AE137: 0 | AF137: 0 | AL137: 0
B138: 2020 | C138: N | E138: 1 | F138: 0 | G138: 1 | H138: 0 | I138: 0 | J138: 1 | O138: 0 | P138: 0 | Q138: 0 | R138: 0 | S138: 0 | T138: 0 | U138: 0 | V138: 0 | W138: 0 | X138: 0 | Y138: 1 | Z138: 0 | AA138: =AVERAGE(LARGE((W$6:W137+X$6:X137)*Y$6:Y137*(E$6:E137=E138), ROW(INDIRECT("A1:A35"))))/(12*Y138) -> 0 | AB138: 1 | AC138: 0 | AD138: 0 | AE138: 0 | AF138: 0 | AG138: =SUMIFS($AD138:$AD139,SP_PensionPayout,"Lump sum",$F138:$F139,"<>0") -> 0 | AH138: =SUMIFS($AD138:$AD139,SP_PensionPayout,"Annuity",$F138:$F139,"<>0") -> 0 | AI138: =IF(ISBLANK(INDEX(SP_SSPBFA,1)),0,IF($H138<>INDEX(SP_SSPBFA,1),AI136,SP_AdditionalRI/INDEX(SC_EA_InflationWageIdx,EAIDX))) -> 0 | AJ138: =SUMPRODUCT(AE138:AE139, --(E138:E139<>0)) -> 0 | AK138: =SUMPRODUCT(AF138:AF139, --(F138:F139<>0))+AI138 -> 0 | AL138: 0
B139: 2020 | C139: N | E139: 2 | F139: 0 | G139: -1 | H139: 0 | I139: 0 | J139: 1 | O139: 0 | P139: 0 | Q139: 0 | R139: 0 | S139: 0 | T139: 0 | U139: 0 | V139: 0 | W139: 0 | X139: 0 | Y139: 1 | Z139: 0 | AA139: =AVERAGE(LARGE((W$6:W138+X$6:X138)*Y$6:Y138*(E$6:E138=E139), ROW(INDIRECT("A1:A35"))))/(12*Y139) -> 0 | AB139: 1 | AC139: 0 | AD139: 0 | AE139: 0 | AF139: 0 | AL139: 0
B140: 2021 | C140: N | E140: 1 | F140: 0 | G140: 1 | H140: 0 | I140: 0 | J140: 0 | O140: 0 | P140: 0 | Q140: 0 | R140: 0 | S140: 0 | T140: 0 | U140: 0 | V140: 0 | W140: 0 | X140: 0 | Y140: 1 | Z140: 0 | AA140: =AVERAGE(LARGE((W$6:W139+X$6:X139)*Y$6:Y139*(E$6:E139=E140), ROW(INDIRECT("A1:A35"))))/(12*Y140) -> 0 | AB140: 1 | AC140: 0 | AD140: 0 | AE140: 0 | AF140: 0 | AG140: =SUMIFS($AD140:$AD141,SP_PensionPayout,"Lump sum",$F140:$F141,"<>0") -> 0 | AH140: =SUMIFS($AD140:$AD141,SP_PensionPayout,"Annuity",$F140:$F141,"<>0") -> 0 | AI140: =IF(ISBLANK(INDEX(SP_SSPBFA,1)),0,IF($H140<>INDEX(SP_SSPBFA,1),AI138,SP_AdditionalRI/INDEX(SC_EA_InflationWageIdx,EAIDX))) -> 0 | AJ140: =SUMPRODUCT(AE140:AE141, --(E140:E141<>0)) -> 0 | AK140: =SUMPRODUCT(AF140:AF141, --(F140:F141<>0))+AI140 -> 0 | AL140: 0
B141: 2021 | C141: N | E141: 2 | F141: 0 | G141: -1 | H141: 0 | I141: 0 | J141: 0 | O141: 0 | P141: 0 | Q141: 0 | R141: 0 | S141: 0 | T141: 0 | U141: 0 | V141: 0 | W141: 0 | X141: 0 | Y141: 1 | Z141: 0 | AA141: =AVERAGE(LARGE((W$6:W140+X$6:X140)*Y$6:Y140*(E$6:E140=E141), ROW(INDIRECT("A1:A35"))))/(12*Y141) -> 0 | AB141: 1 | AC141: 0 | AD141: 0 | AE141: 0 | AF141: 0 | AL141: 0
B142: 2022 | C142: N | E142: 1 | F142: 0 | G142: 1 | H142: 0 | I142: 0 | J142: 0 | O142: 0 | P142: 0 | Q142: 0 | R142: 0 | S142: 0 | T142: 0 | U142: 0 | V142: 0 | W142: 0 | X142: 0 | Y142: 1 | Z142: 0 | AA142: =AVERAGE(LARGE((W$6:W141+X$6:X141)*Y$6:Y141*(E$6:E141=E142), ROW(INDIRECT("A1:A35"))))/(12*Y142) -> 0 | AB142: 1 | AC142: 0 | AD142: 0 | AE142: 0 | AF142: 0 | AG142: =SUMIFS($AD142:$AD143,SP_PensionPayout,"Lump sum",$F142:$F143,"<>0") -> 0 | AH142: =SUMIFS($AD142:$AD143,SP_PensionPayout,"Annuity",$F142:$F143,"<>0") -> 0 | AI142: =IF(ISBLANK(INDEX(SP_SSPBFA,1)),0,IF($H142<>INDEX(SP_SSPBFA,1),AI140,SP_AdditionalRI/INDEX(SC_EA_InflationWageIdx,EAIDX))) -> 0 | AJ142: =SUMPRODUCT(AE142:AE143, --(E142:E143<>0)) -> 0 | AK142: =SUMPRODUCT(AF142:AF143, --(F142:F143<>0))+AI142 -> 0 | AL142: 0
B143: 2022 | C143: N | E143: 2 | F143: 0 | G143: -1 | H143: 0 | I143: 0 | J143: 0 | O143: 0 | P143: 0 | Q143: 0 | R143: 0 | S143: 0 | T143: 0 | U143: 0 | V143: 0 | W143: 0 | X143: 0 | Y143: 1 | Z143: 0 | AA143: =AVERAGE(LARGE((W$6:W142+X$6:X142)*Y$6:Y142*(E$6:E142=E143), ROW(INDIRECT("A1:A35"))))/(12*Y143) -> 0 | AB143: 1 | AC143: 0 | AD143: 0 | AE143: 0 | AF143: 0 | AL143: 0
B144: 2023 | C144: N | E144: 1 | F144: 0 | G144: 1 | H144: 0 | I144: 0 | J144: 0 | O144: 0 | P144: 0 | Q144: 0 | R144: 0 | S144: 0 | T144: 0 | U144: 0 | V144: 0 | W144: 0 | X144: 0 | Y144: 1 | Z144: 0 | AA144: =AVERAGE(LARGE((W$6:W143+X$6:X143)*Y$6:Y143*(E$6:E143=E144), ROW(INDIRECT("A1:A35"))))/(12*Y144) -> 0 | AB144: 1 | AC144: 0 | AD144: 0 | AE144: 0 | AF144: 0 | AG144: =SUMIFS($AD144:$AD145,SP_PensionPayout,"Lump sum",$F144:$F145,"<>0") -> 0 | AH144: =SUMIFS($AD144:$AD145,SP_PensionPayout,"Annuity",$F144:$F145,"<>0") -> 0 | AI144: =IF(ISBLANK(INDEX(SP_SSPBFA,1)),0,IF($H144<>INDEX(SP_SSPBFA,1),AI142,SP_AdditionalRI/INDEX(SC_EA_InflationWageIdx,EAIDX))) -> 0 | AJ144: =SUMPRODUCT(AE144:AE145, --(E144:E145<>0)) -> 0 | AK144: =SUMPRODUCT(AF144:AF145, --(F144:F145<>0))+AI144 -> 0 | AL144: 0
B145: 2023 | C145: N | E145: 2 | F145: 0 | G145: -1 | H145: 0 | I145: 0 | J145: 0 | O145: 0 | P145: 0 | Q145: 0 | R145: 0 | S145: 0 | T145: 0 | U145: 0 | V145: 0 | W145: 0 | X145: 0 | Y145: 1 | Z145: 0 | AA145: =AVERAGE(LARGE((W$6:W144+X$6:X144)*Y$6:Y144*(E$6:E144=E145), ROW(INDIRECT("A1:A35"))))/(12*Y145) -> 0 | AB145: 1 | AC145: 0 | AD145: 0 | AE145: 0 | AF145: 0 | AL145: 0
B146: 2024 | C146: N | E146: 1 | F146: 0 | G146: 1 | H146: 0 | I146: 0 | J146: 0 | O146: 0 | P146: 0 | Q146: 0 | R146: 0 | S146: 0 | T146: 0 | U146: 0 | V146: 0 | W146: 0 | X146: 0 | Y146: 1 | Z146: 0 | AA146: =AVERAGE(LARGE((W$6:W145+X$6:X145)*Y$6:Y145*(E$6:E145=E146), ROW(INDIRECT("A1:A35"))))/(12*Y146) -> 0 | AB146: 1 | AC146: 0 | AD146: 0 | AE146: 0 | AF146: 0 | AG146: =SUMIFS($AD146:$AD147,SP_PensionPayout,"Lump sum",$F146:$F147,"<>0") -> 0 | AH146: =SUMIFS($AD146:$AD147,SP_PensionPayout,"Annuity",$F146:$F147,"<>0") -> 0 | AI146: =IF(ISBLANK(INDEX(SP_SSPBFA,1)),0,IF($H146<>INDEX(SP_SSPBFA,1),AI144,SP_AdditionalRI/INDEX(SC_EA_InflationWageIdx,EAIDX))) -> 0 | AJ146: =SUMPRODUCT(AE146:AE147, --(E146:E147<>0)) -> 0 | AK146: =SUMPRODUCT(AF146:AF147, --(F146:F147<>0))+AI146 -> 0 | AL146: 0
B147: 2024 | C147: N | E147: 2 | F147: 0 | G147: -1 | H147: 0 | I147: 0 | J147: 0 | O147: 0 | P147: 0 | Q147: 0 | R147: 0 | S147: 0 | T147: 0 | U147: 0 | V147: 0 | W147: 0 | X147: 0 | Y147: 1 | Z147: 0 | AA147: =AVERAGE(LARGE((W$6:W146+X$6:X146)*Y$6:Y146*(E$6:E146=E147), ROW(INDIRECT("A1:A35"))))/(12*Y147) -> 0 | AB147: 1 | AC147: 0 | AD147: 0 | AE147: 0 | AF147: 0 | AL147: 0
B148: 2025 | C148: N | E148: 1 | F148: 0 | G148: 1 | H148: 0 | I148: 0 | J148: 0 | O148: 0 | P148: 0 | Q148: 0 | R148: 0 | S148: 0 | T148: 0 | U148: 0 | V148: 0 | W148: 0 | X148: 0 | Y148: 1 | Z148: 0 | AA148: =AVERAGE(LARGE((W$6:W147+X$6:X147)*Y$6:Y147*(E$6:E147=E148), ROW(INDIRECT("A1:A35"))))/(12*Y148) -> 0 | AB148: 1 | AC148: 0 | AD148: 0 | AE148: 0 | AF148: 0 | AG148: =SUMIFS($AD148:$AD149,SP_PensionPayout,"Lump sum",$F148:$F149,"<>0") -> 0 | AH148: =SUMIFS($AD148:$AD149,SP_PensionPayout,"Annuity",$F148:$F149,"<>0") -> 0 | AI148: =IF(ISBLANK(INDEX(SP_SSPBFA,1)),0,IF($H148<>INDEX(SP_SSPBFA,1),AI146,SP_AdditionalRI/INDEX(SC_EA_InflationWageIdx,EAIDX))) -> 0 | AJ148: =SUMPRODUCT(AE148:AE149, --(E148:E149<>0)) -> 0 | AK148: =SUMPRODUCT(AF148:AF149, --(F148:F149<>0))+AI148 -> 0 | AL148: 0
B149: 2025 | C149: N | E149: 2 | F149: 0 | G149: -1 | H149: 0 | I149: 0 | J149: 0 | O149: 0 | P149: 0 | Q149: 0 | R149: 0 | S149: 0 | T149: 0 | U149: 0 | V149: 0 | W149: 0 | X149: 0 | Y149: 1 | Z149: 0 | AA149: =AVERAGE(LARGE((W$6:W148+X$6:X148)*Y$6:Y148*(E$6:E148=E149), ROW(INDIRECT("A1:A35"))))/(12*Y149) -> 0 | AB149: 1 | AC149: 0 | AD149: 0 | AE149: 0 | AF149: 0 | AL149: 0
B150: 2026 | C150: N | E150: 1 | F150: 0 | G150: 1 | H150: 0 | I150: 0 | J150: 0 | O150: 0 | P150: 0 | Q150: 0 | R150: 0 | S150: 0 | T150: 0 | U150: 0 | V150: 0 | W150: 0 | X150: 0 | Y150: 1 | Z150: 0 | AA150: =AVERAGE(LARGE((W$6:W149+X$6:X149)*Y$6:Y149*(E$6:E149=E150), ROW(INDIRECT("A1:A35"))))/(12*Y150) -> 0 | AB150: 1 | AC150: 0 | AD150: 0 | AE150: 0 | AF150: 0 | AG150: =SUMIFS($AD150:$AD151,SP_PensionPayout,"Lump sum",$F150:$F151,"<>0") -> 0 | AH150: =SUMIFS($AD150:$AD151,SP_PensionPayout,"Annuity",$F150:$F151,"<>0") -> 0 | AI150: =IF(ISBLANK(INDEX(SP_SSPBFA,1)),0,IF($H150<>INDEX(SP_SSPBFA,1),AI148,SP_AdditionalRI/INDEX(SC_EA_InflationWageIdx,EAIDX))) -> 0 | AJ150: =SUMPRODUCT(AE150:AE151, --(E150:E151<>0)) -> 0 | AK150: =SUMPRODUCT(AF150:AF151, --(F150:F151<>0))+AI150 -> 0 | AL150: 0
B151: 2026 | C151: N | E151: 2 | F151: 0 | G151: -1 | H151: 0 | I151: 0 | J151: 0 | O151: 0 | P151: 0 | Q151: 0 | R151: 0 | S151: 0 | T151: 0 | U151: 0 | V151: 0 | W151: 0 | X151: 0 | Y151: 1 | Z151: 0 | AA151: =AVERAGE(LARGE((W$6:W150+X$6:X150)*Y$6:Y150*(E$6:E150=E151), ROW(INDIRECT("A1:A35"))))/(12*Y151) -> 0 | AB151: 1 | AC151: 0 | AD151: 0 | AE151: 0 | AF151: 0 | AL151: 0
B152: 2027 | C152: N | E152: 1 | F152: 0 | G152: 1 | H152: 0 | I152: 0 | J152: 0 | O152: 0 | P152: 0 | Q152: 0 | R152: 0 | S152: 0 | T152: 0 | U152: 0 | V152: 0 | W152: 0 | X152: 0 | Y152: 1 | Z152: 0 | AA152: =AVERAGE(LARGE((W$6:W151+X$6:X151)*Y$6:Y151*(E$6:E151=E152), ROW(INDIRECT("A1:A35"))))/(12*Y152) -> 0 | AB152: 1 | AC152: 0 | AD152: 0 | AE152: 0 | AF152: 0 | AG152: =SUMIFS($AD152:$AD153,SP_PensionPayout,"Lump sum",$F152:$F153,"<>0") -> 0 | AH152: =SUMIFS($AD152:$AD153,SP_PensionPayout,"Annuity",$F152:$F153,"<>0") -> 0 | AI152: =IF(ISBLANK(INDEX(SP_SSPBFA,1)),0,IF($H152<>INDEX(SP_SSPBFA,1),AI150,SP_AdditionalRI/INDEX(SC_EA_InflationWageIdx,EAIDX))) -> 0 | AJ152: =SUMPRODUCT(AE152:AE153, --(E152:E153<>0)) -> 0 | AK152: =SUMPRODUCT(AF152:AF153, --(F152:F153<>0))+AI152 -> 0 | AL152: 0
B153: 2027 | C153: N | E153: 2 | F153: 0 | G153: -1 | H153: 0 | I153: 0 | J153: 0 | O153: 0 | P153: 0 | Q153: 0 | R153: 0 | S153: 0 | T153: 0 | U153: 0 | V153: 0 | W153: 0 | X153: 0 | Y153: 1 | Z153: 0 | AA153: =AVERAGE(LARGE((W$6:W152+X$6:X152)*Y$6:Y152*(E$6:E152=E153), ROW(INDIRECT("A1:A35"))))/(12*Y153) -> 0 | AB153: 1 | AC153: 0 | AD153: 0 | AE153: 0 | AF153: 0 | AL153: 0
B154: 2028 | C154: N | E154: 1 | F154: 0 | G154: 1 | H154: 0 | I154: 0 | J154: 0 | O154: 0 | P154: 0 | Q154: 0 | R154: 0 | S154: 0 | T154: 0 | U154: 0 | V154: 0 | W154: 0 | X154: 0 | Y154: 1 | Z154: 0 | AA154: =AVERAGE(LARGE((W$6:W153+X$6:X153)*Y$6:Y153*(E$6:E153=E154), ROW(INDIRECT("A1:A35"))))/(12*Y154) -> 0 | AB154: 1 | AC154: 0 | AD154: 0 | AE154: 0 | AF154: 0 | AG154: =SUMIFS($AD154:$AD155,SP_PensionPayout,"Lump sum",$F154:$F155,"<>0") -> 0 | AH154: =SUMIFS($AD154:$AD155,SP_PensionPayout,"Annuity",$F154:$F155,"<>0") -> 0 | AI154: =IF(ISBLANK(INDEX(SP_SSPBFA,1)),0,IF($H154<>INDEX(SP_SSPBFA,1),AI152,SP_AdditionalRI/INDEX(SC_EA_InflationWageIdx,EAIDX))) -> 0 | AJ154: =SUMPRODUCT(AE154:AE155, --(E154:E155<>0)) -> 0 | AK154: =SUMPRODUCT(AF154:AF155, --(F154:F155<>0))+AI154 -> 0 | AL154: 0
B155: 2028 | C155: N | E155: 2 | F155: 0 | G155: -1 | H155: 0 | I155: 0 | J155: 0 | O155: 0 | P155: 0 | Q155: 0 | R155: 0 | S155: 0 | T155: 0 | U155: 0 | V155: 0 | W155: 0 | X155: 0 | Y155: 1 | Z155: 0 | AA155: =AVERAGE(LARGE((W$6:W154+X$6:X154)*Y$6:Y154*(E$6:E154=E155), ROW(INDIRECT("A1:A35"))))/(12*Y155) -> 0 | AB155: 1 | AC155: 0 | AD155: 0 | AE155: 0 | AF155: 0 | AL155: 0
B156: 2029 | C156: N | E156: 1 | F156: 0 | G156: 1 | H156: 0 | I156: 0 | J156: 0 | O156: 0 | P156: 0 | Q156: 0 | R156: 0 | S156: 0 | T156: 0 | U156: 0 | V156: 0 | W156: 0 | X156: 0 | Y156: 1 | Z156: 0 | AA156: =AVERAGE(LARGE((W$6:W155+X$6:X155)*Y$6:Y155*(E$6:E155=E156), ROW(INDIRECT("A1:A35"))))/(12*Y156) -> 0 | AB156: 1 | AC156: 0 | AD156: 0 | AE156: 0 | AF156: 0 | AG156: =SUMIFS($AD156:$AD157,SP_PensionPayout,"Lump sum",$F156:$F157,"<>0") -> 0 | AH156: =SUMIFS($AD156:$AD157,SP_PensionPayout,"Annuity",$F156:$F157,"<>0") -> 0 | AI156: =IF(ISBLANK(INDEX(SP_SSPBFA,1)),0,IF($H156<>INDEX(SP_SSPBFA,1),AI154,SP_AdditionalRI/INDEX(SC_EA_InflationWageIdx,EAIDX))) -> 0 | AJ156: =SUMPRODUCT(AE156:AE157, --(E156:E157<>0)) -> 0 | AK156: =SUMPRODUCT(AF156:AF157, --(F156:F157<>0))+AI156 -> 0 | AL156: 0
B157: 2029 | C157: N | E157: 2 | F157: 0 | G157: -1 | H157: 0 | I157: 0 | J157: 0 | O157: 0 | P157: 0 | Q157: 0 | R157: 0 | S157: 0 | T157: 0 | U157: 0 | V157: 0 | W157: 0 | X157: 0 | Y157: 1 | Z157: 0 | AA157: =AVERAGE(LARGE((W$6:W156+X$6:X156)*Y$6:Y156*(E$6:E156=E157), ROW(INDIRECT("A1:A35"))))/(12*Y157) -> 0 | AB157: 1 | AC157: 0 | AD157: 0 | AE157: 0 | AF157: 0 | AL157: 0
B158: 2030 | C158: N | E158: 1 | F158: 0 | G158: 1 | H158: 0 | I158: 0 | J158: 0 | O158: 0 | P158: 0 | Q158: 0 | R158: 0 | S158: 0 | T158: 0 | U158: 0 | V158: 0 | W158: 0 | X158: 0 | Y158: 1 | Z158: 0 | AA158: =AVERAGE(LARGE((W$6:W157+X$6:X157)*Y$6:Y157*(E$6:E157=E158), ROW(INDIRECT("A1:A35"))))/(12*Y158) -> 0 | AB158: 1 | AC158: 0 | AD158: 0 | AE158: 0 | AF158: 0 | AG158: =SUMIFS($AD158:$AD159,SP_PensionPayout,"Lump sum",$F158:$F159,"<>0") -> 0 | AH158: =SUMIFS($AD158:$AD159,SP_PensionPayout,"Annuity",$F158:$F159,"<>0") -> 0 | AI158: =IF(ISBLANK(INDEX(SP_SSPBFA,1)),0,IF($H158<>INDEX(SP_SSPBFA,1),AI156,SP_AdditionalRI/INDEX(SC_EA_InflationWageIdx,EAIDX))) -> 0 | AJ158: =SUMPRODUCT(AE158:AE159, --(E158:E159<>0)) -> 0 | AK158: =SUMPRODUCT(AF158:AF159, --(F158:F159<>0))+AI158 -> 0 | AL158: 0
B159: 2030 | C159: N | E159: 2 | F159: 0 | G159: -1 | H159: 0 | I159: 0 | J159: 0 | O159: 0 | P159: 0 | Q159: 0 | R159: 0 | S159: 0 | T159: 0 | U159: 0 | V159: 0 | W159: 0 | X159: 0 | Y159: 1 | Z159: 0 | AA159: =AVERAGE(LARGE((W$6:W158+X$6:X158)*Y$6:Y158*(E$6:E158=E159), ROW(INDIRECT("A1:A35"))))/(12*Y159) -> 0 | AB159: 1 | AC159: 0 | AD159: 0 | AE159: 0 | AF159: 0 | AL159: 0
B160: 2031 | C160: N | E160: 1 | F160: 0 | G160: 1 | H160: 0 | I160: 0 | J160: 0 | O160: 0 | P160: 0 | Q160: 0 | R160: 0 | S160: 0 | T160: 0 | U160: 0 | V160: 0 | W160: 0 | X160: 0 | Y160: 1 | Z160: 0 | AA160: =AVERAGE(LARGE((W$6:W159+X$6:X159)*Y$6:Y159*(E$6:E159=E160), ROW(INDIRECT("A1:A35"))))/(12*Y160) -> 0 | AB160: 1 | AC160: 0 | AD160: 0 | AE160: 0 | AF160: 0 | AG160: =SUMIFS($AD160:$AD161,SP_PensionPayout,"Lump sum",$F160:$F161,"<>0") -> 0 | AH160: =SUMIFS($AD160:$AD161,SP_PensionPayout,"Annuity",$F160:$F161,"<>0") -> 0 | AI160: =IF(ISBLANK(INDEX(SP_SSPBFA,1)),0,IF($H160<>INDEX(SP_SSPBFA,1),AI158,SP_AdditionalRI/INDEX(SC_EA_InflationWageIdx,EAIDX))) -> 0 | AJ160: =SUMPRODUCT(AE160:AE161, --(E160:E161<>0)) -> 0 | AK160: =SUMPRODUCT(AF160:AF161, --(F160:F161<>0))+AI160 -> 0 | AL160: 0
B161: 2031 | C161: N | E161: 2 | F161: 0 | G161: -1 | H161: 0 | I161: 0 | J161: 0 | O161: 0 | P161: 0 | Q161: 0 | R161: 0 | S161: 0 | T161: 0 | U161: 0 | V161: 0 | W161: 0 | X161: 0 | Y161: 1 | Z161: 0 | AA161: =AVERAGE(LARGE((W$6:W160+X$6:X160)*Y$6:Y160*(E$6:E160=E161), ROW(INDIRECT("A1:A35"))))/(12*Y161) -> 0 | AB161: 1 | AC161: 0 | AD161: 0 | AE161: 0 | AF161: 0 | AL161: 0
B162: 2032 | C162: N | E162: 1 | F162: 0 | G162: 1 | H162: 0 | I162: 0 | J162: 0 | O162: 0 | P162: 0 | Q162: 0 | R162: 0 | S162: 0 | T162: 0 | U162: 0 | V162: 0 | W162: 0 | X162: 0 | Y162: 1 | Z162: 0 | AA162: =AVERAGE(LARGE((W$6:W161+X$6:X161)*Y$6:Y161*(E$6:E161=E162), ROW(INDIRECT("A1:A35"))))/(12*Y162) -> 0 | AB162: 1 | AC162: 0 | AD162: 0 | AE162: 0 | AF162: 0 | AG162: =SUMIFS($AD162:$AD163,SP_PensionPayout,"Lump sum",$F162:$F163,"<>0") -> 0 | AH162: =SUMIFS($AD162:$AD163,SP_PensionPayout,"Annuity",$F162:$F163,"<>0") -> 0 | AI162: =IF(ISBLANK(INDEX(SP_SSPBFA,1)),0,IF($H162<>INDEX(SP_SSPBFA,1),AI160,SP_AdditionalRI/INDEX(SC_EA_InflationWageIdx,EAIDX))) -> 0 | AJ162: =SUMPRODUCT(AE162:AE163, --(E162:E163<>0)) -> 0 | AK162: =SUMPRODUCT(AF162:AF163, --(F162:F163<>0))+AI162 -> 0 | AL162: 0
B163: 2032 | C163: N | E163: 2 | F163: 0 | G163: -1 | H163: 0 | I163: 0 | J163: 0 | O163: 0 | P163: 0 | Q163: 0 | R163: 0 | S163: 0 | T163: 0 | U163: 0 | V163: 0 | W163: 0 | X163: 0 | Y163: 1 | Z163: 0 | AA163: =AVERAGE(LARGE((W$6:W162+X$6:X162)*Y$6:Y162*(E$6:E162=E163), ROW(INDIRECT("A1:A35"))))/(12*Y163) -> 0 | AB163: 1 | AC163: 0 | AD163: 0 | AE163: 0 | AF163: 0 | AL163: 0
B164: 2033 | C164: N | E164: 1 | F164: 0 | G164: 1 | H164: 0 | I164: 0 | J164: 0 | O164: 0 | P164: 0 | Q164: 0 | R164: 0 | S164: 0 | T164: 0 | U164: 0 | V164: 0 | W164: 0 | X164: 0 | Y164: 1 | Z164: 0 | AA164: =AVERAGE(LARGE((W$6:W163+X$6:X163)*Y$6:Y163*(E$6:E163=E164), ROW(INDIRECT("A1:A35"))))/(12*Y164) -> 0 | AB164: 1 | AC164: 0 | AD164: 0 | AE164: 0 | AF164: 0 | AG164: =SUMIFS($AD164:$AD165,SP_PensionPayout,"Lump sum",$F164:$F165,"<>0") -> 0 | AH164: =SUMIFS($AD164:$AD165,SP_PensionPayout,"Annuity",$F164:$F165,"<>0") -> 0 | AI164: =IF(ISBLANK(INDEX(SP_SSPBFA,1)),0,IF($H164<>INDEX(SP_SSPBFA,1),AI162,SP_AdditionalRI/INDEX(SC_EA_InflationWageIdx,EAIDX))) -> 0 | AJ164: =SUMPRODUCT(AE164:AE165, --(E164:E165<>0)) -> 0 | AK164: =SUMPRODUCT(AF164:AF165, --(F164:F165<>0))+AI164 -> 0 | AL164: 0
B165: 2033 | C165: N | E165: 2 | F165: 0 | G165: -1 | H165: 0 | I165: 0 | J165: 0 | O165: 0 | P165: 0 | Q165: 0 | R165: 0 | S165: 0 | T165: 0 | U165: 0 | V165: 0 | W165: 0 | X165: 0 | Y165: 1 | Z165: 0 | AA165: =AVERAGE(LARGE((W$6:W164+X$6:X164)*Y$6:Y164*(E$6:E164=E165), ROW(INDIRECT("A1:A35"))))/(12*Y165) -> 0 | AB165: 1 | AC165: 0 | AD165: 0 | AE165: 0 | AF165: 0 | AL165: 0
B166: 2034 | C166: N | E166: 1 | F166: 0 | G166: 1 | H166: 0 | I166: 0 | J166: 0 | O166: 0 | P166: 0 | Q166: 0 | R166: 0 | S166: 0 | T166: 0 | U166: 0 | V166: 0 | W166: 0 | X166: 0 | Y166: 1 | Z166: 0 | AA166: =AVERAGE(LARGE((W$6:W165+X$6:X165)*Y$6:Y165*(E$6:E165=E166), ROW(INDIRECT("A1:A35"))))/(12*Y166) -> 0 | AB166: 1 | AC166: 0 | AD166: 0 | AE166: 0 | AF166: 0 | AG166: =SUMIFS($AD166:$AD167,SP_PensionPayout,"Lump sum",$F166:$F167,"<>0") -> 0 | AH166: =SUMIFS($AD166:$AD167,SP_PensionPayout,"Annuity",$F166:$F167,"<>0") -> 0 | AI166: =IF(ISBLANK(INDEX(SP_SSPBFA,1)),0,IF($H166<>INDEX(SP_SSPBFA,1),AI164,SP_AdditionalRI/INDEX(SC_EA_InflationWageIdx,EAIDX))) -> 0 | AJ166: =SUMPRODUCT(AE166:AE167, --(E166:E167<>0)) -> 0 | AK166: =SUMPRODUCT(AF166:AF167, --(F166:F167<>0))+AI166 -> 0 | AL166: 0
B167: 2034 | C167: N | E167: 2 | F167: 0 | G167: -1 | H167: 0 | I167: 0 | J167: 0 | O167: 0 | P167: 0 | Q167: 0 | R167: 0 | S167: 0 | T167: 0 | U167: 0 | V167: 0 | W167: 0 | X167: 0 | Y167: 1 | Z167: 0 | AA167: =AVERAGE(LARGE((W$6:W166+X$6:X166)*Y$6:Y166*(E$6:E166=E167), ROW(INDIRECT("A1:A35"))))/(12*Y167) -> 0 | AB167: 1 | AC167: 0 | AD167: 0 | AE167: 0 | AF167: 0 | AL167: 0
B168: 2035 | C168: N | E168: 1 | F168: 0 | G168: 1 | H168: 0 | I168: 0 | J168: 0 | O168: 0 | P168: 0 | Q168: 0 | R168: 0 | S168: 0 | T168: 0 | U168: 0 | V168: 0 | W168: 0 | X168: 0 | Y168: 1 | Z168: 0 | AA168: =AVERAGE(LARGE((W$6:W167+X$6:X167)*Y$6:Y167*(E$6:E167=E168), ROW(INDIRECT("A1:A35"))))/(12*Y168) -> 0 | AB168: 1 | AC168: 0 | AD168: 0 | AE168: 0 | AF168: 0 | AG168: =SUMIFS($AD168:$AD169,SP_PensionPayout,"Lump sum",$F168:$F169,"<>0") -> 0 | AH168: =SUMIFS($AD168:$AD169,SP_PensionPayout,"Annuity",$F168:$F169,"<>0") -> 0 | AI168: =IF(ISBLANK(INDEX(SP_SSPBFA,1)),0,IF($H168<>INDEX(SP_SSPBFA,1),AI166,SP_AdditionalRI/INDEX(SC_EA_InflationWageIdx,EAIDX))) -> 0 | AJ168: =SUMPRODUCT(AE168:AE169, --(E168:E169<>0)) -> 0 | AK168: =SUMPRODUCT(AF168:AF169, --(F168:F169<>0))+AI168 -> 0 | AL168: 0
B169: 2035 | C169: N | E169: 2 | F169: 0 | G169: -1 | H169: 0 | I169: 0 | J169: 0 | O169: 0 | P169: 0 | Q169: 0 | R169: 0 | S169: 0 | T169: 0 | U169: 0 | V169: 0 | W169: 0 | X169: 0 | Y169: 1 | Z169: 0 | AA169: =AVERAGE(LARGE((W$6:W168+X$6:X168)*Y$6:Y168*(E$6:E168=E169), ROW(INDIRECT("A1:A35"))))/(12*Y169) -> 0 | AB169: 1 | AC169: 0 | AD169: 0 | AE169: 0 | AF169: 0 | AL169: 0
B170: 2036 | C170: N | E170: 1 | F170: 0 | G170: 1 | H170: 0 | I170: 0 | J170: 0 | O170: 0 | P170: 0 | Q170: 0 | R170: 0 | S170: 0 | T170: 0 | U170: 0 | V170: 0 | W170: 0 | X170: 0 | Y170: 1 | Z170: 0 | AA170: =AVERAGE(LARGE((W$6:W169+X$6:X169)*Y$6:Y169*(E$6:E169=E170), ROW(INDIRECT("A1:A35"))))/(12*Y170) -> 0 | AB170: 1 | AC170: 0 | AD170: 0 | AE170: 0 | AF170: 0 | AG170: =SUMIFS($AD170:$AD171,SP_PensionPayout,"Lump sum",$F170:$F171,"<>0") -> 0 | AH170: =SUMIFS($AD170:$AD171,SP_PensionPayout,"Annuity",$F170:$F171,"<>0") -> 0 | AI170: =IF(ISBLANK(INDEX(SP_SSPBFA,1)),0,IF($H170<>INDEX(SP_SSPBFA,1),AI168,SP_AdditionalRI/INDEX(SC_EA_InflationWageIdx,EAIDX))) -> 0 | AJ170: =SUMPRODUCT(AE170:AE171, --(E170:E171<>0)) -> 0 | AK170: =SUMPRODUCT(AF170:AF171, --(F170:F171<>0))+AI170 -> 0 | AL170: 0
B171: 2036 | C171: N | E171: 2 | F171: 0 | G171: -1 | H171: 0 | I171: 0 | J171: 0 | O171: 0 | P171: 0 | Q171: 0 | R171: 0 | S171: 0 | T171: 0 | U171: 0 | V171: 0 | W171: 0 | X171: 0 | Y171: 1 | Z171: 0 | AA171: =AVERAGE(LARGE((W$6:W170+X$6:X170)*Y$6:Y170*(E$6:E170=E171), ROW(INDIRECT("A1:A35"))))/(12*Y171) -> 0 | AB171: 1 | AC171: 0 | AD171: 0 | AE171: 0 | AF171: 0 | AL171: 0
B172: 2037 | C172: N | E172: 1 | F172: 0 | G172: 1 | H172: 0 | I172: 0 | J172: 0 | O172: 0 | P172: 0 | Q172: 0 | R172: 0 | S172: 0 | T172: 0 | U172: 0 | V172: 0 | W172: 0 | X172: 0 | Y172: 1 | Z172: 0 | AA172: =AVERAGE(LARGE((W$6:W171+X$6:X171)*Y$6:Y171*(E$6:E171=E172), ROW(INDIRECT("A1:A35"))))/(12*Y172) -> 0 | AB172: 1 | AC172: 0 | AD172: 0 | AE172: 0 | AF172: 0 | AG172: =SUMIFS($AD172:$AD173,SP_PensionPayout,"Lump sum",$F172:$F173,"<>0") -> 0 | AH172: =SUMIFS($AD172:$AD173,SP_PensionPayout,"Annuity",$F172:$F173,"<>0") -> 0 | AI172: =IF(ISBLANK(INDEX(SP_SSPBFA,1)),0,IF($H172<>INDEX(SP_SSPBFA,1),AI170,SP_AdditionalRI/INDEX(SC_EA_InflationWageIdx,EAIDX))) -> 0 | AJ172: =SUMPRODUCT(AE172:AE173, --(E172:E173<>0)) -> 0 | AK172: =SUMPRODUCT(AF172:AF173, --(F172:F173<>0))+AI172 -> 0 | AL172: 0
B173: 2037 | C173: N | E173: 2 | F173: 0 | G173: -1 | H173: 0 | I173: 0 | J173: 0 | O173: 0 | P173: 0 | Q173: 0 | R173: 0 | S173: 0 | T173: 0 | U173: 0 | V173: 0 | W173: 0 | X173: 0 | Y173: 1 | Z173: 0 | AA173: =AVERAGE(LARGE((W$6:W172+X$6:X172)*Y$6:Y172*(E$6:E172=E173), ROW(INDIRECT("A1:A35"))))/(12*Y173) -> 0 | AB173: 1 | AC173: 0 | AD173: 0 | AE173: 0 | AF173: 0 | AL173: 0
B174: 2038 | C174: N | E174: 1 | F174: 0 | G174: 1 | H174: 0 | I174: 0 | J174: 0 | O174: 0 | P174: 0 | Q174: 0 | R174: 0 | S174: 0 | T174: 0 | U174: 0 | V174: 0 | W174: 0 | X174: 0 | Y174: 1 | Z174: 0 | AA174: =AVERAGE(LARGE((W$6:W173+X$6:X173)*Y$6:Y173*(E$6:E173=E174), ROW(INDIRECT("A1:A35"))))/(12*Y174) -> 0 | AB174: 1 | AC174: 0 | AD174: 0 | AE174: 0 | AF174: 0 | AG174: =SUMIFS($AD174:$AD175,SP_PensionPayout,"Lump sum",$F174:$F175,"<>0") -> 0 | AH174: =SUMIFS($AD174:$AD175,SP_PensionPayout,"Annuity",$F174:$F175,"<>0") -> 0 | AI174: =IF(ISBLANK(INDEX(SP_SSPBFA,1)),0,IF($H174<>INDEX(SP_SSPBFA,1),AI172,SP_AdditionalRI/INDEX(SC_EA_InflationWageIdx,EAIDX))) -> 0 | AJ174: =SUMPRODUCT(AE174:AE175, --(E174:E175<>0)) -> 0 | AK174: =SUMPRODUCT(AF174:AF175, --(F174:F175<>0))+AI174 -> 0 | AL174: 0
B175: 2038 | C175: N | E175: 2 | F175: 0 | G175: -1 | H175: 0 | I175: 0 | J175: 0 | O175: 0 | P175: 0 | Q175: 0 | R175: 0 | S175: 0 | T175: 0 | U175: 0 | V175: 0 | W175: 0 | X175: 0 | Y175: 1 | Z175: 0 | AA175: =AVERAGE(LARGE((W$6:W174+X$6:X174)*Y$6:Y174*(E$6:E174=E175), ROW(INDIRECT("A1:A35"))))/(12*Y175) -> 0 | AB175: 1 | AC175: 0 | AD175: 0 | AE175: 0 | AF175: 0 | AL175: 0
B176: 2039 | C176: N | E176: 1 | F176: 0 | G176: 1 | H176: 0 | I176: 0 | J176: 0 | O176: 0 | P176: 0 | Q176: 0 | R176: 0 | S176: 0 | T176: 0 | U176: 0 | V176: 0 | W176: 0 | X176: 0 | Y176: 1 | Z176: 0 | AA176: =AVERAGE(LARGE((W$6:W175+X$6:X175)*Y$6:Y175*(E$6:E175=E176), ROW(INDIRECT("A1:A35"))))/(12*Y176) -> 0 | AB176: 1 | AC176: 0 | AD176: 0 | AE176: 0 | AF176: 0 | AG176: =SUMIFS($AD176:$AD177,SP_PensionPayout,"Lump sum",$F176:$F177,"<>0") -> 0 | AH176: =SUMIFS($AD176:$AD177,SP_PensionPayout,"Annuity",$F176:$F177,"<>0") -> 0 | AI176: =IF(ISBLANK(INDEX(SP_SSPBFA,1)),0,IF($H176<>INDEX(SP_SSPBFA,1),AI174,SP_AdditionalRI/INDEX(SC_EA_InflationWageIdx,EAIDX))) -> 0 | AJ176: =SUMPRODUCT(AE176:AE177, --(E176:E177<>0)) -> 0 | AK176: =SUMPRODUCT(AF176:AF177, --(F176:F177<>0))+AI176 -> 0 | AL176: 0
B177: 2039 | C177: N | E177: 2 | F177: 0 | G177: -1 | H177: 0 | I177: 0 | J177: 0 | O177: 0 | P177: 0 | Q177: 0 | R177: 0 | S177: 0 | T177: 0 | U177: 0 | V177: 0 | W177: 0 | X177: 0 | Y177: 1 | Z177: 0 | AA177: =AVERAGE(LARGE((W$6:W176+X$6:X176)*Y$6:Y176*(E$6:E176=E177), ROW(INDIRECT("A1:A35"))))/(12*Y177) -> 0 | AB177: 1 | AC177: 0 | AD177: 0 | AE177: 0 | AF177: 0 | AL177: 0
B178: 2040 | C178: N | E178: 1 | F178: 0 | G178: 1 | H178: 0 | I178: 0 | J178: 0 | O178: 0 | P178: 0 | Q178: 0 | R178: 0 | S178: 0 | T178: 0 | U178: 0 | V178: 0 | W178: 0 | X178: 0 | Y178: 1 | Z178: 0 | AA178: =AVERAGE(LARGE((W$6:W177+X$6:X177)*Y$6:Y177*(E$6:E177=E178), ROW(INDIRECT("A1:A35"))))/(12*Y178) -> 0 | AB178: 1 | AC178: 0 | AD178: 0 | AE178: 0 | AF178: 0 | AG178: =SUMIFS($AD178:$AD179,SP_PensionPayout,"Lump sum",$F178:$F179,"<>0") -> 0 | AH178: =SUMIFS($AD178:$AD179,SP_PensionPayout,"Annuity",$F178:$F179,"<>0") -> 0 | AI178: =IF(ISBLANK(INDEX(SP_SSPBFA,1)),0,IF($H178<>INDEX(SP_SSPBFA,1),AI176,SP_AdditionalRI/INDEX(SC_EA_InflationWageIdx,EAIDX))) -> 0 | AJ178: =SUMPRODUCT(AE178:AE179, --(E178:E179<>0)) -> 0 | AK178: =SUMPRODUCT(AF178:AF179, --(F178:F179<>0))+AI178 -> 0 | AL178: 0
B179: 2040 | C179: N | E179: 2 | F179: 0 | G179: -1 | H179: 0 | I179: 0 | J179: 0 | O179: 0 | P179: 0 | Q179: 0 | R179: 0 | S179: 0 | T179: 0 | U179: 0 | V179: 0 | W179: 0 | X179: 0 | Y179: 1 | Z179: 0 | AA179: =AVERAGE(LARGE((W$6:W178+X$6:X178)*Y$6:Y178*(E$6:E178=E179), ROW(INDIRECT("A1:A35"))))/(12*Y179) -> 0 | AB179: 1 | AC179: 0 | AD179: 0 | AE179: 0 | AF179: 0 | AL179: 0
B180: 2041 | C180: N | E180: 1 | F180: 0 | G180: 1 | H180: 0 | I180: 0 | J180: 0 | O180: 0 | P180: 0 | Q180: 0 | R180: 0 | S180: 0 | T180: 0 | U180: 0 | V180: 0 | W180: 0 | X180: 0 | Y180: 1 | Z180: 0 | AA180: =AVERAGE(LARGE((W$6:W179+X$6:X179)*Y$6:Y179*(E$6:E179=E180), ROW(INDIRECT("A1:A35"))))/(12*Y180) -> 0 | AB180: 1 | AC180: 0 | AD180: 0 | AE180: 0 | AF180: 0 | AG180: =SUMIFS($AD180:$AD181,SP_PensionPayout,"Lump sum",$F180:$F181,"<>0") -> 0 | AH180: =SUMIFS($AD180:$AD181,SP_PensionPayout,"Annuity",$F180:$F181,"<>0") -> 0 | AI180: =IF(ISBLANK(INDEX(SP_SSPBFA,1)),0,IF($H180<>INDEX(SP_SSPBFA,1),AI178,SP_AdditionalRI/INDEX(SC_EA_InflationWageIdx,EAIDX))) -> 0 | AJ180: =SUMPRODUCT(AE180:AE181, --(E180:E181<>0)) -> 0 | AK180: =SUMPRODUCT(AF180:AF181, --(F180:F181<>0))+AI180 -> 0 | AL180: 0
B181: 2041 | C181: N | E181: 2 | F181: 0 | G181: -1 | H181: 0 | I181: 0 | J181: 0 | O181: 0 | P181: 0 | Q181: 0 | R181: 0 | S181: 0 | T181: 0 | U181: 0 | V181: 0 | W181: 0 | X181: 0 | Y181: 1 | Z181: 0 | AA181: =AVERAGE(LARGE((W$6:W180+X$6:X180)*Y$6:Y180*(E$6:E180=E181), ROW(INDIRECT("A1:A35"))))/(12*Y181) -> 0 | AB181: 1 | AC181: 0 | AD181: 0 | AE181: 0 | AF181: 0 | AL181: 0
B182: 2042 | C182: N | E182: 1 | F182: 0 | G182: 1 | H182: 0 | I182: 0 | J182: 0 | O182: 0 | P182: 0 | Q182: 0 | R182: 0 | S182: 0 | T182: 0 | U182: 0 | V182: 0 | W182: 0 | X182: 0 | Y182: 1 | Z182: 0 | AA182: =AVERAGE(LARGE((W$6:W181+X$6:X181)*Y$6:Y181*(E$6:E181=E182), ROW(INDIRECT("A1:A35"))))/(12*Y182) -> 0 | AB182: 1 | AC182: 0 | AD182: 0 | AE182: 0 | AF182: 0 | AG182: =SUMIFS($AD182:$AD183,SP_PensionPayout,"Lump sum",$F182:$F183,"<>0") -> 0 | AH182: =SUMIFS($AD182:$AD183,SP_PensionPayout,"Annuity",$F182:$F183,"<>0") -> 0 | AI182: =IF(ISBLANK(INDEX(SP_SSPBFA,1)),0,IF($H182<>INDEX(SP_SSPBFA,1),AI180,SP_AdditionalRI/INDEX(SC_EA_InflationWageIdx,EAIDX))) -> 0 | AJ182: =SUMPRODUCT(AE182:AE183, --(E182:E183<>0)) -> 0 | AK182: =SUMPRODUCT(AF182:AF183, --(F182:F183<>0))+AI182 -> 0 | AL182: 0
B183: 2042 | C183: N | E183: 2 | F183: 0 | G183: -1 | H183: 0 | I183: 0 | J183: 0 | O183: 0 | P183: 0 | Q183: 0 | R183: 0 | S183: 0 | T183: 0 | U183: 0 | V183: 0 | W183: 0 | X183: 0 | Y183: 1 | Z183: 0 | AA183: =AVERAGE(LARGE((W$6:W182+X$6:X182)*Y$6:Y182*(E$6:E182=E183), ROW(INDIRECT("A1:A35"))))/(12*Y183) -> 0 | AB183: 1 | AC183: 0 | AD183: 0 | AE183: 0 | AF183: 0 | AL183: 0
B184: 2043 | C184: N | E184: 1 | F184: 0 | G184: 1 | H184: 0 | I184: 0 | J184: 0 | O184: 0 | P184: 0 | Q184: 0 | R184: 0 | S184: 0 | T184: 0 | U184: 0 | V184: 0 | W184: 0 | X184: 0 | Y184: 1 | Z184: 0 | AA184: =AVERAGE(LARGE((W$6:W183+X$6:X183)*Y$6:Y183*(E$6:E183=E184), ROW(INDIRECT("A1:A35"))))/(12*Y184) -> 0 | AB184: 1 | AC184: 0 | AD184: 0 | AE184: 0 | AF184: 0 | AG184: =SUMIFS($AD184:$AD185,SP_PensionPayout,"Lump sum",$F184:$F185,"<>0") -> 0 | AH184: =SUMIFS($AD184:$AD185,SP_PensionPayout,"Annuity",$F184:$F185,"<>0") -> 0 | AI184: =IF(ISBLANK(INDEX(SP_SSPBFA,1)),0,IF($H184<>INDEX(SP_SSPBFA,1),AI182,SP_AdditionalRI/INDEX(SC_EA_InflationWageIdx,EAIDX))) -> 0 | AJ184: =SUMPRODUCT(AE184:AE185, --(E184:E185<>0)) -> 0 | AK184: =SUMPRODUCT(AF184:AF185, --(F184:F185<>0))+AI184 -> 0 | AL184: 0
B185: 2043 | C185: N | E185: 2 | F185: 0 | G185: -1 | H185: 0 | I185: 0 | J185: 0 | O185: 0 | P185: 0 | Q185: 0 | R185: 0 | S185: 0 | T185: 0 | U185: 0 | V185: 0 | W185: 0 | X185: 0 | Y185: 1 | Z185: 0 | AA185: =AVERAGE(LARGE((W$6:W184+X$6:X184)*Y$6:Y184*(E$6:E184=E185), ROW(INDIRECT("A1:A35"))))/(12*Y185) -> 0 | AB185: 1 | AC185: 0 | AD185: 0 | AE185: 0 | AF185: 0 | AL185: 0
B186: 2044 | C186: N | E186: 1 | F186: 0 | G186: 1 | H186: 0 | I186: 0 | J186: 0 | O186: 0 | P186: 0 | Q186: 0 | R186: 0 | S186: 0 | T186: 0 | U186: 0 | V186: 0 | W186: 0 | X186: 0 | Y186: 1 | Z186: 0 | AA186: =AVERAGE(LARGE((W$6:W185+X$6:X185)*Y$6:Y185*(E$6:E185=E186), ROW(INDIRECT("A1:A35"))))/(12*Y186) -> 0 | AB186: 1 | AC186: 0 | AD186: 0 | AE186: 0 | AF186: 0 | AG186: =SUMIFS($AD186:$AD187,SP_PensionPayout,"Lump sum",$F186:$F187,"<>0") -> 0 | AH186: =SUMIFS($AD186:$AD187,SP_PensionPayout,"Annuity",$F186:$F187,"<>0") -> 0 | AI186: =IF(ISBLANK(INDEX(SP_SSPBFA,1)),0,IF($H186<>INDEX(SP_SSPBFA,1),AI184,SP_AdditionalRI/INDEX(SC_EA_InflationWageIdx,EAIDX))) -> 0 | AJ186: =SUMPRODUCT(AE186:AE187, --(E186:E187<>0)) -> 0 | AK186: =SUMPRODUCT(AF186:AF187, --(F186:F187<>0))+AI186 -> 0 | AL186: 0
B187: 2044 | C187: N | E187: 2 | F187: 0 | G187: -1 | H187: 0 | I187: 0 | J187: 0 | O187: 0 | P187: 0 | Q187: 0 | R187: 0 | S187: 0 | T187: 0 | U187: 0 | V187: 0 | W187: 0 | X187: 0 | Y187: 1 | Z187: 0 | AA187: =AVERAGE(LARGE((W$6:W186+X$6:X186)*Y$6:Y186*(E$6:E186=E187), ROW(INDIRECT("A1:A35"))))/(12*Y187) -> 0 | AB187: 1 | AC187: 0 | AD187: 0 | AE187: 0 | AF187: 0 | AL187: 0
B188: 2045 | C188: N | E188: 1 | F188: 0 | G188: 1 | H188: 0 | I188: 0 | J188: 0 | O188: 0 | P188: 0 | Q188: 0 | R188: 0 | S188: 0 | T188: 0 | U188: 0 | V188: 0 | W188: 0 | X188: 0 | Y188: 1 | Z188: 0 | AA188: =AVERAGE(LARGE((W$6:W187+X$6:X187)*Y$6:Y187*(E$6:E187=E188), ROW(INDIRECT("A1:A35"))))/(12*Y188) -> 0 | AB188: 1 | AC188: 0 | AD188: 0 | AE188: 0 | AF188: 0 | AG188: =SUMIFS($AD188:$AD189,SP_PensionPayout,"Lump sum",$F188:$F189,"<>0") -> 0 | AH188: =SUMIFS($AD188:$AD189,SP_PensionPayout,"Annuity",$F188:$F189,"<>0") -> 0 | AI188: =IF(ISBLANK(INDEX(SP_SSPBFA,1)),0,IF($H188<>INDEX(SP_SSPBFA,1),AI186,SP_AdditionalRI/INDEX(SC_EA_InflationWageIdx,EAIDX))) -> 0 | AJ188: =SUMPRODUCT(AE188:AE189, --(E188:E189<>0)) -> 0 | AK188: =SUMPRODUCT(AF188:AF189, --(F188:F189<>0))+AI188 -> 0 | AL188: 0
B189: 2045 | C189: N | E189: 2 | F189: 0 | G189: -1 | H189: 0 | I189: 0 | J189: 0 | O189: 0 | P189: 0 | Q189: 0 | R189: 0 | S189: 0 | T189: 0 | U189: 0 | V189: 0 | W189: 0 | X189: 0 | Y189: 1 | Z189: 0 | AA189: =AVERAGE(LARGE((W$6:W188+X$6:X188)*Y$6:Y188*(E$6:E188=E189), ROW(INDIRECT("A1:A35"))))/(12*Y189) -> 0 | AB189: 1 | AC189: 0 | AD189: 0 | AE189: 0 | AF189: 0 | AL189: 0
B190: 2046 | C190: N | E190: 1 | F190: 0 | G190: 1 | H190: 0 | I190: 0 | J190: 0 | O190: 0 | P190: 0 | Q190: 0 | R190: 0 | S190: 0 | T190: 0 | U190: 0 | V190: 0 | W190: 0 | X190: 0 | Y190: 1 | Z190: 0 | AA190: =AVERAGE(LARGE((W$6:W189+X$6:X189)*Y$6:Y189*(E$6:E189=E190), ROW(INDIRECT("A1:A35"))))/(12*Y190) -> 0 | AB190: 1 | AC190: 0 | AD190: 0 | AE190: 0 | AF190: 0 | AG190: =SUMIFS($AD190:$AD191,SP_PensionPayout,"Lump sum",$F190:$F191,"<>0") -> 0 | AH190: =SUMIFS($AD190:$AD191,SP_PensionPayout,"Annuity",$F190:$F191,"<>0") -> 0 | AI190: =IF(ISBLANK(INDEX(SP_SSPBFA,1)),0,IF($H190<>INDEX(SP_SSPBFA,1),AI188,SP_AdditionalRI/INDEX(SC_EA_InflationWageIdx,EAIDX))) -> 0 | AJ190: =SUMPRODUCT(AE190:AE191, --(E190:E191<>0)) -> 0 | AK190: =SUMPRODUCT(AF190:AF191, --(F190:F191<>0))+AI190 -> 0 | AL190: 0
B191: 2046 | C191: N | E191: 2 | F191: 0 | G191: -1 | H191: 0 | I191: 0 | J191: 0 | O191: 0 | P191: 0 | Q191: 0 | R191: 0 | S191: 0 | T191: 0 | U191: 0 | V191: 0 | W191: 0 | X191: 0 | Y191: 1 | Z191: 0 | AA191: =AVERAGE(LARGE((W$6:W190+X$6:X190)*Y$6:Y190*(E$6:E190=E191), ROW(INDIRECT("A1:A35"))))/(12*Y191) -> 0 | AB191: 1 | AC191: 0 | AD191: 0 | AE191: 0 | AF191: 0 | AL191: 0
B192: 2047 | C192: N | E192: 1 | F192: 0 | G192: 1 | H192: 0 | I192: 0 | J192: 0 | O192: 0 | P192: 0 | Q192: 0 | R192: 0 | S192: 0 | T192: 0 | U192: 0 | V192: 0 | W192: 0 | X192: 0 | Y192: 1 | Z192: 0 | AA192: =AVERAGE(LARGE((W$6:W191+X$6:X191)*Y$6:Y191*(E$6:E191=E192), ROW(INDIRECT("A1:A35"))))/(12*Y192) -> 0 | AB192: 1 | AC192: 0 | AD192: 0 | AE192: 0 | AF192: 0 | AG192: =SUMIFS($AD192:$AD193,SP_PensionPayout,"Lump sum",$F192:$F193,"<>0") -> 0 | AH192: =SUMIFS($AD192:$AD193,SP_PensionPayout,"Annuity",$F192:$F193,"<>0") -> 0 | AI192: =IF(ISBLANK(INDEX(SP_SSPBFA,1)),0,IF($H192<>INDEX(SP_SSPBFA,1),AI190,SP_AdditionalRI/INDEX(SC_EA_InflationWageIdx,EAIDX))) -> 0 | AJ192: =SUMPRODUCT(AE192:AE193, --(E192:E193<>0)) -> 0 | AK192: =SUMPRODUCT(AF192:AF193, --(F192:F193<>0))+AI192 -> 0 | AL192: 0
B193: 2047 | C193: N | E193: 2 | F193: 0 | G193: -1 | H193: 0 | I193: 0 | J193: 0 | O193: 0 | P193: 0 | Q193: 0 | R193: 0 | S193: 0 | T193: 0 | U193: 0 | V193: 0 | W193: 0 | X193: 0 | Y193: 1 | Z193: 0 | AA193: =AVERAGE(LARGE((W$6:W192+X$6:X192)*Y$6:Y192*(E$6:E192=E193), ROW(INDIRECT("A1:A35"))))/(12*Y193) -> 0 | AB193: 1 | AC193: 0 | AD193: 0 | AE193: 0 | AF193: 0 | AL193: 0
B194: 2048 | C194: N | E194: 1 | F194: 0 | G194: 1 | H194: 0 | I194: 0 | J194: 0 | O194: 0 | P194: 0 | Q194: 0 | R194: 0 | S194: 0 | T194: 0 | U194: 0 | V194: 0 | W194: 0 | X194: 0 | Y194: 1 | Z194: 0 | AA194: =AVERAGE(LARGE((W$6:W193+X$6:X193)*Y$6:Y193*(E$6:E193=E194), ROW(INDIRECT("A1:A35"))))/(12*Y194) -> 0 | AB194: 1 | AC194: 0 | AD194: 0 | AE194: 0 | AF194: 0 | AG194: =SUMIFS($AD194:$AD195,SP_PensionPayout,"Lump sum",$F194:$F195,"<>0") -> 0 | AH194: =SUMIFS($AD194:$AD195,SP_PensionPayout,"Annuity",$F194:$F195,"<>0") -> 0 | AI194: =IF(ISBLANK(INDEX(SP_SSPBFA,1)),0,IF($H194<>INDEX(SP_SSPBFA,1),AI192,SP_AdditionalRI/INDEX(SC_EA_InflationWageIdx,EAIDX))) -> 0 | AJ194: =SUMPRODUCT(AE194:AE195, --(E194:E195<>0)) -> 0 | AK194: =SUMPRODUCT(AF194:AF195, --(F194:F195<>0))+AI194 -> 0 | AL194: 0
B195: 2048 | C195: N | E195: 2 | F195: 0 | G195: -1 | H195: 0 | I195: 0 | J195: 0 | O195: 0 | P195: 0 | Q195: 0 | R195: 0 | S195: 0 | T195: 0 | U195: 0 | V195: 0 | W195: 0 | X195: 0 | Y195: 1 | Z195: 0 | AA195: =AVERAGE(LARGE((W$6:W194+X$6:X194)*Y$6:Y194*(E$6:E194=E195), ROW(INDIRECT("A1:A35"))))/(12*Y195) -> 0 | AB195: 1 | AC195: 0 | AD195: 0 | AE195: 0 | AF195: 0 | AL195: 0
B196: 2049 | C196: N | D196: =INDEX(SP_Initials,E196) ->  | E196: 1 | F196: =INDEX(SC_TaxIndex,$E196) -> 0 | G196: 1 | H196: =IF(INDEX(SC_ShowRetireatee,$E196),IF($B196<YEAR(INDEX(SP_BirthDate,$E196)),0,IF($B196>(YEAR(INDEX(SP_BirthDate,$E196))+INDEX(SP_LifeExp,$E196)),0,$B196-YEAR(INDEX(SP_BirthDate,$E196)))),0) -> 0 | I196: =MAX($H196+1-INDEX(SP_StartWorkAge,$E196),0) -> 0 | J196: =IF($B196<SC_TargetRY,1,IF($B196=SC_TargetRY,-(1-YEARFRAC(SP_TargetRD,DATE($B196+1,1,1))),0)) -> 0 | O196: 0 | P196: 0 | Q196: 0 | R196: 0 | S196: 0 | T196: 0 | U196: 0 | V196: 0 | W196: 0 | X196: 0 | Y196: 1 | Z196: 0 | AA196: =AVERAGE(LARGE((W$6:W195+X$6:X195)*Y$6:Y195*(E$6:E195=E196), ROW(INDIRECT("A1:A35"))))/(12*Y196) -> 0 | AB196: 1 | AC196: 0 | AD196: 0 | AE196: 0 | AF196: 0 | AG196: =SUMIFS($AD196:$AD197,SP_PensionPayout,"Lump sum",$F196:$F197,"<>0") -> 0 | AH196: =SUMIFS($AD196:$AD197,SP_PensionPayout,"Annuity",$F196:$F197,"<>0") -> 0 | AI196: =IF(ISBLANK(INDEX(SP_SSPBFA,1)),0,IF($H196<>INDEX(SP_SSPBFA,1),AI194,SP_AdditionalRI/INDEX(SC_EA_InflationWageIdx,EAIDX))) -> 0 | AJ196: =SUMPRODUCT(AE196:AE197, --(E196:E197<>0)) -> 0 | AK196: =SUMPRODUCT(AF196:AF197, --(F196:F197<>0))+AI196 -> 0 | AL196: 0
B197: 2049 | C197: N | E197: =MOD(ROW(),2)+1 -> 2 | F197: 0 | G197: -1 | H197: 0 | I197: 0 | J197: 0 | O197: 0 | P197: 0 | Q197: 0 | R197: 0 | S197: 0 | T197: 0 | U197: 0 | V197: 0 | W197: 0 | X197: 0 | Y197: 1 | Z197: 0 | AA197: =AVERAGE(LARGE((W$6:W196+X$6:X196)*Y$6:Y196*(E$6:E196=E197), ROW(INDIRECT("A1:A35"))))/(12*Y197) -> 0 | AB197: 1 | AC197: 0 | AD197: 0 | AE197: 0 | AF197: 0 | AL197: 0
B198: 2050 | C198: N | E198: 1 | F198: 0 | G198: =MOD($E198,2)-($E198-1) -> 1 | H198: 0 | I198: 0 | J198: 0 | O198: =IF(IF(COLUMN()=COLUMN(K198),TRUE,ISBLANK(K198)), IF(OR($I198=0,$J198=0),0,IF($B198=SP_CurrentYear, 0, IF($B198>SP_CurrentYear, $O196*(1+INDEX(SP_EA_InflationWageRate, EAIDX-1)+INDEX(SP_IncomeEmployerAdj, $E198)), $O200/(1+INDEX(SP_EA_InflationWageRate, EAIDX)+INDEX(SP_IncomeEmployerAdj, $E198))))), K198) -> 0 | P198: =IF(IF(COLUMN()=COLUMN(L198),TRUE,ISBLANK(L198)), IF(OR($I198=0,$J198=0),0,IF($B198=SP_CurrentYear, 0, IF($B198>SP_CurrentYear, $P196*(1+INDEX(SP_EA_InflationWageRate, EAIDX-1)+INDEX(SP_IncomeSEAdj, $E198)), 0))), L198) -> 0 | Q198: =IF(IF(COLUMN()=COLUMN(M198),TRUE,ISBLANK(M198)), IF($B198=SP_CurrentYear, 0, IF($B198>SP_CurrentYear, $Q196*(1+INDEX(SP_EA_InflationWageRate, EAIDX-1)+INDEX(SP_IncomePassiveAdj, $E198)), 0)), M198) -> 0 | R198: =IF(IF(COLUMN()=COLUMN(N198),TRUE,ISBLANK(N198)), IF($B198=SP_CurrentYear,(-INDEX(SC_ExpensesLivingPF,$E198,1)*ABS($J198)-INDEX(SC_ExpensesLivingPF,$E198,2)*(1-ABS($J198)))/INDEX(SC_EA_InflationCPIdx, EAIDX)*12, IF($B198>SP_CurrentYear, $R196*(1+INDEX(SP_EA_InflationCPRate, EAIDX-1)), IF($O198=0, 0,$R200/(1+INDEX(SP_EA_InflationCPRate, EAIDX)))))*ABS($J198), N198) -> 0 | S198: =O198*ABS($J198) -> 0 | T198: =P198*ABS($J198) -> 0 | U198: =MAX(S198-ABS($R198)*ABS($J198), 0) -> 0 | V198: =MAX(T198-MAX(ABS($R198)*ABS($J198)-O198, 0),0) -> 0 | W198: =IF($H198=0, 0, MAX(MIN(S198-ABS($R198)*ABS($J198), INDEX(SC_EA_SSWageBase, EAIDX)), 0)) -> 0 | X198: =IF($H198=0, 0, MIN(MAX(T198-MAX(ABS($R198)*ABS($J198)-O198, 0),0), INDEX(SC_EA_SSWageBase, EAIDX)-W198)) -> 0 | Y198: =IF($H198=0,1,IF($B198>=INDEX(SC_SSBaseYear,$E198),1,Y200*(INDEX(SP_EA_InflationWageRate, EAIDX+1)+1))) -> 1 | Z198: =IF($H198=0, 0, ROUNDDOWN(MIN((W198+X198)*Y198,LT_SSMaxCredit*Y198)/(LT_SSOneCredit*Y198), 0)) -> 0 | AA198: =AVERAGE(LARGE((W$6:W197+X$6:X197)*Y$6:Y197*(E$6:E197=E198), ROW(INDIRECT("A1:A35"))))/(12*Y198) -> 0 | AB198: =IF($H198>0, IF($B198<=INDEX(SC_SSBaseYear,$E198)+2,Y198,1/(1/AB196*(INDEX(SC_EA_SSCOLA, EAIDX-1)+1))), 1) -> 1 | AC198: =IF(INDEX(SP_PensionSWD,$E198)="",0,IF(YEAR(INDEX(SP_PensionSWD,$E198))>$B198,0,YEARFRAC(INDEX(SP_PensionSWD,$E198), MIN(DATE($B198+1,1,1),SP_TargetRD)))) -> 0 | AD198: =IF(AND(AC198>0, $B198=SC_TargetRY, INDEX(SP_PensionFAE,$E198)>0),SUMIF(OFFSET(E198,-MIN(INDEX(SP_PensionFAE,$E198),AC198)*2,0,MIN(INDEX(SP_PensionFAE,$E198),AC198)*2),$E198,OFFSET(O198,-MIN(INDEX(SP_PensionFAE,$E198),AC198)*2,0,MIN(INDEX(SP_PensionFAE,$E198),AC198)*2))/MIN(INDEX(SP_PensionFAE,$E198),AC198)*INDEX(SP_PensionPCT,$E198)*AC198,0) -> 0 | AE198: =$S198+$T198 -> 0 | AF198: =$Q198 -> 0 | AG198: =SUMIFS($AD198:$AD199,SP_PensionPayout,"Lump sum",$F198:$F199,"<>0") -> 0 | AH198: =SUMIFS($AD198:$AD199,SP_PensionPayout,"Annuity",$F198:$F199,"<>0") -> 0 | AI198: =IF(ISBLANK(INDEX(SP_SSPBFA,1)),0,IF($H198<>INDEX(SP_SSPBFA,1),AI196,SP_AdditionalRI/INDEX(SC_EA_InflationWageIdx,EAIDX))) -> 0 | AJ198: =SUMPRODUCT(AE198:AE199, --(E198:E199<>0)) -> 0 | AK198: =SUMPRODUCT(AF198:AF199, --(F198:F199<>0))+AI198 -> 0 | AL198: =IFERROR(IF(OR(NOT(ISNUMBER($O198)),$O198<0,NOT(ISNUMBER($P198)),$P198<0,NOT(ISNUMBER($Q198)),$Q198<0,NOT(ISNUMBER($R198)),$R198<0),202,0),203) -> 0 | AM198: =IFERROR(VLOOKUP(AL198,IV_CodeTable,2,FALSE),"") -> 
B199: =B197+1 -> 2050 | C199: N | E199: 2 | F199: 0 | G199: -1 | H199: 0 | I199: 0 | J199: 0 | O199: 0 | P199: 0 | Q199: 0 | R199: 0 | S199: 0 | T199: 0 | U199: 0 | V199: 0 | W199: 0 | X199: 0 | Y199: 1 | Z199: 0 | AA199: =AVERAGE(LARGE((W$6:W198+X$6:X198)*Y$6:Y198*(E$6:E198=E199), ROW(INDIRECT("A1:A35"))))/(12*Y199) -> 0 | AB199: 1 | AC199: 0 | AD199: 0 | AE199: 0 | AF199: 0 | AL199: 0
B200: 2051 | C200: N | E200: 1 | F200: 0 | G200: 1 | H200: 0 | I200: 0 | J200: 0 | O200: 0 | P200: 0 | Q200: 0 | R200: 0 | S200: 0 | T200: 0 | U200: 0 | V200: 0 | W200: 0 | X200: 0 | Y200: 1 | Z200: 0 | AA200: =AVERAGE(LARGE((W$6:W199+X$6:X199)*Y$6:Y199*(E$6:E199=E200), ROW(INDIRECT("A1:A35"))))/(12*Y200) -> 0 | AB200: 1 | AC200: 0 | AD200: 0 | AE200: 0 | AF200: 0 | AG200: =SUMIFS($AD200:$AD201,SP_PensionPayout,"Lump sum",$F200:$F201,"<>0") -> 0 | AH200: =SUMIFS($AD200:$AD201,SP_PensionPayout,"Annuity",$F200:$F201,"<>0") -> 0 | AI200: =IF(ISBLANK(INDEX(SP_SSPBFA,1)),0,IF($H200<>INDEX(SP_SSPBFA,1),AI198,SP_AdditionalRI/INDEX(SC_EA_InflationWageIdx,EAIDX))) -> 0 | AJ200: =SUMPRODUCT(AE200:AE201, --(E200:E201<>0)) -> 0 | AK200: =SUMPRODUCT(AF200:AF201, --(F200:F201<>0))+AI200 -> 0 | AL200: 0
... 91 more rows

Sheet Expenses (hidden)
A1: =PMBASIC+PMADVANCED+VMONLINE+VMMACRO+VMDEBUG -> 62 | B1: =PMBASIC+PMADVANCED+VMONLINE+VMMACRO+VMDEBUG -> 62 | C1: =PMBASIC+PMADVANCED+VMDEBUG -> 56 | D1: =PMBASIC+PMADVANCED+VMDEBUG -> 56 | E1: =PMBASIC+PMADVANCED+VMONLINE+VMMACRO+VMDEBUG -> 62 | F1: =PMBASIC+PMADVANCED+VMONLINE+VMMACRO+VMDEBUG -> 62 | G1: =PMBASIC+PMADVANCED+VMONLINE+VMMACRO+VMDEBUG -> 62 | H1: =PMADVANCED+VMONLINE+VMMACRO+VMDEBUG -> 46 | I1: =PMBASIC+PMADVANCED+VMDEBUG -> 56 | J1: 56 | K1: 56 | L1: 56 | M1: 56 | N1: 56 | O1: 56 | P1: =PMBASIC+PMADVANCED+VMONLINE+VMMACRO+VMDEBUG -> 62 | Q1: =PMBASIC+PMADVANCED+VMONLINE+VMMACRO+VMDEBUG -> 62
A2: =PMBASIC+PMADVANCED+VMONLINE+VMMACRO+VMDEBUG -> 62 | E2: Monthly Expenses (Real Dollars)
A3: =PMBASIC+PMADVANCED+VMONLINE+VMMACRO+VMDEBUG -> 62 | C3: FLTP | D3: FLTV | J3: Shadow | L3: Shadow TD | M3: Default | O3: Default TD
A4: =PMBASIC+PMADVANCED+IF(SP_HM, VMONLINE+VMMACRO+VMDEBUG, VMDEBUG) -> 56 | B4: Home and Mortgage | C4: =IF(SC_ViewMode=VMWIPED,0,MOD(INT($A4/POWER(2,LOG(SC_ParameterMode,2))),2)) -> 0 | D4: =IF(SC_ViewMode=VMWIPED,0,MOD(INT($A4/POWER(2,LOG(SC_ViewMode,2))),2)) -> 0 | E4: Home Value: | J4: =IF(IF(COLUMN()=COLUMN(F4),TRUE,ISBLANK(F4)), M4, F4) -> 0 | M4: 0 | P4: =IFERROR(IF($D4,IF(OR(NOT(ISNUMBER($J4)),$J4<0),202,IF($J4=0,103,0)),0),203) -> 0 | Q4: =IFERROR(VLOOKUP(P4,IV_CodeTable,2,FALSE),"") -> 
A5: =PMBASIC+PMADVANCED+IF(SP_HM, VMONLINE+VMMACRO+VMDEBUG, VMDEBUG) -> 56 | C5: =IF(SC_ViewMode=VMWIPED,0,MOD(INT($A5/POWER(2,LOG(SC_ParameterMode,2))),2)) -> 0 | D5: 0 | E5: Origination Date: | J5: =IF(IF(COLUMN()=COLUMN(F5),TRUE,ISBLANK(F5)), "", IF($F5="","",EDATE(DATE(YEAR($F5),MONTH($F5),1), IF(DAY($F5)=1, 0, 1)))) ->  | P5: =IFERROR(IF($D5,IF($J5="",0,IF(ISERROR(DATEVALUE(TEXT($J5,"mm/dd/yyyy"))),200,IF(YEAR($J5)>SC_YearStop,206,0))),0),203) -> 0
A6: =PMBASIC+PMADVANCED+IF(SP_HM, VMONLINE+VMMACRO+VMDEBUG, VMDEBUG) -> 56 | C6: =IF(SC_ViewMode=VMWIPED,0,MOD(INT($A6/POWER(2,LOG(SC_ParameterMode,2))),2)) -> 0 | D6: 0 | E6: Original Balance: | J6: =IF(IF(COLUMN()=COLUMN(F6),TRUE,ISBLANK(F6)), M6, F6) -> 0 | M6: 0 | P6: =IFERROR(IF($D6,IF(OR(NOT(ISNUMBER($J6)),$J6<0),202,0),0),203) -> 0
A7: =PMBASIC+PMADVANCED+IF(SP_HM, VMONLINE+VMMACRO+VMDEBUG, VMDEBUG) -> 56 | C7: =IF(SC_ViewMode=VMWIPED,0,MOD(INT($A7/POWER(2,LOG(SC_ParameterMode,2))),2)) -> 0 | D7: 0 | E7: Term: | G7: months | J7: =IF(IF(COLUMN()=COLUMN(F7),TRUE,ISBLANK(F7)), M7, F7) -> 0 | M7: 0 | P7: =IFERROR(IF($D7,IF(OR(NOT(ISNUMBER($J7)),$J7<0),202,0),0),203) -> 0
A8: 56 | C8: =IF(SC_ViewMode=VMWIPED,0,MOD(INT($A8/POWER(2,LOG(SC_ParameterMode,2))),2)) -> 0 | D8: 0 | E8: Interest Rate: | G8: /year | H8: Tax Deductible | J8: =IF(IF(COLUMN()=COLUMN(F8),TRUE,ISBLANK(F8)), M8, F8) -> 0.033 | M8: =INDEX(SC_EA_ARBonds,EAIDX)+1.5% -> 0.033 | P8: =IFERROR(IF($D8,IF(OR(NOT(ISNUMBER($J8)),$J8<0),202,IF($J8=0,103,0)),0),203) -> 0
A9: 56 | C9: =IF(SC_ViewMode=VMWIPED,0,MOD(INT($A9/POWER(2,LOG(SC_ParameterMode,2))),2)) -> 0 | D9: 0 | E9: Principal Payment: | F9: =IFERROR(-PPMT(SP_MortRate/12,IFERROR(DATEDIF(SP_MortOriginDate, SP_CurrentDate, "m")+1,0),SP_MortNper,SP_MortOriginBalance,0,0),0) -> 0 | L9: =IF(IF(COLUMN()=COLUMN(H9),TRUE,ISBLANK(H9)), O9, H9) -> No | O9: No | P9: 0
A10: 56 | C10: =IF(SC_ViewMode=VMWIPED,0,MOD(INT($A10/POWER(2,LOG(SC_ParameterMode,2))),2)) -> 0 | D10: 0 | E10: Interest Payment: | F10: =IFERROR(-IPMT(SP_MortRate/12,IFERROR(DATEDIF(SP_MortOriginDate, SP_CurrentDate, "m")+1,0),SP_MortNper,SP_MortOriginBalance,0,0),0) -> 0 | L10: =IF(IF(COLUMN()=COLUMN(H10),TRUE,ISBLANK(H10)), O10, H10) -> Fed/State:1 | O10: Fed/State:1 | P10: 0
A11: 56 | C11: =IF(SC_ViewMode=VMWIPED,0,MOD(INT($A11/POWER(2,LOG(SC_ParameterMode,2))),2)) -> 0 | D11: 0 | E11: Real Estate Tax: | J11: =IF(IF(COLUMN()=COLUMN(F11),TRUE,ISBLANK(F11)), M11, F11) -> 0 | L11: =IF(IF(COLUMN()=COLUMN(H11),TRUE,ISBLANK(H11)), O11, H11) -> Fed/State:1 | M11: =VLOOKUP(SP_Taxes, LT_StateTax, 6, FALSE)*SP_HomeValue/12 -> 0 | O11: Fed/State:1 | P11: =IFERROR(IF($D11,IF(OR(NOT(ISNUMBER($J11)),$J11<0),202,0),0),203) -> 0
A12: 56 | C12: =IF(SC_ViewMode=VMWIPED,0,MOD(INT($A12/POWER(2,LOG(SC_ParameterMode,2))),2)) -> 0 | D12: 0 | E12: Home Insurance: | J12: =IF(IF(COLUMN()=COLUMN(F12),TRUE,ISBLANK(F12)), M12, F12) -> 0 | L12: =IF(IF(COLUMN()=COLUMN(H12),TRUE,ISBLANK(H12)), O12, H12) -> No | M12: =0.35%*SP_HomeValue/12 -> 0 | O12: No | P12: =IFERROR(IF($D12,IF(OR(NOT(ISNUMBER($J12)),$J12<0),202,0),0),203) -> 0
A13: =PMADVANCED+IF(SP_HM, VMONLINE+VMMACRO+VMDEBUG, VMDEBUG) -> 40 | C13: =IF(SC_ViewMode=VMWIPED,0,MOD(INT($A13/POWER(2,LOG(SC_ParameterMode,2))),2)) -> 0 | D13: 0 | E13: Extra Payment: | J13: =IF(IF(COLUMN()=COLUMN(F13),TRUE,ISBLANK(F13)), M13, F13) -> 0 | L13: =IF(IF(COLUMN()=COLUMN(H13),TRUE,ISBLANK(H13)), O13, H13) -> No | M13: 0 | O13: No | P13: =IFERROR(IF($D13,IF(OR(NOT(ISNUMBER($J13)),$J13<0),202,0),0),203) -> 0
A14: =PMBASIC+PMADVANCED+IF(SP_HM, VMONLINE+VMMACRO+VMDEBUG, VMDEBUG) -> 56 | C14: =IF(SC_ViewMode=VMWIPED,0,MOD(INT($A14/POWER(2,LOG(SC_ParameterMode,2))),2)) -> 0 | D14: 0 | E14: Mortgage Payment: | F14: =SUM(F9:F13) -> 0
A15: =PMADVANCED+IF(SP_HM, VMONLINE+VMMACRO+VMDEBUG, VMDEBUG) -> 40 | B15: HECM | C15: =IF(SC_ViewMode=VMWIPED,0,MOD(INT($A15/POWER(2,LOG(SC_ParameterMode,2))),2)) -> 0 | D15: 0 | E15: Origination Date: | J15: =IF(IF(COLUMN()=COLUMN(F15),TRUE,ISBLANK(F15)), "", IF($F15="","",EDATE(DATE(YEAR($F15),MONTH($F15),1), IF(DAY($F15)=1, 0, 1)))) ->  | P15: =IFERROR(IF($D15,IF($J15="",0,IF(ISERROR(DATEVALUE(TEXT($J15,"mm/dd/yyyy"))),200,IF(YEAR($J15)>SC_YearStop,206,0))),0),203) -> 0
A16: 40 | C16: =IF(SC_ViewMode=VMWIPED,0,MOD(INT($A16/POWER(2,LOG(SC_ParameterMode,2))),2)) -> 0 | D16: 0 | E16: Original Balance: | J16: =IF(IF(COLUMN()=COLUMN(F16),TRUE,ISBLANK(F16)), M16, F16) -> 0 | M16: 0 | P16: =IFERROR(IF($D16,IF(OR(NOT(ISNUMBER($J16)),$J16<0),202,0),0),203) -> 0 | Q16: =IFERROR(VLOOKUP(P16,IV_CodeTable,2,FALSE),"") -> 
A17: =PMADVANCED+IF(SP_HM, VMONLINE+VMMACRO+VMDEBUG, VMDEBUG) -> 40 | C17: =IF(SC_ViewMode=VMWIPED,0,MOD(INT($A17/POWER(2,LOG(SC_ParameterMode,2))),2)) -> 0 | D17: 0 | E17: Term: | F17: =IF(SP_HECMOriginDate="",0,MAX(IF(INDEX(SC_ShowRetireatee,1),OFFSET(LT_AnnuityLifeTable,INDEX(SC_EX_Age,(YEAR(SP_HECMOriginDate)-SC_YearEpoch)*2+1),3,1,1),0),IF(INDEX(SC_ShowRetireatee,2),OFFSET(LT_AnnuityLifeTable,INDEX(SC_EX_Age,(YEAR(SP_HECMOriginDate)-SC_YearEpoch)*2+2),6,1,1),0))*12) -> 0 | G17: months
A18: 40 | C18: =IF(SC_ViewMode=VMWIPED,0,MOD(INT($A18/POWER(2,LOG(SC_ParameterMode,2))),2)) -> 0 | D18: 0 | E18: Interest Rate: | G18: /year | J18: =IF(IF(COLUMN()=COLUMN(F18),TRUE,ISBLANK(F18)), M18, F18) -> 0.033 | M18: =INDEX(SP_EA_BondYield,IFERROR(YEAR(SP_HECMOriginDate)-SC_YearEpoch+1,EAIDX))+1.5% -> 0.033 | P18: =IFERROR(IF($D18,IF(OR(NOT(ISNUMBER($J18)),$J18<0),202,IF($J18=0,103,0)),0),203) -> 0 | Q18: =IFERROR(VLOOKUP(P18,IV_CodeTable,2,FALSE),"") -> 
A19: 40 | C19: =IF(SC_ViewMode=VMWIPED,0,MOD(INT($A19/POWER(2,LOG(SC_ParameterMode,2))),2)) -> 0 | D19: 0 | E19: Principal Limit Factor: | F19: =0.75/POWER(1+(0.66*SP_HECMRate),SC_HECMNper/12) -> 0.75
A20: =PMBASIC+PMADVANCED+IF(SP_HM, VMONLINE+VMMACRO+VMDEBUG, VMDEBUG) -> 56
A21: =PMBASIC+PMADVANCED+VMONLINE+VMMACRO+VMDEBUG -> 62 | C21: FLTP | D21: FLTV | F21: Accumulation Phase | G21: Distribution Phase | H21: Tax Deductible | I21: Shadow | J21: Shadow AP | K21: Shadow DP | L21: Shadow TD | M21: Default Tags | N21: Default AP | O21: Default TD
A22: 62 | B22: Present and Future Living Expenses | C22: =IF(SC_ViewMode=VMWIPED,0,MOD(INT($A22/POWER(2,LOG(SC_ViewMode,2))),2)) -> 0 | D22: 0 | E22: Health Care: | J22: =IF(IF(COLUMN()=COLUMN(F22),TRUE,ISBLANK(F22)), N22, F22) -> 0 | K22: =IF(IF(COLUMN()=COLUMN(G22),TRUE,ISBLANK(G22)), J22, G22) -> 0 | L22: =IF(IF(COLUMN()=COLUMN(H22),TRUE,ISBLANK(H22)), O22, H22) -> FICA/Fed/State:1 | N22: 0 | O22: FICA/Fed/State:1 | P22: =IFERROR(IF(OR(NOT(ISNUMBER($J22)),$J22<0,NOT(ISNUMBER($K22)),$K22<0),202,0),203) -> 0
A23: 62 | C23: 0 | D23: 0 | E23: Life Insurance: | J23: =IF(IF(COLUMN()=COLUMN(F23),TRUE,ISBLANK(F23)), N23, F23) -> 0 | K23: 0 | L23: No | N23: 0 | O23: No | P23: =IFERROR(IF(OR(NOT(ISNUMBER($J23)),$J23<0,NOT(ISNUMBER($K23)),$K23<0),202,0),203) -> 0
A24: 62 | C24: 0 | D24: 0 | E24: Dependent Care: | J24: 0 | K24: 0 | L24: No | N24: 0 | O24: No | P24: 0
A25: 62 | C25: 0 | D25: 0 | E25: Charitable Donations: | J25: 0 | K25: 0 | L25: Fed/State:1 | N25: 0 | O25: Fed/State:1 | P25: 0
A26: 62 | C26: 0 | D26: 0 | E26: Self-Employment Expenses: | J26: 0 | K26: 0 | L26: Fed/State:1 | N26: 0 | O26: Fed/State:1 | P26: 0
A27: 62 | C27: 0 | D27: 0 | E27: Long-Term Care / Disability Insurance: | J27: 0 | K27: 0 | L27: No | N27: 0 | O27: No | P27: 0
A28: =PMBASIC+PMADVANCED+IF(SP_HM, VMONLINE+VMMACRO+VMDEBUG, VMDEBUG) -> 56 | C28: 0 | D28: 0 | E28: Home Maintenance: | J28: 0 | K28: 0 | L28: No | N28: =1%*SP_HomeValue/12 -> 0 | O28: No | P28: 0
A29: =PMBASIC+PMADVANCED+IF(SP_HM, VMDEBUG,VMONLINE+VMMACRO+VMDEBUG) -> 62 | C29: 0 | D29: 0 | E29: Rent: | J29: 0 | K29: 0 | L29: No | N29: 0 | O29: No | P29: 0
A30: =PMBASIC+PMADVANCED+IF(SP_HM, VMDEBUG,VMONLINE+VMMACRO+VMDEBUG) -> 62 | C30: 0 | D30: 0 | E30: Renter's Insurance: | J30: 0 | K30: 0 | L30: No | N30: 0 | O30: No | P30: 0
A31: =PMBASIC+PMADVANCED+VMONLINE+VMMACRO+VMDEBUG -> 62 | C31: 0 | D31: 0 | E31: Utilities: | J31: 0 | K31: 0 | L31: No | N31: 0 | O31: No | P31: 0
A32: 62 | C32: 0 | D32: 0 | E32: Internet, Cable, Phone: | J32: 0 | K32: 0 | L32: No | N32: 0 | O32: No | P32: 0
A33: 62 | C33: 0 | D33: 0 | E33: Auto and Transportation: | J33: 0 | K33: 0 | L33: No | N33: 0 | O33: No | P33: 0
A34: 62 | C34: 0 | D34: 0 | E34: Auto Insurance: | J34: 0 | K34: 0 | L34: No | N34: 0 | O34: No | P34: 0
A35: 62 | C35: 0 | D35: 0 | E35: Food and Entertainment: | J35: 0 | K35: 0 | L35: No | N35: 0 | O35: No | P35: 0
A36: 62 | C36: 0 | D36: 0 | E36: Clothing: | J36: 0 | K36: 0 | L36: No | N36: 0 | O36: No | P36: 0
A37: 62 | C37: 0 | D37: 0 | E37: Vacation and Travel: | J37: 0 | K37: 0 | L37: No | N37: 0 | O37: No | P37: 0
A38: 62 | C38: 0 | D38: 0 | E38: Additional Discretionary: | J38: 0 | K38: =IF(IF(COLUMN()=COLUMN(G38),TRUE,ISBLANK(G38)), J38, G38) -> 0 | L38: No | N38: 0 | O38: No | P38: 0
A39: 62 | C39: 0 | D39: 0 | I39: =IF(IF(COLUMN()=COLUMN(E39),TRUE,ISBLANK(E39)), M39, E39) -> Miscellaneous 1: | J39: 0 | K39: 0 | L39: No | M39: Miscellaneous 1: | N39: 0 | O39: No | P39: 0
A40: 62 | C40: 0 | D40: 0 | I40: =IF(IF(COLUMN()=COLUMN(E40),TRUE,ISBLANK(E40)), M40, E40) -> Miscellaneous 2: | J40: 0 | K40: 0 | L40: No | M40: Miscellaneous 2: | N40: 0 | O40: No | P40: 0
A41: 62 | C41: 0 | D41: 0 | I41: =IF(IF(COLUMN()=COLUMN(E41),TRUE,ISBLANK(E41)), M41, E41) -> Miscellaneous 3: | J41: 0 | K41: 0 | L41: No | M41: Miscellaneous 3: | N41: 0 | O41: No | P41: 0
A42: 62 | C42: 0 | D42: 0 | I42: =IF(IF(COLUMN()=COLUMN(E42),TRUE,ISBLANK(E42)), M42, E42) -> Miscellaneous 4: | J42: 0 | K42: 0 | L42: No | M42: Miscellaneous 4: | N42: 0 | O42: No | P42: 0
A43: 62 | C43: 0 | D43: 0 | I43: =IF(IF(COLUMN()=COLUMN(E43),TRUE,ISBLANK(E43)), M43, E43) -> Miscellaneous 5: | J43: 0 | K43: 0 | L43: No | M43: Miscellaneous 5: | N43: 0 | O43: No | P43: 0
A44: =PMBASIC+PMADVANCED+VMDEBUG -> 56 | E44: Pre-FICA Deductions 1: | F44: =-SUMPRODUCT(ABS(J$22:J$43),--($L$22:$L$43="FICA/Fed/State:1")) -> 0 | G44: =-SUMPRODUCT(ABS(K$22:K$43),--($L$22:$L$43="FICA/Fed/State:1")) -> 0
A45: =PMBASIC+PMADVANCED+VMDEBUG -> 56 | E45: Pre-FICA Deductions 2: | F45: =-SUMPRODUCT(ABS(J$22:J$43),--($L$22:$L$43="FICA/Fed/State:2")) -> 0 | G45: =-SUMPRODUCT(ABS(K$22:K$43),--($L$22:$L$43="FICA/Fed/State:2")) -> 0
A46: =PMBASIC+PMADVANCED+VMDEBUG -> 56 | E46: Deductible Expenses 1: | F46: =-SUMPRODUCT(ABS(J$22:J$43),--($L$22:$L$43="Fed/State:1")) -> 0 | G46: =-SUMPRODUCT(ABS(K$22:K$43),--($L$22:$L$43="Fed/State:1")) -> 0
A47: =PMBASIC+PMADVANCED+VMDEBUG -> 56 | E47: Deductible Expenses 2: | F47: =-SUMPRODUCT(ABS(J$22:J$43),--($L$22:$L$43="Fed/State:2")) -> 0 | G47: =-SUMPRODUCT(ABS(K$22:K$43),--($L$22:$L$43="Fed/State:2")) -> 0
A48: =PMBASIC+PMADVANCED+VMDEBUG -> 56 | E48: Total Living Expenses: | F48: =-SUMPRODUCT(ABS(J$22:J$43)) -> 0 | G48: =-SUMPRODUCT(ABS(K$22:K$43)) -> 0
A49: =PMBASIC+PMADVANCED+VMONLINE+VMMACRO+VMDEBUG -> 62
A50: =PMBASIC+PMADVANCED+VMONLINE+VMMACRO+VMDEBUG -> 62 | E50: Average Monthly Cash Flow (Real Dollars)
A51: =PMBASIC+PMADVANCED+VMONLINE+VMMACRO+VMDEBUG -> 62
A52: =PMBASIC+PMADVANCED+VMONLINE+VMMACRO+VMDEBUG -> 62 | F52: Accumulation Phase | G52: Distribution Phase
A53: =PMBASIC+PMADVANCED+VMDEBUG -> 56 | E53: Code: | F53: A | G53: D
A54: =PMBASIC+PMADVANCED+VMONLINE+VMMACRO+VMDEBUG -> 62 | E54: Active Income: | F54: =IFERROR(AVERAGEIFS(SC_ZX_IncomeActive, SC_ZX_CodeA, F$53, SC_ZX_ValueType, "R"),0)/12 -> 0 | G54: =IFERROR(AVERAGEIFS(SC_ZX_IncomeActive, SC_ZX_CodeA, G$53, SC_ZX_ValueType, "R"),0)/12 -> 0
A55: 62 | E55: Passive Income: | F55: =IFERROR(AVERAGEIFS(SC_ZX_IncomePassive, SC_ZX_CodeA, F$53, SC_ZX_ValueType, "R"),0)/12 -> 0 | G55: =IFERROR(AVERAGEIFS(SC_ZX_IncomePassive, SC_ZX_CodeA, G$53, SC_ZX_ValueType, "R"),0)/12 -> 0
A56: 62 | E56: Social Security Income: | F56: =IFERROR(AVERAGEIFS(SC_ZX_IncomeSS, SC_ZX_CodeA, F$53, SC_ZX_ValueType, "R"),0)/12 -> 0 | G56: =IFERROR(AVERAGEIFS(SC_ZX_IncomeSS, SC_ZX_CodeA, G$53, SC_ZX_ValueType, "R"),0)/12 -> 0
A57: 62 | E57: Gross Income Excluding Capital Income: | F57: =SUM(F54:F56) -> 0 | G57: =SUM(G54:G56) -> 0
A58: 62 | E58: Savings Contributions: | F58: =IFERROR(AVERAGEIFS(SC_ZX_SavingsContrib, SC_ZX_CodeA, F$53, SC_ZX_ValueType, "R"),0)/12 -> 0 | G58: =IFERROR(AVERAGEIFS(SC_ZX_SavingsContrib, SC_ZX_CodeA, G$53, SC_ZX_ValueType, "R"),0)/12 -> 0
A59: 62 | E59: Expenses: | F59: =IFERROR(AVERAGEIFS(SC_ZX_Expenses, SC_ZX_CodeA, F$53, SC_ZX_ValueType, "R"),0)/12 -> 0 | G59: =IFERROR(AVERAGEIFS(SC_ZX_Expenses, SC_ZX_CodeA, G$53, SC_ZX_ValueType, "R"),0)/12 -> 0
A60: 62 | E60: Income Taxes: | F60: =IFERROR(AVERAGEIFS(SC_ZX_TotalTaxes, SC_ZX_CodeA, F$53, SC_ZX_ValueType, "R"),0)/12 -> 0 | G60: =IFERROR(AVERAGEIFS(SC_ZX_TotalTaxes, SC_ZX_CodeA, G$53, SC_ZX_ValueType, "R"),0)/12 -> 0
A61: 62 | E61: Interest on Debt: | F61: =IFERROR(AVERAGEIFS(SC_ZX_Debt, SC_ZX_CodeA, F$53, SC_ZX_ValueType, "R"),0)*SP_DebtRate/12 -> 0 | G61: =IFERROR(AVERAGEIFS(SC_ZX_Debt, SC_ZX_CodeA, G$53, SC_ZX_ValueType, "R"),0)*SP_DebtRate/12 -> 0
A62: 62 | E62: Surplus or Deficit: | F62: =SUM(F57:F61) -> 0 | G62: =SUM(G57:G61) -> 0

Sheet Portfolio (hidden)
A1: =PMBASIC+PMADVANCED+VMONLINE+VMMACRO+VMDEBUG -> 62 | B1: =PMBASIC+PMADVANCED+VMONLINE+VMMACRO+VMDEBUG -> 62 | C1: =PMBASIC+PMADVANCED+VMONLINE+VMMACRO+VMDEBUG -> 62 | D1: =PMBASIC+PMADVANCED+IF(INDEX(SC_ShowRetireatee,2), VMONLINE+VMMACRO+VMDEBUG, VMDEBUG) -> 56 | E1: =PMBASIC+PMADVANCED+VMDEBUG -> 56 | F1: =PMBASIC+PMADVANCED+VMDEBUG -> 56 | G1: =PMBASIC+PMADVANCED+VMDEBUG -> 56 | H1: =PMBASIC+PMADVANCED+VMONLINE+VMMACRO+VMDEBUG -> 62 | I1: =PMBASIC+PMADVANCED+VMDEBUG -> 56 | J1: =PMBASIC+PMADVANCED+VMDEBUG -> 56 | K1: =PMBASIC+PMADVANCED+VMDEBUG -> 56 | L1: =PMBASIC+PMADVANCED+VMDEBUG -> 56 | M1: =PMBASIC+PMADVANCED+VMDEBUG -> 56 | N1: =PMBASIC+PMADVANCED+VMONLINE+VMMACRO+VMDEBUG -> 62 | O1: =PMBASIC+PMADVANCED+VMONLINE+VMMACRO+VMDEBUG -> 62 | P1: =PMBASIC+PMADVANCED+VMONLINE+VMMACRO+VMDEBUG -> 62 | Q1: =PMBASIC+PMADVANCED+VMONLINE+VMMACRO+VMDEBUG -> 62 | R1: =PMBASIC+PMADVANCED+VMONLINE+VMMACRO+VMDEBUG -> 62 | S1: =PMBASIC+PMADVANCED+VMDEBUG -> 56 | T1: =PMBASIC+PMADVANCED+VMDEBUG -> 56 | U1: =PMBASIC+PMADVANCED+VMONLINE+VMMACRO+VMDEBUG -> 62 | V1: =PMBASIC+PMADVANCED+VMONLINE+VMMACRO+VMDEBUG -> 62 | W1: =PMBASIC+PMADVANCED+IF(SP_EI, VMONLINE+VMMACRO+VMDEBUG, VMDEBUG) -> 56 | X1: =PMBASIC+PMADVANCED+IF(SP_EI, VMONLINE+VMMACRO+VMDEBUG, VMDEBUG) -> 56 | Y1: 56 | Z1: =PMBASIC+PMADVANCED+VMDEBUG -> 56 | AA1: =PMBASIC+PMADVANCED+VMDEBUG -> 56 | AB1: 56 | AC1: 56 | AD1: 56 | AE1: 56 | AF1: =PMBASIC+PMADVANCED+IF(SP_EI, VMONLINE+VMMACRO+VMDEBUG, VMDEBUG) -> 56 | AG1: =PMBASIC+PMADVANCED+VMDEBUG -> 56 | AH1: =PMBASIC+PMADVANCED+VMDEBUG -> 56 | AI1: =PMBASIC+PMADVANCED+IF(SP_EI, VMONLINE+VMMACRO+VMDEBUG, VMDEBUG) -> 56 | AJ1: =PMBASIC+PMADVANCED+IF(SP_EI, VMONLINE+VMMACRO+VMDEBUG, VMDEBUG) -> 56 | AK1: =PMBASIC+PMADVANCED+IF(SP_SEI, VMONLINE+VMMACRO+VMDEBUG, VMDEBUG) -> 56 | AL1: =PMBASIC+PMADVANCED+IF(SP_SEI, VMONLINE+VMMACRO+VMDEBUG, VMDEBUG) -> 56 | AM1: 56 | AN1: =PMBASIC+PMADVANCED+VMDEBUG -> 56 | AO1: =PMBASIC+PMADVANCED+VMDEBUG -> 56 | AP1: 56 | AQ1: 56 | AR1: 56 | AS1: 56 | AT1: =PMBASIC+PMADVANCED+IF(SP_SEI, VMONLINE+VMMACRO+VMDEBUG, VMDEBUG) -> 56 | AU1: =PMBASIC+PMADVANCED+VMDEBUG -> 56 | AV1: =PMBASIC+PMADVANCED+VMDEBUG -> 56 | AW1: =PMBASIC+PMADVANCED+IF(SP_SEI, VMONLINE+VMMACRO+VMDEBUG, VMDEBUG) -> 56 | AX1: =PMBASIC+PMADVANCED+IF(SP_SEI, VMONLINE+VMMACRO+VMDEBUG, VMDEBUG) -> 56 | AY1: =PMBASIC+PMADVANCED+IF(SP_PIIRP, VMONLINE+VMMACRO+VMDEBUG, VMDEBUG) -> 56 | AZ1: =PMBASIC+PMADVANCED+IF(SP_PIIRP, VMONLINE+VMMACRO+VMDEBUG, VMDEBUG) -> 56 | BA1: =PMADVANCED+IF(AND(SP_PIIRP,INDEX(SC_ShowRetireatee,2)), VMONLINE+VMMACRO+VMDEBUG, VMDEBUG) -> 40 | BB1: =PMBASIC+PMADVANCED+VMDEBUG -> 56 | BC1: =PMBASIC+PMADVANCED+VMDEBUG -> 56 | BD1: =PMBASIC+PMADVANCED+IF(SP_PIIRP, VMONLINE+VMMACRO+VMDEBUG, VMDEBUG) -> 56 | BE1: =PMBASIC+PMADVANCED+IF(SP_PIIRP, VMONLINE+VMMACRO+VMDEBUG, VMDEBUG) -> 56 | BF1: =PMBASIC+PMADVANCED+IF(SP_PIIRP, VMONLINE+VMMACRO+VMDEBUG, VMDEBUG) -> 56 | BG1: =PMBASIC+PMADVANCED+IF(SP_PIIRP, VMONLINE+VMMACRO+VMDEBUG, VMDEBUG) -> 56 | BH1: =PMBASIC+PMADVANCED+IF(SP_PIIRP, VMONLINE+VMMACRO+VMDEBUG, VMDEBUG) -> 56 | BI1: =PMBASIC+PMADVANCED+VMDEBUG -> 56 | BJ1: =PMBASIC+PMADVANCED+VMDEBUG -> 56 | BK1: =PMBASIC+PMADVANCED+IF(SP_PIIRP, VMONLINE+VMMACRO+VMDEBUG, VMDEBUG) -> 56 | BL1: =PMBASIC+PMADVANCED+IF(SP_PIIRP, VMONLINE+VMMACRO+VMDEBUG, VMDEBUG) -> 56 | BM1: =PMBASIC+PMADVANCED+VMONLINE+VMMACRO+VMDEBUG -> 62 | BN1: 62 | BO1: 62 | BP1: 62 | BQ1: 62 | BR1: 62 | BS1: 62 | BT1: 62 | BU1: =PMBASIC+PMADVANCED+VMDEBUG -> 56 | BV1: =PMBASIC+PMADVANCED+VMONLINE+VMMACRO+VMDEBUG -> 62 | BW1: =PMBASIC+PMADVANCED+VMONLINE+VMMACRO+VMDEBUG -> 62
A2: =PMBASIC+PMADVANCED+VMONLINE+VMMACRO+VMDEBUG -> 62 | O2: Core Account | W2: 401(k)/403(b) | AD2: Roth 401(k)/403(b) | AK2: SEP/SIMPLE/Solo 401(k) | AR2: Roth Solo 401(k) | AY2: Traditional IRA | BF2: Roth IRA | BM2: Individual | BS2: Household
A3: =PMBASIC+PMADVANCED+VMONLINE+VMMACRO+VMDEBUG -> 62 | B3: Year | C3: $ | D3: RI | E3: RN | F3: TN | G3: RO | H3: Age | I3: APW | J3: CDW | K3: OFF | L3: +/- | M3: Years to Retirement | N3: Rate of Return | O3: Balance | P3: Cost Basis | Q3: Deposit | R3: Rollover | S3: Accessible Balance | T3: Percent of Accessible Balance | U3: Withdrawals | V3: Return | W3: Balance | X3: Deposit | Y3: Match | Z3: Accessible Balance | AA3: Percent of Accessible Balance | AB3: Withdrawal | AC3: Return | AD3: Balance | AE3: Cost Basis | AF3: Deposit | AG3: Accessible Balance | AH3: Percent of Accessible Balance | AI3: Withdrawal | AJ3: Return | AK3: Balance | AL3: Deposit | AM3: Match | AN3: Accessible Balance | AO3: Percent of Accessible Balance | AP3: Withdrawal | AQ3: Return | AR3: Balance | AS3: Cost Basis | AT3: Deposit | AU3: Accessible Balance | AV3: Percent of Accessible Balance | AW3: Withdrawal | AX3: Return | AY3: Balance | AZ3: Deposit | BA3: Spouse Deposit | BB3: Accessible Balance | BC3: Percent of Accessible Balance | BD3: Withdrawal | BE3: Return | BF3: Balance | BG3: Cost Basis | BH3: Deposit | BI3: Accessible Balance | BJ3: Percent of Accessible Balance | BK3: Withdrawal | BL3: Return | BM3: Deductible IRA Contrib | BN3: Non-Deductible IRA Contrib | BO3: Long Term Capital Gains | BP3: Short Term Capital Gains | BQ3: Taxable Capital Income | BR3: Non-Taxable Capital Income | BS3: IRA Contrib | BT3: Capital Income | BU3: Accessible Balance | BV3: Before-Tax Balance | BW3: After-Tax Balance
B4: 0 | I4: =IF(YEAR(SP_AdjustedDate)<SC_TargetRY,1,IF(YEAR(SP_AdjustedDate)=SC_TargetRY,-(1-YEARFRAC(SP_TargetRD,DATE(SC_TargetRY+1,1,1))),0)) -> 1 | J4: =-(1-YEARFRAC(SP_AdjustedDate,DATE(YEAR(SP_AdjustedDate)+1,1,1))) -> -0.1666666667 | K4: =(YEAR(SP_AdjustedDate)-SP_CurrentYear)*2+ROW()-ROW($A$4) -> 0 | L4: 1 | N4: =IF(INDEX(SC_ZX_CodeA,1)="X",0,ABS($J4)*OFFSET(N$10,$K4,0)) -> 0.0079 | O4: =OFFSET(O$10,$K4,0) -> 0 | P4: =OFFSET(P$10,$K4,0) -> 0 | Q4: =IF(INDEX(SC_ZX_CodeA,1)="X",0,IF(ABS($I4)<(1/12),ABS($J4),MAX(ABS(MAX(IF($I4<=0,$I4,-1),IF($J4<=0,$J4,-1)))+MIN(IF($I4>=0,$I4,1),IF($J4>=0,$J4,1))-1,0)/ABS($I4))*OFFSET(Q$10,$K4,0)*$L4) -> 0 | R4: 0 | U4: =IF(INDEX(SC_ZX_CodeA,1)="X",0,IF(ABS($I4)>(11/12),ABS($J4),MAX(ABS(MAX(IF($I4>=0,-1+$I4,-1),IF($J4<=0,$J4,-1)))+MIN(IF($I4<=0,1+$I4,1),IF($J4>=0,$J4,1))-1,0)/(1-ABS($I4)))*OFFSET(U$10,$K4,0)*$L4) -> 0 | V4: =(O4+Q4+R4+U4)*$N4*$L4 -> 0 | W4: =OFFSET(W$10,$K4,0) -> 0 | X4: =IF(INDEX(SC_ZX_CodeA,1)="X",0,IF(ABS($I4)<(1/12),ABS($J4),MAX(ABS(MAX(IF($I4<=0,$I4,-1),IF($J4<=0,$J4,-1)))+MIN(IF($I4>=0,$I4,1),IF($J4>=0,$J4,1))-1,0)/ABS($I4))*OFFSET(X$10,$K4,0)*$L4) -> 0 | Y4: =IF(INDEX(SC_ZX_CodeA,1)="X",0,IF(ABS($I4)<(1/12),ABS($J4),MAX(ABS(MAX(IF($I4<=0,$I4,-1),IF($J4<=0,$J4,-1)))+MIN(IF($I4>=0,$I4,1),IF($J4>=0,$J4,1))-1,0)/ABS($I4))*OFFSET(Y$10,$K4,0)*$L4) -> 0 | AB4: =IF(INDEX(SC_ZX_CodeA,1)="X",0,IF(ABS($I4)>(11/12),ABS($J4),MAX(ABS(MAX(IF($I4>=0,-1+$I4,-1),IF($J4<=0,$J4,-1)))+MIN(IF($I4<=0,1+$I4,1),IF($J4>=0,$J4,1))-1,0)/(1-ABS($I4)))*OFFSET(AB$10,$K4,0)*$L4) -> 0 | AC4: =(W4+X4+Y4+AB4)*$N4*$L4 -> 0 | AD4: =OFFSET(AD$10,$K4,0) -> 0 | AE4: =OFFSET(AE$10,$K4,0) -> 0 | AF4: =IF(INDEX(SC_ZX_CodeA,1)="X",0,IF(ABS($I4)<(1/12),ABS($J4),MAX(ABS(MAX(IF($I4<=0,$I4,-1),IF($J4<=0,$J4,-1)))+MIN(IF($I4>=0,$I4,1),IF($J4>=0,$J4,1))-1,0)/ABS($I4))*OFFSET(AF$10,$K4,0)*$L4) -> 0 | AI4: =IF(INDEX(SC_ZX_CodeA,1)="X",0,IF(ABS($I4)>(11/12),ABS($J4),MAX(ABS(MAX(IF($I4>=0,-1+$I4,-1),IF($J4<=0,$J4,-1)))+MIN(IF($I4<=0,1+$I4,1),IF($J4>=0,$J4,1))-1,0)/(1-ABS($I4)))*OFFSET(AI$10,$K4,0)*$L4) -> 0 | AJ4: =(AD4+AF4+AI4)*$N4*$L4 -> 0 | AK4: =OFFSET(AK$10,$K4,0) -> 0 | AL4: =IF(INDEX(SC_ZX_CodeA,1)="X",0,IF(ABS($I4)<(1/12),ABS($J4),MAX(ABS(MAX(IF($I4<=0,$I4,-1),IF($J4<=0,$J4,-1)))+MIN(IF($I4>=0,$I4,1),IF($J4>=0,$J4,1))-1,0)/ABS($I4))*OFFSET(AL$10,$K4,0)*$L4) -> 0 | AM4: =IF(INDEX(SC_ZX_CodeA,1)="X",0,IF(ABS($I4)<(1/12),ABS($J4),MAX(ABS(MAX(IF($I4<=0,$I4,-1),IF($J4<=0,$J4,-1)))+MIN(IF($I4>=0,$I4,1),IF($J4>=0,$J4,1))-1,0)/ABS($I4))*OFFSET(AM$10,$K4,0)*$L4) -> 0 | AP4: =IF(INDEX(SC_ZX_CodeA,1)="X",0,IF(ABS($I4)>(11/12),ABS($J4),MAX(ABS(MAX(IF($I4>=0,-1+$I4,-1),IF($J4<=0,$J4,-1)))+MIN(IF($I4<=0,1+$I4,1),IF($J4>=0,$J4,1))-1,0)/(1-ABS($I4)))*OFFSET(AP$10,$K4,0)*$L4) -> 0 | AQ4: =(AK4+AL4+AM4+AP4)*$N4*$L4 -> 0 | AR4: =OFFSET(AR$10,$K4,0) -> 0 | AS4: =OFFSET(AS$10,$K4,0) -> 0 | AT4: =IF(INDEX(SC_ZX_CodeA,1)="X",0,IF(ABS($I4)<(1/12),ABS($J4),MAX(ABS(MAX(IF($I4<=0,$I4,-1),IF($J4<=0,$J4,-1)))+MIN(IF($I4>=0,$I4,1),IF($J4>=0,$J4,1))-1,0)/ABS($I4))*OFFSET(AT$10,$K4,0)*$L4) -> 0 | AW4: =IF(INDEX(SC_ZX_CodeA,1)="X",0,IF(ABS($I4)>(11/12),ABS($J4),MAX(ABS(MAX(IF($I4>=0,-1+$I4,-1),IF($J4<=0,$J4,-1)))+MIN(IF($I4<=0,1+$I4,1),IF($J4>=0,$J4,1))-1,0)/(1-ABS($I4)))*OFFSET(AW$10,$K4,0)*$L4) -> 0 | AX4: =(AR4+AT4+AW4)*$N4*$L4 -> 0 | AY4: =OFFSET(AY$10,$K4,0) -> 0 | AZ4: =IF(INDEX(SC_ZX_CodeA,1)="X",0,IF(ABS($I4)<(1/12),ABS($J4),MAX(ABS(MAX(IF($I4<=0,$I4,-1),IF($J4<=0,$J4,-1)))+MIN(IF($I4>=0,$I4,1),IF($J4>=0,$J4,1))-1,0)/ABS($I4))*OFFSET(AZ$10,$K4,0)*$L4) -> 0 | BA4: =IF(INDEX(SC_ZX_CodeA,1)="X",0,IF(ABS($I4)<(1/12),ABS($J4),MAX(ABS(MAX(IF($I4<=0,$I4,-1),IF($J4<=0,$J4,-1)))+MIN(IF($I4>=0,$I4,1),IF($J4>=0,$J4,1))-1,0)/ABS($I4))*OFFSET(BA$10,$K4,0)*$L4) -> 0 | BD4: =IF(INDEX(SC_ZX_CodeA,1)="X",0,IF(ABS($I4)>(11/12),ABS($J4),MAX(ABS(MAX(IF($I4>=0,-1+$I4,-1),IF($J4<=0,$J4,-1)))+MIN(IF($I4<=0,1+$I4,1),IF($J4>=0,$J4,1))-1,0)/(1-ABS($I4)))*OFFSET(BD$10,$K4,0)*$L4) -> 0 | BE4: =(AY4+AZ4+BA4+BD4)*$N4*$L4 -> 0 | BF4: =OFFSET(BF$10,$K4,0) -> 0 | BG4: =OFFSET(BG$10,$K4,0) -> 0 | BH4: =IF(INDEX(SC_ZX_CodeA,1)="X",0,IF(ABS($I4)<(1/12),ABS($J4),MAX(ABS(MAX(IF($I4<=0,$I4,-1),IF($J4<=0,$J4,-1)))+MIN(IF($I4>=0,$I4,1),IF($J4>=0,$J4,1))-1,0)/ABS($I4))*OFFSET(BH$10,$K4,0)*$L4) -> 0 | BK4: =IF(INDEX(SC_ZX_CodeA,1)="X",0,IF(ABS($I4)>(11/12),ABS($J4),MAX(ABS(MAX(IF($I4>=0,-1+$I4,-1),IF($J4<=0,$J4,-1)))+MIN(IF($I4<=0,1+$I4,1),IF($J4>=0,$J4,1))-1,0)/(1-ABS($I4)))*OFFSET(BK$10,$K4,0)*$L4) -> 0 | BL4: =(BF4+BH4+BK4)*$N4*$L4 -> 0
B5: 0 | I5: =IF(YEAR(SP_AdjustedDate)<SC_TargetRY,1,IF(YEAR(SP_AdjustedDate)=SC_TargetRY,-(1-YEARFRAC(SP_TargetRD,DATE(SC_TargetRY+1,1,1))),0)) -> 1 | J5: =-(1-YEARFRAC(SP_AdjustedDate,DATE(YEAR(SP_AdjustedDate)+1,1,1))) -> -0.1666666667 | K5: =(YEAR(SP_AdjustedDate)-SP_CurrentYear)*2+ROW()-ROW($A$4) -> 1 | L5: 1 | N5: =IF(INDEX(SC_ZX_CodeA,1)="X",0,ABS($J5)*OFFSET(N$10,$K5,0)) -> 0.0079 | W5: =OFFSET(W$10,$K5,0) -> 0 | X5: =IF(INDEX(SC_ZX_CodeA,1)="X",0,IF(ABS($I5)<(1/12),ABS($J5),MAX(ABS(MAX(IF($I5<=0,$I5,-1),IF($J5<=0,$J5,-1)))+MIN(IF($I5>=0,$I5,1),IF($J5>=0,$J5,1))-1,0)/ABS($I5))*OFFSET(X$10,$K5,0)*$L5) -> 0 | Y5: =IF(INDEX(SC_ZX_CodeA,1)="X",0,IF(ABS($I5)<(1/12),ABS($J5),MAX(ABS(MAX(IF($I5<=0,$I5,-1),IF($J5<=0,$J5,-1)))+MIN(IF($I5>=0,$I5,1),IF($J5>=0,$J5,1))-1,0)/ABS($I5))*OFFSET(Y$10,$K5,0)*$L5) -> 0 | AB5: =IF(INDEX(SC_ZX_CodeA,1)="X",0,IF(ABS($I5)>(11/12),ABS($J5),MAX(ABS(MAX(IF($I5>=0,-1+$I5,-1),IF($J5<=0,$J5,-1)))+MIN(IF($I5<=0,1+$I5,1),IF($J5>=0,$J5,1))-1,0)/(1-ABS($I5)))*OFFSET(AB$10,$K5,0)*$L5) -> 0 | AC5: =(W5+X5+Y5+AB5)*$N5*$L5 -> 0 | AD5: =OFFSET(AD$10,$K5,0) -> 0 | AE5: 0 | AF5: =IF(INDEX(SC_ZX_CodeA,1)="X",0,IF(ABS($I5)<(1/12),ABS($J5),MAX(ABS(MAX(IF($I5<=0,$I5,-1),IF($J5<=0,$J5,-1)))+MIN(IF($I5>=0,$I5,1),IF($J5>=0,$J5,1))-1,0)/ABS($I5))*OFFSET(AF$10,$K5,0)*$L5) -> 0 | AI5: =IF(INDEX(SC_ZX_CodeA,1)="X",0,IF(ABS($I5)>(11/12),ABS($J5),MAX(ABS(MAX(IF($I5>=0,-1+$I5,-1),IF($J5<=0,$J5,-1)))+MIN(IF($I5<=0,1+$I5,1),IF($J5>=0,$J5,1))-1,0)/(1-ABS($I5)))*OFFSET(AI$10,$K5,0)*$L5) -> 0 | AJ5: =(AD5+AF5+AI5)*$N5*$L5 -> 0 | AK5: =OFFSET(AK$10,$K5,0) -> 0 | AL5: =IF(INDEX(SC_ZX_CodeA,1)="X",0,IF(ABS($I5)<(1/12),ABS($J5),MAX(ABS(MAX(IF($I5<=0,$I5,-1),IF($J5<=0,$J5,-1)))+MIN(IF($I5>=0,$I5,1),IF($J5>=0,$J5,1))-1,0)/ABS($I5))*OFFSET(AL$10,$K5,0)*$L5) -> 0 | AM5: =IF(INDEX(SC_ZX_CodeA,1)="X",0,IF(ABS($I5)<(1/12),ABS($J5),MAX(ABS(MAX(IF($I5<=0,$I5,-1),IF($J5<=0,$J5,-1)))+MIN(IF($I5>=0,$I5,1),IF($J5>=0,$J5,1))-1,0)/ABS($I5))*OFFSET(AM$10,$K5,0)*$L5) -> 0 | AP5: =IF(INDEX(SC_ZX_CodeA,1)="X",0,IF(ABS($I5)>(11/12),ABS($J5),MAX(ABS(MAX(IF($I5>=0,-1+$I5,-1),IF($J5<=0,$J5,-1)))+MIN(IF($I5<=0,1+$I5,1),IF($J5>=0,$J5,1))-1,0)/(1-ABS($I5)))*OFFSET(AP$10,$K5,0)*$L5) -> 0 | AQ5: =(AK5+AL5+AM5+AP5)*$N5*$L5 -> 0 | AR5: =OFFSET(AR$10,$K5,0) -> 0 | AS5: =OFFSET(AS$10,$K5,0) -> 0 | AT5: =IF(INDEX(SC_ZX_CodeA,1)="X",0,IF(ABS($I5)<(1/12),ABS($J5),MAX(ABS(MAX(IF($I5<=0,$I5,-1),IF($J5<=0,$J5,-1)))+MIN(IF($I5>=0,$I5,1),IF($J5>=0,$J5,1))-1,0)/ABS($I5))*OFFSET(AT$10,$K5,0)*$L5) -> 0 | AW5: =IF(INDEX(SC_ZX_CodeA,1)="X",0,IF(ABS($I5)>(11/12),ABS($J5),MAX(ABS(MAX(IF($I5>=0,-1+$I5,-1),IF($J5<=0,$J5,-1)))+MIN(IF($I5<=0,1+$I5,1),IF($J5>=0,$J5,1))-1,0)/(1-ABS($I5)))*OFFSET(AW$10,$K5,0)*$L5) -> 0 | AX5: =(AR5+AT5+AW5)*$N5*$L5 -> 0 | AY5: =OFFSET(AY$10,$K5,0) -> 0 | AZ5: =IF(INDEX(SC_ZX_CodeA,1)="X",0,IF(ABS($I5)<(1/12),ABS($J5),MAX(ABS(MAX(IF($I5<=0,$I5,-1),IF($J5<=0,$J5,-1)))+MIN(IF($I5>=0,$I5,1),IF($J5>=0,$J5,1))-1,0)/ABS($I5))*OFFSET(AZ$10,$K5,0)*$L5) -> 0 | BA5: =IF(INDEX(SC_ZX_CodeA,1)="X",0,IF(ABS($I5)<(1/12),ABS($J5),MAX(ABS(MAX(IF($I5<=0,$I5,-1),IF($J5<=0,$J5,-1)))+MIN(IF($I5>=0,$I5,1),IF($J5>=0,$J5,1))-1,0)/ABS($I5))*OFFSET(BA$10,$K5,0)*$L5) -> 0 | BD5: =IF(INDEX(SC_ZX_CodeA,1)="X",0,IF(ABS($I5)>(11/12),ABS($J5),MAX(ABS(MAX(IF($I5>=0,-1+$I5,-1),IF($J5<=0,$J5,-1)))+MIN(IF($I5<=0,1+$I5,1),IF($J5>=0,$J5,1))-1,0)/(1-ABS($I5)))*OFFSET(BD$10,$K5,0)*$L5) -> 0 | BE5: =(AY5+AZ5+BA5+BD5)*$N5*$L5 -> 0 | BF5: =OFFSET(BF$10,$K5,0) -> 0 | BG5: =OFFSET(BG$10,$K5,0) -> 0 | BH5: =IF(INDEX(SC_ZX_CodeA,1)="X",0,IF(ABS($I5)<(1/12),ABS($J5),MAX(ABS(MAX(IF($I5<=0,$I5,-1),IF($J5<=0,$J5,-1)))+MIN(IF($I5>=0,$I5,1),IF($J5>=0,$J5,1))-1,0)/ABS($I5))*OFFSET(BH$10,$K5,0)*$L5) -> 0 | BK5: =IF(INDEX(SC_ZX_CodeA,1)="X",0,IF(ABS($I5)>(11/12),ABS($J5),MAX(ABS(MAX(IF($I5>=0,-1+$I5,-1),IF($J5<=0,$J5,-1)))+MIN(IF($I5<=0,1+$I5,1),IF($J5>=0,$J5,1))-1,0)/(1-ABS($I5)))*OFFSET(BK$10,$K5,0)*$L5) -> 0 | BL5: =(BF5+BH5+BK5)*$N5*$L5 -> 0
B6: 0 | O6: =MAX(O4+Q4+R4+U4+V4,0) -> 0 | P6: =MAX(P4+Q4+IF((O4+Q4+R4)>0,MAX(U4/(O4+Q4+R4)*(P4+Q4),U4),0),0) -> 0 | W6: =MAX(W4+X4+Y4+AB4+AC4,0) -> 0 | AD6: =MAX(AD4+AF4+AI4+AJ4,0) -> 0 | AE6: =MAX(AE4+AF4+AI4,0) -> 0 | AK6: =MAX(AK4+AL4+AM4+AP4+AQ4,0) -> 0 | AR6: =MAX(AR4+AT4+AW4+AX4,0) -> 0 | AS6: =MAX(AS4+AT4+AW4,0) -> 0 | AY6: =MAX(AY4+AZ4+BA4+BD4+BE4,0) -> 0 | BF6: =MAX(BF4+BH4+BK4+BL4,0) -> 0 | BG6: =MAX(BG4+BH4+BK4,0) -> 0
B7: 0 | W7: 0 | AD7: 0 | AE7: 0 | AK7: =MAX(AK5+AL5+AM5+AP5+AQ5,0) -> 0 | AR7: =MAX(AR5+AT5+AW5+AX5,0) -> 0 | AS7: =MAX(AS5+AT5+AW5,0) -> 0 | AY7: =MAX(AY5+AZ5+BA5+BD5+BE5,0) -> 0 | BF7: =MAX(BF5+BH5+BK5+BL5,0) -> 0 | BG7: =MAX(BG5+BH5+BK5,0) -> 0
B8: =SP_CurrentYear-1 -> 2019 | C8: N | D8: =INDEX(SP_Initials,E8) ->  | E8: =MOD(ROW(),2)+1 -> 1 | F8: =INDEX(SC_TaxIndex,$E8) -> 0 | G8: =MOD($E8,2)-($E8-1) -> 1 | H8: =IF(INDEX(SC_ShowRetireatee,$E8),IF($B8<YEAR(INDEX(SP_BirthDate,$E8)),0,IF($B8>(YEAR(INDEX(SP_BirthDate,$E8))+INDEX(SP_LifeExp,$E8)),0,$B8-YEAR(INDEX(SP_BirthDate,$E8)))),0) -> 0 | I8: =INDEX(SC_EX_APW,EXIDX+2) -> 1 | J8: =-(1-SC_CurrentDatePr) -> -0.1666666667 | K8: =ROW()-ROW($A$8) -> 0 | L8: -1 | N8: =IF(INDEX(SC_ZX_CodeA,1)="X",0,(ABS($J8)*OFFSET(N$10,$K8,0))/(1+ABS($J8)*OFFSET(N$10,$K8,0))) -> 0.007838079175 | O8: =SP_CoreBalance -> 0 | P8: =SP_CoreCostBasis -> 0 | Q8: =IF(INDEX(SC_ZX_CodeA,1)="X",0,IF(ABS($I8)<(1/12),ABS($J8),MAX(ABS(MAX(IF($I8<=0,$I8,-1),IF($J8<=0,$J8,-1)))+MIN(IF($I8>=0,$I8,1),IF($J8>=0,$J8,1))-1,0)/ABS($I8))*OFFSET(Q$10,$K8,0)*$L8) -> 0 | R8: 0 | U8: =IF(INDEX(SC_ZX_CodeA,1)="X",0,IF(ABS($I8)>(11/12),ABS($J8),MAX(ABS(MAX(IF($I8>=0,-1+$I8,-1),IF($J8<=0,$J8,-1)))+MIN(IF($I8<=0,1+$I8,1),IF($J8>=0,$J8,1))-1,0)/(1-ABS($I8)))*OFFSET(U$10,$K8,0)*$L8) -> 0 | V8: =O8*$N8*$L8 -> 0 | W8: =INDEX(SP_401KBalance,$E8) -> 0 | X8: =IF(INDEX(SC_ZX_CodeA,1)="X",0,IF(ABS($I8)<(1/12),ABS($J8),MAX(ABS(MAX(IF($I8<=0,$I8,-1),IF($J8<=0,$J8,-1)))+MIN(IF($I8>=0,$I8,1),IF($J8>=0,$J8,1))-1,0)/ABS($I8))*OFFSET(X$10,$K8,0)*$L8) -> 0 | Y8: =IF(INDEX(SC_ZX_CodeA,1)="X",0,IF(ABS($I8)<(1/12),ABS($J8),MAX(ABS(MAX(IF($I8<=0,$I8,-1),IF($J8<=0,$J8,-1)))+MIN(IF($I8>=0,$I8,1),IF($J8>=0,$J8,1))-1,0)/ABS($I8))*OFFSET(Y$10,$K8,0)*$L8) -> 0 | AB8: =IF(INDEX(SC_ZX_CodeA,1)="X",0,IF(ABS($I8)>(11/12),ABS($J8),MAX(ABS(MAX(IF($I8>=0,-1+$I8,-1),IF($J8<=0,$J8,-1)))+MIN(IF($I8<=0,1+$I8,1),IF($J8>=0,$J8,1))-1,0)/(1-ABS($I8)))*OFFSET(AB$10,$K8,0)*$L8) -> 0 | AC8: =W8*$N8*$L8 -> 0 | AD8: =INDEX(SP_Roth401KBalance,$E8) -> 0 | AE8: =INDEX(SP_Roth401KCostBasis,$E8) -> 0 | AF8: =IF(INDEX(SC_ZX_CodeA,1)="X",0,IF(ABS($I8)<(1/12),ABS($J8),MAX(ABS(MAX(IF($I8<=0,$I8,-1),IF($J8<=0,$J8,-1)))+MIN(IF($I8>=0,$I8,1),IF($J8>=0,$J8,1))-1,0)/ABS($I8))*OFFSET(AF$10,$K8,0)*$L8) -> 0 | AI8: =IF(INDEX(SC_ZX_CodeA,1)="X",0,IF(ABS($I8)>(11/12),ABS($J8),MAX(ABS(MAX(IF($I8>=0,-1+$I8,-1),IF($J8<=0,$J8,-1)))+MIN(IF($I8<=0,1+$I8,1),IF($J8>=0,$J8,1))-1,0)/(1-ABS($I8)))*OFFSET(AI$10,$K8,0)*$L8) -> 0 | AJ8: =AD8*$N8*$L8 -> 0 | AK8: =INDEX(SP_Solo401KBalance,$E8) -> 0 | AL8: =IF(INDEX(SC_ZX_CodeA,1)="X",0,IF(ABS($I8)<(1/12),ABS($J8),MAX(ABS(MAX(IF($I8<=0,$I8,-1),IF($J8<=0,$J8,-1)))+MIN(IF($I8>=0,$I8,1),IF($J8>=0,$J8,1))-1,0)/ABS($I8))*OFFSET(AL$10,$K8,0)*$L8) -> 0 | AM8: =IF(INDEX(SC_ZX_CodeA,1)="X",0,IF(ABS($I8)<(1/12),ABS($J8),MAX(ABS(MAX(IF($I8<=0,$I8,-1),IF($J8<=0,$J8,-1)))+MIN(IF($I8>=0,$I8,1),IF($J8>=0,$J8,1))-1,0)/ABS($I8))*OFFSET(AM$10,$K8,0)*$L8) -> 0 | AP8: =IF(INDEX(SC_ZX_CodeA,1)="X",0,IF(ABS($I8)>(11/12),ABS($J8),MAX(ABS(MAX(IF($I8>=0,-1+$I8,-1),IF($J8<=0,$J8,-1)))+MIN(IF($I8<=0,1+$I8,1),IF($J8>=0,$J8,1))-1,0)/(1-ABS($I8)))*OFFSET(AP$10,$K8,0)*$L8) -> 0 | AQ8: =AK8*$N8*$L8 -> 0 | AR8: =INDEX(SP_RothSolo401KBalance,$E8) -> 0 | AS8: =INDEX(SP_RothSolo401KCostBasis,$E8) -> 0 | AT8: =IF(INDEX(SC_ZX_CodeA,1)="X",0,IF(ABS($I8)<(1/12),ABS($J8),MAX(ABS(MAX(IF($I8<=0,$I8,-1),IF($J8<=0,$J8,-1)))+MIN(IF($I8>=0,$I8,1),IF($J8>=0,$J8,1))-1,0)/ABS($I8))*OFFSET(AT$10,$K8,0)*$L8) -> 0 | AW8: =IF(INDEX(SC_ZX_CodeA,1)="X",0,IF(ABS($I8)>(11/12),ABS($J8),MAX(ABS(MAX(IF($I8>=0,-1+$I8,-1),IF($J8<=0,$J8,-1)))+MIN(IF($I8<=0,1+$I8,1),IF($J8>=0,$J8,1))-1,0)/(1-ABS($I8)))*OFFSET(AW$10,$K8,0)*$L8) -> 0 | AX8: =AR8*$N8*$L8 -> 0 | AY8: =INDEX(SP_IRABalance,$E8) -> 0 | AZ8: =IF(INDEX(SC_ZX_CodeA,1)="X",0,IF(ABS($I8)<(1/12),ABS($J8),MAX(ABS(MAX(IF($I8<=0,$I8,-1),IF($J8<=0,$J8,-1)))+MIN(IF($I8>=0,$I8,1),IF($J8>=0,$J8,1))-1,0)/ABS($I8))*OFFSET(AZ$10,$K8,0)*$L8) -> 0 | BA8: =IF(INDEX(SC_ZX_CodeA,1)="X",0,IF(ABS($I8)<(1/12),ABS($J8),MAX(ABS(MAX(IF($I8<=0,$I8,-1),IF($J8<=0,$J8,-1)))+MIN(IF($I8>=0,$I8,1),IF($J8>=0,$J8,1))-1,0)/ABS($I8))*OFFSET(BA$10,$K8,0)*$L8) -> 0 | BD8: =IF(INDEX(SC_ZX_CodeA,1)="X",0,IF(ABS($I8)>(11/12),ABS($J8),MAX(ABS(MAX(IF($I8>=0,-1+$I8,-1),IF($J8<=0,$J8,-1)))+MIN(IF($I8<=0,1+$I8,1),IF($J8>=0,$J8,1))-1,0)/(1-ABS($I8)))*OFFSET(BD$10,$K8,0)*$L8) -> 0 | BE8: =AY8*$N8*$L8 -> 0 | BF8: =INDEX(SP_RothIRABalance,$E8) -> 0 | BG8: =INDEX(SP_RothIRACostBasis,$E8) -> 0 | BH8: =IF(INDEX(SC_ZX_CodeA,1)="X",0,IF(ABS($I8)<(1/12),ABS($J8),MAX(ABS(MAX(IF($I8<=0,$I8,-1),IF($J8<=0,$J8,-1)))+MIN(IF($I8>=0,$I8,1),IF($J8>=0,$J8,1))-1,0)/ABS($I8))*OFFSET(BH$10,$K8,0)*$L8) -> 0 | BK8: =IF(INDEX(SC_ZX_CodeA,1)="X",0,IF(ABS($I8)>(11/12),ABS($J8),MAX(ABS(MAX(IF($I8>=0,-1+$I8,-1),IF($J8<=0,$J8,-1)))+MIN(IF($I8<=0,1+$I8,1),IF($J8>=0,$J8,1))-1,0)/(1-ABS($I8)))*OFFSET(BK$10,$K8,0)*$L8) -> 0 | BL8: =BF8*$N8*$L8 -> 0
B9: 2019 | C9: N | E9: =MOD(ROW(),2)+1 -> 2 | F9: 0 | G9: -1 | H9: 0 | I9: =INDEX(SC_EX_APW,EXIDX+2) -> 1 | J9: =-(1-SC_CurrentDatePr) -> -0.1666666667 | K9: =ROW()-ROW($A$8) -> 1 | L9: -1 | N9: =IF(INDEX(SC_ZX_CodeA,1)="X",0,(ABS($J9)*OFFSET(N$10,$K9,0))/(1+ABS($J9)*OFFSET(N$10,$K9,0))) -> 0.007838079175 | W9: 0 | X9: =IF(INDEX(SC_ZX_CodeA,1)="X",0,IF(ABS($I9)<(1/12),ABS($J9),MAX(ABS(MAX(IF($I9<=0,$I9,-1),IF($J9<=0,$J9,-1)))+MIN(IF($I9>=0,$I9,1),IF($J9>=0,$J9,1))-1,0)/ABS($I9))*OFFSET(X$10,$K9,0)*$L9) -> 0 | Y9: =IF(INDEX(SC_ZX_CodeA,1)="X",0,IF(ABS($I9)<(1/12),ABS($J9),MAX(ABS(MAX(IF($I9<=0,$I9,-1),IF($J9<=0,$J9,-1)))+MIN(IF($I9>=0,$I9,1),IF($J9>=0,$J9,1))-1,0)/ABS($I9))*OFFSET(Y$10,$K9,0)*$L9) -> 0 | AB9: =IF(INDEX(SC_ZX_CodeA,1)="X",0,IF(ABS($I9)>(11/12),ABS($J9),MAX(ABS(MAX(IF($I9>=0,-1+$I9,-1),IF($J9<=0,$J9,-1)))+MIN(IF($I9<=0,1+$I9,1),IF($J9>=0,$J9,1))-1,0)/(1-ABS($I9)))*OFFSET(AB$10,$K9,0)*$L9) -> 0 | AC9: =W9*$N9*$L9 -> 0 | AD9: 0 | AE9: =INDEX(SP_Roth401KCostBasis,$E9) -> 0 | AF9: =IF(INDEX(SC_ZX_CodeA,1)="X",0,IF(ABS($I9)<(1/12),ABS($J9),MAX(ABS(MAX(IF($I9<=0,$I9,-1),IF($J9<=0,$J9,-1)))+MIN(IF($I9>=0,$I9,1),IF($J9>=0,$J9,1))-1,0)/ABS($I9))*OFFSET(AF$10,$K9,0)*$L9) -> 0 | AI9: =IF(INDEX(SC_ZX_CodeA,1)="X",0,IF(ABS($I9)>(11/12),ABS($J9),MAX(ABS(MAX(IF($I9>=0,-1+$I9,-1),IF($J9<=0,$J9,-1)))+MIN(IF($I9<=0,1+$I9,1),IF($J9>=0,$J9,1))-1,0)/(1-ABS($I9)))*OFFSET(AI$10,$K9,0)*$L9) -> 0 | AJ9: =AD9*$N9*$L9 -> 0 | AK9: 0 | AL9: =IF(INDEX(SC_ZX_CodeA,1)="X",0,IF(ABS($I9)<(1/12),ABS($J9),MAX(ABS(MAX(IF($I9<=0,$I9,-1),IF($J9<=0,$J9,-1)))+MIN(IF($I9>=0,$I9,1),IF($J9>=0,$J9,1))-1,0)/ABS($I9))*OFFSET(AL$10,$K9,0)*$L9) -> 0 | AM9: =IF(INDEX(SC_ZX_CodeA,1)="X",0,IF(ABS($I9)<(1/12),ABS($J9),MAX(ABS(MAX(IF($I9<=0,$I9,-1),IF($J9<=0,$J9,-1)))+MIN(IF($I9>=0,$I9,1),IF($J9>=0,$J9,1))-1,0)/ABS($I9))*OFFSET(AM$10,$K9,0)*$L9) -> 0 | AP9: =IF(INDEX(SC_ZX_CodeA,1)="X",0,IF(ABS($I9)>(11/12),ABS($J9),MAX(ABS(MAX(IF($I9>=0,-1+$I9,-1),IF($J9<=0,$J9,-1)))+MIN(IF($I9<=0,1+$I9,1),IF($J9>=0,$J9,1))-1,0)/(1-ABS($I9)))*OFFSET(AP$10,$K9,0)*$L9) -> 0 | AQ9: =AK9*$N9*$L9 -> 0 | AR9: 0 | AS9: =INDEX(SP_RothSolo401KCostBasis,$E9) -> 0 | AT9: =IF(INDEX(SC_ZX_CodeA,1)="X",0,IF(ABS($I9)<(1/12),ABS($J9),MAX(ABS(MAX(IF($I9<=0,$I9,-1),IF($J9<=0,$J9,-1)))+MIN(IF($I9>=0,$I9,1),IF($J9>=0,$J9,1))-1,0)/ABS($I9))*OFFSET(AT$10,$K9,0)*$L9) -> 0 | AW9: =IF(INDEX(SC_ZX_CodeA,1)="X",0,IF(ABS($I9)>(11/12),ABS($J9),MAX(ABS(MAX(IF($I9>=0,-1+$I9,-1),IF($J9<=0,$J9,-1)))+MIN(IF($I9<=0,1+$I9,1),IF($J9>=0,$J9,1))-1,0)/(1-ABS($I9)))*OFFSET(AW$10,$K9,0)*$L9) -> 0 | AX9: =AR9*$N9*$L9 -> 0 | AY9: 0 | AZ9: =IF(INDEX(SC_ZX_CodeA,1)="X",0,IF(ABS($I9)<(1/12),ABS($J9),MAX(ABS(MAX(IF($I9<=0,$I9,-1),IF($J9<=0,$J9,-1)))+MIN(IF($I9>=0,$I9,1),IF($J9>=0,$J9,1))-1,0)/ABS($I9))*OFFSET(AZ$10,$K9,0)*$L9) -> 0 | BA9: =IF(INDEX(SC_ZX_CodeA,1)="X",0,IF(ABS($I9)<(1/12),ABS($J9),MAX(ABS(MAX(IF($I9<=0,$I9,-1),IF($J9<=0,$J9,-1)))+MIN(IF($I9>=0,$I9,1),IF($J9>=0,$J9,1))-1,0)/ABS($I9))*OFFSET(BA$10,$K9,0)*$L9) -> 0 | BD9: =IF(INDEX(SC_ZX_CodeA,1)="X",0,IF(ABS($I9)>(11/12),ABS($J9),MAX(ABS(MAX(IF($I9>=0,-1+$I9,-1),IF($J9<=0,$J9,-1)))+MIN(IF($I9<=0,1+$I9,1),IF($J9>=0,$J9,1))-1,0)/(1-ABS($I9)))*OFFSET(BD$10,$K9,0)*$L9) -> 0 | BE9: =AY9*$N9*$L9 -> 0 | BF9: 0 | BG9: =INDEX(SP_RothIRACostBasis,$E9) -> 0 | BH9: =IF(INDEX(SC_ZX_CodeA,1)="X",0,IF(ABS($I9)<(1/12),ABS($J9),MAX(ABS(MAX(IF($I9<=0,$I9,-1),IF($J9<=0,$J9,-1)))+MIN(IF($I9>=0,$I9,1),IF($J9>=0,$J9,1))-1,0)/ABS($I9))*OFFSET(BH$10,$K9,0)*$L9) -> 0 | BK9: =IF(INDEX(SC_ZX_CodeA,1)="X",0,IF(ABS($I9)>(11/12),ABS($J9),MAX(ABS(MAX(IF($I9>=0,-1+$I9,-1),IF($J9<=0,$J9,-1)))+MIN(IF($I9<=0,1+$I9,1),IF($J9>=0,$J9,1))-1,0)/(1-ABS($I9)))*OFFSET(BK$10,$K9,0)*$L9) -> 0 | BL9: =BF9*$N9*$L9 -> 0
B10: =B8+1 -> 2020 | C10: N | E10: 1 | F10: 0 | G10: 1 | H10: 0 | M10: =YEAR(SP_TargetRD)-$B10 -> 1 | N10: =LT_InvestmentStocks*INDEX(SP_EA_ARStocks,EAIDX)+LT_InvestmentBonds*INDEX(SC_EA_ARBonds,EAIDX) -> 0.0474 | O10: =MAX(O8+Q8+R8+U8+V8,0) -> 0 | P10: =MAX(P8+Q8+IF((O8+Q8+R8)>0,MAX(U8/(O8+Q8+R8)*(P8+Q8),U8),0),0) -> 0 | Q10: =IF(SC_ZX_CodeA="X", 0, MAX(INDEX(SC_ZX_IncomeSurplus,ZXIDX2)+INDEX(SC_ZX_Debt,ZXIDX2),0)) -> 0 | R10: =IF(SC_ZX_CodeA="X", 0, INDEX(SC_EX_RolloverCore,EXIDX)) -> 0 | S10: =O10+Q10+R10 -> 0 | T10: =IF(SC_ZX_BalanceAccessibleA>0, S10/SC_ZX_BalanceAccessibleA, 0) -> 0 | U10: =-IF(SC_ZX_CodeA="X",0,MIN(T10*MAX(INDEX(SC_ZX_Drawdown,ZXIDX2),0),S10)) -> 0 | V10: =(O10+Q10+R10+U10)*$N10 -> 0 | W10: =MAX(W8+X8+Y8+AB8+AC8,0) -> 0 | X10: =MAX(INDEX(SC_EX_IncomeEmployer,EXIDX)*INDEX(SP_401KContrib,$E10),0) -> 0 | Y10: =MAX(INDEX(SC_EX_IncomeEmployer,EXIDX)*INDEX(SP_401KMatch,$E10),0) -> 0 | Z10: =(W10+X10+Y10)*IF($H10>=INDEX(SP_401KDistribAge,$E10),1,0) -> 0 | AA10: =IF(INDEX(SC_ZX_BalanceAccessibleA,ZXIDX1)>0, Z10/INDEX(SC_ZX_BalanceAccessibleA,ZXIDX1), 0) -> 0 | AB10: =-IF(INDEX(SC_ZX_CodeA,ZXIDX1)="X", 0, MIN(AA10*MAX(INDEX(SC_ZX_Drawdown,ZXIDX2),0),Z10)) -> 0 | AC10: =(W10+X10+Y10+AB10)*$N10 -> 0 | AD10: =MAX(AD8+AF8+AI8+AJ8,0) -> 0 | AE10: =MAX(AE8+AF8+AI8,0) -> 0 | AF10: =MAX(INDEX(SC_EX_IncomeEmployer, EXIDX)*INDEX(SP_Roth401KContrib,$E10),0) -> 0 | AG10: =(AD10+AF10)*IF($H10>=INDEX(SP_401KDistribAge,$E10),1,0) -> 0 | AH10: =IF(INDEX(SC_ZX_BalanceAccessibleA,ZXIDX1)>0, AG10/INDEX(SC_ZX_BalanceAccessibleA,ZXIDX1), 0) -> 0 | AI10: =-IF(INDEX(SC_ZX_CodeA,ZXIDX1)="X", 0, MIN(AH10*MAX(INDEX(SC_ZX_Drawdown,ZXIDX2),0),AG10)) -> 0 | AJ10: =(AD10+AF10+AI10)*$N10 -> 0 | AK10: =MAX(AK8+AL8+AM8+AP8+AQ8,0) -> 0 | AL10: =MAX(INDEX(SC_EX_IncomeSE,EXIDX)*INDEX(SP_Solo401KContrib,$E10),0) -> 0 | AM10: =MAX(INDEX(SC_EX_IncomeSE,EXIDX)*INDEX(SP_Solo401KMatch,$E10),0) -> 0 | AN10: =(AK10+AL10+AM10)*IF($H10>=INDEX(SP_Solo401KDistribAge,$E10),1,0) -> 0 | AO10: =IF(INDEX(SC_ZX_BalanceAccessibleA,ZXIDX1)>0, AN10/INDEX(SC_ZX_BalanceAccessibleA,ZXIDX1), 0) -> 0 | AP10: =-IF(INDEX(SC_ZX_CodeA,ZXIDX1)="X", 0, MIN(AO10*MAX(INDEX(SC_ZX_Drawdown,ZXIDX2),0),AN10)) -> 0 | AQ10: =(AK10+AL10+AM10+AP10)*$N10 -> 0 | AR10: =MAX(AR8+AT8+AW8+AX8,0) -> 0 | AS10: =MAX(AS8+AT8+AW8,0) -> 0 | AT10: =MAX(INDEX(SC_EX_IncomeSE, EXIDX)*INDEX(SP_RothSolo401KContrib,$E10),0) -> 0 | AU10: =(AR10+AT10)*IF($H10>=INDEX(SP_401KDistribAge,$E10),1,0) -> 0 | AV10: =IF(INDEX(SC_ZX_BalanceAccessibleA,ZXIDX1)>0, AU10/INDEX(SC_ZX_BalanceAccessibleA,ZXIDX1), 0) -> 0 | AW10: =-IF(INDEX(SC_ZX_CodeA,ZXIDX1)="X", 0, MIN(AV10*MAX(INDEX(SC_ZX_Drawdown,ZXIDX2),0),AU10)) -> 0 | AX10: =(AR10+AT10+AW10)*$N10 -> 0 | AY10: =MAX(AY8+AZ8+BA8+BD8+BE8,0) -> 0 | AZ10: =MAX(INDEX(SP_IRAContrib,$E10)/INDEX(SC_EA_InflationWageIdx, EAIDX)*ABS(INDEX(SC_EX_APW, EXIDX)),0) -> 0 | BA10: =MAX(INDEX(SP_IRASpousalContrib, OFFSET($E10,$G10,0))/INDEX(SC_EA_InflationWageIdx, EAIDX)*ABS(INDEX(SC_EX_APW, EXIDX)),0) -> 0 | BB10: =(AY10+AZ10+BA10)*IF($H10>=INDEX(SP_IRADistribAge,$E10),1,0) -> 0 | BC10: =IF(INDEX(SC_ZX_BalanceAccessibleA,ZXIDX1)>0, BB10/INDEX(SC_ZX_BalanceAccessibleA,ZXIDX1), 0) -> 0 | BD10: =-IF(INDEX(SC_ZX_CodeA,ZXIDX1)="X", 0, MIN(BC10*MAX(INDEX(SC_ZX_Drawdown,ZXIDX2),0),AY10)) -> 0 | BE10: =(AY10+AZ10+BA10+BD10)*$N10 -> 0 | BF10: =MAX(BF8+BH8+BK8+BL8,0) -> 0 | BG10: =MAX(BG8+BH8+BK8,0) -> 0 | BH10: =MAX(INDEX(SP_RothIRAContrib,$E10)/INDEX(SC_EA_InflationWageIdx, EAIDX)*ABS(INDEX(SC_EX_APW, EXIDX)),0) -> 0 | BI10: =IF($H10>=INDEX(SP_IRADistribAge,$E10),BF10+BH10,MIN(BF10+BH10,BG10+BH10)) -> 0 | BJ10: =IF(INDEX(SC_ZX_BalanceAccessibleA,ZXIDX1)>0, BI10/INDEX(SC_ZX_BalanceAccessibleA,ZXIDX1), 0) -> 0 | BK10: =-IF(INDEX(SC_ZX_CodeA,ZXIDX1)="X", 0, MIN(BJ10*MAX(INDEX(SC_ZX_Drawdown,ZXIDX2),0),BI10)) -> 0 | BL10: =(BF10+BH10+BK10)*$N10 -> 0 | BM10: =-(X10+AL10+AZ10)-OFFSET(BA10,$G10,0) -> 0 | BN10: =-(AF10+AT10+BH10) -> 0 | BO10: =-($U10-IF(($O10+$Q10+$R10)>0,MAX($U10/($O10+$Q10+$R10)*($P10+$Q10),$U10),0))*LT_InvestmentQDI -> 0 | BP10: =-($U10-IF(($O10+$Q10+$R10)>0,MAX($U10/($O10+$Q10+$R10)*($P10+$Q10),$U10),0))*(1-LT_InvestmentQDI) -> 0 | BQ10: =BO10+BP10-AB10-AP10-BD10 -> 0 | BR10: =-U10-BO10-BP10-AI10-AW10-BK10 -> 0 | BS10: =SUMPRODUCT($BM10:$BM11+$BN10:$BN11, --($F10:$F11<>0)) -> 0 | BT10: =SUMPRODUCT($BQ10:$BQ11+$BR10:$BR11, --($F10:$F11<>0)) -> 0 | BU10: =$S10+SUMPRODUCT($Z10:$Z11+$AG10:$AG11+$AN10:$AN11+$AU10:$AU11+$BB10:$BB11+$BI10:$BI11, --($F10:$F11<>0)) -> 0 | BV10: =MAX($O10-$P10,0)+SUMPRODUCT($W10:$W11+$AK10:$AK11+$AY10:$AY11, --($F10:$F11<>0)) -> 0 | BW10: =MIN($O10,$P10)+SUMPRODUCT($AD10:$AD11+$AR10:$AR11+$BF10:$BF11, --($F10:$F11<>0)) -> 0
B11: =B9+1 -> 2020 | C11: N | E11: 2 | F11: 0 | G11: -1 | H11: 0 | N11: =LT_InvestmentStocks*INDEX(SP_EA_ARStocks,EAIDX)+LT_InvestmentBonds*INDEX(SC_EA_ARBonds,EAIDX) -> 0.0474 | W11: 0 | X11: 0 | Y11: 0 | Z11: 0 | AA11: =IF(INDEX(SC_ZX_BalanceAccessibleA,ZXIDX1)>0, Z11/INDEX(SC_ZX_BalanceAccessibleA,ZXIDX1), 0) -> 0 | AB11: =-IF(INDEX(SC_ZX_CodeA,ZXIDX1)="X", 0, MIN(AA11*MAX(INDEX(SC_ZX_Drawdown,ZXIDX2),0),Z11)) -> 0 | AC11: 0 | AD11: 0 | AE11: 0 | AF11: 0 | AG11: 0 | AH11: =IF(INDEX(SC_ZX_BalanceAccessibleA,ZXIDX1)>0, AG11/INDEX(SC_ZX_BalanceAccessibleA,ZXIDX1), 0) -> 0 | AI11: =-IF(INDEX(SC_ZX_CodeA,ZXIDX1)="X", 0, MIN(AH11*MAX(INDEX(SC_ZX_Drawdown,ZXIDX2),0),AG11)) -> 0 | AJ11: 0 | AK11: 0 | AL11: 0 | AM11: 0 | AN11: 0 | AO11: 0 | AP11: =-IF(INDEX(SC_ZX_CodeA,ZXIDX1)="X", 0, MIN(AO11*MAX(INDEX(SC_ZX_Drawdown,ZXIDX2),0),AN11)) -> 0 | AQ11: 0 | AR11: 0 | AS11: 0 | AT11: 0 | AU11: 0 | AV11: =IF(INDEX(SC_ZX_BalanceAccessibleA,ZXIDX1)>0, AU11/INDEX(SC_ZX_BalanceAccessibleA,ZXIDX1), 0) -> 0 | AW11: =-IF(INDEX(SC_ZX_CodeA,ZXIDX1)="X", 0, MIN(AV11*MAX(INDEX(SC_ZX_Drawdown,ZXIDX2),0),AU11)) -> 0 | AX11: 0 | AY11: 0 | AZ11: 0 | BA11: 0 | BB11: 0 | BC11: =IF(INDEX(SC_ZX_BalanceAccessibleA,ZXIDX1)>0, BB11/INDEX(SC_ZX_BalanceAccessibleA,ZXIDX1), 0) -> 0 | BD11: =-IF(INDEX(SC_ZX_CodeA,ZXIDX1)="X", 0, MIN(BC11*MAX(INDEX(SC_ZX_Drawdown,ZXIDX2),0),AY11)) -> 0 | BE11: 0 | BF11: 0 | BG11: 0 | BH11: 0 | BI11: 0 | BJ11: =IF(INDEX(SC_ZX_BalanceAccessibleA,ZXIDX1)>0, BI11/INDEX(SC_ZX_BalanceAccessibleA,ZXIDX1), 0) -> 0 | BK11: =-IF(INDEX(SC_ZX_CodeA,ZXIDX1)="X", 0, MIN(BJ11*MAX(INDEX(SC_ZX_Drawdown,ZXIDX2),0),BI11)) -> 0 | BL11: 0 | BM11: 0 | BN11: 0 | BO11: =-($U11-IF(($O11+$Q11+$R11)>0,MAX($U11/($O11+$Q11+$R11)*($P11+$Q11),$U11),0))*LT_InvestmentQDI -> 0 | BP11: =-($U11-IF(($O11+$Q11+$R11)>0,MAX($U11/($O11+$Q11+$R11)*($P11+$Q11),$U11),0))*(1-LT_InvestmentQDI) -> 0 | BQ11: 0 | BR11: 0
B12: =B10+1 -> 2021 | C12: N | E12: 1 | F12: 0 | G12: 1 | H12: 0 | M12: =YEAR(SP_TargetRD)-$B12 -> 0 | N12: =LT_InvestmentStocks*INDEX(SP_EA_ARStocks,EAIDX)+LT_InvestmentBonds*INDEX(SC_EA_ARBonds,EAIDX) ->  | O12: =MAX(O10+Q10+R10+U10+V10,0) -> 0 | P12: =MAX(P10+Q10+IF((O10+Q10+R10)>0,MAX(U10/(O10+Q10+R10)*(P10+Q10),U10),0),0) -> 0 | Q12: =IF(SC_ZX_CodeA="X", 0, MAX(INDEX(SC_ZX_IncomeSurplus,ZXIDX2)+INDEX(SC_ZX_Debt,ZXIDX2),0)) ->  | R12: =IF(SC_ZX_CodeA="X", 0, INDEX(SC_EX_RolloverCore,EXIDX)) ->  | S12: =O12+Q12+R12 ->  | T12: =IF(SC_ZX_BalanceAccessibleA>0, S12/SC_ZX_BalanceAccessibleA, 0) ->  | U12: =-IF(SC_ZX_CodeA="X",0,MIN(T12*MAX(INDEX(SC_ZX_Drawdown,ZXIDX2),0),S12)) ->  | V12: =(O12+Q12+R12+U12)*$N12 ->  | W12: 0 | AB12: =-IF(INDEX(SC_ZX_CodeA,ZXIDX1)="X", 0, MIN(AA12*MAX(INDEX(SC_ZX_Drawdown,ZXIDX2),0),Z12)) ->  | AD12: 0 | AE12: 0 | AI12: =-IF(INDEX(SC_ZX_CodeA,ZXIDX1)="X", 0, MIN(AH12*MAX(INDEX(SC_ZX_Drawdown,ZXIDX2),0),AG12)) ->  | AK12: 0 | AP12: =-IF(INDEX(SC_ZX_CodeA,ZXIDX1)="X", 0, MIN(AO12*MAX(INDEX(SC_ZX_Drawdown,ZXIDX2),0),AN12)) ->  | AR12: 0 | AS12: 0 | AW12: =-IF(INDEX(SC_ZX_CodeA,ZXIDX1)="X", 0, MIN(AV12*MAX(INDEX(SC_ZX_Drawdown,ZXIDX2),0),AU12)) ->  | AY12: 0 | BD12: =-IF(INDEX(SC_ZX_CodeA,ZXIDX1)="X", 0, MIN(BC12*MAX(INDEX(SC_ZX_Drawdown,ZXIDX2),0),AY12)) ->  | BF12: 0 | BG12: 0 | BK12: =-IF(INDEX(SC_ZX_CodeA,ZXIDX1)="X", 0, MIN(BJ12*MAX(INDEX(SC_ZX_Drawdown,ZXIDX2),0),BI12)) ->  | BO12: =-($U12-IF(($O12+$Q12+$R12)>0,MAX($U12/($O12+$Q12+$R12)*($P12+$Q12),$U12),0))*LT_InvestmentQDI ->  | BP12: =-($U12-IF(($O12+$Q12+$R12)>0,MAX($U12/($O12+$Q12+$R12)*($P12+$Q12),$U12),0))*(1-LT_InvestmentQDI) ->  | BS12: =SUMPRODUCT($BM12:$BM13+$BN12:$BN13, --($F12:$F13<>0)) ->  | BT12: =SUMPRODUCT($BQ12:$BQ13+$BR12:$BR13, --($F12:$F13<>0)) ->  | BU12: =$S12+SUMPRODUCT($Z12:$Z13+$AG12:$AG13+$AN12:$AN13+$AU12:$AU13+$BB12:$BB13+$BI12:$BI13, --($F12:$F13<>0)) ->  | BV12: =MAX($O12-$P12,0)+SUMPRODUCT($W12:$W13+$AK12:$AK13+$AY12:$AY13, --($F12:$F13<>0)) -> 0 | BW12: =MIN($O12,$P12)+SUMPRODUCT($AD12:$AD13+$AR12:$AR13+$BF12:$BF13, --($F12:$F13<>0)) -> 0
B13: 2021 | C13: N | E13: 2 | F13: 0 | G13: -1 | H13: 0 | N13: =LT_InvestmentStocks*INDEX(SP_EA_ARStocks,EAIDX)+LT_InvestmentBonds*INDEX(SC_EA_ARBonds,EAIDX) ->  | W13: 0 | AA13: =IF(INDEX(SC_ZX_BalanceAccessibleA,ZXIDX1)>0, Z13/INDEX(SC_ZX_BalanceAccessibleA,ZXIDX1), 0) ->  | AB13: =-IF(INDEX(SC_ZX_CodeA,ZXIDX1)="X", 0, MIN(AA13*MAX(INDEX(SC_ZX_Drawdown,ZXIDX2),0),Z13)) ->  | AD13: 0 | AE13: 0 | AH13: =IF(INDEX(SC_ZX_BalanceAccessibleA,ZXIDX1)>0, AG13/INDEX(SC_ZX_BalanceAccessibleA,ZXIDX1), 0) ->  | AI13: =-IF(INDEX(SC_ZX_CodeA,ZXIDX1)="X", 0, MIN(AH13*MAX(INDEX(SC_ZX_Drawdown,ZXIDX2),0),AG13)) ->  | AK13: 0 | AO13: =IF(INDEX(SC_ZX_BalanceAccessibleA,ZXIDX1)>0, AN13/INDEX(SC_ZX_BalanceAccessibleA,ZXIDX1), 0) ->  | AP13: =-IF(INDEX(SC_ZX_CodeA,ZXIDX1)="X", 0, MIN(AO13*MAX(INDEX(SC_ZX_Drawdown,ZXIDX2),0),AN13)) ->  | AR13: 0 | AS13: 0 | AV13: =IF(INDEX(SC_ZX_BalanceAccessibleA,ZXIDX1)>0, AU13/INDEX(SC_ZX_BalanceAccessibleA,ZXIDX1), 0) ->  | AW13: =-IF(INDEX(SC_ZX_CodeA,ZXIDX1)="X", 0, MIN(AV13*MAX(INDEX(SC_ZX_Drawdown,ZXIDX2),0),AU13)) ->  | AY13: 0 | BC13: =IF(INDEX(SC_ZX_BalanceAccessibleA,ZXIDX1)>0, BB13/INDEX(SC_ZX_BalanceAccessibleA,ZXIDX1), 0) ->  | BD13: =-IF(INDEX(SC_ZX_CodeA,ZXIDX1)="X", 0, MIN(BC13*MAX(INDEX(SC_ZX_Drawdown,ZXIDX2),0),AY13)) ->  | BF13: 0 | BG13: 0 | BJ13: =IF(INDEX(SC_ZX_BalanceAccessibleA,ZXIDX1)>0, BI13/INDEX(SC_ZX_BalanceAccessibleA,ZXIDX1), 0) ->  | BK13: =-IF(INDEX(SC_ZX_CodeA,ZXIDX1)="X", 0, MIN(BJ13*MAX(INDEX(SC_ZX_Drawdown,ZXIDX2),0),BI13)) ->  | BO13: =-($U13-IF(($O13+$Q13+$R13)>0,MAX($U13/($O13+$Q13+$R13)*($P13+$Q13),$U13),0))*LT_InvestmentQDI ->  | BP13: =-($U13-IF(($O13+$Q13+$R13)>0,MAX($U13/($O13+$Q13+$R13)*($P13+$Q13),$U13),0))*(1-LT_InvestmentQDI) -> 
B14: =B12+1 -> 2022 | C14: N | E14: 1 | F14: 0 | G14: 1 | H14: 0 | M14: =YEAR(SP_TargetRD)-$B14 -> -1 | N14: =LT_InvestmentStocks*INDEX(SP_EA_ARStocks,EAIDX)+LT_InvestmentBonds*INDEX(SC_EA_ARBonds,EAIDX) ->  | O14: =MAX(O12+Q12+R12+U12+V12,0) ->  | P14: =MAX(P12+Q12+IF((O12+Q12+R12)>0,MAX(U12/(O12+Q12+R12)*(P12+Q12),U12),0),0) ->  | Q14: =IF(SC_ZX_CodeA="X", 0, MAX(INDEX(SC_ZX_IncomeSurplus,ZXIDX2)+INDEX(SC_ZX_Debt,ZXIDX2),0)) ->  | R14: =IF(SC_ZX_CodeA="X", 0, INDEX(SC_EX_RolloverCore,EXIDX)) ->  | S14: =O14+Q14+R14 ->  | T14: =IF(SC_ZX_BalanceAccessibleA>0, S14/SC_ZX_BalanceAccessibleA, 0) ->  | U14: =-IF(SC_ZX_CodeA="X",0,MIN(T14*MAX(INDEX(SC_ZX_Drawdown,ZXIDX2),0),S14)) ->  | V14: =(O14+Q14+R14+U14)*$N14 ->  | AB14: =-IF(INDEX(SC_ZX_CodeA,ZXIDX1)="X", 0, MIN(AA14*MAX(INDEX(SC_ZX_Drawdown,ZXIDX2),0),Z14)) ->  | AI14: =-IF(INDEX(SC_ZX_CodeA,ZXIDX1)="X", 0, MIN(AH14*MAX(INDEX(SC_ZX_Drawdown,ZXIDX2),0),AG14)) ->  | AP14: =-IF(INDEX(SC_ZX_CodeA,ZXIDX1)="X", 0, MIN(AO14*MAX(INDEX(SC_ZX_Drawdown,ZXIDX2),0),AN14)) ->  | AW14: =-IF(INDEX(SC_ZX_CodeA,ZXIDX1)="X", 0, MIN(AV14*MAX(INDEX(SC_ZX_Drawdown,ZXIDX2),0),AU14)) ->  | BD14: =-IF(INDEX(SC_ZX_CodeA,ZXIDX1)="X", 0, MIN(BC14*MAX(INDEX(SC_ZX_Drawdown,ZXIDX2),0),AY14)) ->  | BK14: =-IF(INDEX(SC_ZX_CodeA,ZXIDX1)="X", 0, MIN(BJ14*MAX(INDEX(SC_ZX_Drawdown,ZXIDX2),0),BI14)) ->  | BO14: =-($U14-IF(($O14+$Q14+$R14)>0,MAX($U14/($O14+$Q14+$R14)*($P14+$Q14),$U14),0))*LT_InvestmentQDI ->  | BP14: =-($U14-IF(($O14+$Q14+$R14)>0,MAX($U14/($O14+$Q14+$R14)*($P14+$Q14),$U14),0))*(1-LT_InvestmentQDI) ->  | BS14: =SUMPRODUCT($BM14:$BM15+$BN14:$BN15, --($F14:$F15<>0)) ->  | BT14: =SUMPRODUCT($BQ14:$BQ15+$BR14:$BR15, --($F14:$F15<>0)) ->  | BU14: =$S14+SUMPRODUCT($Z14:$Z15+$AG14:$AG15+$AN14:$AN15+$AU14:$AU15+$BB14:$BB15+$BI14:$BI15, --($F14:$F15<>0)) ->  | BV14: =MAX($O14-$P14,0)+SUMPRODUCT($W14:$W15+$AK14:$AK15+$AY14:$AY15, --($F14:$F15<>0)) ->  | BW14: =MIN($O14,$P14)+SUMPRODUCT($AD14:$AD15+$AR14:$AR15+$BF14:$BF15, --($F14:$F15<>0)) -> 
B15: 2022 | C15: N | E15: 2 | F15: 0 | G15: -1 | H15: 0 | N15: =LT_InvestmentStocks*INDEX(SP_EA_ARStocks,EAIDX)+LT_InvestmentBonds*INDEX(SC_EA_ARBonds,EAIDX) ->  | AB15: =-IF(INDEX(SC_ZX_CodeA,ZXIDX1)="X", 0, MIN(AA15*MAX(INDEX(SC_ZX_Drawdown,ZXIDX2),0),Z15)) ->  | AI15: =-IF(INDEX(SC_ZX_CodeA,ZXIDX1)="X", 0, MIN(AH15*MAX(INDEX(SC_ZX_Drawdown,ZXIDX2),0),AG15)) ->  | AP15: =-IF(INDEX(SC_ZX_CodeA,ZXIDX1)="X", 0, MIN(AO15*MAX(INDEX(SC_ZX_Drawdown,ZXIDX2),0),AN15)) ->  | AW15: =-IF(INDEX(SC_ZX_CodeA,ZXIDX1)="X", 0, MIN(AV15*MAX(INDEX(SC_ZX_Drawdown,ZXIDX2),0),AU15)) ->  | BD15: =-IF(INDEX(SC_ZX_CodeA,ZXIDX1)="X", 0, MIN(BC15*MAX(INDEX(SC_ZX_Drawdown,ZXIDX2),0),AY15)) ->  | BK15: =-IF(INDEX(SC_ZX_CodeA,ZXIDX1)="X", 0, MIN(BJ15*MAX(INDEX(SC_ZX_Drawdown,ZXIDX2),0),BI15)) ->  | BO15: =-($U15-IF(($O15+$Q15+$R15)>0,MAX($U15/($O15+$Q15+$R15)*($P15+$Q15),$U15),0))*LT_InvestmentQDI ->  | BP15: =-($U15-IF(($O15+$Q15+$R15)>0,MAX($U15/($O15+$Q15+$R15)*($P15+$Q15),$U15),0))*(1-LT_InvestmentQDI) -> 
B16: =B14+1 -> 2023 | C16: N | E16: 1 | F16: 0 | G16: 1 | H16: 0 | M16: =YEAR(SP_TargetRD)-$B16 -> -2 | N16: =LT_InvestmentStocks*INDEX(SP_EA_ARStocks,EAIDX)+LT_InvestmentBonds*INDEX(SC_EA_ARBonds,EAIDX) ->  | O16: =MAX(O14+Q14+R14+U14+V14,0) ->  | P16: =MAX(P14+Q14+IF((O14+Q14+R14)>0,MAX(U14/(O14+Q14+R14)*(P14+Q14),U14),0),0) ->  | Q16: =IF(SC_ZX_CodeA="X", 0, MAX(INDEX(SC_ZX_IncomeSurplus,ZXIDX2)+INDEX(SC_ZX_Debt,ZXIDX2),0)) ->  | R16: =IF(SC_ZX_CodeA="X", 0, INDEX(SC_EX_RolloverCore,EXIDX)) ->  | S16: =O16+Q16+R16 ->  | T16: =IF(SC_ZX_BalanceAccessibleA>0, S16/SC_ZX_BalanceAccessibleA, 0) ->  | U16: =-IF(SC_ZX_CodeA="X",0,MIN(T16*MAX(INDEX(SC_ZX_Drawdown,ZXIDX2),0),S16)) ->  | V16: =(O16+Q16+R16+U16)*$N16 ->  | AB16: =-IF(INDEX(SC_ZX_CodeA,ZXIDX1)="X", 0, MIN(AA16*MAX(INDEX(SC_ZX_Drawdown,ZXIDX2),0),Z16)) ->  | AI16: =-IF(INDEX(SC_ZX_CodeA,ZXIDX1)="X", 0, MIN(AH16*MAX(INDEX(SC_ZX_Drawdown,ZXIDX2),0),AG16)) ->  | AP16: =-IF(INDEX(SC_ZX_CodeA,ZXIDX1)="X", 0, MIN(AO16*MAX(INDEX(SC_ZX_Drawdown,ZXIDX2),0),AN16)) ->  | AW16: =-IF(INDEX(SC_ZX_CodeA,ZXIDX1)="X", 0, MIN(AV16*MAX(INDEX(SC_ZX_Drawdown,ZXIDX2),0),AU16)) ->  | BD16: =-IF(INDEX(SC_ZX_CodeA,ZXIDX1)="X", 0, MIN(BC16*MAX(INDEX(SC_ZX_Drawdown,ZXIDX2),0),AY16)) ->  | BK16: =-IF(INDEX(SC_ZX_CodeA,ZXIDX1)="X", 0, MIN(BJ16*MAX(INDEX(SC_ZX_Drawdown,ZXIDX2),0),BI16)) ->  | BO16: =-($U16-IF(($O16+$Q16+$R16)>0,MAX($U16/($O16+$Q16+$R16)*($P16+$Q16),$U16),0))*LT_InvestmentQDI ->  | BP16: =-($U16-IF(($O16+$Q16+$R16)>0,MAX($U16/($O16+$Q16+$R16)*($P16+$Q16),$U16),0))*(1-LT_InvestmentQDI) ->  | BS16: =SUMPRODUCT($BM16:$BM17+$BN16:$BN17, --($F16:$F17<>0)) ->  | BT16: =SUMPRODUCT($BQ16:$BQ17+$BR16:$BR17, --($F16:$F17<>0)) ->  | BU16: =$S16+SUMPRODUCT($Z16:$Z17+$AG16:$AG17+$AN16:$AN17+$AU16:$AU17+$BB16:$BB17+$BI16:$BI17, --($F16:$F17<>0)) ->  | BV16: =MAX($O16-$P16,0)+SUMPRODUCT($W16:$W17+$AK16:$AK17+$AY16:$AY17, --($F16:$F17<>0)) ->  | BW16: =MIN($O16,$P16)+SUMPRODUCT($AD16:$AD17+$AR16:$AR17+$BF16:$BF17, --($F16:$F17<>0)) -> 
B17: 2023 | C17: N | E17: 2 | F17: 0 | G17: -1 | H17: 0 | N17: =LT_InvestmentStocks*INDEX(SP_EA_ARStocks,EAIDX)+LT_InvestmentBonds*INDEX(SC_EA_ARBonds,EAIDX) ->  | AB17: =-IF(INDEX(SC_ZX_CodeA,ZXIDX1)="X", 0, MIN(AA17*MAX(INDEX(SC_ZX_Drawdown,ZXIDX2),0),Z17)) ->  | AI17: =-IF(INDEX(SC_ZX_CodeA,ZXIDX1)="X", 0, MIN(AH17*MAX(INDEX(SC_ZX_Drawdown,ZXIDX2),0),AG17)) ->  | AP17: =-IF(INDEX(SC_ZX_CodeA,ZXIDX1)="X", 0, MIN(AO17*MAX(INDEX(SC_ZX_Drawdown,ZXIDX2),0),AN17)) ->  | AW17: =-IF(INDEX(SC_ZX_CodeA,ZXIDX1)="X", 0, MIN(AV17*MAX(INDEX(SC_ZX_Drawdown,ZXIDX2),0),AU17)) ->  | BD17: =-IF(INDEX(SC_ZX_CodeA,ZXIDX1)="X", 0, MIN(BC17*MAX(INDEX(SC_ZX_Drawdown,ZXIDX2),0),AY17)) ->  | BK17: =-IF(INDEX(SC_ZX_CodeA,ZXIDX1)="X", 0, MIN(BJ17*MAX(INDEX(SC_ZX_Drawdown,ZXIDX2),0),BI17)) ->  | BO17: =-($U17-IF(($O17+$Q17+$R17)>0,MAX($U17/($O17+$Q17+$R17)*($P17+$Q17),$U17),0))*LT_InvestmentQDI ->  | BP17: =-($U17-IF(($O17+$Q17+$R17)>0,MAX($U17/($O17+$Q17+$R17)*($P17+$Q17),$U17),0))*(1-LT_InvestmentQDI) -> 
B18: =B16+1 -> 2024 | C18: N | E18: 1 | F18: 0 | G18: 1 | H18: 0 | M18: =YEAR(SP_TargetRD)-$B18 -> -3 | N18: =LT_InvestmentStocks*INDEX(SP_EA_ARStocks,EAIDX)+LT_InvestmentBonds*INDEX(SC_EA_ARBonds,EAIDX) ->  | O18: =MAX(O16+Q16+R16+U16+V16,0) ->  | P18: =MAX(P16+Q16+IF((O16+Q16+R16)>0,MAX(U16/(O16+Q16+R16)*(P16+Q16),U16),0),0) ->  | Q18: =IF(SC_ZX_CodeA="X", 0, MAX(INDEX(SC_ZX_IncomeSurplus,ZXIDX2)+INDEX(SC_ZX_Debt,ZXIDX2),0)) ->  | R18: =IF(SC_ZX_CodeA="X", 0, INDEX(SC_EX_RolloverCore,EXIDX)) ->  | S18: =O18+Q18+R18 ->  | T18: =IF(SC_ZX_BalanceAccessibleA>0, S18/SC_ZX_BalanceAccessibleA, 0) ->  | U18: =-IF(SC_ZX_CodeA="X",0,MIN(T18*MAX(INDEX(SC_ZX_Drawdown,ZXIDX2),0),S18)) ->  | V18: =(O18+Q18+R18+U18)*$N18 ->  | AB18: =-IF(INDEX(SC_ZX_CodeA,ZXIDX1)="X", 0, MIN(AA18*MAX(INDEX(SC_ZX_Drawdown,ZXIDX2),0),Z18)) ->  | AI18: =-IF(INDEX(SC_ZX_CodeA,ZXIDX1)="X", 0, MIN(AH18*MAX(INDEX(SC_ZX_Drawdown,ZXIDX2),0),AG18)) ->  | AP18: =-IF(INDEX(SC_ZX_CodeA,ZXIDX1)="X", 0, MIN(AO18*MAX(INDEX(SC_ZX_Drawdown,ZXIDX2),0),AN18)) ->  | AW18: =-IF(INDEX(SC_ZX_CodeA,ZXIDX1)="X", 0, MIN(AV18*MAX(INDEX(SC_ZX_Drawdown,ZXIDX2),0),AU18)) ->  | BD18: =-IF(INDEX(SC_ZX_CodeA,ZXIDX1)="X", 0, MIN(BC18*MAX(INDEX(SC_ZX_Drawdown,ZXIDX2),0),AY18)) ->  | BK18: =-IF(INDEX(SC_ZX_CodeA,ZXIDX1)="X", 0, MIN(BJ18*MAX(INDEX(SC_ZX_Drawdown,ZXIDX2),0),BI18)) ->  | BO18: =-($U18-IF(($O18+$Q18+$R18)>0,MAX($U18/($O18+$Q18+$R18)*($P18+$Q18),$U18),0))*LT_InvestmentQDI ->  | BP18: =-($U18-IF(($O18+$Q18+$R18)>0,MAX($U18/($O18+$Q18+$R18)*($P18+$Q18),$U18),0))*(1-LT_InvestmentQDI) ->  | BS18: =SUMPRODUCT($BM18:$BM19+$BN18:$BN19, --($F18:$F19<>0)) ->  | BT18: =SUMPRODUCT($BQ18:$BQ19+$BR18:$BR19, --($F18:$F19<>0)) ->  | BU18: =$S18+SUMPRODUCT($Z18:$Z19+$AG18:$AG19+$AN18:$AN19+$AU18:$AU19+$BB18:$BB19+$BI18:$BI19, --($F18:$F19<>0)) ->  | BV18: =MAX($O18-$P18,0)+SUMPRODUCT($W18:$W19+$AK18:$AK19+$AY18:$AY19, --($F18:$F19<>0)) ->  | BW18: =MIN($O18,$P18)+SUMPRODUCT($AD18:$AD19+$AR18:$AR19+$BF18:$BF19, --($F18:$F19<>0)) -> 
B19: 2024 | C19: N | E19: 2 | F19: 0 | G19: -1 | H19: 0 | N19: =LT_InvestmentStocks*INDEX(SP_EA_ARStocks,EAIDX)+LT_InvestmentBonds*INDEX(SC_EA_ARBonds,EAIDX) ->  | AB19: =-IF(INDEX(SC_ZX_CodeA,ZXIDX1)="X", 0, MIN(AA19*MAX(INDEX(SC_ZX_Drawdown,ZXIDX2),0),Z19)) ->  | AI19: =-IF(INDEX(SC_ZX_CodeA,ZXIDX1)="X", 0, MIN(AH19*MAX(INDEX(SC_ZX_Drawdown,ZXIDX2),0),AG19)) ->  | AP19: =-IF(INDEX(SC_ZX_CodeA,ZXIDX1)="X", 0, MIN(AO19*MAX(INDEX(SC_ZX_Drawdown,ZXIDX2),0),AN19)) ->  | AW19: =-IF(INDEX(SC_ZX_CodeA,ZXIDX1)="X", 0, MIN(AV19*MAX(INDEX(SC_ZX_Drawdown,ZXIDX2),0),AU19)) ->  | BD19: =-IF(INDEX(SC_ZX_CodeA,ZXIDX1)="X", 0, MIN(BC19*MAX(INDEX(SC_ZX_Drawdown,ZXIDX2),0),AY19)) ->  | BK19: =-IF(INDEX(SC_ZX_CodeA,ZXIDX1)="X", 0, MIN(BJ19*MAX(INDEX(SC_ZX_Drawdown,ZXIDX2),0),BI19)) ->  | BO19: =-($U19-IF(($O19+$Q19+$R19)>0,MAX($U19/($O19+$Q19+$R19)*($P19+$Q19),$U19),0))*LT_InvestmentQDI ->  | BP19: =-($U19-IF(($O19+$Q19+$R19)>0,MAX($U19/($O19+$Q19+$R19)*($P19+$Q19),$U19),0))*(1-LT_InvestmentQDI) -> 
B20: =B18+1 -> 2025 | C20: N | E20: 1 | F20: 0 | G20: 1 | H20: 0 | M20: =YEAR(SP_TargetRD)-$B20 -> -4 | N20: =LT_InvestmentStocks*INDEX(SP_EA_ARStocks,EAIDX)+LT_InvestmentBonds*INDEX(SC_EA_ARBonds,EAIDX) ->  | O20: =MAX(O18+Q18+R18+U18+V18,0) ->  | P20: =MAX(P18+Q18+IF((O18+Q18+R18)>0,MAX(U18/(O18+Q18+R18)*(P18+Q18),U18),0),0) ->  | Q20: =IF(SC_ZX_CodeA="X", 0, MAX(INDEX(SC_ZX_IncomeSurplus,ZXIDX2)+INDEX(SC_ZX_Debt,ZXIDX2),0)) ->  | R20: =IF(SC_ZX_CodeA="X", 0, INDEX(SC_EX_RolloverCore,EXIDX)) ->  | S20: =O20+Q20+R20 ->  | T20: =IF(SC_ZX_BalanceAccessibleA>0, S20/SC_ZX_BalanceAccessibleA, 0) ->  | U20: =-IF(SC_ZX_CodeA="X",0,MIN(T20*MAX(INDEX(SC_ZX_Drawdown,ZXIDX2),0),S20)) ->  | V20: =(O20+Q20+R20+U20)*$N20 ->  | AB20: =-IF(INDEX(SC_ZX_CodeA,ZXIDX1)="X", 0, MIN(AA20*MAX(INDEX(SC_ZX_Drawdown,ZXIDX2),0),Z20)) ->  | AI20: =-IF(INDEX(SC_ZX_CodeA,ZXIDX1)="X", 0, MIN(AH20*MAX(INDEX(SC_ZX_Drawdown,ZXIDX2),0),AG20)) ->  | AP20: =-IF(INDEX(SC_ZX_CodeA,ZXIDX1)="X", 0, MIN(AO20*MAX(INDEX(SC_ZX_Drawdown,ZXIDX2),0),AN20)) ->  | AW20: =-IF(INDEX(SC_ZX_CodeA,ZXIDX1)="X", 0, MIN(AV20*MAX(INDEX(SC_ZX_Drawdown,ZXIDX2),0),AU20)) ->  | BD20: =-IF(INDEX(SC_ZX_CodeA,ZXIDX1)="X", 0, MIN(BC20*MAX(INDEX(SC_ZX_Drawdown,ZXIDX2),0),AY20)) ->  | BK20: =-IF(INDEX(SC_ZX_CodeA,ZXIDX1)="X", 0, MIN(BJ20*MAX(INDEX(SC_ZX_Drawdown,ZXIDX2),0),BI20)) ->  | BO20: =-($U20-IF(($O20+$Q20+$R20)>0,MAX($U20/($O20+$Q20+$R20)*($P20+$Q20),$U20),0))*LT_InvestmentQDI ->  | BP20: =-($U20-IF(($O20+$Q20+$R20)>0,MAX($U20/($O20+$Q20+$R20)*($P20+$Q20),$U20),0))*(1-LT_InvestmentQDI) ->  | BS20: =SUMPRODUCT($BM20:$BM21+$BN20:$BN21, --($F20:$F21<>0)) ->  | BT20: =SUMPRODUCT($BQ20:$BQ21+$BR20:$BR21, --($F20:$F21<>0)) ->  | BU20: =$S20+SUMPRODUCT($Z20:$Z21+$AG20:$AG21+$AN20:$AN21+$AU20:$AU21+$BB20:$BB21+$BI20:$BI21, --($F20:$F21<>0)) ->  | BV20: =MAX($O20-$P20,0)+SUMPRODUCT($W20:$W21+$AK20:$AK21+$AY20:$AY21, --($F20:$F21<>0)) ->  | BW20: =MIN($O20,$P20)+SUMPRODUCT($AD20:$AD21+$AR20:$AR21+$BF20:$BF21, --($F20:$F21<>0)) -> 
B21: 2025 | C21: N | E21: 2 | F21: 0 | G21: -1 | H21: 0 | N21: =LT_InvestmentStocks*INDEX(SP_EA_ARStocks,EAIDX)+LT_InvestmentBonds*INDEX(SC_EA_ARBonds,EAIDX) ->  | AB21: =-IF(INDEX(SC_ZX_CodeA,ZXIDX1)="X", 0, MIN(AA21*MAX(INDEX(SC_ZX_Drawdown,ZXIDX2),0),Z21)) ->  | AI21: =-IF(INDEX(SC_ZX_CodeA,ZXIDX1)="X", 0, MIN(AH21*MAX(INDEX(SC_ZX_Drawdown,ZXIDX2),0),AG21)) ->  | AP21: =-IF(INDEX(SC_ZX_CodeA,ZXIDX1)="X", 0, MIN(AO21*MAX(INDEX(SC_ZX_Drawdown,ZXIDX2),0),AN21)) ->  | AW21: =-IF(INDEX(SC_ZX_CodeA,ZXIDX1)="X", 0, MIN(AV21*MAX(INDEX(SC_ZX_Drawdown,ZXIDX2),0),AU21)) ->  | BD21: =-IF(INDEX(SC_ZX_CodeA,ZXIDX1)="X", 0, MIN(BC21*MAX(INDEX(SC_ZX_Drawdown,ZXIDX2),0),AY21)) ->  | BK21: =-IF(INDEX(SC_ZX_CodeA,ZXIDX1)="X", 0, MIN(BJ21*MAX(INDEX(SC_ZX_Drawdown,ZXIDX2),0),BI21)) ->  | BO21: =-($U21-IF(($O21+$Q21+$R21)>0,MAX($U21/($O21+$Q21+$R21)*($P21+$Q21),$U21),0))*LT_InvestmentQDI ->  | BP21: =-($U21-IF(($O21+$Q21+$R21)>0,MAX($U21/($O21+$Q21+$R21)*($P21+$Q21),$U21),0))*(1-LT_InvestmentQDI) -> 
B22: =B20+1 -> 2026 | C22: N | E22: 1 | F22: 0 | G22: 1 | H22: 0 | M22: =YEAR(SP_TargetRD)-$B22 -> -5 | N22: =LT_InvestmentStocks*INDEX(SP_EA_ARStocks,EAIDX)+LT_InvestmentBonds*INDEX(SC_EA_ARBonds,EAIDX) ->  | O22: =MAX(O20+Q20+R20+U20+V20,0) ->  | P22: =MAX(P20+Q20+IF((O20+Q20+R20)>0,MAX(U20/(O20+Q20+R20)*(P20+Q20),U20),0),0) ->  | Q22: =IF(SC_ZX_CodeA="X", 0, MAX(INDEX(SC_ZX_IncomeSurplus,ZXIDX2)+INDEX(SC_ZX_Debt,ZXIDX2),0)) ->  | R22: =IF(SC_ZX_CodeA="X", 0, INDEX(SC_EX_RolloverCore,EXIDX)) ->  | S22: =O22+Q22+R22 ->  | T22: =IF(SC_ZX_BalanceAccessibleA>0, S22/SC_ZX_BalanceAccessibleA, 0) ->  | U22: =-IF(SC_ZX_CodeA="X",0,MIN(T22*MAX(INDEX(SC_ZX_Drawdown,ZXIDX2),0),S22)) ->  | V22: =(O22+Q22+R22+U22)*$N22 ->  | AB22: =-IF(INDEX(SC_ZX_CodeA,ZXIDX1)="X", 0, MIN(AA22*MAX(INDEX(SC_ZX_Drawdown,ZXIDX2),0),Z22)) ->  | AI22: =-IF(INDEX(SC_ZX_CodeA,ZXIDX1)="X", 0, MIN(AH22*MAX(INDEX(SC_ZX_Drawdown,ZXIDX2),0),AG22)) ->  | AP22: =-IF(INDEX(SC_ZX_CodeA,ZXIDX1)="X", 0, MIN(AO22*MAX(INDEX(SC_ZX_Drawdown,ZXIDX2),0),AN22)) ->  | AW22: =-IF(INDEX(SC_ZX_CodeA,ZXIDX1)="X", 0, MIN(AV22*MAX(INDEX(SC_ZX_Drawdown,ZXIDX2),0),AU22)) ->  | BD22: =-IF(INDEX(SC_ZX_CodeA,ZXIDX1)="X", 0, MIN(BC22*MAX(INDEX(SC_ZX_Drawdown,ZXIDX2),0),AY22)) ->  | BK22: =-IF(INDEX(SC_ZX_CodeA,ZXIDX1)="X", 0, MIN(BJ22*MAX(INDEX(SC_ZX_Drawdown,ZXIDX2),0),BI22)) ->  | BO22: =-($U22-IF(($O22+$Q22+$R22)>0,MAX($U22/($O22+$Q22+$R22)*($P22+$Q22),$U22),0))*LT_InvestmentQDI ->  | BP22: =-($U22-IF(($O22+$Q22+$R22)>0,MAX($U22/($O22+$Q22+$R22)*($P22+$Q22),$U22),0))*(1-LT_InvestmentQDI) ->  | BS22: =SUMPRODUCT($BM22:$BM23+$BN22:$BN23, --($F22:$F23<>0)) ->  | BT22: =SUMPRODUCT($BQ22:$BQ23+$BR22:$BR23, --($F22:$F23<>0)) ->  | BU22: =$S22+SUMPRODUCT($Z22:$Z23+$AG22:$AG23+$AN22:$AN23+$AU22:$AU23+$BB22:$BB23+$BI22:$BI23, --($F22:$F23<>0)) ->  | BV22: =MAX($O22-$P22,0)+SUMPRODUCT($W22:$W23+$AK22:$AK23+$AY22:$AY23, --($F22:$F23<>0)) ->  | BW22: =MIN($O22,$P22)+SUMPRODUCT($AD22:$AD23+$AR22:$AR23+$BF22:$BF23, --($F22:$F23<>0)) -> 
B23: 2026 | C23: N | E23: 2 | F23: 0 | G23: -1 | H23: 0 | N23: =LT_InvestmentStocks*INDEX(SP_EA_ARStocks,EAIDX)+LT_InvestmentBonds*INDEX(SC_EA_ARBonds,EAIDX) ->  | AB23: =-IF(INDEX(SC_ZX_CodeA,ZXIDX1)="X", 0, MIN(AA23*MAX(INDEX(SC_ZX_Drawdown,ZXIDX2),0),Z23)) ->  | AI23: =-IF(INDEX(SC_ZX_CodeA,ZXIDX1)="X", 0, MIN(AH23*MAX(INDEX(SC_ZX_Drawdown,ZXIDX2),0),AG23)) ->  | AP23: =-IF(INDEX(SC_ZX_CodeA,ZXIDX1)="X", 0, MIN(AO23*MAX(INDEX(SC_ZX_Drawdown,ZXIDX2),0),AN23)) ->  | AW23: =-IF(INDEX(SC_ZX_CodeA,ZXIDX1)="X", 0, MIN(AV23*MAX(INDEX(SC_ZX_Drawdown,ZXIDX2),0),AU23)) ->  | BD23: =-IF(INDEX(SC_ZX_CodeA,ZXIDX1)="X", 0, MIN(BC23*MAX(INDEX(SC_ZX_Drawdown,ZXIDX2),0),AY23)) ->  | BK23: =-IF(INDEX(SC_ZX_CodeA,ZXIDX1)="X", 0, MIN(BJ23*MAX(INDEX(SC_ZX_Drawdown,ZXIDX2),0),BI23)) ->  | BO23: =-($U23-IF(($O23+$Q23+$R23)>0,MAX($U23/($O23+$Q23+$R23)*($P23+$Q23),$U23),0))*LT_InvestmentQDI ->  | BP23: =-($U23-IF(($O23+$Q23+$R23)>0,MAX($U23/($O23+$Q23+$R23)*($P23+$Q23),$U23),0))*(1-LT_InvestmentQDI) -> 
B24: =B22+1 -> 2027 | C24: N | E24: 1 | F24: 0 | G24: 1 | H24: 0 | M24: =YEAR(SP_TargetRD)-$B24 -> -6 | N24: =LT_InvestmentStocks*INDEX(SP_EA_ARStocks,EAIDX)+LT_InvestmentBonds*INDEX(SC_EA_ARBonds,EAIDX) ->  | O24: =MAX(O22+Q22+R22+U22+V22,0) ->  | P24: =MAX(P22+Q22+IF((O22+Q22+R22)>0,MAX(U22/(O22+Q22+R22)*(P22+Q22),U22),0),0) ->  | Q24: =IF(SC_ZX_CodeA="X", 0, MAX(INDEX(SC_ZX_IncomeSurplus,ZXIDX2)+INDEX(SC_ZX_Debt,ZXIDX2),0)) ->  | R24: =IF(SC_ZX_CodeA="X", 0, INDEX(SC_EX_RolloverCore,EXIDX)) ->  | S24: =O24+Q24+R24 ->  | T24: =IF(SC_ZX_BalanceAccessibleA>0, S24/SC_ZX_BalanceAccessibleA, 0) ->  | U24: =-IF(SC_ZX_CodeA="X",0,MIN(T24*MAX(INDEX(SC_ZX_Drawdown,ZXIDX2),0),S24)) ->  | V24: =(O24+Q24+R24+U24)*$N24 ->  | AB24: =-IF(INDEX(SC_ZX_CodeA,ZXIDX1)="X", 0, MIN(AA24*MAX(INDEX(SC_ZX_Drawdown,ZXIDX2),0),Z24)) ->  | AI24: =-IF(INDEX(SC_ZX_CodeA,ZXIDX1)="X", 0, MIN(AH24*MAX(INDEX(SC_ZX_Drawdown,ZXIDX2),0),AG24)) ->  | AP24: =-IF(INDEX(SC_ZX_CodeA,ZXIDX1)="X", 0, MIN(AO24*MAX(INDEX(SC_ZX_Drawdown,ZXIDX2),0),AN24)) ->  | AW24: =-IF(INDEX(SC_ZX_CodeA,ZXIDX1)="X", 0, MIN(AV24*MAX(INDEX(SC_ZX_Drawdown,ZXIDX2),0),AU24)) ->  | BD24: =-IF(INDEX(SC_ZX_CodeA,ZXIDX1)="X", 0, MIN(BC24*MAX(INDEX(SC_ZX_Drawdown,ZXIDX2),0),AY24)) ->  | BK24: =-IF(INDEX(SC_ZX_CodeA,ZXIDX1)="X", 0, MIN(BJ24*MAX(INDEX(SC_ZX_Drawdown,ZXIDX2),0),BI24)) ->  | BO24: =-($U24-IF(($O24+$Q24+$R24)>0,MAX($U24/($O24+$Q24+$R24)*($P24+$Q24),$U24),0))*LT_InvestmentQDI ->  | BP24: =-($U24-IF(($O24+$Q24+$R24)>0,MAX($U24/($O24+$Q24+$R24)*($P24+$Q24),$U24),0))*(1-LT_InvestmentQDI) ->  | BS24: =SUMPRODUCT($BM24:$BM25+$BN24:$BN25, --($F24:$F25<>0)) ->  | BT24: =SUMPRODUCT($BQ24:$BQ25+$BR24:$BR25, --($F24:$F25<>0)) ->  | BU24: =$S24+SUMPRODUCT($Z24:$Z25+$AG24:$AG25+$AN24:$AN25+$AU24:$AU25+$BB24:$BB25+$BI24:$BI25, --($F24:$F25<>0)) ->  | BV24: =MAX($O24-$P24,0)+SUMPRODUCT($W24:$W25+$AK24:$AK25+$AY24:$AY25, --($F24:$F25<>0)) ->  | BW24: =MIN($O24,$P24)+SUMPRODUCT($AD24:$AD25+$AR24:$AR25+$BF24:$BF25, --($F24:$F25<>0)) -> 
B25: 2027 | C25: N | E25: 2 | F25: 0 | G25: -1 | H25: 0 | N25: =LT_InvestmentStocks*INDEX(SP_EA_ARStocks,EAIDX)+LT_InvestmentBonds*INDEX(SC_EA_ARBonds,EAIDX) ->  | AB25: =-IF(INDEX(SC_ZX_CodeA,ZXIDX1)="X", 0, MIN(AA25*MAX(INDEX(SC_ZX_Drawdown,ZXIDX2),0),Z25)) ->  | AI25: =-IF(INDEX(SC_ZX_CodeA,ZXIDX1)="X", 0, MIN(AH25*MAX(INDEX(SC_ZX_Drawdown,ZXIDX2),0),AG25)) ->  | AP25: =-IF(INDEX(SC_ZX_CodeA,ZXIDX1)="X", 0, MIN(AO25*MAX(INDEX(SC_ZX_Drawdown,ZXIDX2),0),AN25)) ->  | AW25: =-IF(INDEX(SC_ZX_CodeA,ZXIDX1)="X", 0, MIN(AV25*MAX(INDEX(SC_ZX_Drawdown,ZXIDX2),0),AU25)) ->  | BD25: =-IF(INDEX(SC_ZX_CodeA,ZXIDX1)="X", 0, MIN(BC25*MAX(INDEX(SC_ZX_Drawdown,ZXIDX2),0),AY25)) ->  | BK25: =-IF(INDEX(SC_ZX_CodeA,ZXIDX1)="X", 0, MIN(BJ25*MAX(INDEX(SC_ZX_Drawdown,ZXIDX2),0),BI25)) ->  | BO25: =-($U25-IF(($O25+$Q25+$R25)>0,MAX($U25/($O25+$Q25+$R25)*($P25+$Q25),$U25),0))*LT_InvestmentQDI ->  | BP25: =-($U25-IF(($O25+$Q25+$R25)>0,MAX($U25/($O25+$Q25+$R25)*($P25+$Q25),$U25),0))*(1-LT_InvestmentQDI) -> 
B26: =B24+1 -> 2028 | C26: N | E26: 1 | F26: 0 | G26: 1 | H26: 0 | M26: =YEAR(SP_TargetRD)-$B26 -> -7 | N26: =LT_InvestmentStocks*INDEX(SP_EA_ARStocks,EAIDX)+LT_InvestmentBonds*INDEX(SC_EA_ARBonds,EAIDX) ->  | O26: =MAX(O24+Q24+R24+U24+V24,0) ->  | P26: =MAX(P24+Q24+IF((O24+Q24+R24)>0,MAX(U24/(O24+Q24+R24)*(P24+Q24),U24),0),0) ->  | Q26: =IF(SC_ZX_CodeA="X", 0, MAX(INDEX(SC_ZX_IncomeSurplus,ZXIDX2)+INDEX(SC_ZX_Debt,ZXIDX2),0)) ->  | R26: =IF(SC_ZX_CodeA="X", 0, INDEX(SC_EX_RolloverCore,EXIDX)) ->  | S26: =O26+Q26+R26 ->  | T26: =IF(SC_ZX_BalanceAccessibleA>0, S26/SC_ZX_BalanceAccessibleA, 0) ->  | U26: =-IF(SC_ZX_CodeA="X",0,MIN(T26*MAX(INDEX(SC_ZX_Drawdown,ZXIDX2),0),S26)) ->  | V26: =(O26+Q26+R26+U26)*$N26 ->  | AB26: =-IF(INDEX(SC_ZX_CodeA,ZXIDX1)="X", 0, MIN(AA26*MAX(INDEX(SC_ZX_Drawdown,ZXIDX2),0),Z26)) ->  | AI26: =-IF(INDEX(SC_ZX_CodeA,ZXIDX1)="X", 0, MIN(AH26*MAX(INDEX(SC_ZX_Drawdown,ZXIDX2),0),AG26)) ->  | AP26: =-IF(INDEX(SC_ZX_CodeA,ZXIDX1)="X", 0, MIN(AO26*MAX(INDEX(SC_ZX_Drawdown,ZXIDX2),0),AN26)) ->  | AW26: =-IF(INDEX(SC_ZX_CodeA,ZXIDX1)="X", 0, MIN(AV26*MAX(INDEX(SC_ZX_Drawdown,ZXIDX2),0),AU26)) ->  | BD26: =-IF(INDEX(SC_ZX_CodeA,ZXIDX1)="X", 0, MIN(BC26*MAX(INDEX(SC_ZX_Drawdown,ZXIDX2),0),AY26)) ->  | BK26: =-IF(INDEX(SC_ZX_CodeA,ZXIDX1)="X", 0, MIN(BJ26*MAX(INDEX(SC_ZX_Drawdown,ZXIDX2),0),BI26)) ->  | BO26: =-($U26-IF(($O26+$Q26+$R26)>0,MAX($U26/($O26+$Q26+$R26)*($P26+$Q26),$U26),0))*LT_InvestmentQDI ->  | BP26: =-($U26-IF(($O26+$Q26+$R26)>0,MAX($U26/($O26+$Q26+$R26)*($P26+$Q26),$U26),0))*(1-LT_InvestmentQDI) ->  | BS26: =SUMPRODUCT($BM26:$BM27+$BN26:$BN27, --($F26:$F27<>0)) ->  | BT26: =SUMPRODUCT($BQ26:$BQ27+$BR26:$BR27, --($F26:$F27<>0)) ->  | BU26: =$S26+SUMPRODUCT($Z26:$Z27+$AG26:$AG27+$AN26:$AN27+$AU26:$AU27+$BB26:$BB27+$BI26:$BI27, --($F26:$F27<>0)) ->  | BV26: =MAX($O26-$P26,0)+SUMPRODUCT($W26:$W27+$AK26:$AK27+$AY26:$AY27, --($F26:$F27<>0)) ->  | BW26: =MIN($O26,$P26)+SUMPRODUCT($AD26:$AD27+$AR26:$AR27+$BF26:$BF27, --($F26:$F27<>0)) -> 
B27: 2028 | C27: N | E27: 2 | F27: 0 | G27: -1 | H27: 0 | N27: =LT_InvestmentStocks*INDEX(SP_EA_ARStocks,EAIDX)+LT_InvestmentBonds*INDEX(SC_EA_ARBonds,EAIDX) ->  | AB27: =-IF(INDEX(SC_ZX_CodeA,ZXIDX1)="X", 0, MIN(AA27*MAX(INDEX(SC_ZX_Drawdown,ZXIDX2),0),Z27)) ->  | AI27: =-IF(INDEX(SC_ZX_CodeA,ZXIDX1)="X", 0, MIN(AH27*MAX(INDEX(SC_ZX_Drawdown,ZXIDX2),0),AG27)) ->  | AP27: =-IF(INDEX(SC_ZX_CodeA,ZXIDX1)="X", 0, MIN(AO27*MAX(INDEX(SC_ZX_Drawdown,ZXIDX2),0),AN27)) ->  | AW27: =-IF(INDEX(SC_ZX_CodeA,ZXIDX1)="X", 0, MIN(AV27*MAX(INDEX(SC_ZX_Drawdown,ZXIDX2),0),AU27)) ->  | BD27: =-IF(INDEX(SC_ZX_CodeA,ZXIDX1)="X", 0, MIN(BC27*MAX(INDEX(SC_ZX_Drawdown,ZXIDX2),0),AY27)) ->  | BK27: =-IF(INDEX(SC_ZX_CodeA,ZXIDX1)="X", 0, MIN(BJ27*MAX(INDEX(SC_ZX_Drawdown,ZXIDX2),0),BI27)) ->  | BO27: =-($U27-IF(($O27+$Q27+$R27)>0,MAX($U27/($O27+$Q27+$R27)*($P27+$Q27),$U27),0))*LT_InvestmentQDI ->  | BP27: =-($U27-IF(($O27+$Q27+$R27)>0,MAX($U27/($O27+$Q27+$R27)*($P27+$Q27),$U27),0))*(1-LT_InvestmentQDI) -> 
B28: =B26+1 -> 2029 | C28: N | E28: 1 | F28: 0 | G28: 1 | H28: 0 | M28: =YEAR(SP_TargetRD)-$B28 -> -8 | N28: =LT_InvestmentStocks*INDEX(SP_EA_ARStocks,EAIDX)+LT_InvestmentBonds*INDEX(SC_EA_ARBonds,EAIDX) ->  | O28: =MAX(O26+Q26+R26+U26+V26,0) ->  | P28: =MAX(P26+Q26+IF((O26+Q26+R26)>0,MAX(U26/(O26+Q26+R26)*(P26+Q26),U26),0),0) ->  | Q28: =IF(SC_ZX_CodeA="X", 0, MAX(INDEX(SC_ZX_IncomeSurplus,ZXIDX2)+INDEX(SC_ZX_Debt,ZXIDX2),0)) ->  | R28: =IF(SC_ZX_CodeA="X", 0, INDEX(SC_EX_RolloverCore,EXIDX)) ->  | S28: =O28+Q28+R28 ->  | T28: =IF(SC_ZX_BalanceAccessibleA>0, S28/SC_ZX_BalanceAccessibleA, 0) ->  | U28: =-IF(SC_ZX_CodeA="X",0,MIN(T28*MAX(INDEX(SC_ZX_Drawdown,ZXIDX2),0),S28)) ->  | V28: =(O28+Q28+R28+U28)*$N28 ->  | AB28: =-IF(INDEX(SC_ZX_CodeA,ZXIDX1)="X", 0, MIN(AA28*MAX(INDEX(SC_ZX_Drawdown,ZXIDX2),0),Z28)) ->  | AI28: =-IF(INDEX(SC_ZX_CodeA,ZXIDX1)="X", 0, MIN(AH28*MAX(INDEX(SC_ZX_Drawdown,ZXIDX2),0),AG28)) ->  | AP28: =-IF(INDEX(SC_ZX_CodeA,ZXIDX1)="X", 0, MIN(AO28*MAX(INDEX(SC_ZX_Drawdown,ZXIDX2),0),AN28)) ->  | AW28: =-IF(INDEX(SC_ZX_CodeA,ZXIDX1)="X", 0, MIN(AV28*MAX(INDEX(SC_ZX_Drawdown,ZXIDX2),0),AU28)) ->  | BD28: =-IF(INDEX(SC_ZX_CodeA,ZXIDX1)="X", 0, MIN(BC28*MAX(INDEX(SC_ZX_Drawdown,ZXIDX2),0),AY28)) ->  | BK28: =-IF(INDEX(SC_ZX_CodeA,ZXIDX1)="X", 0, MIN(BJ28*MAX(INDEX(SC_ZX_Drawdown,ZXIDX2),0),BI28)) ->  | BO28: =-($U28-IF(($O28+$Q28+$R28)>0,MAX($U28/($O28+$Q28+$R28)*($P28+$Q28),$U28),0))*LT_InvestmentQDI ->  | BP28: =-($U28-IF(($O28+$Q28+$R28)>0,MAX($U28/($O28+$Q28+$R28)*($P28+$Q28),$U28),0))*(1-LT_InvestmentQDI) ->  | BS28: =SUMPRODUCT($BM28:$BM29+$BN28:$BN29, --($F28:$F29<>0)) ->  | BT28: =SUMPRODUCT($BQ28:$BQ29+$BR28:$BR29, --($F28:$F29<>0)) ->  | BU28: =$S28+SUMPRODUCT($Z28:$Z29+$AG28:$AG29+$AN28:$AN29+$AU28:$AU29+$BB28:$BB29+$BI28:$BI29, --($F28:$F29<>0)) ->  | BV28: =MAX($O28-$P28,0)+SUMPRODUCT($W28:$W29+$AK28:$AK29+$AY28:$AY29, --($F28:$F29<>0)) ->  | BW28: =MIN($O28,$P28)+SUMPRODUCT($AD28:$AD29+$AR28:$AR29+$BF28:$BF29, --($F28:$F29<>0)) -> 
B29: 2029 | C29: N | E29: 2 | F29: 0 | G29: -1 | H29: 0 | N29: =LT_InvestmentStocks*INDEX(SP_EA_ARStocks,EAIDX)+LT_InvestmentBonds*INDEX(SC_EA_ARBonds,EAIDX) ->  | AB29: =-IF(INDEX(SC_ZX_CodeA,ZXIDX1)="X", 0, MIN(AA29*MAX(INDEX(SC_ZX_Drawdown,ZXIDX2),0),Z29)) ->  | AI29: =-IF(INDEX(SC_ZX_CodeA,ZXIDX1)="X", 0, MIN(AH29*MAX(INDEX(SC_ZX_Drawdown,ZXIDX2),0),AG29)) ->  | AP29: =-IF(INDEX(SC_ZX_CodeA,ZXIDX1)="X", 0, MIN(AO29*MAX(INDEX(SC_ZX_Drawdown,ZXIDX2),0),AN29)) ->  | AW29: =-IF(INDEX(SC_ZX_CodeA,ZXIDX1)="X", 0, MIN(AV29*MAX(INDEX(SC_ZX_Drawdown,ZXIDX2),0),AU29)) ->  | BD29: =-IF(INDEX(SC_ZX_CodeA,ZXIDX1)="X", 0, MIN(BC29*MAX(INDEX(SC_ZX_Drawdown,ZXIDX2),0),AY29)) ->  | BK29: =-IF(INDEX(SC_ZX_CodeA,ZXIDX1)="X", 0, MIN(BJ29*MAX(INDEX(SC_ZX_Drawdown,ZXIDX2),0),BI29)) ->  | BO29: =-($U29-IF(($O29+$Q29+$R29)>0,MAX($U29/($O29+$Q29+$R29)*($P29+$Q29),$U29),0))*LT_InvestmentQDI ->  | BP29: =-($U29-IF(($O29+$Q29+$R29)>0,MAX($U29/($O29+$Q29+$R29)*($P29+$Q29),$U29),0))*(1-LT_InvestmentQDI) -> 
B30: =B28+1 -> 2030 | C30: N | E30: 1 | F30: 0 | G30: 1 | H30: 0 | M30: =YEAR(SP_TargetRD)-$B30 -> -9 | N30: =LT_InvestmentStocks*INDEX(SP_EA_ARStocks,EAIDX)+LT_InvestmentBonds*INDEX(SC_EA_ARBonds,EAIDX) ->  | O30: =MAX(O28+Q28+R28+U28+V28,0) ->  | P30: =MAX(P28+Q28+IF((O28+Q28+R28)>0,MAX(U28/(O28+Q28+R28)*(P28+Q28),U28),0),0) ->  | Q30: =IF(SC_ZX_CodeA="X", 0, MAX(INDEX(SC_ZX_IncomeSurplus,ZXIDX2)+INDEX(SC_ZX_Debt,ZXIDX2),0)) ->  | R30: =IF(SC_ZX_CodeA="X", 0, INDEX(SC_EX_RolloverCore,EXIDX)) ->  | S30: =O30+Q30+R30 ->  | T30: =IF(SC_ZX_BalanceAccessibleA>0, S30/SC_ZX_BalanceAccessibleA, 0) ->  | U30: =-IF(SC_ZX_CodeA="X",0,MIN(T30*MAX(INDEX(SC_ZX_Drawdown,ZXIDX2),0),S30)) ->  | V30: =(O30+Q30+R30+U30)*$N30 ->  | AB30: =-IF(INDEX(SC_ZX_CodeA,ZXIDX1)="X", 0, MIN(AA30*MAX(INDEX(SC_ZX_Drawdown,ZXIDX2),0),Z30)) ->  | AI30: =-IF(INDEX(SC_ZX_CodeA,ZXIDX1)="X", 0, MIN(AH30*MAX(INDEX(SC_ZX_Drawdown,ZXIDX2),0),AG30)) ->  | AP30: =-IF(INDEX(SC_ZX_CodeA,ZXIDX1)="X", 0, MIN(AO30*MAX(INDEX(SC_ZX_Drawdown,ZXIDX2),0),AN30)) ->  | AW30: =-IF(INDEX(SC_ZX_CodeA,ZXIDX1)="X", 0, MIN(AV30*MAX(INDEX(SC_ZX_Drawdown,ZXIDX2),0),AU30)) ->  | BD30: =-IF(INDEX(SC_ZX_CodeA,ZXIDX1)="X", 0, MIN(BC30*MAX(INDEX(SC_ZX_Drawdown,ZXIDX2),0),AY30)) ->  | BK30: =-IF(INDEX(SC_ZX_CodeA,ZXIDX1)="X", 0, MIN(BJ30*MAX(INDEX(SC_ZX_Drawdown,ZXIDX2),0),BI30)) ->  | BO30: =-($U30-IF(($O30+$Q30+$R30)>0,MAX($U30/($O30+$Q30+$R30)*($P30+$Q30),$U30),0))*LT_InvestmentQDI ->  | BP30: =-($U30-IF(($O30+$Q30+$R30)>0,MAX($U30/($O30+$Q30+$R30)*($P30+$Q30),$U30),0))*(1-LT_InvestmentQDI) ->  | BS30: =SUMPRODUCT($BM30:$BM31+$BN30:$BN31, --($F30:$F31<>0)) ->  | BT30: =SUMPRODUCT($BQ30:$BQ31+$BR30:$BR31, --($F30:$F31<>0)) ->  | BU30: =$S30+SUMPRODUCT($Z30:$Z31+$AG30:$AG31+$AN30:$AN31+$AU30:$AU31+$BB30:$BB31+$BI30:$BI31, --($F30:$F31<>0)) ->  | BV30: =MAX($O30-$P30,0)+SUMPRODUCT($W30:$W31+$AK30:$AK31+$AY30:$AY31, --($F30:$F31<>0)) ->  | BW30: =MIN($O30,$P30)+SUMPRODUCT($AD30:$AD31+$AR30:$AR31+$BF30:$BF31, --($F30:$F31<>0)) -> 
B31: 2030 | C31: N | E31: 2 | F31: 0 | G31: -1 | H31: 0 | N31: =LT_InvestmentStocks*INDEX(SP_EA_ARStocks,EAIDX)+LT_InvestmentBonds*INDEX(SC_EA_ARBonds,EAIDX) ->  | AB31: =-IF(INDEX(SC_ZX_CodeA,ZXIDX1)="X", 0, MIN(AA31*MAX(INDEX(SC_ZX_Drawdown,ZXIDX2),0),Z31)) ->  | AI31: =-IF(INDEX(SC_ZX_CodeA,ZXIDX1)="X", 0, MIN(AH31*MAX(INDEX(SC_ZX_Drawdown,ZXIDX2),0),AG31)) ->  | AP31: =-IF(INDEX(SC_ZX_CodeA,ZXIDX1)="X", 0, MIN(AO31*MAX(INDEX(SC_ZX_Drawdown,ZXIDX2),0),AN31)) ->  | AW31: =-IF(INDEX(SC_ZX_CodeA,ZXIDX1)="X", 0, MIN(AV31*MAX(INDEX(SC_ZX_Drawdown,ZXIDX2),0),AU31)) ->  | BD31: =-IF(INDEX(SC_ZX_CodeA,ZXIDX1)="X", 0, MIN(BC31*MAX(INDEX(SC_ZX_Drawdown,ZXIDX2),0),AY31)) ->  | BK31: =-IF(INDEX(SC_ZX_CodeA,ZXIDX1)="X", 0, MIN(BJ31*MAX(INDEX(SC_ZX_Drawdown,ZXIDX2),0),BI31)) ->  | BO31: =-($U31-IF(($O31+$Q31+$R31)>0,MAX($U31/($O31+$Q31+$R31)*($P31+$Q31),$U31),0))*LT_InvestmentQDI ->  | BP31: =-($U31-IF(($O31+$Q31+$R31)>0,MAX($U31/($O31+$Q31+$R31)*($P31+$Q31),$U31),0))*(1-LT_InvestmentQDI) -> 
B32: =B30+1 -> 2031 | C32: N | E32: 1 | F32: 0 | G32: 1 | H32: 0 | M32: =YEAR(SP_TargetRD)-$B32 -> -10 | N32: =LT_InvestmentStocks*INDEX(SP_EA_ARStocks,EAIDX)+LT_InvestmentBonds*INDEX(SC_EA_ARBonds,EAIDX) ->  | O32: =MAX(O30+Q30+R30+U30+V30,0) ->  | P32: =MAX(P30+Q30+IF((O30+Q30+R30)>0,MAX(U30/(O30+Q30+R30)*(P30+Q30),U30),0),0) ->  | Q32: =IF(SC_ZX_CodeA="X", 0, MAX(INDEX(SC_ZX_IncomeSurplus,ZXIDX2)+INDEX(SC_ZX_Debt,ZXIDX2),0)) ->  | R32: =IF(SC_ZX_CodeA="X", 0, INDEX(SC_EX_RolloverCore,EXIDX)) ->  | S32: =O32+Q32+R32 ->  | T32: =IF(SC_ZX_BalanceAccessibleA>0, S32/SC_ZX_BalanceAccessibleA, 0) ->  | U32: =-IF(SC_ZX_CodeA="X",0,MIN(T32*MAX(INDEX(SC_ZX_Drawdown,ZXIDX2),0),S32)) ->  | V32: =(O32+Q32+R32+U32)*$N32 ->  | AB32: =-IF(INDEX(SC_ZX_CodeA,ZXIDX1)="X", 0, MIN(AA32*MAX(INDEX(SC_ZX_Drawdown,ZXIDX2),0),Z32)) ->  | AI32: =-IF(INDEX(SC_ZX_CodeA,ZXIDX1)="X", 0, MIN(AH32*MAX(INDEX(SC_ZX_Drawdown,ZXIDX2),0),AG32)) ->  | AP32: =-IF(INDEX(SC_ZX_CodeA,ZXIDX1)="X", 0, MIN(AO32*MAX(INDEX(SC_ZX_Drawdown,ZXIDX2),0),AN32)) ->  | AW32: =-IF(INDEX(SC_ZX_CodeA,ZXIDX1)="X", 0, MIN(AV32*MAX(INDEX(SC_ZX_Drawdown,ZXIDX2),0),AU32)) ->  | BD32: =-IF(INDEX(SC_ZX_CodeA,ZXIDX1)="X", 0, MIN(BC32*MAX(INDEX(SC_ZX_Drawdown,ZXIDX2),0),AY32)) ->  | BK32: =-IF(INDEX(SC_ZX_CodeA,ZXIDX1)="X", 0, MIN(BJ32*MAX(INDEX(SC_ZX_Drawdown,ZXIDX2),0),BI32)) ->  | BO32: =-($U32-IF(($O32+$Q32+$R32)>0,MAX($U32/($O32+$Q32+$R32)*($P32+$Q32),$U32),0))*LT_InvestmentQDI ->  | BP32: =-($U32-IF(($O32+$Q32+$R32)>0,MAX($U32/($O32+$Q32+$R32)*($P32+$Q32),$U32),0))*(1-LT_InvestmentQDI) ->  | BS32: =SUMPRODUCT($BM32:$BM33+$BN32:$BN33, --($F32:$F33<>0)) ->  | BT32: =SUMPRODUCT($BQ32:$BQ33+$BR32:$BR33, --($F32:$F33<>0)) ->  | BU32: =$S32+SUMPRODUCT($Z32:$Z33+$AG32:$AG33+$AN32:$AN33+$AU32:$AU33+$BB32:$BB33+$BI32:$BI33, --($F32:$F33<>0)) ->  | BV32: =MAX($O32-$P32,0)+SUMPRODUCT($W32:$W33+$AK32:$AK33+$AY32:$AY33, --($F32:$F33<>0)) ->  | BW32: =MIN($O32,$P32)+SUMPRODUCT($AD32:$AD33+$AR32:$AR33+$BF32:$BF33, --($F32:$F33<>0)) -> 
B33: 2031 | C33: N | E33: 2 | F33: 0 | G33: -1 | H33: 0 | N33: =LT_InvestmentStocks*INDEX(SP_EA_ARStocks,EAIDX)+LT_InvestmentBonds*INDEX(SC_EA_ARBonds,EAIDX) ->  | AB33: =-IF(INDEX(SC_ZX_CodeA,ZXIDX1)="X", 0, MIN(AA33*MAX(INDEX(SC_ZX_Drawdown,ZXIDX2),0),Z33)) ->  | AI33: =-IF(INDEX(SC_ZX_CodeA,ZXIDX1)="X", 0, MIN(AH33*MAX(INDEX(SC_ZX_Drawdown,ZXIDX2),0),AG33)) ->  | AP33: =-IF(INDEX(SC_ZX_CodeA,ZXIDX1)="X", 0, MIN(AO33*MAX(INDEX(SC_ZX_Drawdown,ZXIDX2),0),AN33)) ->  | AW33: =-IF(INDEX(SC_ZX_CodeA,ZXIDX1)="X", 0, MIN(AV33*MAX(INDEX(SC_ZX_Drawdown,ZXIDX2),0),AU33)) ->  | BD33: =-IF(INDEX(SC_ZX_CodeA,ZXIDX1)="X", 0, MIN(BC33*MAX(INDEX(SC_ZX_Drawdown,ZXIDX2),0),AY33)) ->  | BK33: =-IF(INDEX(SC_ZX_CodeA,ZXIDX1)="X", 0, MIN(BJ33*MAX(INDEX(SC_ZX_Drawdown,ZXIDX2),0),BI33)) ->  | BO33: =-($U33-IF(($O33+$Q33+$R33)>0,MAX($U33/($O33+$Q33+$R33)*($P33+$Q33),$U33),0))*LT_InvestmentQDI ->  | BP33: =-($U33-IF(($O33+$Q33+$R33)>0,MAX($U33/($O33+$Q33+$R33)*($P33+$Q33),$U33),0))*(1-LT_InvestmentQDI) -> 
B34: =B32+1 -> 2032 | C34: N | E34: 1 | F34: 0 | G34: 1 | H34: 0 | M34: =YEAR(SP_TargetRD)-$B34 -> -11 | N34: =LT_InvestmentStocks*INDEX(SP_EA_ARStocks,EAIDX)+LT_InvestmentBonds*INDEX(SC_EA_ARBonds,EAIDX) ->  | O34: =MAX(O32+Q32+R32+U32+V32,0) ->  | P34: =MAX(P32+Q32+IF((O32+Q32+R32)>0,MAX(U32/(O32+Q32+R32)*(P32+Q32),U32),0),0) ->  | Q34: =IF(SC_ZX_CodeA="X", 0, MAX(INDEX(SC_ZX_IncomeSurplus,ZXIDX2)+INDEX(SC_ZX_Debt,ZXIDX2),0)) ->  | R34: =IF(SC_ZX_CodeA="X", 0, INDEX(SC_EX_RolloverCore,EXIDX)) ->  | S34: =O34+Q34+R34 ->  | T34: =IF(SC_ZX_BalanceAccessibleA>0, S34/SC_ZX_BalanceAccessibleA, 0) ->  | U34: =-IF(SC_ZX_CodeA="X",0,MIN(T34*MAX(INDEX(SC_ZX_Drawdown,ZXIDX2),0),S34)) ->  | V34: =(O34+Q34+R34+U34)*$N34 ->  | AB34: =-IF(INDEX(SC_ZX_CodeA,ZXIDX1)="X", 0, MIN(AA34*MAX(INDEX(SC_ZX_Drawdown,ZXIDX2),0),Z34)) ->  | AI34: =-IF(INDEX(SC_ZX_CodeA,ZXIDX1)="X", 0, MIN(AH34*MAX(INDEX(SC_ZX_Drawdown,ZXIDX2),0),AG34)) ->  | AP34: =-IF(INDEX(SC_ZX_CodeA,ZXIDX1)="X", 0, MIN(AO34*MAX(INDEX(SC_ZX_Drawdown,ZXIDX2),0),AN34)) ->  | AW34: =-IF(INDEX(SC_ZX_CodeA,ZXIDX1)="X", 0, MIN(AV34*MAX(INDEX(SC_ZX_Drawdown,ZXIDX2),0),AU34)) ->  | BD34: =-IF(INDEX(SC_ZX_CodeA,ZXIDX1)="X", 0, MIN(BC34*MAX(INDEX(SC_ZX_Drawdown,ZXIDX2),0),AY34)) ->  | BK34: =-IF(INDEX(SC_ZX_CodeA,ZXIDX1)="X", 0, MIN(BJ34*MAX(INDEX(SC_ZX_Drawdown,ZXIDX2),0),BI34)) ->  | BO34: =-($U34-IF(($O34+$Q34+$R34)>0,MAX($U34/($O34+$Q34+$R34)*($P34+$Q34),$U34),0))*LT_InvestmentQDI ->  | BP34: =-($U34-IF(($O34+$Q34+$R34)>0,MAX($U34/($O34+$Q34+$R34)*($P34+$Q34),$U34),0))*(1-LT_InvestmentQDI) ->  | BS34: =SUMPRODUCT($BM34:$BM35+$BN34:$BN35, --($F34:$F35<>0)) ->  | BT34: =SUMPRODUCT($BQ34:$BQ35+$BR34:$BR35, --($F34:$F35<>0)) ->  | BU34: =$S34+SUMPRODUCT($Z34:$Z35+$AG34:$AG35+$AN34:$AN35+$AU34:$AU35+$BB34:$BB35+$BI34:$BI35, --($F34:$F35<>0)) ->  | BV34: =MAX($O34-$P34,0)+SUMPRODUCT($W34:$W35+$AK34:$AK35+$AY34:$AY35, --($F34:$F35<>0)) ->  | BW34: =MIN($O34,$P34)+SUMPRODUCT($AD34:$AD35+$AR34:$AR35+$BF34:$BF35, --($F34:$F35<>0)) -> 
B35: 2032 | C35: N | E35: 2 | F35: 0 | G35: -1 | H35: 0 | N35: =LT_InvestmentStocks*INDEX(SP_EA_ARStocks,EAIDX)+LT_InvestmentBonds*INDEX(SC_EA_ARBonds,EAIDX) ->  | AB35: =-IF(INDEX(SC_ZX_CodeA,ZXIDX1)="X", 0, MIN(AA35*MAX(INDEX(SC_ZX_Drawdown,ZXIDX2),0),Z35)) ->  | AI35: =-IF(INDEX(SC_ZX_CodeA,ZXIDX1)="X", 0, MIN(AH35*MAX(INDEX(SC_ZX_Drawdown,ZXIDX2),0),AG35)) ->  | AP35: =-IF(INDEX(SC_ZX_CodeA,ZXIDX1)="X", 0, MIN(AO35*MAX(INDEX(SC_ZX_Drawdown,ZXIDX2),0),AN35)) ->  | AW35: =-IF(INDEX(SC_ZX_CodeA,ZXIDX1)="X", 0, MIN(AV35*MAX(INDEX(SC_ZX_Drawdown,ZXIDX2),0),AU35)) ->  | BD35: =-IF(INDEX(SC_ZX_CodeA,ZXIDX1)="X", 0, MIN(BC35*MAX(INDEX(SC_ZX_Drawdown,ZXIDX2),0),AY35)) ->  | BK35: =-IF(INDEX(SC_ZX_CodeA,ZXIDX1)="X", 0, MIN(BJ35*MAX(INDEX(SC_ZX_Drawdown,ZXIDX2),0),BI35)) ->  | BO35: =-($U35-IF(($O35+$Q35+$R35)>0,MAX($U35/($O35+$Q35+$R35)*($P35+$Q35),$U35),0))*LT_InvestmentQDI ->  | BP35: =-($U35-IF(($O35+$Q35+$R35)>0,MAX($U35/($O35+$Q35+$R35)*($P35+$Q35),$U35),0))*(1-LT_InvestmentQDI) -> 
B36: =B34+1 -> 2033 | C36: N | E36: 1 | F36: 0 | G36: 1 | H36: 0 | M36: =YEAR(SP_TargetRD)-$B36 -> -12 | N36: =LT_InvestmentStocks*INDEX(SP_EA_ARStocks,EAIDX)+LT_InvestmentBonds*INDEX(SC_EA_ARBonds,EAIDX) ->  | O36: =MAX(O34+Q34+R34+U34+V34,0) ->  | P36: =MAX(P34+Q34+IF((O34+Q34+R34)>0,MAX(U34/(O34+Q34+R34)*(P34+Q34),U34),0),0) ->  | Q36: =IF(SC_ZX_CodeA="X", 0, MAX(INDEX(SC_ZX_IncomeSurplus,ZXIDX2)+INDEX(SC_ZX_Debt,ZXIDX2),0)) ->  | R36: =IF(SC_ZX_CodeA="X", 0, INDEX(SC_EX_RolloverCore,EXIDX)) ->  | S36: =O36+Q36+R36 ->  | T36: =IF(SC_ZX_BalanceAccessibleA>0, S36/SC_ZX_BalanceAccessibleA, 0) ->  | U36: =-IF(SC_ZX_CodeA="X",0,MIN(T36*MAX(INDEX(SC_ZX_Drawdown,ZXIDX2),0),S36)) ->  | V36: =(O36+Q36+R36+U36)*$N36 ->  | AB36: =-IF(INDEX(SC_ZX_CodeA,ZXIDX1)="X", 0, MIN(AA36*MAX(INDEX(SC_ZX_Drawdown,ZXIDX2),0),Z36)) ->  | AI36: =-IF(INDEX(SC_ZX_CodeA,ZXIDX1)="X", 0, MIN(AH36*MAX(INDEX(SC_ZX_Drawdown,ZXIDX2),0),AG36)) ->  | AP36: =-IF(INDEX(SC_ZX_CodeA,ZXIDX1)="X", 0, MIN(AO36*MAX(INDEX(SC_ZX_Drawdown,ZXIDX2),0),AN36)) ->  | AW36: =-IF(INDEX(SC_ZX_CodeA,ZXIDX1)="X", 0, MIN(AV36*MAX(INDEX(SC_ZX_Drawdown,ZXIDX2),0),AU36)) ->  | BD36: =-IF(INDEX(SC_ZX_CodeA,ZXIDX1)="X", 0, MIN(BC36*MAX(INDEX(SC_ZX_Drawdown,ZXIDX2),0),AY36)) ->  | BK36: =-IF(INDEX(SC_ZX_CodeA,ZXIDX1)="X", 0, MIN(BJ36*MAX(INDEX(SC_ZX_Drawdown,ZXIDX2),0),BI36)) ->  | BO36: =-($U36-IF(($O36+$Q36+$R36)>0,MAX($U36/($O36+$Q36+$R36)*($P36+$Q36),$U36),0))*LT_InvestmentQDI ->  | BP36: =-($U36-IF(($O36+$Q36+$R36)>0,MAX($U36/($O36+$Q36+$R36)*($P36+$Q36),$U36),0))*(1-LT_InvestmentQDI) ->  | BS36: =SUMPRODUCT($BM36:$BM37+$BN36:$BN37, --($F36:$F37<>0)) ->  | BT36: =SUMPRODUCT($BQ36:$BQ37+$BR36:$BR37, --($F36:$F37<>0)) ->  | BU36: =$S36+SUMPRODUCT($Z36:$Z37+$AG36:$AG37+$AN36:$AN37+$AU36:$AU37+$BB36:$BB37+$BI36:$BI37, --($F36:$F37<>0)) ->  | BV36: =MAX($O36-$P36,0)+SUMPRODUCT($W36:$W37+$AK36:$AK37+$AY36:$AY37, --($F36:$F37<>0)) ->  | BW36: =MIN($O36,$P36)+SUMPRODUCT($AD36:$AD37+$AR36:$AR37+$BF36:$BF37, --($F36:$F37<>0)) -> 
B37: 2033 | C37: N | E37: 2 | F37: 0 | G37: -1 | H37: 0 | N37: =LT_InvestmentStocks*INDEX(SP_EA_ARStocks,EAIDX)+LT_InvestmentBonds*INDEX(SC_EA_ARBonds,EAIDX) ->  | AB37: =-IF(INDEX(SC_ZX_CodeA,ZXIDX1)="X", 0, MIN(AA37*MAX(INDEX(SC_ZX_Drawdown,ZXIDX2),0),Z37)) ->  | AI37: =-IF(INDEX(SC_ZX_CodeA,ZXIDX1)="X", 0, MIN(AH37*MAX(INDEX(SC_ZX_Drawdown,ZXIDX2),0),AG37)) ->  | AP37: =-IF(INDEX(SC_ZX_CodeA,ZXIDX1)="X", 0, MIN(AO37*MAX(INDEX(SC_ZX_Drawdown,ZXIDX2),0),AN37)) ->  | AW37: =-IF(INDEX(SC_ZX_CodeA,ZXIDX1)="X", 0, MIN(AV37*MAX(INDEX(SC_ZX_Drawdown,ZXIDX2),0),AU37)) ->  | BD37: =-IF(INDEX(SC_ZX_CodeA,ZXIDX1)="X", 0, MIN(BC37*MAX(INDEX(SC_ZX_Drawdown,ZXIDX2),0),AY37)) ->  | BK37: =-IF(INDEX(SC_ZX_CodeA,ZXIDX1)="X", 0, MIN(BJ37*MAX(INDEX(SC_ZX_Drawdown,ZXIDX2),0),BI37)) ->  | BO37: =-($U37-IF(($O37+$Q37+$R37)>0,MAX($U37/($O37+$Q37+$R37)*($P37+$Q37),$U37),0))*LT_InvestmentQDI ->  | BP37: =-($U37-IF(($O37+$Q37+$R37)>0,MAX($U37/($O37+$Q37+$R37)*($P37+$Q37),$U37),0))*(1-LT_InvestmentQDI) -> 
B38: =B36+1 -> 2034 | C38: N | E38: 1 | F38: 0 | G38: 1 | H38: 0 | M38: =YEAR(SP_TargetRD)-$B38 -> -13 | N38: =LT_InvestmentStocks*INDEX(SP_EA_ARStocks,EAIDX)+LT_InvestmentBonds*INDEX(SC_EA_ARBonds,EAIDX) ->  | O38: =MAX(O36+Q36+R36+U36+V36,0) ->  | P38: =MAX(P36+Q36+IF((O36+Q36+R36)>0,MAX(U36/(O36+Q36+R36)*(P36+Q36),U36),0),0) ->  | Q38: =IF(SC_ZX_CodeA="X", 0, MAX(INDEX(SC_ZX_IncomeSurplus,ZXIDX2)+INDEX(SC_ZX_Debt,ZXIDX2),0)) ->  | R38: =IF(SC_ZX_CodeA="X", 0, INDEX(SC_EX_RolloverCore,EXIDX)) ->  | S38: =O38+Q38+R38 ->  | T38: =IF(SC_ZX_BalanceAccessibleA>0, S38/SC_ZX_BalanceAccessibleA, 0) ->  | U38: =-IF(SC_ZX_CodeA="X",0,MIN(T38*MAX(INDEX(SC_ZX_Drawdown,ZXIDX2),0),S38)) ->  | V38: =(O38+Q38+R38+U38)*$N38 ->  | AB38: =-IF(INDEX(SC_ZX_CodeA,ZXIDX1)="X", 0, MIN(AA38*MAX(INDEX(SC_ZX_Drawdown,ZXIDX2),0),Z38)) ->  | AI38: =-IF(INDEX(SC_ZX_CodeA,ZXIDX1)="X", 0, MIN(AH38*MAX(INDEX(SC_ZX_Drawdown,ZXIDX2),0),AG38)) ->  | AP38: =-IF(INDEX(SC_ZX_CodeA,ZXIDX1)="X", 0, MIN(AO38*MAX(INDEX(SC_ZX_Drawdown,ZXIDX2),0),AN38)) ->  | AW38: =-IF(INDEX(SC_ZX_CodeA,ZXIDX1)="X", 0, MIN(AV38*MAX(INDEX(SC_ZX_Drawdown,ZXIDX2),0),AU38)) ->  | BD38: =-IF(INDEX(SC_ZX_CodeA,ZXIDX1)="X", 0, MIN(BC38*MAX(INDEX(SC_ZX_Drawdown,ZXIDX2),0),AY38)) ->  | BK38: =-IF(INDEX(SC_ZX_CodeA,ZXIDX1)="X", 0, MIN(BJ38*MAX(INDEX(SC_ZX_Drawdown,ZXIDX2),0),BI38)) ->  | BO38: =-($U38-IF(($O38+$Q38+$R38)>0,MAX($U38/($O38+$Q38+$R38)*($P38+$Q38),$U38),0))*LT_InvestmentQDI ->  | BP38: =-($U38-IF(($O38+$Q38+$R38)>0,MAX($U38/($O38+$Q38+$R38)*($P38+$Q38),$U38),0))*(1-LT_InvestmentQDI) ->  | BS38: =SUMPRODUCT($BM38:$BM39+$BN38:$BN39, --($F38:$F39<>0)) ->  | BT38: =SUMPRODUCT($BQ38:$BQ39+$BR38:$BR39, --($F38:$F39<>0)) ->  | BU38: =$S38+SUMPRODUCT($Z38:$Z39+$AG38:$AG39+$AN38:$AN39+$AU38:$AU39+$BB38:$BB39+$BI38:$BI39, --($F38:$F39<>0)) ->  | BV38: =MAX($O38-$P38,0)+SUMPRODUCT($W38:$W39+$AK38:$AK39+$AY38:$AY39, --($F38:$F39<>0)) ->  | BW38: =MIN($O38,$P38)+SUMPRODUCT($AD38:$AD39+$AR38:$AR39+$BF38:$BF39, --($F38:$F39<>0)) -> 
B39: 2034 | C39: N | E39: 2 | F39: 0 | G39: -1 | H39: 0 | N39: =LT_InvestmentStocks*INDEX(SP_EA_ARStocks,EAIDX)+LT_InvestmentBonds*INDEX(SC_EA_ARBonds,EAIDX) ->  | AB39: =-IF(INDEX(SC_ZX_CodeA,ZXIDX1)="X", 0, MIN(AA39*MAX(INDEX(SC_ZX_Drawdown,ZXIDX2),0),Z39)) ->  | AI39: =-IF(INDEX(SC_ZX_CodeA,ZXIDX1)="X", 0, MIN(AH39*MAX(INDEX(SC_ZX_Drawdown,ZXIDX2),0),AG39)) ->  | AP39: =-IF(INDEX(SC_ZX_CodeA,ZXIDX1)="X", 0, MIN(AO39*MAX(INDEX(SC_ZX_Drawdown,ZXIDX2),0),AN39)) ->  | AW39: =-IF(INDEX(SC_ZX_CodeA,ZXIDX1)="X", 0, MIN(AV39*MAX(INDEX(SC_ZX_Drawdown,ZXIDX2),0),AU39)) ->  | BD39: =-IF(INDEX(SC_ZX_CodeA,ZXIDX1)="X", 0, MIN(BC39*MAX(INDEX(SC_ZX_Drawdown,ZXIDX2),0),AY39)) ->  | BK39: =-IF(INDEX(SC_ZX_CodeA,ZXIDX1)="X", 0, MIN(BJ39*MAX(INDEX(SC_ZX_Drawdown,ZXIDX2),0),BI39)) ->  | BO39: =-($U39-IF(($O39+$Q39+$R39)>0,MAX($U39/($O39+$Q39+$R39)*($P39+$Q39),$U39),0))*LT_InvestmentQDI ->  | BP39: =-($U39-IF(($O39+$Q39+$R39)>0,MAX($U39/($O39+$Q39+$R39)*($P39+$Q39),$U39),0))*(1-LT_InvestmentQDI) -> 
B40: =B38+1 -> 2035 | C40: N | D40: =INDEX(SP_Initials,E40) ->  | E40: 1 | F40: 0 | G40: 1 | H40: =IF(INDEX(SC_ShowRetireatee,$E40),IF($B40<YEAR(INDEX(SP_BirthDate,$E40)),0,IF($B40>(YEAR(INDEX(SP_BirthDate,$E40))+INDEX(SP_LifeExp,$E40)),0,$B40-YEAR(INDEX(SP_BirthDate,$E40)))),0) -> 0 | M40: =YEAR(SP_TargetRD)-$B40 -> -14 | N40: =LT_InvestmentStocks*INDEX(SP_EA_ARStocks,EAIDX)+LT_InvestmentBonds*INDEX(SC_EA_ARBonds,EAIDX) ->  | O40: =MAX(O38+Q38+R38+U38+V38,0) ->  | P40: =MAX(P38+Q38+IF((O38+Q38+R38)>0,MAX(U38/(O38+Q38+R38)*(P38+Q38),U38),0),0) ->  | Q40: =IF(SC_ZX_CodeA="X", 0, MAX(INDEX(SC_ZX_IncomeSurplus,ZXIDX2)+INDEX(SC_ZX_Debt,ZXIDX2),0)) ->  | R40: =IF(SC_ZX_CodeA="X", 0, INDEX(SC_EX_RolloverCore,EXIDX)) ->  | S40: =O40+Q40+R40 ->  | T40: =IF(SC_ZX_BalanceAccessibleA>0, S40/SC_ZX_BalanceAccessibleA, 0) ->  | U40: =-IF(SC_ZX_CodeA="X",0,MIN(T40*MAX(INDEX(SC_ZX_Drawdown,ZXIDX2),0),S40)) ->  | V40: =(O40+Q40+R40+U40)*$N40 ->  | AB40: =-IF(INDEX(SC_ZX_CodeA,ZXIDX1)="X", 0, MIN(AA40*MAX(INDEX(SC_ZX_Drawdown,ZXIDX2),0),Z40)) ->  | AI40: =-IF(INDEX(SC_ZX_CodeA,ZXIDX1)="X", 0, MIN(AH40*MAX(INDEX(SC_ZX_Drawdown,ZXIDX2),0),AG40)) ->  | AP40: =-IF(INDEX(SC_ZX_CodeA,ZXIDX1)="X", 0, MIN(AO40*MAX(INDEX(SC_ZX_Drawdown,ZXIDX2),0),AN40)) ->  | AW40: =-IF(INDEX(SC_ZX_CodeA,ZXIDX1)="X", 0, MIN(AV40*MAX(INDEX(SC_ZX_Drawdown,ZXIDX2),0),AU40)) ->  | BD40: =-IF(INDEX(SC_ZX_CodeA,ZXIDX1)="X", 0, MIN(BC40*MAX(INDEX(SC_ZX_Drawdown,ZXIDX2),0),AY40)) ->  | BK40: =-IF(INDEX(SC_ZX_CodeA,ZXIDX1)="X", 0, MIN(BJ40*MAX(INDEX(SC_ZX_Drawdown,ZXIDX2),0),BI40)) ->  | BO40: =-($U40-IF(($O40+$Q40+$R40)>0,MAX($U40/($O40+$Q40+$R40)*($P40+$Q40),$U40),0))*LT_InvestmentQDI ->  | BP40: =-($U40-IF(($O40+$Q40+$R40)>0,MAX($U40/($O40+$Q40+$R40)*($P40+$Q40),$U40),0))*(1-LT_InvestmentQDI) ->  | BS40: =SUMPRODUCT($BM40:$BM41+$BN40:$BN41, --($F40:$F41<>0)) ->  | BT40: =SUMPRODUCT($BQ40:$BQ41+$BR40:$BR41, --($F40:$F41<>0)) ->  | BU40: =$S40+SUMPRODUCT($Z40:$Z41+$AG40:$AG41+$AN40:$AN41+$AU40:$AU41+$BB40:$BB41+$BI40:$BI41, --($F40:$F41<>0)) ->  | BV40: =MAX($O40-$P40,0)+SUMPRODUCT($W40:$W41+$AK40:$AK41+$AY40:$AY41, --($F40:$F41<>0)) ->  | BW40: =MIN($O40,$P40)+SUMPRODUCT($AD40:$AD41+$AR40:$AR41+$BF40:$BF41, --($F40:$F41<>0)) -> 
B41: 2035 | C41: N | E41: 2 | F41: 0 | G41: -1 | H41: 0 | N41: =LT_InvestmentStocks*INDEX(SP_EA_ARStocks,EAIDX)+LT_InvestmentBonds*INDEX(SC_EA_ARBonds,EAIDX) ->  | AB41: =-IF(INDEX(SC_ZX_CodeA,ZXIDX1)="X", 0, MIN(AA41*MAX(INDEX(SC_ZX_Drawdown,ZXIDX2),0),Z41)) ->  | AI41: =-IF(INDEX(SC_ZX_CodeA,ZXIDX1)="X", 0, MIN(AH41*MAX(INDEX(SC_ZX_Drawdown,ZXIDX2),0),AG41)) ->  | AP41: =-IF(INDEX(SC_ZX_CodeA,ZXIDX1)="X", 0, MIN(AO41*MAX(INDEX(SC_ZX_Drawdown,ZXIDX2),0),AN41)) ->  | AW41: =-IF(INDEX(SC_ZX_CodeA,ZXIDX1)="X", 0, MIN(AV41*MAX(INDEX(SC_ZX_Drawdown,ZXIDX2),0),AU41)) ->  | BD41: =-IF(INDEX(SC_ZX_CodeA,ZXIDX1)="X", 0, MIN(BC41*MAX(INDEX(SC_ZX_Drawdown,ZXIDX2),0),AY41)) ->  | BK41: =-IF(INDEX(SC_ZX_CodeA,ZXIDX1)="X", 0, MIN(BJ41*MAX(INDEX(SC_ZX_Drawdown,ZXIDX2),0),BI41)) ->  | BO41: =-($U41-IF(($O41+$Q41+$R41)>0,MAX($U41/($O41+$Q41+$R41)*($P41+$Q41),$U41),0))*LT_InvestmentQDI ->  | BP41: =-($U41-IF(($O41+$Q41+$R41)>0,MAX($U41/($O41+$Q41+$R41)*($P41+$Q41),$U41),0))*(1-LT_InvestmentQDI) -> 
B42: =B40+1 -> 2036 | C42: N | E42: 1 | F42: 0 | G42: 1 | H42: 0 | M42: =YEAR(SP_TargetRD)-$B42 -> -15 | N42: =LT_InvestmentStocks*INDEX(SP_EA_ARStocks,EAIDX)+LT_InvestmentBonds*INDEX(SC_EA_ARBonds,EAIDX) ->  | O42: =MAX(O40+Q40+R40+U40+V40,0) ->  | P42: =MAX(P40+Q40+IF((O40+Q40+R40)>0,MAX(U40/(O40+Q40+R40)*(P40+Q40),U40),0),0) ->  | Q42: =IF(SC_ZX_CodeA="X", 0, MAX(INDEX(SC_ZX_IncomeSurplus,ZXIDX2)+INDEX(SC_ZX_Debt,ZXIDX2),0)) ->  | R42: =IF(SC_ZX_CodeA="X", 0, INDEX(SC_EX_RolloverCore,EXIDX)) ->  | S42: =O42+Q42+R42 ->  | T42: =IF(SC_ZX_BalanceAccessibleA>0, S42/SC_ZX_BalanceAccessibleA, 0) ->  | U42: =-IF(SC_ZX_CodeA="X",0,MIN(T42*MAX(INDEX(SC_ZX_Drawdown,ZXIDX2),0),S42)) ->  | V42: =(O42+Q42+R42+U42)*$N42 ->  | W42: =MAX(W40+X40+Y40+AB40+AC40,0) ->  | X42: =MAX(INDEX(SC_EX_IncomeEmployer,EXIDX)*INDEX(SP_401KContrib,$E42),0) ->  | Y42: =MAX(INDEX(SC_EX_IncomeEmployer,EXIDX)*INDEX(SP_401KMatch,$E42),0) ->  | Z42: =(W42+X42+Y42)*IF($H42>=INDEX(SP_401KDistribAge,$E42),1,0) ->  | AB42: =-IF(INDEX(SC_ZX_CodeA,ZXIDX1)="X", 0, MIN(AA42*MAX(INDEX(SC_ZX_Drawdown,ZXIDX2),0),Z42)) ->  | AC42: =(W42+X42+Y42+AB42)*$N42 ->  | AD42: =MAX(AD40+AF40+AI40+AJ40,0) ->  | AE42: =MAX(AE40+AF40+AI40,0) ->  | AF42: =MAX(INDEX(SC_EX_IncomeEmployer, EXIDX)*INDEX(SP_Roth401KContrib,$E42),0) ->  | AG42: =(AD42+AF42)*IF($H42>=INDEX(SP_401KDistribAge,$E42),1,0) ->  | AI42: =-IF(INDEX(SC_ZX_CodeA,ZXIDX1)="X", 0, MIN(AH42*MAX(INDEX(SC_ZX_Drawdown,ZXIDX2),0),AG42)) ->  | AJ42: =(AD42+AF42+AI42)*$N42 ->  | AK42: =MAX(AK40+AL40+AM40+AP40+AQ40,0) ->  | AL42: =MAX(INDEX(SC_EX_IncomeSE,EXIDX)*INDEX(SP_Solo401KContrib,$E42),0) ->  | AM42: =MAX(INDEX(SC_EX_IncomeSE,EXIDX)*INDEX(SP_Solo401KMatch,$E42),0) ->  | AN42: =(AK42+AL42+AM42)*IF($H42>=INDEX(SP_Solo401KDistribAge,$E42),1,0) ->  | AP42: =-IF(INDEX(SC_ZX_CodeA,ZXIDX1)="X", 0, MIN(AO42*MAX(INDEX(SC_ZX_Drawdown,ZXIDX2),0),AN42)) ->  | AQ42: =(AK42+AL42+AM42+AP42)*$N42 ->  | AR42: =MAX(AR40+AT40+AW40+AX40,0) ->  | AS42: =MAX(AS40+AT40+AW40,0) ->  | AT42: =MAX(INDEX(SC_EX_IncomeSE, EXIDX)*INDEX(SP_RothSolo401KContrib,$E42),0) ->  | AU42: =(AR42+AT42)*IF($H42>=INDEX(SP_401KDistribAge,$E42),1,0) ->  | AW42: =-IF(INDEX(SC_ZX_CodeA,ZXIDX1)="X", 0, MIN(AV42*MAX(INDEX(SC_ZX_Drawdown,ZXIDX2),0),AU42)) ->  | AX42: =(AR42+AT42+AW42)*$N42 ->  | AY42: =MAX(AY40+AZ40+BA40+BD40+BE40,0) ->  | AZ42: =MAX(INDEX(SP_IRAContrib,$E42)/INDEX(SC_EA_InflationWageIdx, EAIDX)*ABS(INDEX(SC_EX_APW, EXIDX)),0) ->  | BA42: =MAX(INDEX(SP_IRASpousalContrib, OFFSET($E42,$G42,0))/INDEX(SC_EA_InflationWageIdx, EAIDX)*ABS(INDEX(SC_EX_APW, EXIDX)),0) ->  | BB42: =(AY42+AZ42+BA42)*IF($H42>=INDEX(SP_IRADistribAge,$E42),1,0) ->  | BD42: =-IF(INDEX(SC_ZX_CodeA,ZXIDX1)="X", 0, MIN(BC42*MAX(INDEX(SC_ZX_Drawdown,ZXIDX2),0),AY42)) ->  | BE42: =(AY42+AZ42+BA42+BD42)*$N42 ->  | BF42: =MAX(BF40+BH40+BK40+BL40,0) ->  | BG42: =MAX(BG40+BH40+BK40,0) ->  | BH42: =MAX(INDEX(SP_RothIRAContrib,$E42)/INDEX(SC_EA_InflationWageIdx, EAIDX)*ABS(INDEX(SC_EX_APW, EXIDX)),0) ->  | BI42: =IF($H42>=INDEX(SP_IRADistribAge,$E42),BF42+BH42,MIN(BF42+BH42,BG42+BH42)) ->  | BK42: =-IF(INDEX(SC_ZX_CodeA,ZXIDX1)="X", 0, MIN(BJ42*MAX(INDEX(SC_ZX_Drawdown,ZXIDX2),0),BI42)) ->  | BL42: =(BF42+BH42+BK42)*$N42 ->  | BM42: =-(X42+AL42+AZ42)-OFFSET(BA42,$G42,0) ->  | BN42: =-(AF42+AT42+BH42) ->  | BO42: =-($U42-IF(($O42+$Q42+$R42)>0,MAX($U42/($O42+$Q42+$R42)*($P42+$Q42),$U42),0))*LT_InvestmentQDI ->  | BP42: =-($U42-IF(($O42+$Q42+$R42)>0,MAX($U42/($O42+$Q42+$R42)*($P42+$Q42),$U42),0))*(1-LT_InvestmentQDI) ->  | BQ42: =BO42+BP42-AB42-AP42-BD42 ->  | BR42: =-U42-BO42-BP42-AI42-AW42-BK42 ->  | BS42: =SUMPRODUCT($BM42:$BM43+$BN42:$BN43, --($F42:$F43<>0)) ->  | BT42: =SUMPRODUCT($BQ42:$BQ43+$BR42:$BR43, --($F42:$F43<>0)) ->  | BU42: =$S42+SUMPRODUCT($Z42:$Z43+$AG42:$AG43+$AN42:$AN43+$AU42:$AU43+$BB42:$BB43+$BI42:$BI43, --($F42:$F43<>0)) ->  | BV42: =MAX($O42-$P42,0)+SUMPRODUCT($W42:$W43+$AK42:$AK43+$AY42:$AY43, --($F42:$F43<>0)) ->  | BW42: =MIN($O42,$P42)+SUMPRODUCT($AD42:$AD43+$AR42:$AR43+$BF42:$BF43, --($F42:$F43<>0)) -> 
